Workbook

Sheet Conclusion
A1: Windstream v. Canada | K1: Model check | L1: =ROUND(SUM(Int_Calc,ABS(DSRA_calc))-SUM(Int_Val,ABS(DSRA_val)),2) -> 0 | M1: << If not zero, click 'Balance Model'
A2: Appendix 11 | K2: IRR Check | L2: =ROUND(IRR_Actual-IRR_Target,5) -> 0 | M2: << If not zero, click 'Refresh Structuring Analysis'
A3: Conclusion
B5: Valuation of the Project using the Transaction Structuring Analysis
F7: =F23 -> FIT-Contract | G7: =G23 -> Post FIT-Contract | I7: =I23 -> Total
C9: Equity IRR required by a hypothetical buyer | D9: 0.15
C11: Upfront cash consideration | D11: A | F11: ='Control Sheet'!F202 -> 46.14501885 | I11: ='Control Sheet'!F202 -> 46.14501885
C13: Contingent consideration | D13: B | F13: =$I$13*F25/$I$25 -> 363.9796738 | G13: =$I$13*G25/$I$25 -> 12.44062494 | I13: =-DCF!$F$84 -> 376.4202987
C14: Expected payout date of contingent consideration (at Financial Close) | F14: ='Control Sheet'!$F$66 -> 2023-02-20 | G14: ='Control Sheet'!$F$66 -> 2023-02-20 | I14: ='Control Sheet'!$F$66 -> 2023-02-20
C15: PV factor for Contingent Consideration | D15: C | E15: =D9 -> 0.15 | F15: =1/(1+$E$15)^((F14-'Control Sheet'!$F$65)/365) -> 0.6567613586 | G15: =1/(1+$E$15)^((G14-'Control Sheet'!$F$65)/365) -> 0.6567613586 | I15: =1/(1+$E$15)^((I14-'Control Sheet'!$F$65)/365) -> 0.6567613586
C16: Value of Contingent Consideration | D16: E = B * C | F16: =F13*F15 -> 239.047785 | G16: =G13*G15 -> 8.170521735 | I16: =I13*I15 -> 247.2183068
C18: FMV of the Project at February 18, 2020 | D18: [F = A + E] | F18: =F11+F16 -> 285.1928039 | G18: =G11+G16 -> 8.170521735 | I18: =I11+I16 -> 293.3633256
B21: Valuation of the Project using the Project Stage Risk Adjustment Factor Approach
F23: FIT-Contract | G23: Post FIT-Contract | I23: Total
C25: DCF equity value as of the Valuation Date, assuming the Project reaches Financial Close | D25: A | F25: =DCF!$F$71 -> 556.2020915 | G25: =I25-F25 -> 19.01068139 | I25: =DCF!F70 -> 575.2127729
C27: Probability of Financial Close | D27: B | F27: ='Control Sheet'!$F$208 -> 0.55 | G27: ='Control Sheet'!$F$208 -> 0.55 | I27: ='Control Sheet'!$F$208 -> 0.55
C28: FMV of the Project at February 18, 2020: Low | D28: C = A * B | F28: =F25*F27 -> 305.9111503 | G28: =G25*G27 -> 10.45587476 | I28: =I25*I27 -> 316.3670251
C30: Probability of Financial Close | D30: D | F30: ='Control Sheet'!$F$209 -> 0.6 | G30: ='Control Sheet'!$F$209 -> 0.6 | I30: ='Control Sheet'!$F$209 -> 0.6
C31: FMV of the Project at February 18, 2020: High | D31: E = A * D | F31: =F25*F30 -> 333.7212549 | G31: =G25*G30 -> 11.40640883 | I31: =I25*I30 -> 345.1276637
C33: FMV of the Project at February 18, 2020: Mid | D33: (C+E)/2 | F33: =AVERAGE(F28,F31) -> 319.8162026 | G33: =AVERAGE(G28,G31) -> 10.9311418 | I33: =AVERAGE(I28,I31) -> 330.7473444

Sheet Control Sheet
A1: Windstream v. Canada | G1: Model check | H1: =ROUND(SUM(Int_Calc,ABS(DSRA_calc))-SUM(Int_Val,ABS(DSRA_val)),2) -> 0 | I1: << If not zero, click 'Balance Model'
A2: Appendix 11 | G2: IRR Check | H2: =ROUND(IRR_Actual-IRR_Target,5) -> 0 | I2: << If not zero, click 'Refresh Structuring Analysis'
A3: Control Sheet
C5: FMV of the Project at February 18, 2020 using: | D5: millions
C6: Transaction Structuring Analysis | D6: =Conclusion!$I$18 -> 293.3633256
C7: Project Risk Adjustment Factor - Low | D7: =Conclusion!$I$28 -> 316.3670251
C8: Project Risk Adjustment Factor - High | D8: =Conclusion!$I$31 -> 345.1276637
A10: Capacity
B11: Turbine
C12: Capacity per turbine | D12: 1 | E12: MW | F12: 4.5
C13: No. of turbines | D13: =D12 -> 1 | E13: No. | F13: 66
C14: Project Capacity | D14: =D13 -> 1 | E14: MW | F14: =F12*F13 -> 297
C15: Life | D15: 1 | E15: Years | F15: 30
B17: Factors
C18: Assumption Type | F18: P50
C20: Net energy yield summary | D20: =D15+1 -> 2
D21: P50 | E21: P90 | F21: P99
C22: Wood | D22: 0.4455 | E22: 0.411 | F22: 0.383
C24: Selected generation factor | F24: =SUMIFS(D22:F22,PAssumptions,PVal) -> 0.4455
A26: Financing Inputs
B27: Equity
C28: Minimum Equity contribution rate on total project costs | D28: =D46 -> 4 | E28: % | F28: 0.2
C29: Minimum Equity required | E29: $m | F29: =Financing!$F$80 -> 263.7260471
C30: Minimum Equity required per DSCR
C31: =TRANSPOSE('Control Sheet'!D21:F21) -> P50 | E31: $m | F31: -189 | G31: << Calculated by Equity Macro
C32: P90 | E32: $m | F32: -319 | G32: << Calculated by Equity Macro
C33: P99 | E33: $m | F33: -467 | G33: << Calculated by Equity Macro
C35: Equity Contribution | E35: $m | F35: =MAX(F29,Eqty_minDSCR) -> 263.7260471
B37: Debt
C38: Interest Rate (CDOR as of the Valuation Date) | D38: =D20+1 -> 3 | F38: ='CDOR Forecasts'!A2 -> CDOR Forecasts
C39: Margin during construction | D39: =D38+1 -> 4 | E39: % | F39: 0.0175
C40: Step-up in margin | D40: =D39 -> 4 | E40: % | F40: 0.002
C41: Step-up period | D41: =D40 -> 4 | E41: Years | F41: 5
C44: Repayment Period | D44: =D41 -> 4 | E44: Years | F44: 17
C46: Minimum DSCR requirement | D46: =D44 -> 4
C47: =TRANSPOSE(PAssumptions) -> P50 | E47: times (x) | F47: 1.5
C48: P90 | E48: times (x) | F48: 1.25
C49: P99 | E49: times (x) | F49: 1.05
C51: Upfront Costs (Structuring fees) | D51: =D46 -> 4 | E51: % | F51: 0.0125
C53: Commitment Fees | D53: =D51 -> 4 | E53: %
C54: Percentage of Margin on CDOR | F54: 0.4
C55: Rate of commitment fee | F55: =F54*F39 -> 0.007
C57: Debt Service Reserve Account (DSRA) | D57: =D53 -> 4 | E57: months | F57: 6
C59: Agency cost on debt | D59: =D51 -> 4 | E59: $m | F59: 0.1
A61: Financial Inputs
B62: Development & Construction
C63: Project cost from NAFTA 1 - 2012 estimates | D63: =D59+1 -> 5 | E63: $ m | F63: =1363602346.80227/10^6 -> 1363.602347
C65: Valuation Date | D65: =D63+1 -> 6 | F65: 2020-02-18
C66: Financial close date | D66: =D65 -> 6 | F66: 2023-02-20
C67: Commercial Operation Date (COD) | D67: =D66 -> 6 | F67: 2024-12-20
C68: Capex Estimates (in 'Real' 2020 dollar terms) | D68: =D63+1 -> 6
E69: 4C Report | G69: Two Dogs Report --> | H69: Low | I69: Mid | J69: High
C70: Planning and development | D70: $ m | E70: 48.46 | H70: ='Capex Profile'!$B$9 -> 45.02 | I70: ='Capex Profile'!$C$9 -> 48.46 | J70: ='Capex Profile'!$D$9 -> 52.53
C71: Development Capex (DEVEX) | E71: =SUM(E70) -> 48.46 | H71: =SUM(H70) -> 45.02 | I71: =SUM(I70) -> 48.46 | J71: 52.53
C72: Foundation or Gravity Based Foundation (GBF) | D72: $ m | E72: =3.31+317.74 -> 321.05 | H72: ='Capex Profile'!$B$16 -> 298.74 | I72: ='Capex Profile'!$C$16 -> 326.72 | J72: ='Capex Profile'!$D$16 -> 354.69
C73: Wind Turbine (WTG) | D73: $ m | E73: 297 | H73: ='Capex Profile'!$B$25 -> 257.1 | I73: ='Capex Profile'!$C$25 -> 277.2 | J73: ='Capex Profile'!$D$25 -> 297
C74: Offshore high voltage substation (OVHS) | D74: $ m | E74: =2.57+46.73 -> 49.3 | H74: ='Capex Profile'!$B$33 -> 44.59 | I74: ='Capex Profile'!$C$33 -> 49.3 | J74: ='Capex Profile'!$D$33 -> 54.05
C75: Array and export cables | D75: $ m | E75: =31.61+33.04 -> 64.65 | H75: ='Capex Profile'!$B$44 -> 58.1 | I75: ='Capex Profile'!$C$44 -> 64.65 | J75: ='Capex Profile'!$D$44 -> 71.1
C76: Installation costs | D76: $ m | E76: 161.7 | H76: ='Capex Profile'!$B$56 -> 165.6 | I76: ='Capex Profile'!$C$56 -> 184.83 | J76: ='Capex Profile'!$D$56 -> 204
C77: Onshore interconnection | D77: $ m | E77: 47.35 | H77: ='Capex Profile'!$B$61 -> 42.6 | I77: ='Capex Profile'!$C$61 -> 47.35 | J77: ='Capex Profile'!$D$61 -> 52.1
C78: Insurance | D78: $ m | H78: ='Capex Profile'!$B$62 -> 23.81 | I78: ='Capex Profile'!$C$62 -> 25.69 | J78: ='Capex Profile'!$D$62 -> 27.56
C79: Management costs | D79: $ m | E79: 13.53 | H79: ='Capex Profile'!$B$63 -> 12.6 | I79: ='Capex Profile'!$C$63 -> 13.53 | J79: ='Capex Profile'!$D$63 -> 14.7
C80: 10% Contingency (not applied to planning and development) | D80: $ m | E80: 95.458 | H80: ='Capex Profile'!$B$64 -> 108.43 | I80: ='Capex Profile'!$C$64 -> 98.93 | J80: ='Capex Profile'!$D$64 -> 75.26
C81: Insurance premium for the construction phase (added to 4C Capex figures) | D81: $ m | E81: 24.62
C82: Construction Capex (CAPEX) | E82: =SUM(E72:E81) -> 1074.658 | H82: =SUM(H72:H81) -> 1011.57 | I82: 1088.2 | J82: 1150.46
C84: Total Project Devex and Capex (in 'Real' 2020 dollar terms) | D84: $ m | E84: =SUM(E70,E72:E81) -> 1123.118 | H84: =SUM(H70,H72:H81) -> 1056.59 | I84: 1136.66 | J84: 1202.99
C87: Capex Estimates (in 'Nominal' dollar terms) | D87: Mid | E87: Two Dogs (Real) | F87: Two Dogs (Nominal) | H87: 2020-12-31 | I87: =EOMONTH(H87,12) -> 2021-12-31 | J87: =EOMONTH(I87,12) -> 2022-12-31 | K87: 2023-12-31 | L87: 2024-12-31
C88: Planning and development | D88: $ m | E88: =SUMIFS(H70:J70,$H$69:$J$69,$D$87) -> 48.46 | F88: =SUM(H88:L88) -> 49.22318601 | H88: =SUMIFS('Capex Profile'!$H$9:$BN$9,'Capex Profile'!$H$6:$BN$6,"<="&H$87,'Capex Profile'!$H$6:$BN$6,">="&EOMONTH(H$87,-12)) -> 14.40702703 | I88: =SUMIFS('Capex Profile'!$H$9:$BN$9,'Capex Profile'!$H$6:$BN$6,"<="&I$87,'Capex Profile'!$H$6:$BN$6,">="&EOMONTH(I$87,-12))*((1+$F$214)^(YEAR(I$87)-2020-0.5)) -> 15.87314625 | J88: =SUMIFS('Capex Profile'!$H$9:$BN$9,'Capex Profile'!$H$6:$BN$6,"<="&J$87,'Capex Profile'!$H$6:$BN$6,">="&EOMONTH(J$87,-12))*((1+$F$214)^(YEAR(J$87)-2020-0.5)) -> 16.19060917 | K88: =SUMIFS('Capex Profile'!$H$9:$BN$9,'Capex Profile'!$H$6:$BN$6,"<="&K$87,'Capex Profile'!$H$6:$BN$6,">="&EOMONTH(K$87,-12))*((1+$F$214)^(YEAR(K$87)-2020-0.5)) -> 2.752403559 | L88: =SUMIFS('Capex Profile'!$H$9:$BN$9,'Capex Profile'!$H$6:$BN$6,"<="&L$87,'Capex Profile'!$H$6:$BN$6,">="&EOMONTH(L$87,-12))*((1+$F$214)^(YEAR(L$87)-2020-0.5)) -> 0
C89: Development Capex (DEVEX) | E89: =SUM(E88) -> 48.46 | F89: 49.22318601 | H89: =SUM(H88) -> 14.40702703 | I89: =SUM(I88) -> 15.87314625 | J89: 16.19060917 | K89: 2.752403559 | L89: 0
C90: Foundation or Gravity Based Foundation (GBF) | D90: $ m | E90: =SUMIFS(H72:J72,$H$69:$J$69,$D$87) -> 326.72 | F90: =SUM(H90:L90) -> 343.2203011 | H90: =SUMIFS('Capex Profile'!$H$16:$BN$16,'Capex Profile'!$H$6:$BN$6,"<="&H$87,'Capex Profile'!$H$6:$BN$6,">="&EOMONTH(H$87,-12)) -> 6.607416667 | I90: =SUMIFS('Capex Profile'!$H$16:$BN$16,'Capex Profile'!$H$6:$BN$6,"<="&I$87,'Capex Profile'!$H$6:$BN$6,">="&EOMONTH(I$87,-12))*((1+$F$214)^(YEAR(I$87)-2020-0.5)) -> 11.6588685 | J90: =SUMIFS('Capex Profile'!$H$16:$BN$16,'Capex Profile'!$H$6:$BN$6,"<="&J$87,'Capex Profile'!$H$6:$BN$6,">="&EOMONTH(J$87,-12))*((1+$F$214)^(YEAR(J$87)-2020-0.5)) -> 63.03459059 | K90: =SUMIFS('Capex Profile'!$H$16:$BN$16,'Capex Profile'!$H$6:$BN$6,"<="&K$87,'Capex Profile'!$H$6:$BN$6,">="&EOMONTH(K$87,-12))*((1+$F$214)^(YEAR(K$87)-2020-0.5)) -> 160.6589618 | L90: =SUMIFS('Capex Profile'!$H$16:$BN$16,'Capex Profile'!$H$6:$BN$6,"<="&L$87,'Capex Profile'!$H$6:$BN$6,">="&EOMONTH(L$87,-12))*((1+$F$214)^(YEAR(L$87)-2020-0.5)) -> 101.2604636
C91: Wind Turbine (WTG) | D91: $ m | E91: 277.2 | F91: 295.1279001 | H91: =SUMIFS('Capex Profile'!$H$25:$BN$25,'Capex Profile'!$H$6:$BN$6,"<="&H$87,'Capex Profile'!$H$6:$BN$6,">="&EOMONTH(H$87,-12)) -> 0 | I91: =SUMIFS('Capex Profile'!$H$25:$BN$25,'Capex Profile'!$H$6:$BN$6,"<="&I$87,'Capex Profile'!$H$6:$BN$6,">="&EOMONTH(I$87,-12))*((1+$F$214)^(YEAR(I$87)-2020-0.5)) -> 0 | J91: =SUMIFS('Capex Profile'!$H$25:$BN$25,'Capex Profile'!$H$6:$BN$6,"<="&J$87,'Capex Profile'!$H$6:$BN$6,">="&EOMONTH(J$87,-12))*((1+$F$214)^(YEAR(J$87)-2020-0.5)) -> 0 | K91: =SUMIFS('Capex Profile'!$H$25:$BN$25,'Capex Profile'!$H$6:$BN$6,"<="&K$87,'Capex Profile'!$H$6:$BN$6,">="&EOMONTH(K$87,-12))*((1+$F$214)^(YEAR(K$87)-2020-0.5)) -> 98.30314956 | L91: =SUMIFS('Capex Profile'!$H$25:$BN$25,'Capex Profile'!$H$6:$BN$6,"<="&L$87,'Capex Profile'!$H$6:$BN$6,">="&EOMONTH(L$87,-12))*((1+$F$214)^(YEAR(L$87)-2020-0.5)) -> 196.8247506
C92: Offshore high voltage substation (OVHS) | D92: $ m | E92: 49.3 | F92: 52.18290809 | H92: =SUMIFS('Capex Profile'!$H$33:$BN$33,'Capex Profile'!$H$6:$BN$6,"<="&H$87,'Capex Profile'!$H$6:$BN$6,">="&EOMONTH(H$87,-12)) -> 0 | I92: =SUMIFS('Capex Profile'!$H$33:$BN$33,'Capex Profile'!$H$6:$BN$6,"<="&I$87,'Capex Profile'!$H$6:$BN$6,">="&EOMONTH(I$87,-12))*((1+$F$214)^(YEAR(I$87)-2020-0.5)) -> 1.197956663 | J92: =SUMIFS('Capex Profile'!$H$33:$BN$33,'Capex Profile'!$H$6:$BN$6,"<="&J$87,'Capex Profile'!$H$6:$BN$6,">="&EOMONTH(J$87,-12))*((1+$F$214)^(YEAR(J$87)-2020-0.5)) -> 1.302147273 | K92: =SUMIFS('Capex Profile'!$H$33:$BN$33,'Capex Profile'!$H$6:$BN$6,"<="&K$87,'Capex Profile'!$H$6:$BN$6,">="&EOMONTH(K$87,-12))*((1+$F$214)^(YEAR(K$87)-2020-0.5)) -> 26.46502652 | L92: =SUMIFS('Capex Profile'!$H$33:$BN$33,'Capex Profile'!$H$6:$BN$6,"<="&L$87,'Capex Profile'!$H$6:$BN$6,">="&EOMONTH(L$87,-12))*((1+$F$214)^(YEAR(L$87)-2020-0.5)) -> 23.21777764
C93: Array and export cables | D93: $ m | E93: 64.65 | F93: 68.40221232 | H93: =SUMIFS('Capex Profile'!$H$44:$BN$44,'Capex Profile'!$H$6:$BN$6,"<="&H$87,'Capex Profile'!$H$6:$BN$6,">="&EOMONTH(H$87,-12)) -> 0 | I93: =SUMIFS('Capex Profile'!$H$44:$BN$44,'Capex Profile'!$H$6:$BN$6,"<="&I$87,'Capex Profile'!$H$6:$BN$6,">="&EOMONTH(I$87,-12))*((1+$F$214)^(YEAR(I$87)-2020-0.5)) -> 0.9572205673 | J93: =SUMIFS('Capex Profile'!$H$44:$BN$44,'Capex Profile'!$H$6:$BN$6,"<="&J$87,'Capex Profile'!$H$6:$BN$6,">="&EOMONTH(J$87,-12))*((1+$F$214)^(YEAR(J$87)-2020-0.5)) -> 0.6259929533 | K93: =SUMIFS('Capex Profile'!$H$44:$BN$44,'Capex Profile'!$H$6:$BN$6,"<="&K$87,'Capex Profile'!$H$6:$BN$6,">="&EOMONTH(K$87,-12))*((1+$F$214)^(YEAR(K$87)-2020-0.5)) -> 40.18398555 | L93: =SUMIFS('Capex Profile'!$H$44:$BN$44,'Capex Profile'!$H$6:$BN$6,"<="&L$87,'Capex Profile'!$H$6:$BN$6,">="&EOMONTH(L$87,-12))*((1+$F$214)^(YEAR(L$87)-2020-0.5)) -> 26.63501325
C94: Installation costs | D94: $ m | E94: 184.83 | F94: 197.3202404 | H94: =SUMIFS('Capex Profile'!$H$56:$BN$56,'Capex Profile'!$H$6:$BN$6,"<="&H$87,'Capex Profile'!$H$6:$BN$6,">="&EOMONTH(H$87,-12)) -> 0 | I94: =SUMIFS('Capex Profile'!$H$56:$BN$56,'Capex Profile'!$H$6:$BN$6,"<="&I$87,'Capex Profile'!$H$6:$BN$6,">="&EOMONTH(I$87,-12))*((1+$F$214)^(YEAR(I$87)-2020-0.5)) -> 0 | J94: =SUMIFS('Capex Profile'!$H$56:$BN$56,'Capex Profile'!$H$6:$BN$6,"<="&J$87,'Capex Profile'!$H$6:$BN$6,">="&EOMONTH(J$87,-12))*((1+$F$214)^(YEAR(J$87)-2020-0.5)) -> 0 | K94: =SUMIFS('Capex Profile'!$H$56:$BN$56,'Capex Profile'!$H$6:$BN$6,"<="&K$87,'Capex Profile'!$H$6:$BN$6,">="&EOMONTH(K$87,-12))*((1+$F$214)^(YEAR(K$87)-2020-0.5)) -> 38.72773477 | L94: =SUMIFS('Capex Profile'!$H$56:$BN$56,'Capex Profile'!$H$6:$BN$6,"<="&L$87,'Capex Profile'!$H$6:$BN$6,">="&EOMONTH(L$87,-12))*((1+$F$214)^(YEAR(L$87)-2020-0.5)) -> 158.5925056
C95: Onshore interconnection | D95: $ m | E95: 47.35 | F95: 50.18410342 | H95: =SUMIFS('Capex Profile'!$H$61:$BN$61,'Capex Profile'!$H$6:$BN$6,"<="&H$87,'Capex Profile'!$H$6:$BN$6,">="&EOMONTH(H$87,-12)) -> 0 | I95: =SUMIFS('Capex Profile'!$H$61:$BN$61,'Capex Profile'!$H$6:$BN$6,"<="&I$87,'Capex Profile'!$H$6:$BN$6,">="&EOMONTH(I$87,-12))*((1+$F$214)^(YEAR(I$87)-2020-0.5)) -> 1.103565136 | J95: =SUMIFS('Capex Profile'!$H$61:$BN$61,'Capex Profile'!$H$6:$BN$6,"<="&J$87,'Capex Profile'!$H$6:$BN$6,">="&EOMONTH(J$87,-12))*((1+$F$214)^(YEAR(J$87)-2020-0.5)) -> 1.212739258 | K95: =SUMIFS('Capex Profile'!$H$61:$BN$61,'Capex Profile'!$H$6:$BN$6,"<="&K$87,'Capex Profile'!$H$6:$BN$6,">="&EOMONTH(K$87,-12))*((1+$F$214)^(YEAR(K$87)-2020-0.5)) -> 22.37740449 | L95: =SUMIFS('Capex Profile'!$H$61:$BN$61,'Capex Profile'!$H$6:$BN$6,"<="&L$87,'Capex Profile'!$H$6:$BN$6,">="&EOMONTH(L$87,-12))*((1+$F$214)^(YEAR(L$87)-2020-0.5)) -> 25.49039454
C96: Insurance | D96: $ m | E96: 25.69 | F96: 27.28830973 | H96: =SUMIFS('Capex Profile'!$H$62:$BN$62,'Capex Profile'!$H$6:$BN$6,"<="&H$87,'Capex Profile'!$H$6:$BN$6,">="&EOMONTH(H$87,-12)) -> 0 | I96: =SUMIFS('Capex Profile'!$H$62:$BN$62,'Capex Profile'!$H$6:$BN$6,"<="&I$87,'Capex Profile'!$H$6:$BN$6,">="&EOMONTH(I$87,-12))*((1+$F$214)^(YEAR(I$87)-2020-0.5)) -> 0 | J96: =SUMIFS('Capex Profile'!$H$62:$BN$62,'Capex Profile'!$H$6:$BN$6,"<="&J$87,'Capex Profile'!$H$6:$BN$6,">="&EOMONTH(J$87,-12))*((1+$F$214)^(YEAR(J$87)-2020-0.5)) -> 0 | K96: =SUMIFS('Capex Profile'!$H$62:$BN$62,'Capex Profile'!$H$6:$BN$6,"<="&K$87,'Capex Profile'!$H$6:$BN$6,">="&EOMONTH(K$87,-12))*((1+$F$214)^(YEAR(K$87)-2020-0.5)) -> 12.26992344 | L96: =SUMIFS('Capex Profile'!$H$62:$BN$62,'Capex Profile'!$H$6:$BN$6,"<="&L$87,'Capex Profile'!$H$6:$BN$6,">="&EOMONTH(L$87,-12))*((1+$F$214)^(YEAR(L$87)-2020-0.5)) -> 15.01838629
C97: Management costs | D97: $ m | E97: 13.53 | F97: 14.37177231 | H97: =SUMIFS('Capex Profile'!$H$63:$BN$63,'Capex Profile'!$H$6:$BN$6,"<="&H$87,'Capex Profile'!$H$6:$BN$6,">="&EOMONTH(H$87,-12)) -> 0 | I97: =SUMIFS('Capex Profile'!$H$63:$BN$63,'Capex Profile'!$H$6:$BN$6,"<="&I$87,'Capex Profile'!$H$6:$BN$6,">="&EOMONTH(I$87,-12))*((1+$F$214)^(YEAR(I$87)-2020-0.5)) -> 0 | J97: =SUMIFS('Capex Profile'!$H$63:$BN$63,'Capex Profile'!$H$6:$BN$6,"<="&J$87,'Capex Profile'!$H$6:$BN$6,">="&EOMONTH(J$87,-12))*((1+$F$214)^(YEAR(J$87)-2020-0.5)) -> 0 | K97: =SUMIFS('Capex Profile'!$H$63:$BN$63,'Capex Profile'!$H$6:$BN$6,"<="&K$87,'Capex Profile'!$H$6:$BN$6,">="&EOMONTH(K$87,-12))*((1+$F$214)^(YEAR(K$87)-2020-0.5)) -> 6.462127837 | L97: =SUMIFS('Capex Profile'!$H$63:$BN$63,'Capex Profile'!$H$6:$BN$6,"<="&L$87,'Capex Profile'!$H$6:$BN$6,">="&EOMONTH(L$87,-12))*((1+$F$214)^(YEAR(L$87)-2020-0.5)) -> 7.909644472
C98: 10% Contingency (not applied to planning and development) | D98: $ m | E98: 98.93 | F98: 105.0849545 | H98: =SUMIFS('Capex Profile'!$H$64:$BN$64,'Capex Profile'!$H$6:$BN$6,"<="&H$87,'Capex Profile'!$H$6:$BN$6,">="&EOMONTH(H$87,-12)) -> 0 | I98: =SUMIFS('Capex Profile'!$H$64:$BN$64,'Capex Profile'!$H$6:$BN$6,"<="&I$87,'Capex Profile'!$H$6:$BN$6,">="&EOMONTH(I$87,-12))*((1+$F$214)^(YEAR(I$87)-2020-0.5)) -> 0 | J98: =SUMIFS('Capex Profile'!$H$64:$BN$64,'Capex Profile'!$H$6:$BN$6,"<="&J$87,'Capex Profile'!$H$6:$BN$6,">="&EOMONTH(J$87,-12))*((1+$F$214)^(YEAR(J$87)-2020-0.5)) -> 0 | K98: =SUMIFS('Capex Profile'!$H$64:$BN$64,'Capex Profile'!$H$6:$BN$6,"<="&K$87,'Capex Profile'!$H$6:$BN$6,">="&EOMONTH(K$87,-12))*((1+$F$214)^(YEAR(K$87)-2020-0.5)) -> 47.25042919 | L98: =SUMIFS('Capex Profile'!$H$64:$BN$64,'Capex Profile'!$H$6:$BN$6,"<="&L$87,'Capex Profile'!$H$6:$BN$6,">="&EOMONTH(L$87,-12))*((1+$F$214)^(YEAR(L$87)-2020-0.5)) -> 57.83452532
C99: Construction Capex (CAPEX) | E99: =SUM(E90:E98) -> 1088.2 | F99: 1153.182702 | H99: =SUM(H90:H98) -> 6.607416667 | I99: =SUM(I90:I98) -> 14.91761087 | J99: =SUM(J90:J98) -> 66.17547008 | K99: =SUM(K90:K98) -> 452.6987431 | L99: =SUM(L90:L98) -> 612.7834612
C101: Total Project Devex and Capex | E101: =SUM(E88,E90:E98) -> 1136.66 | F101: =SUM(F88,F90:F98) -> 1202.405888 | H101: =SUM(H88,H90:H98) -> 21.01444369 | I101: =SUM(I88,I90:I98) -> 30.79075711 | J101: =SUM(J88,J90:J98) -> 82.36607925 | K101: =SUM(K88,K90:K98) -> 455.4511467 | L101: =SUM(L88,L90:L98) -> 612.7834612
C104: LC costs for the unspent capex | D104: =D68+1 -> 7 | E104: % | F104: =F39 -> 0.0175
C105: Unspent cost subject to LC (based on mid-period) | H105: =SUM($F$90:$F$95)-SUM($H$90:H95,-H90:H95/2) -> 1003.133957 | I105: =SUM($F$90:$F$95)-SUM($H$90:I95,-I90:I95/2) -> 992.3714433 | J105: =SUM($F$90:$F$95)-SUM($H$90:J95,-J90:J95/2) -> 951.8249028 | K105: =SUM($F$90:$F$95)-SUM($H$90:K95,-K90:K95/2) -> 725.3790365 | L105: =SUM($F$90:$F$95)-SUM($H$90:L95,-L90:L95/2) -> 266.0104526
B107: Revenue
B108: Revenue from PPA
C109: Term of PPA Contract | E109: Years | F109: 20
C110: PPA Price | D110: =D104+1 -> 8 | E110: $/MWh | F110: 190
C111: Indexed Portion | D111: =D110 -> 8 | E111: % | F111: 0.2
C113: Indexation Start - Tariff Agreement Date | F113: 2009-09-30
C114: CPI for the year of Tariff agreement | D114: =D111+1 -> 9 | F114: =INDEX('CAD CPI'!$B$9:$DX$9,1,MATCH(F113,'CAD CPI'!B7:DX7,1)) -> 113.8
C115: Indexation End - Year end date prior to commissioning | F115: =F67 -> 2024-12-20
C116: CPI applicable at commissioning | D116: =D114 -> 9 | F116: =E117*E118% -> 152.0167417
C117: Historical CPI available | E117: =INDEX('CAD CPI'!$B$9:$DV$9,1,MATCH(F115,'CAD CPI'!B7:DV7,1)) -> 138
C118: CPI inflator for forecast period | E118: =IF(F115<'CAD CPI'!DV7,100,(1+F212)^(YEARFRAC('CAD CPI'!DV7,F115,1))*100) -> 110.1570592
C120: Inflation adjusted price at COD | F120: =SUM(E121:E122) -> 253.8065108
C121: Fixed component | E121: =$F$110*(1-$F$111)*$F$116/$F$114 -> 203.0452086
C122: Indexed price component | E122: =$F$110*$F$111*$F$116/$F$114 -> 50.76130215
B124: After expiry of PPA
C125: Source for forecasts | F125: Power Advisory
C126: Discount on forecasts | D126: =D116+1 -> 10 | F126: 0.05
B128: Operating Expenses
C130: Annual wind land rental charges | D130: =D126+1 -> 11 | E130: $ / $Tariff | F130: =300*8760*30%*3% -> 23652
C131: Annual administrative land rent | D131: =D130 -> 11 | E131: $ / year | F131: 1000
C132: Base land rent fees | D132: =D131 -> 11
C133: Land value as per MNR | E133: $/acre | F133: 399
C134: Area occupied | D134: =D132+1 -> 12 | F134: 31788
C135: CPI index for May 2013 | F135: ='CAD CPI'!$AT$9 -> 123
C136: CPI Index for January 2020 | F136: ='CAD CPI'!$DV$9 -> 138
C137: Annual cost (in 2020 dollar terms) | E137: $m / year | F137: =F133*F134*10%*F136/F135/10^6 -> 1.423016956
C139: Operating and Maintenance expenses | D139: $m / year | E139: Mid | F139: =SUMIFS(F140:F142,C140:C142,E139) -> 28.8
C140: Low | D140: =D134+1 -> 13 | E140: $m / year | F140: 25.8
C141: Mid | D141: =D140 -> 13 | E141: $m / year | F141: 28.8
C142: High | D142: =D141 -> 13 | E142: $m / year | F142: 32.2
C144: Fixed Expenses | D144: =D142+1 -> 14
D145: Per NAFTA 1 - 2018 costs | F145: Inflated to 2020
C146: CPI Index | D146: =AVERAGE('CAD CPI'!CX9:DI9) -> 134.9666667 | F146: ='CAD CPI'!$DV$9 -> 138
F147: Year 2 onwards | H147: Year 1 cost
C148: Owner's administration and operation | D148: ='Operating Costs'!F10/10^6 -> 0.12 | E148: $m | F148: =D148*$F$146/$D$146 -> 0.1226969622 | H148: =F148 -> 0.1226969622
C149: Legal support | D149: ='Operating Costs'!F11/10^6 -> 0.025 | E149: $m | F149: =D149*$F$146/$D$146 -> 0.02556186713 | H149: =F149*2 -> 0.05112373426
C150: Engineering support | D150: ='Operating Costs'!F12/10^6 -> 0.09 | E150: $m | F150: 0.09202272166 | H150: =F150*2 -> 0.1840454433
C151: Post-construction environmental monitoring | D151: ='Operating Costs'!F13/10^6 -> 0.03 | E151: $m | F151: 0.03067424055 | H151: =F151*2 -> 0.06134848111
C152: Owner's operator | D152: ='Operating Costs'!F14/10^6 -> 0.075 | E152: $m | F152: 0.07668560138 | H152: =F152 -> 0.07668560138
C153: Owner's maintenance crew | D153: ='Operating Costs'!F15/10^6 -> 0.12 | E153: $m | F153: 0.1226969622 | H153: 0.1226969622
C154: Contingency (10%) | D154: 0.1 | E154: $m | F154: =SUM(F148:F153)*D154 -> 0.04703383551 | H154: =SUM(H148:H153)*D154 -> 0.06185971845
C155: Total | F155: =SUM(F148:F154) -> 0.5173721907 | H155: =SUM(H148:H154) -> 0.6804569029
C157: Insurance Costs - in real terms as per quotes | D157: =D144+1 -> 15 | G157: Year | H157: 2025 | I157: =H157+1 -> 2026 | J157: =I157+1 -> 2027 | K157: 2028 | L157: 2029 | M157: 2030 | N157: 2031 | O157: 2032 | P157: 2033 | Q157: 2034 | R157: 2035 | S157: 2036 | T157: 2037 | U157: 2038 | V157: 2039 | W157: 2040 | X157: 2041 | Y157: 2042 | Z157: 2043 | AA157: 2044 | AB157: =AA157+1 -> 2045 | AC157: 2046 | AD157: 2047 | AE157: 2048 | AF157: 2049 | AG157: 2050 | AH157: 2051 | AI157: 2052 | AJ157: 2053 | AK157: 2054
C158: Project cost of $1.0 billion - P60 | E158: $m | F158: 20 Years of ops | H158: 6.9 | I158: 6.765 | J158: 6.633375 | K158: 6.505041 | L158: 6.379915 | M158: 7.355898 | N158: 7.2095 | O158: 7.066763 | P158: 6.510086 | Q158: 6.384834 | R158: 6.262713 | S158: 4.040114 | T158: 3.976611 | U158: 3.914696 | V158: 3.854328 | W158: 2.912597 | X158: 2.877282 | Y158: 2.84285 | Z158: 2.809279 | AA158: 2.776547
C159: Project cost of $1.0 billion - P40 | E159: $m | F159: 20 Years of ops | H159: 6 | I159: 5.8875 | J159: 5.777813 | K159: 5.670867 | L159: 5.566596 | M159: 6.379915 | N159: 6.257917 | O159: 6.138969 | P159: 5.675072 | Q159: 5.570695 | R159: 5.468928 | S159: 3.616761 | T159: 3.563842 | U159: 3.512246 | V159: 3.46194 | W159: 2.677164 | X159: 2.647735 | Y159: 2.619042 | Z159: 2.591066 | AA159: 2.563789
C160: Average of P60 and P40 (real terms) | E160: $m | H160: =AVERAGE(H158:H159) -> 6.45 | I160: =AVERAGE(I158:I159) -> 6.32625 | J160: 6.205594 | K160: 6.087954 | L160: 5.9732555 | M160: 6.8679065 | N160: 6.7337085 | O160: 6.602866 | P160: 6.092579 | Q160: 5.9777645 | R160: 5.8658205 | S160: 3.8284375 | T160: 3.7702265 | U160: 3.713471 | V160: 3.658134 | W160: 2.7948805 | X160: 2.7625085 | Y160: 2.730946 | Z160: 2.7001725 | AA160: 2.670168
C161: Average of P60 and P40 for 1.042 billion project (real terms) | D161: =D157 -> 15 | E161: $m | F161: 0.042 | H161: =H160*(1+$F$161) -> 6.7209 | I161: =I160*(1+$F$161) -> 6.5919525 | J161: 6.466228948 | K161: 6.343648068 | L161: 6.224132231 | M161: 7.156358573 | N161: 7.016524257 | O161: 6.880186372 | P161: 6.348467318 | Q161: 6.228830609 | R161: 6.112184961 | S161: 3.989231875 | T161: 3.928576013 | U161: 3.869436782 | V161: 3.811775628 | W161: 2.912265481 | X161: 2.878533857 | Y161: 2.845645732 | Z161: 2.813579745 | AA161: 2.782315056
C162: Insurance Costs with inflation | D162: =D161+1 -> 16 | E162: $m | H162: =H161*(1+$F$213)^(H157-2020) -> 7.42041667 | I162: 7.423609175 | J162: 7.427664516 | K162: 7.432594769 | L162: 7.438414175 | M162: 8.723561168 | N162: 8.724165995 | O162: 8.725739911 | P162: 8.212419416 | Q162: 8.218809707 | R162: 8.226196217 | S162: 5.476360492 | T162: 5.500954852 | U162: 5.526508564 | V162: 5.553037322 | W162: 4.327473308 | X162: 4.362896887 | Y162: 4.399310452 | Z162: 4.43673183 | AA162: 4.475179176 | AB162: =AA162 -> 4.475179176 | AC162: 4.475179176 | AD162: 4.475179176 | AE162: 4.475179176 | AF162: 4.475179176 | AG162: 4.475179176 | AH162: 4.475179176 | AI162: 4.475179176 | AJ162: 4.475179176 | AK162: 4.475179176
B164: Working Capital
C165: Receivables lag | D165: =D162+1 -> 17 | E165: Months | F165: 1
C166: Payables lag | D166: =D165 -> 17 | E166: Months | F166: 1
C167: O&M reserve account | D167: =D166 -> 17 | E167: Months | F167: 3
B169: Letter of Credit
C170: Refund at COD | D170: =D167 -> 17 | F170: 1
C171: Amount of refund | D171: =D167 -> 17 | E171: $m | F171: 6
B173: Decommissioning
C174: End of life decommissioning | F174: 1
C175: Number of years of payment of decommissioning cost | D175: =D166+1 -> 18 | E175: Years | F175: 3
C177: Assumptions/Inputs in NAFTA 1
C178: Estimate as per URS Second Report | D178: =D175+1 -> 19 | E178: $m | F178: =102.8 -> 102.8
C179: Number of WTGs | E179: No. | F179: 130
C180: Year of estimate | E180: YYYY | F180: 2038
C182: Inputs in NAFTA 2 | D182: =D175 -> 18
C183: Number of WTGs | F183: =F13 -> 66
C184: Last year of operation | E184: YYYY | F184: 2054
C186: Decommissioning cost (in 2038 dollar terms) | E186: $m | F186: =F178 -> 102.8
C187: Cost to be funded at the end of the FIT Contract | E187: $m | F187: =F186*((1+F214)^(F184-F180)) -> 141.1223705
C189: Decommissioning cost per MW of capacity (in 2020 dollar terms) | E189: $m / MW | F189: =F187/((1+F214)^(F184-2020))/300 -> 0.2399212792
E190: GBPm / MW | F190: =F189/1.72 -> 0.1394891158
E191: EURm / MW | F191: =F189/1.48 -> 0.1621089724
C193: LC costs on unfunded decommissioning liability | D193: =D178+1 -> 20 | F193: 1
C194: LC cost | D194: =D193 -> 20 | E194: % | F194: =F104 -> 0.0175
B196: Other Inputs
C197: Tax Rate | D197: =D194+1 -> 21 | E197: % | F197: 0.265
C198: CCA Rate | D198: =D197 -> 21 | E198: % | F198: 0.5
C199: Half year rule on CCA | D199: =D198 -> 21 | F199: 1
C201: Costs incurred | D201: =D199+1 -> 22 | E201: $m | F201: 27.7541593
C202: Upfront consideration | D202: =D201 -> 22 | E202: $m | F202: 46.14501885
C204: Cost of Equity nominal discount rate, fixed | D204: =D202+1 -> 23 | E204: % | F204: =CoE!D14 -> 0.1
C206: Probability of Contingent Payment | D206: =D204+1 -> 24 | E206: % | F206: =8/14 -> 0.5714285714
C207: Range for high and low estimates
C208: Low | D208: =D206+1 -> 25 | E208: % | F208: 0.55
C209: High | D209: =D208 -> 25 | E209: % | F209: 0.6
C211: Forecasted inflation
C212: FIT-Contract Tariff | D212: =D209+1 -> 26 | E212: % | F212: 0.02
C213: Opex | D213: =D212 -> 26 | E213: % | F213: 0.02
C214: Capex | D214: =D213 -> 26 | E214: % | F214: 0.02
A216: Notes:
A217: =$D$12 -> 1 | B217: Based upon the Siemens Gamesa 4.5 MW -145 turbine. See CER-Two Dogs (Wind Turbine Selection Report), Section 6..6; and, CER-Wood, Section 1.
A218: =$D$20 -> 2 | B218: See CER-Wood, Section 5, Energy Yield Assessment.
A219: =D38 -> 3 | B219: Forecast rate derived using the future rate curve obtained from Bloomberg for 3 Month CDOR as of February, 2020 (C-2286). Refer tab 'CDOR Forecasts'.
A220: =D39 -> 4 | B220: Refer to Section 6.J of our report.
A221: =$D$65 -> 6 | B221: Refer to Section 6.C of our report.
A222: =$D$63 -> 5 | B222: As per NAFTA 1, CER-Deloitte (Taylor and Low)-2 dated June 19, 2015, Schedule 3a - Capital costs, Total in CAD.
A223: =$D$68 -> 6 | B223: See CER-Two Dogs (Capex Opex Sensitivity Report), Section 5.1;
B224: and, CER-4C Offshore-3, Section 2.
A225: =$D$104 -> 7 | B225: Refer to Section 6.J of our report.
A226: =$D$110 -> 8 | B226: As per FIT Contract cover page (Windstream 1, Exhibit C-0251).
A227: =$D$114 -> 9 | B227: Based on CPI factor sourced from Stats Canada (C-1945).
A228: =$D$126 -> 10 | B228: Refer to Section 6.D of our report.
A229: =$D$130 -> 11 | B229: As per Ontario wind power on Crown Land procedure. Refer to Section 6.F of our report
A230: =$D$134 -> 12 | B230: C-2337 - ORTECH Memorandum to Ian Baines (WEI) Re: Required Wind Power Allocation Blocks (January 7, 2022). Refer to Section 6.F of our report.
A231: =$D$140 -> 13 | B231: As per CER-Two Dogs (Capex Opex Sensitivity Report), Section 5.2.
A232: =$D$144 -> 14 | B232: NAFTA 1, Exhibit C-1903, Ortech Financial Model (October 16, 2012), PDF page 5. According to the Ortech model, these cost estimates were reflected in 2018 dollar terms. Refer to Section 6.F of our report.
A233: =$D$157 -> 15 | B233: As per insurance premium quotes, based on the average of P40 and P60 assumptions, obtained from a reputable insurance broker (C-1928 and C-2352).
B234: We increased the insurance cost estimates by 4.2% based on the projected insurable capex of $1,042 million, refer to CER-Two Dogs (Capex Opex Sensitivity Report), Section 3.19.
A235: =$D$162 -> 16 | B235: We adjusted the insurance costs for projected inflation, refer to Section 6.F of our report.
A236: =$D$165 -> 17 | B236: Working capital changes considered to be nominal at a lag of 1 month with O&M reserve of 3 months. Refer to Section 6.I of our Report
A237: =$D$175 -> 18 | B237: Refer to Section 6.G of our report.
A238: =$D$178 -> 19 | B238: NAFTA 1, 2015 URS Report (RER-URS-2), paragraph 544.
A239: =$D$193 -> 20 | B239: Refer to Section 6.G and 6.J of our report.
A240: =$D$197 -> 21 | B240: As per Canadian tax laws (C-2273 - Deloitte 2020 Corporate Income Tax Rates; C-1982 - Natural Resources Canada, Canmet Energy: Leadership in ecoInnovation: Technical Guide to Class 43.1 and 43.2, 2013).
A241: =$D$201 -> 22 | B241: Refer to Section 6.K and Schedule 3 of our report.
A242: =$D$204 -> 23 | B242: Refer to Section 6.L and Appendix 3 of our report.
A243: =$D$206 -> 24 | B243: Refer to Section 6.L of our report.
A244: =$D$208 -> 25 | B244: Refer to Section 6.L of our Report.
A245: =$D$213 -> 26 | B245: Long term inflation expectation as per C-2191 - Bank of Canada Annual Report 2019, page 13.
A247: END

Sheet DCF
A1: Windstream v. Canada
A2: Schedule 1
A3: Discounted Cash Flows analysis
A5: Years ended December 31st | E5: unit | F5: Total | G5: =Timeline!G19 -> 2020-12-31 | H5: =Timeline!H19 -> 2021-12-31 | I5: =Timeline!I19 -> 2022-12-31 | J5: =Timeline!J19 -> 2023-12-31 | K5: =Timeline!K19 -> 2024-12-31 | L5: =Timeline!L19 -> 2025-12-31 | M5: =Timeline!M19 -> 2026-12-31 | N5: =Timeline!N19 -> 2027-12-31 | O5: =Timeline!O19 -> 2028-12-31 | P5: =Timeline!P19 -> 2029-12-31 | Q5: =Timeline!Q19 -> 2030-12-31 | R5: =Timeline!R19 -> 2031-12-31 | S5: =Timeline!S19 -> 2032-12-31 | T5: =Timeline!T19 -> 2033-12-31 | U5: =Timeline!U19 -> 2034-12-31 | V5: =Timeline!V19 -> 2035-12-31 | W5: =Timeline!W19 -> 2036-12-31 | X5: =Timeline!X19 -> 2037-12-31 | Y5: =Timeline!Y19 -> 2038-12-31 | Z5: =Timeline!Z19 -> 2039-12-31 | AA5: =Timeline!AA19 -> 2040-12-31 | AB5: =Timeline!AB19 -> 2041-12-31 | AC5: =Timeline!AC19 -> 2042-12-31 | AD5: =Timeline!AD19 -> 2043-12-31 | AE5: =Timeline!AE19 -> 2044-12-31 | AF5: =Timeline!AF19 -> 2045-12-31 | AG5: =Timeline!AG19 -> 2046-12-31 | AH5: =Timeline!AH19 -> 2047-12-31 | AI5: =Timeline!AI19 -> 2048-12-31 | AJ5: =Timeline!AJ19 -> 2049-12-31 | AK5: =Timeline!AK19 -> 2050-12-31 | AL5: =Timeline!AL19 -> 2051-12-31 | AM5: =Timeline!AM19 -> 2052-12-31 | AN5: =Timeline!AN19 -> 2053-12-31 | AO5: =Timeline!AO19 -> 2054-12-31 | AP5: =Timeline!AP19 -> 2055-12-31
A6: =Timeline!B20 -> Development flag | G6: =Timeline!G20 -> 1 | H6: =Timeline!H20 -> 1 | I6: =Timeline!I20 -> 1 | J6: =Timeline!J20 -> 1 | K6: =Timeline!K20 -> 0 | L6: =Timeline!L20 -> 0 | M6: =Timeline!M20 -> 0 | N6: =Timeline!N20 -> 0 | O6: =Timeline!O20 -> 0 | P6: =Timeline!P20 -> 0 | Q6: =Timeline!Q20 -> 0 | R6: =Timeline!R20 -> 0 | S6: =Timeline!S20 -> 0 | T6: =Timeline!T20 -> 0 | U6: =Timeline!U20 -> 0 | V6: =Timeline!V20 -> 0 | W6: =Timeline!W20 -> 0 | X6: =Timeline!X20 -> 0 | Y6: =Timeline!Y20 -> 0 | Z6: =Timeline!Z20 -> 0 | AA6: =Timeline!AA20 -> 0 | AB6: =Timeline!AB20 -> 0 | AC6: =Timeline!AC20 -> 0 | AD6: =Timeline!AD20 -> 0 | AE6: =Timeline!AE20 -> 0 | AF6: =Timeline!AF20 -> 0 | AG6: =Timeline!AG20 -> 0 | AH6: =Timeline!AH20 -> 0 | AI6: =Timeline!AI20 -> 0 | AJ6: =Timeline!AJ20 -> 0 | AK6: =Timeline!AK20 -> 0 | AL6: =Timeline!AL20 -> 0 | AM6: =Timeline!AM20 -> 0 | AN6: =Timeline!AN20 -> 0 | AO6: =Timeline!AO20 -> 0 | AP6: =Timeline!AP20 -> 0
A7: =Timeline!B21 -> No. of development months | G7: =Timeline!G21 -> 10.46666667 | H7: =Timeline!H21 -> 12 | I7: =Timeline!I21 -> 12 | J7: =Timeline!J21 -> 1.6 | K7: =Timeline!K21 -> 0.3666666667 | L7: =Timeline!L21 -> 0 | M7: =Timeline!M21 -> 0 | N7: =Timeline!N21 -> 0 | O7: =Timeline!O21 -> 0 | P7: =Timeline!P21 -> 0 | Q7: =Timeline!Q21 -> 0 | R7: =Timeline!R21 -> 0 | S7: =Timeline!S21 -> 0 | T7: =Timeline!T21 -> 0 | U7: =Timeline!U21 -> 0 | V7: =Timeline!V21 -> 0 | W7: =Timeline!W21 -> 0 | X7: =Timeline!X21 -> 0 | Y7: =Timeline!Y21 -> 0 | Z7: =Timeline!Z21 -> 0 | AA7: =Timeline!AA21 -> 0 | AB7: =Timeline!AB21 -> 0 | AC7: =Timeline!AC21 -> 0 | AD7: =Timeline!AD21 -> 0 | AE7: =Timeline!AE21 -> 0 | AF7: =Timeline!AF21 -> 0 | AG7: =Timeline!AG21 -> 0 | AH7: =Timeline!AH21 -> 0 | AI7: =Timeline!AI21 -> 0 | AJ7: =Timeline!AJ21 -> 0 | AK7: =Timeline!AK21 -> 0 | AL7: =Timeline!AL21 -> 0 | AM7: =Timeline!AM21 -> 0 | AN7: =Timeline!AN21 -> 0 | AO7: =Timeline!AO21 -> 0 | AP7: =Timeline!AP21 -> 0
A8: =Timeline!B22 -> Construction flag | G8: =Timeline!G22 -> 0 | H8: =Timeline!H22 -> 0 | I8: =Timeline!I22 -> 0 | J8: =Timeline!J22 -> 1 | K8: =Timeline!K22 -> 1 | L8: =Timeline!L22 -> 0 | M8: =Timeline!M22 -> 0 | N8: =Timeline!N22 -> 0 | O8: =Timeline!O22 -> 0 | P8: =Timeline!P22 -> 0 | Q8: =Timeline!Q22 -> 0 | R8: =Timeline!R22 -> 0 | S8: =Timeline!S22 -> 0 | T8: =Timeline!T22 -> 0 | U8: =Timeline!U22 -> 0 | V8: =Timeline!V22 -> 0 | W8: =Timeline!W22 -> 0 | X8: =Timeline!X22 -> 0 | Y8: =Timeline!Y22 -> 0 | Z8: =Timeline!Z22 -> 0 | AA8: =Timeline!AA22 -> 0 | AB8: =Timeline!AB22 -> 0 | AC8: =Timeline!AC22 -> 0 | AD8: =Timeline!AD22 -> 0 | AE8: =Timeline!AE22 -> 0 | AF8: =Timeline!AF22 -> 0 | AG8: =Timeline!AG22 -> 0 | AH8: =Timeline!AH22 -> 0 | AI8: =Timeline!AI22 -> 0 | AJ8: =Timeline!AJ22 -> 0 | AK8: =Timeline!AK22 -> 0 | AL8: =Timeline!AL22 -> 0 | AM8: =Timeline!AM22 -> 0 | AN8: =Timeline!AN22 -> 0 | AO8: =Timeline!AO22 -> 0 | AP8: =Timeline!AP22 -> 0
A9: =Timeline!B23 -> No. of construction months | G9: =Timeline!G23 -> 0 | H9: =Timeline!H23 -> 0 | I9: =Timeline!I23 -> 0 | J9: =Timeline!J23 -> 10.4 | K9: =Timeline!K23 -> 11.63333333 | L9: =Timeline!L23 -> 0 | M9: =Timeline!M23 -> 0 | N9: =Timeline!N23 -> 0 | O9: =Timeline!O23 -> 0 | P9: =Timeline!P23 -> 0 | Q9: =Timeline!Q23 -> 0 | R9: =Timeline!R23 -> 0 | S9: =Timeline!S23 -> 0 | T9: =Timeline!T23 -> 0 | U9: =Timeline!U23 -> 0 | V9: =Timeline!V23 -> 0 | W9: =Timeline!W23 -> 0 | X9: =Timeline!X23 -> 0 | Y9: =Timeline!Y23 -> 0 | Z9: =Timeline!Z23 -> 0 | AA9: =Timeline!AA23 -> 0 | AB9: =Timeline!AB23 -> 0 | AC9: =Timeline!AC23 -> 0 | AD9: =Timeline!AD23 -> 0 | AE9: =Timeline!AE23 -> 0 | AF9: =Timeline!AF23 -> 0 | AG9: =Timeline!AG23 -> 0 | AH9: =Timeline!AH23 -> 0 | AI9: =Timeline!AI23 -> 0 | AJ9: =Timeline!AJ23 -> 0 | AK9: =Timeline!AK23 -> 0 | AL9: =Timeline!AL23 -> 0 | AM9: =Timeline!AM23 -> 0 | AN9: =Timeline!AN23 -> 0 | AO9: =Timeline!AO23 -> 0 | AP9: =Timeline!AP23 -> 0
A10: =Timeline!B24 -> Operation flag | G10: =Timeline!G24 -> 0 | H10: =Timeline!H24 -> 0 | I10: =Timeline!I24 -> 0 | J10: =Timeline!J24 -> 0 | K10: =Timeline!K24 -> 0 | L10: =Timeline!L24 -> 1 | M10: =Timeline!M24 -> 1 | N10: =Timeline!N24 -> 1 | O10: =Timeline!O24 -> 1 | P10: =Timeline!P24 -> 1 | Q10: =Timeline!Q24 -> 1 | R10: =Timeline!R24 -> 1 | S10: =Timeline!S24 -> 1 | T10: =Timeline!T24 -> 1 | U10: =Timeline!U24 -> 1 | V10: =Timeline!V24 -> 1 | W10: =Timeline!W24 -> 1 | X10: =Timeline!X24 -> 1 | Y10: =Timeline!Y24 -> 1 | Z10: =Timeline!Z24 -> 1 | AA10: =Timeline!AA24 -> 1 | AB10: =Timeline!AB24 -> 1 | AC10: =Timeline!AC24 -> 1 | AD10: =Timeline!AD24 -> 1 | AE10: =Timeline!AE24 -> 1 | AF10: =Timeline!AF24 -> 1 | AG10: =Timeline!AG24 -> 1 | AH10: =Timeline!AH24 -> 1 | AI10: =Timeline!AI24 -> 1 | AJ10: =Timeline!AJ24 -> 1 | AK10: =Timeline!AK24 -> 1 | AL10: =Timeline!AL24 -> 1 | AM10: =Timeline!AM24 -> 1 | AN10: =Timeline!AN24 -> 1 | AO10: =Timeline!AO24 -> 1 | AP10: =Timeline!AP24 -> 0
A11: =Timeline!B25 -> No. of operational months | G11: =Timeline!G25 -> 0 | H11: =Timeline!H25 -> 0 | I11: =Timeline!I25 -> 0 | J11: =Timeline!J25 -> 0 | K11: =Timeline!K25 -> 0 | L11: =Timeline!L25 -> 12 | M11: =Timeline!M25 -> 12 | N11: =Timeline!N25 -> 12 | O11: =Timeline!O25 -> 12 | P11: =Timeline!P25 -> 12 | Q11: =Timeline!Q25 -> 12 | R11: =Timeline!R25 -> 12 | S11: =Timeline!S25 -> 12 | T11: =Timeline!T25 -> 12 | U11: =Timeline!U25 -> 12 | V11: =Timeline!V25 -> 12 | W11: =Timeline!W25 -> 12 | X11: =Timeline!X25 -> 12 | Y11: =Timeline!Y25 -> 12 | Z11: =Timeline!Z25 -> 12 | AA11: =Timeline!AA25 -> 12 | AB11: =Timeline!AB25 -> 12 | AC11: =Timeline!AC25 -> 12 | AD11: =Timeline!AD25 -> 12 | AE11: =Timeline!AE25 -> 12 | AF11: =Timeline!AF25 -> 12 | AG11: =Timeline!AG25 -> 12 | AH11: =Timeline!AH25 -> 12 | AI11: =Timeline!AI25 -> 12 | AJ11: =Timeline!AJ25 -> 12 | AK11: =Timeline!AK25 -> 12 | AL11: =Timeline!AL25 -> 12 | AM11: =Timeline!AM25 -> 12 | AN11: =Timeline!AN25 -> 12 | AO11: =Timeline!AO25 -> 12 | AP11: =Timeline!AP25 -> 0
A12: =Timeline!B26 -> PPA months | G12: =Timeline!G26 -> 0 | H12: =Timeline!H26 -> 0 | I12: =Timeline!I26 -> 0 | J12: =Timeline!J26 -> 0 | K12: =Timeline!K26 -> 0 | L12: =Timeline!L26 -> 12 | M12: =Timeline!M26 -> 12 | N12: =Timeline!N26 -> 12 | O12: =Timeline!O26 -> 12 | P12: =Timeline!P26 -> 12 | Q12: =Timeline!Q26 -> 12 | R12: =Timeline!R26 -> 12 | S12: =Timeline!S26 -> 12 | T12: =Timeline!T26 -> 12 | U12: =Timeline!U26 -> 12 | V12: =Timeline!V26 -> 12 | W12: =Timeline!W26 -> 12 | X12: =Timeline!X26 -> 12 | Y12: =Timeline!Y26 -> 12 | Z12: =Timeline!Z26 -> 12 | AA12: =Timeline!AA26 -> 12 | AB12: =Timeline!AB26 -> 12 | AC12: =Timeline!AC26 -> 12 | AD12: =Timeline!AD26 -> 12 | AE12: =Timeline!AE26 -> 12 | AF12: =Timeline!AF26 -> 0 | AG12: =Timeline!AG26 -> 0 | AH12: =Timeline!AH26 -> 0 | AI12: =Timeline!AI26 -> 0 | AJ12: =Timeline!AJ26 -> 0 | AK12: =Timeline!AK26 -> 0 | AL12: =Timeline!AL26 -> 0 | AM12: =Timeline!AM26 -> 0 | AN12: =Timeline!AN26 -> 0 | AO12: =Timeline!AO26 -> 0 | AP12: =Timeline!AP26 -> 0
A13: =Timeline!B27 -> Non- PPA Months | G13: =Timeline!G27 -> 0 | H13: =Timeline!H27 -> 0 | I13: =Timeline!I27 -> 0 | J13: =Timeline!J27 -> 0 | K13: =Timeline!K27 -> 0 | L13: =Timeline!L27 -> 0 | M13: =Timeline!M27 -> 0 | N13: =Timeline!N27 -> 0 | O13: =Timeline!O27 -> 0 | P13: =Timeline!P27 -> 0 | Q13: =Timeline!Q27 -> 0 | R13: =Timeline!R27 -> 0 | S13: =Timeline!S27 -> 0 | T13: =Timeline!T27 -> 0 | U13: =Timeline!U27 -> 0 | V13: =Timeline!V27 -> 0 | W13: =Timeline!W27 -> 0 | X13: =Timeline!X27 -> 0 | Y13: =Timeline!Y27 -> 0 | Z13: =Timeline!Z27 -> 0 | AA13: =Timeline!AA27 -> 0 | AB13: =Timeline!AB27 -> 0 | AC13: =Timeline!AC27 -> 0 | AD13: =Timeline!AD27 -> 0 | AE13: =Timeline!AE27 -> 0 | AF13: =Timeline!AF27 -> 12 | AG13: =Timeline!AG27 -> 12 | AH13: =Timeline!AH27 -> 12 | AI13: =Timeline!AI27 -> 12 | AJ13: =Timeline!AJ27 -> 12 | AK13: =Timeline!AK27 -> 12 | AL13: =Timeline!AL27 -> 12 | AM13: =Timeline!AM27 -> 12 | AN13: =Timeline!AN27 -> 12 | AO13: =Timeline!AO27 -> 12 | AP13: =Timeline!AP27 -> 0
C15: Project capacity | E15: MW | G15: ='Control Sheet'!$F$14*G10 -> 0 | H15: ='Control Sheet'!$F$14*H10 -> 0 | I15: ='Control Sheet'!$F$14*I10 -> 0 | J15: ='Control Sheet'!$F$14*J10 -> 0 | K15: ='Control Sheet'!$F$14*K10 -> 0 | L15: ='Control Sheet'!$F$14*L10 -> 297 | M15: ='Control Sheet'!$F$14*M10 -> 297 | N15: ='Control Sheet'!$F$14*N10 -> 297 | O15: ='Control Sheet'!$F$14*O10 -> 297 | P15: ='Control Sheet'!$F$14*P10 -> 297 | Q15: ='Control Sheet'!$F$14*Q10 -> 297 | R15: ='Control Sheet'!$F$14*R10 -> 297 | S15: ='Control Sheet'!$F$14*S10 -> 297 | T15: ='Control Sheet'!$F$14*T10 -> 297 | U15: ='Control Sheet'!$F$14*U10 -> 297 | V15: ='Control Sheet'!$F$14*V10 -> 297 | W15: ='Control Sheet'!$F$14*W10 -> 297 | X15: ='Control Sheet'!$F$14*X10 -> 297 | Y15: ='Control Sheet'!$F$14*Y10 -> 297 | Z15: ='Control Sheet'!$F$14*Z10 -> 297 | AA15: ='Control Sheet'!$F$14*AA10 -> 297 | AB15: ='Control Sheet'!$F$14*AB10 -> 297 | AC15: ='Control Sheet'!$F$14*AC10 -> 297 | AD15: ='Control Sheet'!$F$14*AD10 -> 297 | AE15: ='Control Sheet'!$F$14*AE10 -> 297 | AF15: ='Control Sheet'!$F$14*AF10 -> 297 | AG15: ='Control Sheet'!$F$14*AG10 -> 297 | AH15: ='Control Sheet'!$F$14*AH10 -> 297 | AI15: ='Control Sheet'!$F$14*AI10 -> 297 | AJ15: ='Control Sheet'!$F$14*AJ10 -> 297 | AK15: ='Control Sheet'!$F$14*AK10 -> 297 | AL15: ='Control Sheet'!$F$14*AL10 -> 297 | AM15: ='Control Sheet'!$F$14*AM10 -> 297 | AN15: ='Control Sheet'!$F$14*AN10 -> 297 | AO15: ='Control Sheet'!$F$14*AO10 -> 297 | AP15: ='Control Sheet'!$F$14*AP10 -> 0
C16: ="Generation factor (" &PVal&")" -> Generation factor (P50) | E16: % | G16: ='Control Sheet'!$F$24*G10 -> 0 | H16: ='Control Sheet'!$F$24*H10 -> 0 | I16: ='Control Sheet'!$F$24*I10 -> 0 | J16: ='Control Sheet'!$F$24*J10 -> 0 | K16: ='Control Sheet'!$F$24*K10 -> 0 | L16: ='Control Sheet'!$F$24*L10 -> 0.4455 | M16: ='Control Sheet'!$F$24*M10 -> 0.4455 | N16: ='Control Sheet'!$F$24*N10 -> 0.4455 | O16: ='Control Sheet'!$F$24*O10 -> 0.4455 | P16: ='Control Sheet'!$F$24*P10 -> 0.4455 | Q16: ='Control Sheet'!$F$24*Q10 -> 0.4455 | R16: ='Control Sheet'!$F$24*R10 -> 0.4455 | S16: ='Control Sheet'!$F$24*S10 -> 0.4455 | T16: ='Control Sheet'!$F$24*T10 -> 0.4455 | U16: ='Control Sheet'!$F$24*U10 -> 0.4455 | V16: ='Control Sheet'!$F$24*V10 -> 0.4455 | W16: ='Control Sheet'!$F$24*W10 -> 0.4455 | X16: ='Control Sheet'!$F$24*X10 -> 0.4455 | Y16: ='Control Sheet'!$F$24*Y10 -> 0.4455 | Z16: ='Control Sheet'!$F$24*Z10 -> 0.4455 | AA16: ='Control Sheet'!$F$24*AA10 -> 0.4455 | AB16: ='Control Sheet'!$F$24*AB10 -> 0.4455 | AC16: ='Control Sheet'!$F$24*AC10 -> 0.4455 | AD16: ='Control Sheet'!$F$24*AD10 -> 0.4455 | AE16: ='Control Sheet'!$F$24*AE10 -> 0.4455 | AF16: ='Control Sheet'!$F$24*AF10 -> 0.4455 | AG16: ='Control Sheet'!$F$24*AG10 -> 0.4455 | AH16: ='Control Sheet'!$F$24*AH10 -> 0.4455 | AI16: ='Control Sheet'!$F$24*AI10 -> 0.4455 | AJ16: ='Control Sheet'!$F$24*AJ10 -> 0.4455 | AK16: ='Control Sheet'!$F$24*AK10 -> 0.4455 | AL16: ='Control Sheet'!$F$24*AL10 -> 0.4455 | AM16: ='Control Sheet'!$F$24*AM10 -> 0.4455 | AN16: ='Control Sheet'!$F$24*AN10 -> 0.4455 | AO16: ='Control Sheet'!$F$24*AO10 -> 0.4455 | AP16: ='Control Sheet'!$F$24*AP10 -> 0
C17: Generation period (24 hours for 365.25 days in a year) | E17: hours | G17: =24*365.25*G11/12 -> 0 | H17: =24*365.25*H11/12 -> 0 | I17: 0 | J17: 0 | K17: 0 | L17: 8766 | M17: 8766 | N17: 8766 | O17: 8766 | P17: 8766 | Q17: 8766 | R17: 8766 | S17: 8766 | T17: 8766 | U17: 8766 | V17: 8766 | W17: 8766 | X17: 8766 | Y17: 8766 | Z17: 8766 | AA17: 8766 | AB17: 8766 | AC17: 8766 | AD17: 8766 | AE17: 8766 | AF17: 8766 | AG17: 8766 | AH17: =24*365.25*AH11/12 -> 8766 | AI17: 8766 | AJ17: 8766 | AK17: 8766 | AL17: 8766 | AM17: 8766 | AN17: 8766 | AO17: 8766 | AP17: 0
B18: Annual wind power generation | E18: GWh | F18: =SUM(G18:AP18) -> 34795.80423 | G18: =PRODUCT(G15:G17)/1000 -> 0 | H18: =PRODUCT(H15:H17)/1000 -> 0 | I18: =PRODUCT(I15:I17)/1000 -> 0 | J18: 0 | K18: 0 | L18: 1159.860141 | M18: 1159.860141 | N18: 1159.860141 | O18: 1159.860141 | P18: 1159.860141 | Q18: 1159.860141 | R18: 1159.860141 | S18: 1159.860141 | T18: 1159.860141 | U18: 1159.860141 | V18: 1159.860141 | W18: 1159.860141 | X18: 1159.860141 | Y18: 1159.860141 | Z18: 1159.860141 | AA18: 1159.860141 | AB18: 1159.860141 | AC18: 1159.860141 | AD18: 1159.860141 | AE18: 1159.860141 | AF18: 1159.860141 | AG18: 1159.860141 | AH18: =PRODUCT(AH15:AH17)/1000 -> 1159.860141 | AI18: 1159.860141 | AJ18: 1159.860141 | AK18: 1159.860141 | AL18: 1159.860141 | AM18: 1159.860141 | AN18: 1159.860141 | AO18: 1159.860141 | AP18: 0
B20: Generation under the FIT-Contract | D20: [A] | E20: GWh | F20: =SUM(G20:AP20) -> 23197.20282 | G20: =IFERROR(G$18*G12/G$11,0) -> 0 | H20: =IFERROR(H$18*H12/H$11,0) -> 0 | I20: =IFERROR(I$18*I12/I$11,0) -> 0 | J20: 0 | K20: 0 | L20: 1159.860141 | M20: 1159.860141 | N20: 1159.860141 | O20: 1159.860141 | P20: 1159.860141 | Q20: 1159.860141 | R20: 1159.860141 | S20: 1159.860141 | T20: 1159.860141 | U20: 1159.860141 | V20: 1159.860141 | W20: 1159.860141 | X20: 1159.860141 | Y20: 1159.860141 | Z20: 1159.860141 | AA20: 1159.860141 | AB20: 1159.860141 | AC20: 1159.860141 | AD20: 1159.860141 | AE20: 1159.860141 | AF20: 0 | AG20: 0 | AH20: 0 | AI20: 0 | AJ20: 0 | AK20: 0 | AL20: 0 | AM20: 0 | AN20: 0 | AO20: 0 | AP20: 0
B21: Generation after the FIT-Contract | D21: [B] | E21: GWh | F21: 11598.60141 | G21: =IFERROR(G$18*G13/G$11,0) -> 0 | H21: =IFERROR(H$18*H13/H$11,0) -> 0 | I21: =IFERROR(I$18*I13/I$11,0) -> 0 | J21: 0 | K21: 0 | L21: 0 | M21: 0 | N21: 0 | O21: 0 | P21: 0 | Q21: 0 | R21: 0 | S21: 0 | T21: 0 | U21: 0 | V21: 0 | W21: 0 | X21: 0 | Y21: 0 | Z21: 0 | AA21: 0 | AB21: 0 | AC21: 0 | AD21: 0 | AE21: 0 | AF21: 1159.860141 | AG21: 1159.860141 | AH21: 1159.860141 | AI21: 1159.860141 | AJ21: 1159.860141 | AK21: 1159.860141 | AL21: 1159.860141 | AM21: 1159.860141 | AN21: 1159.860141 | AO21: 1159.860141 | AP21: 0
C23: Fixed price component | E23: $ / MWh | G23: ='Control Sheet'!$E$121*SIGN(G12) -> 0 | H23: ='Control Sheet'!$E$121*SIGN(H12) -> 0 | I23: ='Control Sheet'!$E$121*SIGN(I12) -> 0 | J23: ='Control Sheet'!$E$121*SIGN(J12) -> 0 | K23: ='Control Sheet'!$E$121*SIGN(K12) -> 0 | L23: ='Control Sheet'!$E$121*SIGN(L12) -> 203.0452086 | M23: ='Control Sheet'!$E$121*SIGN(M12) -> 203.0452086 | N23: ='Control Sheet'!$E$121*SIGN(N12) -> 203.0452086 | O23: ='Control Sheet'!$E$121*SIGN(O12) -> 203.0452086 | P23: ='Control Sheet'!$E$121*SIGN(P12) -> 203.0452086 | Q23: ='Control Sheet'!$E$121*SIGN(Q12) -> 203.0452086 | R23: ='Control Sheet'!$E$121*SIGN(R12) -> 203.0452086 | S23: ='Control Sheet'!$E$121*SIGN(S12) -> 203.0452086 | T23: ='Control Sheet'!$E$121*SIGN(T12) -> 203.0452086 | U23: ='Control Sheet'!$E$121*SIGN(U12) -> 203.0452086 | V23: ='Control Sheet'!$E$121*SIGN(V12) -> 203.0452086 | W23: ='Control Sheet'!$E$121*SIGN(W12) -> 203.0452086 | X23: ='Control Sheet'!$E$121*SIGN(X12) -> 203.0452086 | Y23: ='Control Sheet'!$E$121*SIGN(Y12) -> 203.0452086 | Z23: ='Control Sheet'!$E$121*SIGN(Z12) -> 203.0452086 | AA23: ='Control Sheet'!$E$121*SIGN(AA12) -> 203.0452086 | AB23: ='Control Sheet'!$E$121*SIGN(AB12) -> 203.0452086 | AC23: ='Control Sheet'!$E$121*SIGN(AC12) -> 203.0452086 | AD23: ='Control Sheet'!$E$121*SIGN(AD12) -> 203.0452086 | AE23: ='Control Sheet'!$E$121*SIGN(AE12) -> 203.0452086 | AF23: ='Control Sheet'!$E$121*SIGN(AF12) -> 0 | AG23: ='Control Sheet'!$E$121*SIGN(AG12) -> 0 | AH23: ='Control Sheet'!$E$121*SIGN(AH12) -> 0 | AI23: ='Control Sheet'!$E$121*SIGN(AI12) -> 0 | AJ23: ='Control Sheet'!$E$121*SIGN(AJ12) -> 0 | AK23: ='Control Sheet'!$E$121*SIGN(AK12) -> 0 | AL23: ='Control Sheet'!$E$121*SIGN(AL12) -> 0 | AM23: ='Control Sheet'!$E$121*SIGN(AM12) -> 0 | AN23: ='Control Sheet'!$E$121*SIGN(AN12) -> 0 | AO23: ='Control Sheet'!$E$121*SIGN(AO12) -> 0 | AP23: ='Control Sheet'!$E$121*SIGN(AP12) -> 0
C24: Indexed price component | E24: $ / MWh | G24: ='Control Sheet'!$E$122*SIGN(G12)*((1+'Control Sheet'!$F$212)^(SUM($F$11:F11)/12)) -> 0 | H24: ='Control Sheet'!$E$122*SIGN(H12)*((1+'Control Sheet'!$F$212)^(SUM($F$11:G11)/12)) -> 0 | I24: ='Control Sheet'!$E$122*SIGN(I12)*((1+'Control Sheet'!$F$212)^(SUM($F$11:H11)/12)) -> 0 | J24: ='Control Sheet'!$E$122*SIGN(J12)*((1+'Control Sheet'!$F$212)^(SUM($F$11:I11)/12)) -> 0 | K24: ='Control Sheet'!$E$122*SIGN(K12)*((1+'Control Sheet'!$F$212)^(SUM($F$11:J11)/12)) -> 0 | L24: ='Control Sheet'!$E$122*SIGN(L12)*((1+'Control Sheet'!$F$212)^(SUM($F$11:K11)/12)) -> 50.76130215 | M24: ='Control Sheet'!$E$122*SIGN(M12)*((1+'Control Sheet'!$F$212)^(SUM($F$11:L11)/12)) -> 51.77652819 | N24: ='Control Sheet'!$E$122*SIGN(N12)*((1+'Control Sheet'!$F$212)^(SUM($F$11:M11)/12)) -> 52.81205876 | O24: ='Control Sheet'!$E$122*SIGN(O12)*((1+'Control Sheet'!$F$212)^(SUM($F$11:N11)/12)) -> 53.86829993 | P24: ='Control Sheet'!$E$122*SIGN(P12)*((1+'Control Sheet'!$F$212)^(SUM($F$11:O11)/12)) -> 54.94566593 | Q24: ='Control Sheet'!$E$122*SIGN(Q12)*((1+'Control Sheet'!$F$212)^(SUM($F$11:P11)/12)) -> 56.04457925 | R24: ='Control Sheet'!$E$122*SIGN(R12)*((1+'Control Sheet'!$F$212)^(SUM($F$11:Q11)/12)) -> 57.16547084 | S24: ='Control Sheet'!$E$122*SIGN(S12)*((1+'Control Sheet'!$F$212)^(SUM($F$11:R11)/12)) -> 58.30878025 | T24: ='Control Sheet'!$E$122*SIGN(T12)*((1+'Control Sheet'!$F$212)^(SUM($F$11:S11)/12)) -> 59.47495586 | U24: ='Control Sheet'!$E$122*SIGN(U12)*((1+'Control Sheet'!$F$212)^(SUM($F$11:T11)/12)) -> 60.66445497 | V24: ='Control Sheet'!$E$122*SIGN(V12)*((1+'Control Sheet'!$F$212)^(SUM($F$11:U11)/12)) -> 61.87774407 | W24: ='Control Sheet'!$E$122*SIGN(W12)*((1+'Control Sheet'!$F$212)^(SUM($F$11:V11)/12)) -> 63.11529896 | X24: ='Control Sheet'!$E$122*SIGN(X12)*((1+'Control Sheet'!$F$212)^(SUM($F$11:W11)/12)) -> 64.37760493 | Y24: ='Control Sheet'!$E$122*SIGN(Y12)*((1+'Control Sheet'!$F$212)^(SUM($F$11:X11)/12)) -> 65.66515703 | Z24: ='Control Sheet'!$E$122*SIGN(Z12)*((1+'Control Sheet'!$F$212)^(SUM($F$11:Y11)/12)) -> 66.97846017 | AA24: ='Control Sheet'!$E$122*SIGN(AA12)*((1+'Control Sheet'!$F$212)^(SUM($F$11:Z11)/12)) -> 68.31802938 | AB24: ='Control Sheet'!$E$122*SIGN(AB12)*((1+'Control Sheet'!$F$212)^(SUM($F$11:AA11)/12)) -> 69.68438997 | AC24: ='Control Sheet'!$E$122*SIGN(AC12)*((1+'Control Sheet'!$F$212)^(SUM($F$11:AB11)/12)) -> 71.07807776 | AD24: ='Control Sheet'!$E$122*SIGN(AD12)*((1+'Control Sheet'!$F$212)^(SUM($F$11:AC11)/12)) -> 72.49963932 | AE24: ='Control Sheet'!$E$122*SIGN(AE12)*((1+'Control Sheet'!$F$212)^(SUM($F$11:AD11)/12)) -> 73.94963211 | AF24: ='Control Sheet'!$E$122*SIGN(AF12)*((1+'Control Sheet'!$F$212)^(SUM($F$11:AE11)/12)) -> 0 | AG24: ='Control Sheet'!$E$122*SIGN(AG12)*((1+'Control Sheet'!$F$212)^(SUM($F$11:AF11)/12)) -> 0 | AH24: ='Control Sheet'!$E$122*SIGN(AH12)*((1+'Control Sheet'!$F$212)^(SUM($F$11:AG11)/12)) -> 0 | AI24: ='Control Sheet'!$E$122*SIGN(AI12)*((1+'Control Sheet'!$F$212)^(SUM($F$11:AH11)/12)) -> 0 | AJ24: ='Control Sheet'!$E$122*SIGN(AJ12)*((1+'Control Sheet'!$F$212)^(SUM($F$11:AI11)/12)) -> 0 | AK24: ='Control Sheet'!$E$122*SIGN(AK12)*((1+'Control Sheet'!$F$212)^(SUM($F$11:AJ11)/12)) -> 0 | AL24: ='Control Sheet'!$E$122*SIGN(AL12)*((1+'Control Sheet'!$F$212)^(SUM($F$11:AK11)/12)) -> 0 | AM24: ='Control Sheet'!$E$122*SIGN(AM12)*((1+'Control Sheet'!$F$212)^(SUM($F$11:AL11)/12)) -> 0 | AN24: ='Control Sheet'!$E$122*SIGN(AN12)*((1+'Control Sheet'!$F$212)^(SUM($F$11:AM11)/12)) -> 0 | AO24: ='Control Sheet'!$E$122*SIGN(AO12)*((1+'Control Sheet'!$F$212)^(SUM($F$11:AN11)/12)) -> 0 | AP24: ='Control Sheet'!$E$122*SIGN(AP12)*((1+'Control Sheet'!$F$212)^(SUM($F$11:AO11)/12)) -> 0
B25: Tariff as per the FIT-Contract | D25: [C] | E25: $ / MWh | G25: =SUM(G23:G24) -> 0 | H25: =SUM(H23:H24) -> 0 | I25: 0 | J25: 0 | K25: 0 | L25: 253.8065108 | M25: 254.8217368 | N25: 255.8572674 | O25: 256.9135085 | P25: 257.9908745 | Q25: 259.0897879 | R25: 260.2106794 | S25: 261.3539889 | T25: 262.5201645 | U25: 263.7096636 | V25: 264.9229527 | W25: 266.1605076 | X25: 267.4228135 | Y25: 268.7103656 | Z25: 270.0236688 | AA25: =SUM(AA23:AA24) -> 271.363238 | AB25: 272.7295986 | AC25: 274.1232864 | AD25: 275.5448479 | AE25: 276.9948407 | AF25: 0 | AG25: 0 | AH25: =SUM(AH23:AH24) -> 0 | AI25: 0 | AJ25: 0 | AK25: 0 | AL25: 0 | AM25: 0 | AN25: 0 | AO25: 0 | AP25: 0
C27: Wholesale power price after the FIT-Contract term | E27: $ / MWh | G27: =SUMIFS('Power Advisory_BaseCase'!$D$9:$D$56,'Power Advisory_BaseCase'!$B$9:$B$56,YEAR(G5))*SIGN(G13) -> 0 | H27: =SUMIFS('Power Advisory_BaseCase'!$D$9:$D$56,'Power Advisory_BaseCase'!$B$9:$B$56,YEAR(H5))*SIGN(H13) -> 0 | I27: =SUMIFS('Power Advisory_BaseCase'!$D$9:$D$56,'Power Advisory_BaseCase'!$B$9:$B$56,YEAR(I5))*SIGN(I13) -> 0 | J27: =SUMIFS('Power Advisory_BaseCase'!$D$9:$D$56,'Power Advisory_BaseCase'!$B$9:$B$56,YEAR(J5))*SIGN(J13) -> 0 | K27: =SUMIFS('Power Advisory_BaseCase'!$D$9:$D$56,'Power Advisory_BaseCase'!$B$9:$B$56,YEAR(K5))*SIGN(K13) -> 0 | L27: =SUMIFS('Power Advisory_BaseCase'!$D$9:$D$56,'Power Advisory_BaseCase'!$B$9:$B$56,YEAR(L5))*SIGN(L13) -> 0 | M27: =SUMIFS('Power Advisory_BaseCase'!$D$9:$D$56,'Power Advisory_BaseCase'!$B$9:$B$56,YEAR(M5))*SIGN(M13) -> 0 | N27: =SUMIFS('Power Advisory_BaseCase'!$D$9:$D$56,'Power Advisory_BaseCase'!$B$9:$B$56,YEAR(N5))*SIGN(N13) -> 0 | O27: =SUMIFS('Power Advisory_BaseCase'!$D$9:$D$56,'Power Advisory_BaseCase'!$B$9:$B$56,YEAR(O5))*SIGN(O13) -> 0 | P27: =SUMIFS('Power Advisory_BaseCase'!$D$9:$D$56,'Power Advisory_BaseCase'!$B$9:$B$56,YEAR(P5))*SIGN(P13) -> 0 | Q27: =SUMIFS('Power Advisory_BaseCase'!$D$9:$D$56,'Power Advisory_BaseCase'!$B$9:$B$56,YEAR(Q5))*SIGN(Q13) -> 0 | R27: =SUMIFS('Power Advisory_BaseCase'!$D$9:$D$56,'Power Advisory_BaseCase'!$B$9:$B$56,YEAR(R5))*SIGN(R13) -> 0 | S27: =SUMIFS('Power Advisory_BaseCase'!$D$9:$D$56,'Power Advisory_BaseCase'!$B$9:$B$56,YEAR(S5))*SIGN(S13) -> 0 | T27: =SUMIFS('Power Advisory_BaseCase'!$D$9:$D$56,'Power Advisory_BaseCase'!$B$9:$B$56,YEAR(T5))*SIGN(T13) -> 0 | U27: =SUMIFS('Power Advisory_BaseCase'!$D$9:$D$56,'Power Advisory_BaseCase'!$B$9:$B$56,YEAR(U5))*SIGN(U13) -> 0 | V27: =SUMIFS('Power Advisory_BaseCase'!$D$9:$D$56,'Power Advisory_BaseCase'!$B$9:$B$56,YEAR(V5))*SIGN(V13) -> 0 | W27: =SUMIFS('Power Advisory_BaseCase'!$D$9:$D$56,'Power Advisory_BaseCase'!$B$9:$B$56,YEAR(W5))*SIGN(W13) -> 0 | X27: =SUMIFS('Power Advisory_BaseCase'!$D$9:$D$56,'Power Advisory_BaseCase'!$B$9:$B$56,YEAR(X5))*SIGN(X13) -> 0 | Y27: =SUMIFS('Power Advisory_BaseCase'!$D$9:$D$56,'Power Advisory_BaseCase'!$B$9:$B$56,YEAR(Y5))*SIGN(Y13) -> 0 | Z27: =SUMIFS('Power Advisory_BaseCase'!$D$9:$D$56,'Power Advisory_BaseCase'!$B$9:$B$56,YEAR(Z5))*SIGN(Z13) -> 0 | AA27: =SUMIFS('Power Advisory_BaseCase'!$D$9:$D$56,'Power Advisory_BaseCase'!$B$9:$B$56,YEAR(AA5))*SIGN(AA13) -> 0 | AB27: =SUMIFS('Power Advisory_BaseCase'!$D$9:$D$56,'Power Advisory_BaseCase'!$B$9:$B$56,YEAR(AB5))*SIGN(AB13) -> 0 | AC27: =SUMIFS('Power Advisory_BaseCase'!$D$9:$D$56,'Power Advisory_BaseCase'!$B$9:$B$56,YEAR(AC5))*SIGN(AC13) -> 0 | AD27: =SUMIFS('Power Advisory_BaseCase'!$D$9:$D$56,'Power Advisory_BaseCase'!$B$9:$B$56,YEAR(AD5))*SIGN(AD13) -> 0 | AE27: =SUMIFS('Power Advisory_BaseCase'!$D$9:$D$56,'Power Advisory_BaseCase'!$B$9:$B$56,YEAR(AE5))*SIGN(AE13) -> 0 | AF27: =SUMIFS('Power Advisory_BaseCase'!$D$9:$D$56,'Power Advisory_BaseCase'!$B$9:$B$56,YEAR(AF5))*SIGN(AF13) -> 74.67763257 | AG27: =SUMIFS('Power Advisory_BaseCase'!$D$9:$D$56,'Power Advisory_BaseCase'!$B$9:$B$56,YEAR(AG5))*SIGN(AG13) -> 78.45769012 | AH27: =SUMIFS('Power Advisory_BaseCase'!$D$9:$D$56,'Power Advisory_BaseCase'!$B$9:$B$56,YEAR(AH5))*SIGN(AH13) -> 82.53041652 | AI27: =SUMIFS('Power Advisory_BaseCase'!$D$9:$D$56,'Power Advisory_BaseCase'!$B$9:$B$56,YEAR(AI5))*SIGN(AI13) -> 86.92528444 | AJ27: =SUMIFS('Power Advisory_BaseCase'!$D$9:$D$56,'Power Advisory_BaseCase'!$B$9:$B$56,YEAR(AJ5))*SIGN(AJ13) -> 90.32070499 | AK27: =SUMIFS('Power Advisory_BaseCase'!$D$9:$D$56,'Power Advisory_BaseCase'!$B$9:$B$56,YEAR(AK5))*SIGN(AK13) -> 93.71597169 | AL27: =SUMIFS('Power Advisory_BaseCase'!$D$9:$D$56,'Power Advisory_BaseCase'!$B$9:$B$56,YEAR(AL5))*SIGN(AL13) -> 96.29854632 | AM27: =SUMIFS('Power Advisory_BaseCase'!$D$9:$D$56,'Power Advisory_BaseCase'!$B$9:$B$56,YEAR(AM5))*SIGN(AM13) -> 98.49899443 | AN27: =SUMIFS('Power Advisory_BaseCase'!$D$9:$D$56,'Power Advisory_BaseCase'!$B$9:$B$56,YEAR(AN5))*SIGN(AN13) -> 99.59573111 | AO27: =SUMIFS('Power Advisory_BaseCase'!$D$9:$D$56,'Power Advisory_BaseCase'!$B$9:$B$56,YEAR(AO5))*SIGN(AO13) -> 100.4772808 | AP27: =SUMIFS('Power Advisory_BaseCase'!$D$9:$D$56,'Power Advisory_BaseCase'!$B$9:$B$56,YEAR(AP5))*SIGN(AP13) -> 0
C28: Less: discount for costs associated with sale of power | E28: % | G28: ='Control Sheet'!$F$126*SIGN(G13) -> 0 | H28: ='Control Sheet'!$F$126*SIGN(H13) -> 0 | I28: ='Control Sheet'!$F$126*SIGN(I13) -> 0 | J28: ='Control Sheet'!$F$126*SIGN(J13) -> 0 | K28: ='Control Sheet'!$F$126*SIGN(K13) -> 0 | L28: ='Control Sheet'!$F$126*SIGN(L13) -> 0 | M28: ='Control Sheet'!$F$126*SIGN(M13) -> 0 | N28: ='Control Sheet'!$F$126*SIGN(N13) -> 0 | O28: ='Control Sheet'!$F$126*SIGN(O13) -> 0 | P28: ='Control Sheet'!$F$126*SIGN(P13) -> 0 | Q28: ='Control Sheet'!$F$126*SIGN(Q13) -> 0 | R28: ='Control Sheet'!$F$126*SIGN(R13) -> 0 | S28: ='Control Sheet'!$F$126*SIGN(S13) -> 0 | T28: ='Control Sheet'!$F$126*SIGN(T13) -> 0 | U28: ='Control Sheet'!$F$126*SIGN(U13) -> 0 | V28: ='Control Sheet'!$F$126*SIGN(V13) -> 0 | W28: ='Control Sheet'!$F$126*SIGN(W13) -> 0 | X28: ='Control Sheet'!$F$126*SIGN(X13) -> 0 | Y28: ='Control Sheet'!$F$126*SIGN(Y13) -> 0 | Z28: ='Control Sheet'!$F$126*SIGN(Z13) -> 0 | AA28: ='Control Sheet'!$F$126*SIGN(AA13) -> 0 | AB28: ='Control Sheet'!$F$126*SIGN(AB13) -> 0 | AC28: ='Control Sheet'!$F$126*SIGN(AC13) -> 0 | AD28: ='Control Sheet'!$F$126*SIGN(AD13) -> 0 | AE28: ='Control Sheet'!$F$126*SIGN(AE13) -> 0 | AF28: ='Control Sheet'!$F$126*SIGN(AF13) -> 0.05 | AG28: ='Control Sheet'!$F$126*SIGN(AG13) -> 0.05 | AH28: ='Control Sheet'!$F$126*SIGN(AH13) -> 0.05 | AI28: ='Control Sheet'!$F$126*SIGN(AI13) -> 0.05 | AJ28: ='Control Sheet'!$F$126*SIGN(AJ13) -> 0.05 | AK28: ='Control Sheet'!$F$126*SIGN(AK13) -> 0.05 | AL28: ='Control Sheet'!$F$126*SIGN(AL13) -> 0.05 | AM28: ='Control Sheet'!$F$126*SIGN(AM13) -> 0.05 | AN28: ='Control Sheet'!$F$126*SIGN(AN13) -> 0.05 | AO28: ='Control Sheet'!$F$126*SIGN(AO13) -> 0.05 | AP28: ='Control Sheet'!$F$126*SIGN(AP13) -> 0
B29: Realizable tariff after the term of the FIT-Contract | D29: [D] | E29: $ / MWh | G29: =G27*(1-G28) -> 0 | H29: =H27*(1-H28) -> 0 | I29: 0 | J29: 0 | K29: 0 | L29: 0 | M29: 0 | N29: 0 | O29: 0 | P29: 0 | Q29: 0 | R29: 0 | S29: 0 | T29: 0 | U29: 0 | V29: 0 | W29: 0 | X29: 0 | Y29: 0 | Z29: 0 | AA29: 0 | AB29: 0 | AC29: 0 | AD29: 0 | AE29: 0 | AF29: 70.94375094 | AG29: 74.53480561 | AH29: 78.40389569 | AI29: 82.57902021 | AJ29: 85.80466974 | AK29: 89.0301731 | AL29: 91.483619 | AM29: 93.57404471 | AN29: 94.61594455 | AO29: 95.45341681 | AP29: 0
B31: Gross revenue | D31: [A*C + B*D] | E31: $ m | F31: =SUM(G31:AP31) -> 7133.944395 | G31: =(G20*G25+G21*G29)/10^3 -> 0 | H31: =(H20*H25+H21*H29)/10^3 -> 0 | I31: 0 | J31: 0 | K31: 0 | L31: 294.3800554 | M31: 295.5575756 | N31: 296.7586462 | O31: 297.9837382 | P31: 299.2333321 | Q31: 300.5079179 | R31: 301.8079953 | S31: 303.1340744 | T31: 304.486675 | U31: 305.8663276 | V31: 307.2735732 | W31: 308.7089638 | X31: 310.1730622 | Y31: 311.6664426 | Z31: 313.1896905 | AA31: 314.7434035 | AB31: 316.3281907 | AC31: 317.9446736 | AD31: 319.5934862 | AE31: 321.275275 | AF31: 82.28482897 | AG31: 86.44995014 | AH31: 90.93755351 | AI31: 95.78011403 | AJ31: 99.52141634 | AK31: 103.2625491 | AL31: 106.1082032 | AM31: 108.5328047 | AN31: 109.7412628 | AO31: 110.7126135 | AP31: 0
C32: Less: Annual wind land rental charges | E32: $ m | F32: -145.476206 | G32: =-IF(G10=1,'Control Sheet'!$F$130*(G31*10^3/G18)*G11/12/10^6,0) -> 0 | H32: =-IF(H10=1,'Control Sheet'!$F$130*(H31*10^3/H18)*H11/12/10^6,0) -> 0 | I32: =-IF(I10=1,'Control Sheet'!$F$130*(I31*10^3/I18)*I11/12/10^6,0) -> 0 | J32: =-IF(J10=1,'Control Sheet'!$F$130*(J31*10^3/J18)*J11/12/10^6,0) -> 0 | K32: =-IF(K10=1,'Control Sheet'!$F$130*(K31*10^3/K18)*K11/12/10^6,0) -> 0 | L32: =-IF(L10=1,'Control Sheet'!$F$130*(L31*10^3/L18)*L11/12/10^6,0) -> -6.003031592 | M32: =-IF(M10=1,'Control Sheet'!$F$130*(M31*10^3/M18)*M11/12/10^6,0) -> -6.027043719 | N32: =-IF(N10=1,'Control Sheet'!$F$130*(N31*10^3/N18)*N11/12/10^6,0) -> -6.051536088 | O32: =-IF(O10=1,'Control Sheet'!$F$130*(O31*10^3/O18)*O11/12/10^6,0) -> -6.076518304 | P32: =-IF(P10=1,'Control Sheet'!$F$130*(P31*10^3/P18)*P11/12/10^6,0) -> -6.102000165 | Q32: =-IF(Q10=1,'Control Sheet'!$F$130*(Q31*10^3/Q18)*Q11/12/10^6,0) -> -6.127991662 | R32: =-IF(R10=1,'Control Sheet'!$F$130*(R31*10^3/R18)*R11/12/10^6,0) -> -6.15450299 | S32: =-IF(S10=1,'Control Sheet'!$F$130*(S31*10^3/S18)*S11/12/10^6,0) -> -6.181544544 | T32: =-IF(T10=1,'Control Sheet'!$F$130*(T31*10^3/T18)*T11/12/10^6,0) -> -6.20912693 | U32: =-IF(U10=1,'Control Sheet'!$F$130*(U31*10^3/U18)*U11/12/10^6,0) -> -6.237260963 | V32: =-IF(V10=1,'Control Sheet'!$F$130*(V31*10^3/V18)*V11/12/10^6,0) -> -6.265957677 | W32: =-IF(W10=1,'Control Sheet'!$F$130*(W31*10^3/W18)*W11/12/10^6,0) -> -6.295228325 | X32: =-IF(X10=1,'Control Sheet'!$F$130*(X31*10^3/X18)*X11/12/10^6,0) -> -6.325084386 | Y32: =-IF(Y10=1,'Control Sheet'!$F$130*(Y31*10^3/Y18)*Y11/12/10^6,0) -> -6.355537568 | Z32: =-IF(Z10=1,'Control Sheet'!$F$130*(Z31*10^3/Z18)*Z11/12/10^6,0) -> -6.386599814 | AA32: =-IF(AA10=1,'Control Sheet'!$F$130*(AA31*10^3/AA18)*AA11/12/10^6,0) -> -6.418283305 | AB32: =-IF(AB10=1,'Control Sheet'!$F$130*(AB31*10^3/AB18)*AB11/12/10^6,0) -> -6.450600465 | AC32: =-IF(AC10=1,'Control Sheet'!$F$130*(AC31*10^3/AC18)*AC11/12/10^6,0) -> -6.483563969 | AD32: =-IF(AD10=1,'Control Sheet'!$F$130*(AD31*10^3/AD18)*AD11/12/10^6,0) -> -6.517186743 | AE32: =-IF(AE10=1,'Control Sheet'!$F$130*(AE31*10^3/AE18)*AE11/12/10^6,0) -> -6.551481972 | AF32: =-IF(AF10=1,'Control Sheet'!$F$130*(AF31*10^3/AF18)*AF11/12/10^6,0) -> -1.677961597 | AG32: =-IF(AG10=1,'Control Sheet'!$F$130*(AG31*10^3/AG18)*AG11/12/10^6,0) -> -1.762897222 | AH32: =-IF(AH10=1,'Control Sheet'!$F$130*(AH31*10^3/AH18)*AH11/12/10^6,0) -> -1.854408941 | AI32: =-IF(AI10=1,'Control Sheet'!$F$130*(AI31*10^3/AI18)*AI11/12/10^6,0) -> -1.953158986 | AJ32: =-IF(AJ10=1,'Control Sheet'!$F$130*(AJ31*10^3/AJ18)*AJ11/12/10^6,0) -> -2.029452049 | AK32: =-IF(AK10=1,'Control Sheet'!$F$130*(AK31*10^3/AK18)*AK11/12/10^6,0) -> -2.105741654 | AL32: =-IF(AL10=1,'Control Sheet'!$F$130*(AL31*10^3/AL18)*AL11/12/10^6,0) -> -2.163770557 | AM32: =-IF(AM10=1,'Control Sheet'!$F$130*(AM31*10^3/AM18)*AM11/12/10^6,0) -> -2.213213305 | AN32: =-IF(AN10=1,'Control Sheet'!$F$130*(AN31*10^3/AN18)*AN11/12/10^6,0) -> -2.237856321 | AO32: =-IF(AO10=1,'Control Sheet'!$F$130*(AO31*10^3/AO18)*AO11/12/10^6,0) -> -2.257664214 | AP32: =-IF(AP10=1,'Control Sheet'!$F$130*(AP31*10^3/AP18)*AP11/12/10^6,0) -> 0
C33: Less: Administrative land rent | E33: $ m | F33: -0.03 | G33: =-'Control Sheet'!$F$131*G11/12/10^6 -> 0 | H33: =-'Control Sheet'!$F$131*H11/12/10^6 -> 0 | I33: =-'Control Sheet'!$F$131*I11/12/10^6 -> 0 | J33: =-'Control Sheet'!$F$131*J11/12/10^6 -> 0 | K33: =-'Control Sheet'!$F$131*K11/12/10^6 -> 0 | L33: =-'Control Sheet'!$F$131*L11/12/10^6 -> -0.001 | M33: =-'Control Sheet'!$F$131*M11/12/10^6 -> -0.001 | N33: =-'Control Sheet'!$F$131*N11/12/10^6 -> -0.001 | O33: =-'Control Sheet'!$F$131*O11/12/10^6 -> -0.001 | P33: =-'Control Sheet'!$F$131*P11/12/10^6 -> -0.001 | Q33: =-'Control Sheet'!$F$131*Q11/12/10^6 -> -0.001 | R33: =-'Control Sheet'!$F$131*R11/12/10^6 -> -0.001 | S33: =-'Control Sheet'!$F$131*S11/12/10^6 -> -0.001 | T33: =-'Control Sheet'!$F$131*T11/12/10^6 -> -0.001 | U33: =-'Control Sheet'!$F$131*U11/12/10^6 -> -0.001 | V33: =-'Control Sheet'!$F$131*V11/12/10^6 -> -0.001 | W33: =-'Control Sheet'!$F$131*W11/12/10^6 -> -0.001 | X33: =-'Control Sheet'!$F$131*X11/12/10^6 -> -0.001 | Y33: =-'Control Sheet'!$F$131*Y11/12/10^6 -> -0.001 | Z33: =-'Control Sheet'!$F$131*Z11/12/10^6 -> -0.001 | AA33: =-'Control Sheet'!$F$131*AA11/12/10^6 -> -0.001 | AB33: =-'Control Sheet'!$F$131*AB11/12/10^6 -> -0.001 | AC33: =-'Control Sheet'!$F$131*AC11/12/10^6 -> -0.001 | AD33: =-'Control Sheet'!$F$131*AD11/12/10^6 -> -0.001 | AE33: =-'Control Sheet'!$F$131*AE11/12/10^6 -> -0.001 | AF33: =-'Control Sheet'!$F$131*AF11/12/10^6 -> -0.001 | AG33: =-'Control Sheet'!$F$131*AG11/12/10^6 -> -0.001 | AH33: =-'Control Sheet'!$F$131*AH11/12/10^6 -> -0.001 | AI33: =-'Control Sheet'!$F$131*AI11/12/10^6 -> -0.001 | AJ33: =-'Control Sheet'!$F$131*AJ11/12/10^6 -> -0.001 | AK33: =-'Control Sheet'!$F$131*AK11/12/10^6 -> -0.001 | AL33: =-'Control Sheet'!$F$131*AL11/12/10^6 -> -0.001 | AM33: =-'Control Sheet'!$F$131*AM11/12/10^6 -> -0.001 | AN33: =-'Control Sheet'!$F$131*AN11/12/10^6 -> -0.001 | AO33: =-'Control Sheet'!$F$131*AO11/12/10^6 -> -0.001 | AP33: =-'Control Sheet'!$F$131*AP11/12/10^6 -> 0
C34: Less: Base land rent fees | E34: $ m | F34: -2.822752001 | G34: =-'Control Sheet'!$F$137*G9/12*(1+'Control Sheet'!$F$213)^G68 -> 0 | H34: =-'Control Sheet'!$F$137*H9/12*(1+'Control Sheet'!$F$213)^H68 -> 0 | I34: =-'Control Sheet'!$F$137*I9/12*(1+'Control Sheet'!$F$213)^I68 -> 0 | J34: =-'Control Sheet'!$F$137*J9/12*(1+'Control Sheet'!$F$213)^J68 -> -1.318450589 | K34: =-'Control Sheet'!$F$137*K9/12*(1+'Control Sheet'!$F$213)^K68 -> -1.504301412 | L34: =-'Control Sheet'!$F$137*L9/12*(1+'Control Sheet'!$F$213)^L68 -> 0 | M34: =-'Control Sheet'!$F$137*M9/12*(1+'Control Sheet'!$F$213)^M68 -> 0 | N34: =-'Control Sheet'!$F$137*N9/12*(1+'Control Sheet'!$F$213)^N68 -> 0 | O34: =-'Control Sheet'!$F$137*O9/12*(1+'Control Sheet'!$F$213)^O68 -> 0 | P34: =-'Control Sheet'!$F$137*P9/12*(1+'Control Sheet'!$F$213)^P68 -> 0 | Q34: =-'Control Sheet'!$F$137*Q9/12*(1+'Control Sheet'!$F$213)^Q68 -> 0 | R34: =-'Control Sheet'!$F$137*R9/12*(1+'Control Sheet'!$F$213)^R68 -> 0 | S34: =-'Control Sheet'!$F$137*S9/12*(1+'Control Sheet'!$F$213)^S68 -> 0 | T34: =-'Control Sheet'!$F$137*T9/12*(1+'Control Sheet'!$F$213)^T68 -> 0 | U34: =-'Control Sheet'!$F$137*U9/12*(1+'Control Sheet'!$F$213)^U68 -> 0 | V34: =-'Control Sheet'!$F$137*V9/12*(1+'Control Sheet'!$F$213)^V68 -> 0 | W34: =-'Control Sheet'!$F$137*W9/12*(1+'Control Sheet'!$F$213)^W68 -> 0 | X34: =-'Control Sheet'!$F$137*X9/12*(1+'Control Sheet'!$F$213)^X68 -> 0 | Y34: =-'Control Sheet'!$F$137*Y9/12*(1+'Control Sheet'!$F$213)^Y68 -> 0 | Z34: =-'Control Sheet'!$F$137*Z9/12*(1+'Control Sheet'!$F$213)^Z68 -> 0 | AA34: =-'Control Sheet'!$F$137*AA9/12*(1+'Control Sheet'!$F$213)^AA68 -> 0 | AB34: =-'Control Sheet'!$F$137*AB9/12*(1+'Control Sheet'!$F$213)^AB68 -> 0 | AC34: =-'Control Sheet'!$F$137*AC9/12*(1+'Control Sheet'!$F$213)^AC68 -> 0 | AD34: =-'Control Sheet'!$F$137*AD9/12*(1+'Control Sheet'!$F$213)^AD68 -> 0 | AE34: =-'Control Sheet'!$F$137*AE9/12*(1+'Control Sheet'!$F$213)^AE68 -> 0 | AF34: =-'Control Sheet'!$F$137*AF9/12*(1+'Control Sheet'!$F$213)^AF68 -> 0 | AG34: =-'Control Sheet'!$F$137*AG9/12*(1+'Control Sheet'!$F$213)^AG68 -> 0 | AH34: =-'Control Sheet'!$F$137*AH9/12*(1+'Control Sheet'!$F$213)^AH68 -> 0 | AI34: =-'Control Sheet'!$F$137*AI9/12*(1+'Control Sheet'!$F$213)^AI68 -> 0 | AJ34: =-'Control Sheet'!$F$137*AJ9/12*(1+'Control Sheet'!$F$213)^AJ68 -> 0 | AK34: =-'Control Sheet'!$F$137*AK9/12*(1+'Control Sheet'!$F$213)^AK68 -> 0 | AL34: =-'Control Sheet'!$F$137*AL9/12*(1+'Control Sheet'!$F$213)^AL68 -> 0 | AM34: =-'Control Sheet'!$F$137*AM9/12*(1+'Control Sheet'!$F$213)^AM68 -> 0 | AN34: =-'Control Sheet'!$F$137*AN9/12*(1+'Control Sheet'!$F$213)^AN68 -> 0 | AO34: =-'Control Sheet'!$F$137*AO9/12*(1+'Control Sheet'!$F$213)^AO68 -> 0 | AP34: =-'Control Sheet'!$F$137*AP9/12*(1+'Control Sheet'!$F$213)^AP68 -> 0
B35: Net revenue | E35: $ m | F35: 6985.615437 | G35: =SUM(G31:G34) -> 0 | H35: 0 | I35: 0 | J35: -1.318450589 | K35: -1.504301412 | L35: 288.3760238 | M35: 289.5295319 | N35: 290.7061101 | O35: 291.9062199 | P35: 293.130332 | Q35: 294.3789262 | R35: 295.6524924 | S35: 296.9515298 | T35: 298.276548 | U35: 299.6280666 | V35: 301.0066156 | W35: 302.4127355 | X35: 303.8469778 | Y35: 305.309905 | Z35: 306.8020907 | AA35: 308.3241202 | AB35: 309.8765902 | AC35: 311.4601096 | AD35: 313.0752994 | AE35: 314.722793 | AF35: 80.60586738 | AG35: 84.68605292 | AH35: 89.08214457 | AI35: 93.82595504 | AJ35: 97.49096429 | AK35: 101.1558075 | AL35: 103.9434327 | AM35: 106.3185914 | AN35: 107.5024065 | AO35: 108.4539493 | AP35: 0
C36: Less: Operating and maintenance expenses | E36: $ m | F36: -1299.508029 | G36: =-'Control Sheet'!$F$139*SUM(G12:G13)/12*(1+'Control Sheet'!$F$213)^G68 -> 0 | H36: =-'Control Sheet'!$F$139*SUM(H12:H13)/12*(1+'Control Sheet'!$F$213)^H68 -> 0 | I36: =-'Control Sheet'!$F$139*SUM(I12:I13)/12*(1+'Control Sheet'!$F$213)^I68 -> 0 | J36: =-'Control Sheet'!$F$139*SUM(J12:J13)/12*(1+'Control Sheet'!$F$213)^J68 -> 0 | K36: =-'Control Sheet'!$F$139*SUM(K12:K13)/12*(1+'Control Sheet'!$F$213)^K68 -> 0 | L36: =-'Control Sheet'!$F$139*SUM(L12:L13)/12*(1+'Control Sheet'!$F$213)^L68 -> -32.03277193 | M36: =-'Control Sheet'!$F$139*SUM(M12:M13)/12*(1+'Control Sheet'!$F$213)^M68 -> -32.67342737 | N36: =-'Control Sheet'!$F$139*SUM(N12:N13)/12*(1+'Control Sheet'!$F$213)^N68 -> -33.32689592 | O36: =-'Control Sheet'!$F$139*SUM(O12:O13)/12*(1+'Control Sheet'!$F$213)^O68 -> -33.99343383 | P36: =-'Control Sheet'!$F$139*SUM(P12:P13)/12*(1+'Control Sheet'!$F$213)^P68 -> -34.67330251 | Q36: =-'Control Sheet'!$F$139*SUM(Q12:Q13)/12*(1+'Control Sheet'!$F$213)^Q68 -> -35.36676856 | R36: =-'Control Sheet'!$F$139*SUM(R12:R13)/12*(1+'Control Sheet'!$F$213)^R68 -> -36.07410393 | S36: =-'Control Sheet'!$F$139*SUM(S12:S13)/12*(1+'Control Sheet'!$F$213)^S68 -> -36.79558601 | T36: =-'Control Sheet'!$F$139*SUM(T12:T13)/12*(1+'Control Sheet'!$F$213)^T68 -> -37.53149773 | U36: =-'Control Sheet'!$F$139*SUM(U12:U13)/12*(1+'Control Sheet'!$F$213)^U68 -> -38.28212769 | V36: =-'Control Sheet'!$F$139*SUM(V12:V13)/12*(1+'Control Sheet'!$F$213)^V68 -> -39.04777024 | W36: =-'Control Sheet'!$F$139*SUM(W12:W13)/12*(1+'Control Sheet'!$F$213)^W68 -> -39.82872564 | X36: =-'Control Sheet'!$F$139*SUM(X12:X13)/12*(1+'Control Sheet'!$F$213)^X68 -> -40.62530016 | Y36: =-'Control Sheet'!$F$139*SUM(Y12:Y13)/12*(1+'Control Sheet'!$F$213)^Y68 -> -41.43780616 | Z36: =-'Control Sheet'!$F$139*SUM(Z12:Z13)/12*(1+'Control Sheet'!$F$213)^Z68 -> -42.26656228 | AA36: =-'Control Sheet'!$F$139*SUM(AA12:AA13)/12*(1+'Control Sheet'!$F$213)^AA68 -> -43.11189353 | AB36: =-'Control Sheet'!$F$139*SUM(AB12:AB13)/12*(1+'Control Sheet'!$F$213)^AB68 -> -43.9741314 | AC36: =-'Control Sheet'!$F$139*SUM(AC12:AC13)/12*(1+'Control Sheet'!$F$213)^AC68 -> -44.85361403 | AD36: =-'Control Sheet'!$F$139*SUM(AD12:AD13)/12*(1+'Control Sheet'!$F$213)^AD68 -> -45.75068631 | AE36: =-'Control Sheet'!$F$139*SUM(AE12:AE13)/12*(1+'Control Sheet'!$F$213)^AE68 -> -46.66570003 | AF36: =-'Control Sheet'!$F$139*SUM(AF12:AF13)/12*(1+'Control Sheet'!$F$213)^AF68 -> -47.59901404 | AG36: =-'Control Sheet'!$F$139*SUM(AG12:AG13)/12*(1+'Control Sheet'!$F$213)^AG68 -> -48.55099432 | AH36: =-'Control Sheet'!$F$139*SUM(AH12:AH13)/12*(1+'Control Sheet'!$F$213)^AH68 -> -49.5220142 | AI36: =-'Control Sheet'!$F$139*SUM(AI12:AI13)/12*(1+'Control Sheet'!$F$213)^AI68 -> -50.51245449 | AJ36: =-'Control Sheet'!$F$139*SUM(AJ12:AJ13)/12*(1+'Control Sheet'!$F$213)^AJ68 -> -51.52270358 | AK36: =-'Control Sheet'!$F$139*SUM(AK12:AK13)/12*(1+'Control Sheet'!$F$213)^AK68 -> -52.55315765 | AL36: =-'Control Sheet'!$F$139*SUM(AL12:AL13)/12*(1+'Control Sheet'!$F$213)^AL68 -> -53.6042208 | AM36: =-'Control Sheet'!$F$139*SUM(AM12:AM13)/12*(1+'Control Sheet'!$F$213)^AM68 -> -54.67630522 | AN36: =-'Control Sheet'!$F$139*SUM(AN12:AN13)/12*(1+'Control Sheet'!$F$213)^AN68 -> -55.76983132 | AO36: =-'Control Sheet'!$F$139*SUM(AO12:AO13)/12*(1+'Control Sheet'!$F$213)^AO68 -> -56.88522795 | AP36: =-'Control Sheet'!$F$139*SUM(AP12:AP13)/12*(1+'Control Sheet'!$F$213)^AP68 -> 0
C37: Less: insurance costs | E37: $ m | F37: -176.7838364 | G37: =-SUMIFS('Control Sheet'!$H$162:$AK$162,'Control Sheet'!$H$157:$AK$157,YEAR(G5))*G10 -> 0 | H37: =-SUMIFS('Control Sheet'!$H$162:$AK$162,'Control Sheet'!$H$157:$AK$157,YEAR(H5))*H10 -> 0 | I37: =-SUMIFS('Control Sheet'!$H$162:$AK$162,'Control Sheet'!$H$157:$AK$157,YEAR(I5))*I10 -> 0 | J37: =-SUMIFS('Control Sheet'!$H$162:$AK$162,'Control Sheet'!$H$157:$AK$157,YEAR(J5))*J10 -> 0 | K37: =-SUMIFS('Control Sheet'!$H$162:$AK$162,'Control Sheet'!$H$157:$AK$157,YEAR(K5))*K10 -> 0 | L37: =-SUMIFS('Control Sheet'!$H$162:$AK$162,'Control Sheet'!$H$157:$AK$157,YEAR(L5))*L10 -> -7.42041667 | M37: =-SUMIFS('Control Sheet'!$H$162:$AK$162,'Control Sheet'!$H$157:$AK$157,YEAR(M5))*M10 -> -7.423609175 | N37: =-SUMIFS('Control Sheet'!$H$162:$AK$162,'Control Sheet'!$H$157:$AK$157,YEAR(N5))*N10 -> -7.427664516 | O37: =-SUMIFS('Control Sheet'!$H$162:$AK$162,'Control Sheet'!$H$157:$AK$157,YEAR(O5))*O10 -> -7.432594769 | P37: =-SUMIFS('Control Sheet'!$H$162:$AK$162,'Control Sheet'!$H$157:$AK$157,YEAR(P5))*P10 -> -7.438414175 | Q37: =-SUMIFS('Control Sheet'!$H$162:$AK$162,'Control Sheet'!$H$157:$AK$157,YEAR(Q5))*Q10 -> -8.723561168 | R37: =-SUMIFS('Control Sheet'!$H$162:$AK$162,'Control Sheet'!$H$157:$AK$157,YEAR(R5))*R10 -> -8.724165995 | S37: =-SUMIFS('Control Sheet'!$H$162:$AK$162,'Control Sheet'!$H$157:$AK$157,YEAR(S5))*S10 -> -8.725739911 | T37: =-SUMIFS('Control Sheet'!$H$162:$AK$162,'Control Sheet'!$H$157:$AK$157,YEAR(T5))*T10 -> -8.212419416 | U37: =-SUMIFS('Control Sheet'!$H$162:$AK$162,'Control Sheet'!$H$157:$AK$157,YEAR(U5))*U10 -> -8.218809707 | V37: =-SUMIFS('Control Sheet'!$H$162:$AK$162,'Control Sheet'!$H$157:$AK$157,YEAR(V5))*V10 -> -8.226196217 | W37: =-SUMIFS('Control Sheet'!$H$162:$AK$162,'Control Sheet'!$H$157:$AK$157,YEAR(W5))*W10 -> -5.476360492 | X37: =-SUMIFS('Control Sheet'!$H$162:$AK$162,'Control Sheet'!$H$157:$AK$157,YEAR(X5))*X10 -> -5.500954852 | Y37: =-SUMIFS('Control Sheet'!$H$162:$AK$162,'Control Sheet'!$H$157:$AK$157,YEAR(Y5))*Y10 -> -5.526508564 | Z37: =-SUMIFS('Control Sheet'!$H$162:$AK$162,'Control Sheet'!$H$157:$AK$157,YEAR(Z5))*Z10 -> -5.553037322 | AA37: =-SUMIFS('Control Sheet'!$H$162:$AK$162,'Control Sheet'!$H$157:$AK$157,YEAR(AA5))*AA10 -> -4.327473308 | AB37: =-SUMIFS('Control Sheet'!$H$162:$AK$162,'Control Sheet'!$H$157:$AK$157,YEAR(AB5))*AB10 -> -4.362896887 | AC37: =-SUMIFS('Control Sheet'!$H$162:$AK$162,'Control Sheet'!$H$157:$AK$157,YEAR(AC5))*AC10 -> -4.399310452 | AD37: =-SUMIFS('Control Sheet'!$H$162:$AK$162,'Control Sheet'!$H$157:$AK$157,YEAR(AD5))*AD10 -> -4.43673183 | AE37: =-SUMIFS('Control Sheet'!$H$162:$AK$162,'Control Sheet'!$H$157:$AK$157,YEAR(AE5))*AE10 -> -4.475179176 | AF37: =-SUMIFS('Control Sheet'!$H$162:$AK$162,'Control Sheet'!$H$157:$AK$157,YEAR(AF5))*AF10 -> -4.475179176 | AG37: =-SUMIFS('Control Sheet'!$H$162:$AK$162,'Control Sheet'!$H$157:$AK$157,YEAR(AG5))*AG10 -> -4.475179176 | AH37: =-SUMIFS('Control Sheet'!$H$162:$AK$162,'Control Sheet'!$H$157:$AK$157,YEAR(AH5))*AH10 -> -4.475179176 | AI37: =-SUMIFS('Control Sheet'!$H$162:$AK$162,'Control Sheet'!$H$157:$AK$157,YEAR(AI5))*AI10 -> -4.475179176 | AJ37: =-SUMIFS('Control Sheet'!$H$162:$AK$162,'Control Sheet'!$H$157:$AK$157,YEAR(AJ5))*AJ10 -> -4.475179176 | AK37: =-SUMIFS('Control Sheet'!$H$162:$AK$162,'Control Sheet'!$H$157:$AK$157,YEAR(AK5))*AK10 -> -4.475179176 | AL37: =-SUMIFS('Control Sheet'!$H$162:$AK$162,'Control Sheet'!$H$157:$AK$157,YEAR(AL5))*AL10 -> -4.475179176 | AM37: =-SUMIFS('Control Sheet'!$H$162:$AK$162,'Control Sheet'!$H$157:$AK$157,YEAR(AM5))*AM10 -> -4.475179176 | AN37: =-SUMIFS('Control Sheet'!$H$162:$AK$162,'Control Sheet'!$H$157:$AK$157,YEAR(AN5))*AN10 -> -4.475179176 | AO37: =-SUMIFS('Control Sheet'!$H$162:$AK$162,'Control Sheet'!$H$157:$AK$157,YEAR(AO5))*AO10 -> -4.475179176 | AP37: =-SUMIFS('Control Sheet'!$H$162:$AK$162,'Control Sheet'!$H$157:$AK$157,YEAR(AP5))*AP10 -> 0
C38: Less: Other fixed expenses | E38: $ m | F38: -23.52615872 | G38: =-IF(SUM($G$10:G10)>1,'Control Sheet'!$F$155,'Control Sheet'!$H$155)*G11/12*(1+'Control Sheet'!$F$213)^G68 -> 0 | H38: =-IF(SUM($G$10:H10)>1,'Control Sheet'!$F$155,'Control Sheet'!$H$155)*H11/12*(1+'Control Sheet'!$F$213)^H68 -> 0 | I38: =-IF(SUM($G$10:I10)>1,'Control Sheet'!$F$155,'Control Sheet'!$H$155)*I11/12*(1+'Control Sheet'!$F$213)^I68 -> 0 | J38: =-IF(SUM($G$10:J10)>1,'Control Sheet'!$F$155,'Control Sheet'!$H$155)*J11/12*(1+'Control Sheet'!$F$213)^J68 -> 0 | K38: =-IF(SUM($G$10:K10)>1,'Control Sheet'!$F$155,'Control Sheet'!$H$155)*K11/12*(1+'Control Sheet'!$F$213)^K68 -> 0 | L38: =-IF(SUM($G$10:L10)>1,'Control Sheet'!$F$155,'Control Sheet'!$H$155)*L11/12*(1+'Control Sheet'!$F$213)^L68 -> -0.7568375271 | M38: =-IF(SUM($G$10:M10)>1,'Control Sheet'!$F$155,'Control Sheet'!$H$155)*M11/12*(1+'Control Sheet'!$F$213)^M68 -> -0.5869556491 | N38: =-IF(SUM($G$10:N10)>1,'Control Sheet'!$F$155,'Control Sheet'!$H$155)*N11/12*(1+'Control Sheet'!$F$213)^N68 -> -0.5986947621 | O38: =-IF(SUM($G$10:O10)>1,'Control Sheet'!$F$155,'Control Sheet'!$H$155)*O11/12*(1+'Control Sheet'!$F$213)^O68 -> -0.6106686573 | P38: =-IF(SUM($G$10:P10)>1,'Control Sheet'!$F$155,'Control Sheet'!$H$155)*P11/12*(1+'Control Sheet'!$F$213)^P68 -> -0.6228820305 | Q38: =-IF(SUM($G$10:Q10)>1,'Control Sheet'!$F$155,'Control Sheet'!$H$155)*Q11/12*(1+'Control Sheet'!$F$213)^Q68 -> -0.6353396711 | R38: =-IF(SUM($G$10:R10)>1,'Control Sheet'!$F$155,'Control Sheet'!$H$155)*R11/12*(1+'Control Sheet'!$F$213)^R68 -> -0.6480464645 | S38: =-IF(SUM($G$10:S10)>1,'Control Sheet'!$F$155,'Control Sheet'!$H$155)*S11/12*(1+'Control Sheet'!$F$213)^S68 -> -0.6610073938 | T38: =-IF(SUM($G$10:T10)>1,'Control Sheet'!$F$155,'Control Sheet'!$H$155)*T11/12*(1+'Control Sheet'!$F$213)^T68 -> -0.6742275417 | U38: =-IF(SUM($G$10:U10)>1,'Control Sheet'!$F$155,'Control Sheet'!$H$155)*U11/12*(1+'Control Sheet'!$F$213)^U68 -> -0.6877120925 | V38: =-IF(SUM($G$10:V10)>1,'Control Sheet'!$F$155,'Control Sheet'!$H$155)*V11/12*(1+'Control Sheet'!$F$213)^V68 -> -0.7014663344 | W38: =-IF(SUM($G$10:W10)>1,'Control Sheet'!$F$155,'Control Sheet'!$H$155)*W11/12*(1+'Control Sheet'!$F$213)^W68 -> -0.715495661 | X38: =-IF(SUM($G$10:X10)>1,'Control Sheet'!$F$155,'Control Sheet'!$H$155)*X11/12*(1+'Control Sheet'!$F$213)^X68 -> -0.7298055743 | Y38: =-IF(SUM($G$10:Y10)>1,'Control Sheet'!$F$155,'Control Sheet'!$H$155)*Y11/12*(1+'Control Sheet'!$F$213)^Y68 -> -0.7444016858 | Z38: =-IF(SUM($G$10:Z10)>1,'Control Sheet'!$F$155,'Control Sheet'!$H$155)*Z11/12*(1+'Control Sheet'!$F$213)^Z68 -> -0.7592897195 | AA38: =-IF(SUM($G$10:AA10)>1,'Control Sheet'!$F$155,'Control Sheet'!$H$155)*AA11/12*(1+'Control Sheet'!$F$213)^AA68 -> -0.7744755139 | AB38: =-IF(SUM($G$10:AB10)>1,'Control Sheet'!$F$155,'Control Sheet'!$H$155)*AB11/12*(1+'Control Sheet'!$F$213)^AB68 -> -0.7899650241 | AC38: =-IF(SUM($G$10:AC10)>1,'Control Sheet'!$F$155,'Control Sheet'!$H$155)*AC11/12*(1+'Control Sheet'!$F$213)^AC68 -> -0.8057643246 | AD38: =-IF(SUM($G$10:AD10)>1,'Control Sheet'!$F$155,'Control Sheet'!$H$155)*AD11/12*(1+'Control Sheet'!$F$213)^AD68 -> -0.8218796111 | AE38: =-IF(SUM($G$10:AE10)>1,'Control Sheet'!$F$155,'Control Sheet'!$H$155)*AE11/12*(1+'Control Sheet'!$F$213)^AE68 -> -0.8383172033 | AF38: =-IF(SUM($G$10:AF10)>1,'Control Sheet'!$F$155,'Control Sheet'!$H$155)*AF11/12*(1+'Control Sheet'!$F$213)^AF68 -> -0.8550835474 | AG38: =-IF(SUM($G$10:AG10)>1,'Control Sheet'!$F$155,'Control Sheet'!$H$155)*AG11/12*(1+'Control Sheet'!$F$213)^AG68 -> -0.8721852183 | AH38: =-IF(SUM($G$10:AH10)>1,'Control Sheet'!$F$155,'Control Sheet'!$H$155)*AH11/12*(1+'Control Sheet'!$F$213)^AH68 -> -0.8896289227 | AI38: =-IF(SUM($G$10:AI10)>1,'Control Sheet'!$F$155,'Control Sheet'!$H$155)*AI11/12*(1+'Control Sheet'!$F$213)^AI68 -> -0.9074215012 | AJ38: =-IF(SUM($G$10:AJ10)>1,'Control Sheet'!$F$155,'Control Sheet'!$H$155)*AJ11/12*(1+'Control Sheet'!$F$213)^AJ68 -> -0.9255699312 | AK38: =-IF(SUM($G$10:AK10)>1,'Control Sheet'!$F$155,'Control Sheet'!$H$155)*AK11/12*(1+'Control Sheet'!$F$213)^AK68 -> -0.9440813298 | AL38: =-IF(SUM($G$10:AL10)>1,'Control Sheet'!$F$155,'Control Sheet'!$H$155)*AL11/12*(1+'Control Sheet'!$F$213)^AL68 -> -0.9629629564 | AM38: =-IF(SUM($G$10:AM10)>1,'Control Sheet'!$F$155,'Control Sheet'!$H$155)*AM11/12*(1+'Control Sheet'!$F$213)^AM68 -> -0.9822222155 | AN38: =-IF(SUM($G$10:AN10)>1,'Control Sheet'!$F$155,'Control Sheet'!$H$155)*AN11/12*(1+'Control Sheet'!$F$213)^AN68 -> -1.00186666 | AO38: =-IF(SUM($G$10:AO10)>1,'Control Sheet'!$F$155,'Control Sheet'!$H$155)*AO11/12*(1+'Control Sheet'!$F$213)^AO68 -> -1.021903993 | AP38: =-IF(SUM($G$10:AP10)>1,'Control Sheet'!$F$155,'Control Sheet'!$H$155)*AP11/12*(1+'Control Sheet'!$F$213)^AP68 -> 0
B39: EBITDA | E39: $ m | F39: 5485.797413 | G39: =SUM(G35:G38) -> 0 | H39: =SUM(H35:H38) -> 0 | I39: 0 | J39: -1.318450589 | K39: -1.504301412 | L39: 248.1659976 | M39: 248.8455397 | N39: 249.3528549 | O39: 249.8695227 | P39: 250.3957332 | Q39: 249.6532568 | R39: 250.206176 | S39: 250.7691965 | T39: 251.8584033 | U39: 252.4394171 | V39: 253.0311828 | W39: 256.3921537 | X39: 256.9909172 | Y39: 257.6011886 | Z39: 258.2232014 | AA39: 260.1102778 | AB39: 260.7495969 | AC39: 261.4014208 | AD39: 262.0660017 | AE39: 262.7435966 | AF39: 27.67659062 | AG39: 30.78769421 | AH39: 34.19532227 | AI39: 37.93089988 | AJ39: 40.56751161 | AK39: 43.18338932 | AL39: 44.90106974 | AM39: 46.18488477 | AN39: 46.25552931 | AO39: 46.07163814 | AP39: 0
C40: Less: debt related costs
C41: Interest | E41: $ m | F41: -403.0022039 | G41: =-Financing!G53 -> 0 | H41: =-Financing!H53 -> 0 | I41: =-Financing!I53 -> 0 | J41: =-Financing!J53 -> 0 | K41: =-Financing!K53 -> 0 | L41: =-Financing!L53 -> -34.85562395 | M41: =-Financing!M53 -> -33.97808918 | N41: =-Financing!N53 -> -32.64886081 | O41: =-Financing!O53 -> -31.51185217 | P41: =-Financing!P53 -> -30.47567617 | Q41: =-Financing!Q53 -> -31.60411421 | R41: =-Financing!R53 -> -30.38814197 | S41: =-Financing!S53 -> -28.67423965 | T41: =-Financing!T53 -> -26.89008619 | U41: =-Financing!U53 -> -24.92052036 | V41: =-Financing!V53 -> -23.36955531 | W41: =-Financing!W53 -> -19.78399402 | X41: =-Financing!X53 -> -17.08261014 | Y41: =-Financing!Y53 -> -14.22081142 | Z41: =-Financing!Z53 -> -11.18873209 | AA41: =-Financing!AA53 -> -8.079799505 | AB41: =-Financing!AB53 -> -3.329496793 | AC41: =-Financing!AC53 -> 0 | AD41: =-Financing!AD53 -> 0 | AE41: =-Financing!AE53 -> 0 | AF41: =-Financing!AF53 -> 0 | AG41: =-Financing!AG53 -> 0 | AH41: =-Financing!AH53 -> 0 | AI41: =-Financing!AI53 -> 0 | AJ41: =-Financing!AJ53 -> 0 | AK41: =-Financing!AK53 -> 0 | AL41: =-Financing!AL53 -> 0 | AM41: =-Financing!AM53 -> 0 | AN41: =-Financing!AN53 -> 0 | AO41: =-Financing!AO53 -> 0 | AP41: =-Financing!AP53 -> 0
C42: Agency cost on debt | E42: $ m | F42: =SUM(G42:AP42) -> -1.883611111 | G42: =-Financing!G49 -> 0 | H42: =-Financing!H49 -> 0 | I42: =-Financing!I49 -> 0 | J42: =-Financing!J49 -> -0.08666666667 | K42: =-Financing!K49 -> -0.09694444444 | L42: =-Financing!L49 -> -0.1 | M42: =-Financing!M49 -> -0.1 | N42: =-Financing!N49 -> -0.1 | O42: =-Financing!O49 -> -0.1 | P42: =-Financing!P49 -> -0.1 | Q42: =-Financing!Q49 -> -0.1 | R42: =-Financing!R49 -> -0.1 | S42: =-Financing!S49 -> -0.1 | T42: =-Financing!T49 -> -0.1 | U42: =-Financing!U49 -> -0.1 | V42: =-Financing!V49 -> -0.1 | W42: =-Financing!W49 -> -0.1 | X42: =-Financing!X49 -> -0.1 | Y42: =-Financing!Y49 -> -0.1 | Z42: =-Financing!Z49 -> -0.1 | AA42: =-Financing!AA49 -> -0.1 | AB42: =-Financing!AB49 -> -0.1 | AC42: =-Financing!AC49 -> 0 | AD42: =-Financing!AD49 -> 0 | AE42: =-Financing!AE49 -> 0 | AF42: =-Financing!AF49 -> 0 | AG42: =-Financing!AG49 -> 0 | AH42: =-Financing!AH49 -> 0 | AI42: =-Financing!AI49 -> 0 | AJ42: =-Financing!AJ49 -> 0 | AK42: =-Financing!AK49 -> 0 | AL42: =-Financing!AL49 -> 0 | AM42: =-Financing!AM49 -> 0 | AN42: =-Financing!AN49 -> 0 | AO42: =-Financing!AO49 -> 0 | AP42: =-Financing!AP49 -> 0
C43: Debt structuring costs | E43: $ m | F43: -13.18637449 | G43: =-Financing!G50 -> 0 | H43: =-Financing!H50 -> 0 | I43: =-Financing!I50 -> 0 | J43: =-Financing!J50 -> -13.18637449 | K43: =-Financing!K50 -> 0 | L43: =-Financing!L50 -> 0 | M43: =-Financing!M50 -> 0 | N43: =-Financing!N50 -> 0 | O43: =-Financing!O50 -> 0 | P43: =-Financing!P50 -> 0 | Q43: =-Financing!Q50 -> 0 | R43: =-Financing!R50 -> 0 | S43: =-Financing!S50 -> 0 | T43: =-Financing!T50 -> 0 | U43: =-Financing!U50 -> 0 | V43: =-Financing!V50 -> 0 | W43: =-Financing!W50 -> 0 | X43: =-Financing!X50 -> 0 | Y43: =-Financing!Y50 -> 0 | Z43: =-Financing!Z50 -> 0 | AA43: =-Financing!AA50 -> 0 | AB43: =-Financing!AB50 -> 0 | AC43: =-Financing!AC50 -> 0 | AD43: =-Financing!AD50 -> 0 | AE43: =-Financing!AE50 -> 0 | AF43: =-Financing!AF50 -> 0 | AG43: =-Financing!AG50 -> 0 | AH43: =-Financing!AH50 -> 0 | AI43: =-Financing!AI50 -> 0 | AJ43: =-Financing!AJ50 -> 0 | AK43: =-Financing!AK50 -> 0 | AL43: =-Financing!AL50 -> 0 | AM43: =-Financing!AM50 -> 0 | AN43: =-Financing!AN50 -> 0 | AO43: =-Financing!AO50 -> 0 | AP43: =-Financing!AP50 -> 0
C44: Commitment Fees | E44: $ m | F44: -7.65259584 | G44: =-Financing!G51 -> 0 | H44: =-Financing!H51 -> 0 | I44: =-Financing!I51 -> 0 | J44: =-Financing!J51 -> -5.301622917 | K44: =-Financing!K51 -> -2.350972923 | L44: =-Financing!L51 -> 0 | M44: =-Financing!M51 -> 0 | N44: =-Financing!N51 -> 0 | O44: =-Financing!O51 -> 0 | P44: =-Financing!P51 -> 0 | Q44: =-Financing!Q51 -> 0 | R44: =-Financing!R51 -> 0 | S44: =-Financing!S51 -> 0 | T44: =-Financing!T51 -> 0 | U44: =-Financing!U51 -> 0 | V44: =-Financing!V51 -> 0 | W44: =-Financing!W51 -> 0 | X44: =-Financing!X51 -> 0 | Y44: =-Financing!Y51 -> 0 | Z44: =-Financing!Z51 -> 0 | AA44: =-Financing!AA51 -> 0 | AB44: =-Financing!AB51 -> 0 | AC44: =-Financing!AC51 -> 0 | AD44: =-Financing!AD51 -> 0 | AE44: =-Financing!AE51 -> 0 | AF44: =-Financing!AF51 -> 0 | AG44: =-Financing!AG51 -> 0 | AH44: =-Financing!AH51 -> 0 | AI44: =-Financing!AI51 -> 0 | AJ44: =-Financing!AJ51 -> 0 | AK44: =-Financing!AK51 -> 0 | AL44: =-Financing!AL51 -> 0 | AM44: =-Financing!AM51 -> 0 | AN44: =-Financing!AN51 -> 0 | AO44: =-Financing!AO51 -> 0 | AP44: =-Financing!AP51 -> 0
C45: Less: LC costs on unspent capex | E45: $ m | F45: -15.51452327 | G45: =-SUMIFS('Control Sheet'!$H$105:$L$105,'Control Sheet'!$H$87:$L$87,G5)*'Control Sheet'!$F$104*G9/12 -> 0 | H45: =-SUMIFS('Control Sheet'!$H$105:$L$105,'Control Sheet'!$H$87:$L$87,H5)*'Control Sheet'!$F$104*H9/12 -> 0 | I45: =-SUMIFS('Control Sheet'!$H$105:$L$105,'Control Sheet'!$H$87:$L$87,I5)*'Control Sheet'!$F$104*I9/12 -> 0 | J45: =-SUMIFS('Control Sheet'!$H$105:$L$105,'Control Sheet'!$H$87:$L$87,J5)*'Control Sheet'!$F$104*J9/12 -> -11.00158205 | K45: =-SUMIFS('Control Sheet'!$H$105:$L$105,'Control Sheet'!$H$87:$L$87,K5)*'Control Sheet'!$F$104*K9/12 -> -4.51294122 | L45: =-SUMIFS('Control Sheet'!$H$105:$L$105,'Control Sheet'!$H$87:$L$87,L5)*'Control Sheet'!$F$104*L9/12 -> 0 | M45: =-SUMIFS('Control Sheet'!$H$105:$L$105,'Control Sheet'!$H$87:$L$87,M5)*'Control Sheet'!$F$104*M9/12 -> 0 | N45: =-SUMIFS('Control Sheet'!$H$105:$L$105,'Control Sheet'!$H$87:$L$87,N5)*'Control Sheet'!$F$104*N9/12 -> 0 | O45: =-SUMIFS('Control Sheet'!$H$105:$L$105,'Control Sheet'!$H$87:$L$87,O5)*'Control Sheet'!$F$104*O9/12 -> 0 | P45: =-SUMIFS('Control Sheet'!$H$105:$L$105,'Control Sheet'!$H$87:$L$87,P5)*'Control Sheet'!$F$104*P9/12 -> 0 | Q45: =-SUMIFS('Control Sheet'!$H$105:$L$105,'Control Sheet'!$H$87:$L$87,Q5)*'Control Sheet'!$F$104*Q9/12 -> 0 | R45: =-SUMIFS('Control Sheet'!$H$105:$L$105,'Control Sheet'!$H$87:$L$87,R5)*'Control Sheet'!$F$104*R9/12 -> 0 | S45: =-SUMIFS('Control Sheet'!$H$105:$L$105,'Control Sheet'!$H$87:$L$87,S5)*'Control Sheet'!$F$104*S9/12 -> 0 | T45: =-SUMIFS('Control Sheet'!$H$105:$L$105,'Control Sheet'!$H$87:$L$87,T5)*'Control Sheet'!$F$104*T9/12 -> 0 | U45: =-SUMIFS('Control Sheet'!$H$105:$L$105,'Control Sheet'!$H$87:$L$87,U5)*'Control Sheet'!$F$104*U9/12 -> 0 | V45: =-SUMIFS('Control Sheet'!$H$105:$L$105,'Control Sheet'!$H$87:$L$87,V5)*'Control Sheet'!$F$104*V9/12 -> 0 | W45: =-SUMIFS('Control Sheet'!$H$105:$L$105,'Control Sheet'!$H$87:$L$87,W5)*'Control Sheet'!$F$104*W9/12 -> 0 | X45: =-SUMIFS('Control Sheet'!$H$105:$L$105,'Control Sheet'!$H$87:$L$87,X5)*'Control Sheet'!$F$104*X9/12 -> 0 | Y45: =-SUMIFS('Control Sheet'!$H$105:$L$105,'Control Sheet'!$H$87:$L$87,Y5)*'Control Sheet'!$F$104*Y9/12 -> 0 | Z45: =-SUMIFS('Control Sheet'!$H$105:$L$105,'Control Sheet'!$H$87:$L$87,Z5)*'Control Sheet'!$F$104*Z9/12 -> 0 | AA45: =-SUMIFS('Control Sheet'!$H$105:$L$105,'Control Sheet'!$H$87:$L$87,AA5)*'Control Sheet'!$F$104*AA9/12 -> 0 | AB45: =-SUMIFS('Control Sheet'!$H$105:$L$105,'Control Sheet'!$H$87:$L$87,AB5)*'Control Sheet'!$F$104*AB9/12 -> 0 | AC45: =-SUMIFS('Control Sheet'!$H$105:$L$105,'Control Sheet'!$H$87:$L$87,AC5)*'Control Sheet'!$F$104*AC9/12 -> 0 | AD45: =-SUMIFS('Control Sheet'!$H$105:$L$105,'Control Sheet'!$H$87:$L$87,AD5)*'Control Sheet'!$F$104*AD9/12 -> 0 | AE45: =-SUMIFS('Control Sheet'!$H$105:$L$105,'Control Sheet'!$H$87:$L$87,AE5)*'Control Sheet'!$F$104*AE9/12 -> 0 | AF45: =-SUMIFS('Control Sheet'!$H$105:$L$105,'Control Sheet'!$H$87:$L$87,AF5)*'Control Sheet'!$F$104*AF9/12 -> 0 | AG45: =-SUMIFS('Control Sheet'!$H$105:$L$105,'Control Sheet'!$H$87:$L$87,AG5)*'Control Sheet'!$F$104*AG9/12 -> 0 | AH45: =-SUMIFS('Control Sheet'!$H$105:$L$105,'Control Sheet'!$H$87:$L$87,AH5)*'Control Sheet'!$F$104*AH9/12 -> 0 | AI45: =-SUMIFS('Control Sheet'!$H$105:$L$105,'Control Sheet'!$H$87:$L$87,AI5)*'Control Sheet'!$F$104*AI9/12 -> 0 | AJ45: =-SUMIFS('Control Sheet'!$H$105:$L$105,'Control Sheet'!$H$87:$L$87,AJ5)*'Control Sheet'!$F$104*AJ9/12 -> 0 | AK45: =-SUMIFS('Control Sheet'!$H$105:$L$105,'Control Sheet'!$H$87:$L$87,AK5)*'Control Sheet'!$F$104*AK9/12 -> 0 | AL45: =-SUMIFS('Control Sheet'!$H$105:$L$105,'Control Sheet'!$H$87:$L$87,AL5)*'Control Sheet'!$F$104*AL9/12 -> 0 | AM45: =-SUMIFS('Control Sheet'!$H$105:$L$105,'Control Sheet'!$H$87:$L$87,AM5)*'Control Sheet'!$F$104*AM9/12 -> 0 | AN45: =-SUMIFS('Control Sheet'!$H$105:$L$105,'Control Sheet'!$H$87:$L$87,AN5)*'Control Sheet'!$F$104*AN9/12 -> 0 | AO45: =-SUMIFS('Control Sheet'!$H$105:$L$105,'Control Sheet'!$H$87:$L$87,AO5)*'Control Sheet'!$F$104*AO9/12 -> 0 | AP45: =-SUMIFS('Control Sheet'!$H$105:$L$105,'Control Sheet'!$H$87:$L$87,AP5)*'Control Sheet'!$F$104*AP9/12 -> 0
C46: Less: LC Costs on unfunded decommissioning liability | E46: $ m | F46: -45.68836744 | G46: =($F$58-SUM($G$58:G58)+G58/2)*'Control Sheet'!$F$194*G11/12 -> 0 | H46: =($F$58-SUM($G$58:H58)+H58/2)*'Control Sheet'!$F$194*H11/12 -> 0 | I46: =($F$58-SUM($G$58:I58)+I58/2)*'Control Sheet'!$F$194*I11/12 -> 0 | J46: =($F$58-SUM($G$58:J58)+J58/2)*'Control Sheet'!$F$194*J11/12 -> 0 | K46: =($F$58-SUM($G$58:K58)+K58/2)*'Control Sheet'!$F$194*K11/12 -> 0 | L46: =($F$58-SUM($G$58:L58)+L58/2)*'Control Sheet'!$F$194*L11/12 -> -2.469641483 | M46: =($F$58-SUM($G$58:M58)+M58/2)*'Control Sheet'!$F$194*M11/12 -> -2.469641483 | N46: =($F$58-SUM($G$58:N58)+N58/2)*'Control Sheet'!$F$194*N11/12 -> -2.469641483 | O46: =($F$58-SUM($G$58:O58)+O58/2)*'Control Sheet'!$F$194*O11/12 -> -2.469641483 | P46: =($F$58-SUM($G$58:P58)+P58/2)*'Control Sheet'!$F$194*P11/12 -> -2.469641483 | Q46: =($F$58-SUM($G$58:Q58)+Q58/2)*'Control Sheet'!$F$194*Q11/12 -> -2.469641483 | R46: =($F$58-SUM($G$58:R58)+R58/2)*'Control Sheet'!$F$194*R11/12 -> -2.469641483 | S46: =($F$58-SUM($G$58:S58)+S58/2)*'Control Sheet'!$F$194*S11/12 -> -2.469641483 | T46: =($F$58-SUM($G$58:T58)+T58/2)*'Control Sheet'!$F$194*T11/12 -> -2.469641483 | U46: =($F$58-SUM($G$58:U58)+U58/2)*'Control Sheet'!$F$194*U11/12 -> -2.469641483 | V46: =($F$58-SUM($G$58:V58)+V58/2)*'Control Sheet'!$F$194*V11/12 -> -2.469641483 | W46: =($F$58-SUM($G$58:W58)+W58/2)*'Control Sheet'!$F$194*W11/12 -> -2.469641483 | X46: =($F$58-SUM($G$58:X58)+X58/2)*'Control Sheet'!$F$194*X11/12 -> -2.469641483 | Y46: =($F$58-SUM($G$58:Y58)+Y58/2)*'Control Sheet'!$F$194*Y11/12 -> -2.469641483 | Z46: =($F$58-SUM($G$58:Z58)+Z58/2)*'Control Sheet'!$F$194*Z11/12 -> -2.469641483 | AA46: =($F$58-SUM($G$58:AA58)+AA58/2)*'Control Sheet'!$F$194*AA11/12 -> -2.469641483 | AB46: =($F$58-SUM($G$58:AB58)+AB58/2)*'Control Sheet'!$F$194*AB11/12 -> -2.469641483 | AC46: =($F$58-SUM($G$58:AC58)+AC58/2)*'Control Sheet'!$F$194*AC11/12 -> -2.05803457 | AD46: =($F$58-SUM($G$58:AD58)+AD58/2)*'Control Sheet'!$F$194*AD11/12 -> -1.234820742 | AE46: =($F$58-SUM($G$58:AE58)+AE58/2)*'Control Sheet'!$F$194*AE11/12 -> -0.4116069139 | AF46: =($F$58-SUM($G$58:AF58)+AF58/2)*'Control Sheet'!$F$194*AF11/12 -> 0 | AG46: =($F$58-SUM($G$58:AG58)+AG58/2)*'Control Sheet'!$F$194*AG11/12 -> 0 | AH46: =($F$58-SUM($G$58:AH58)+AH58/2)*'Control Sheet'!$F$194*AH11/12 -> 0 | AI46: =($F$58-SUM($G$58:AI58)+AI58/2)*'Control Sheet'!$F$194*AI11/12 -> 0 | AJ46: =($F$58-SUM($G$58:AJ58)+AJ58/2)*'Control Sheet'!$F$194*AJ11/12 -> 0 | AK46: =($F$58-SUM($G$58:AK58)+AK58/2)*'Control Sheet'!$F$194*AK11/12 -> 0 | AL46: =($F$58-SUM($G$58:AL58)+AL58/2)*'Control Sheet'!$F$194*AL11/12 -> 0 | AM46: =($F$58-SUM($G$58:AM58)+AM58/2)*'Control Sheet'!$F$194*AM11/12 -> 0 | AN46: =($F$58-SUM($G$58:AN58)+AN58/2)*'Control Sheet'!$F$194*AN11/12 -> 0 | AO46: =($F$58-SUM($G$58:AO58)+AO58/2)*'Control Sheet'!$F$194*AO11/12 -> 0 | AP46: =($F$58-SUM($G$58:AP58)+AP58/2)*'Control Sheet'!$F$194*AP11/12 -> 0
C47: Less: Depreciation for tax purposes | E47: $ m | F47: -1230.454586 | G47: =G115 -> 0 | H47: 0 | I47: 0 | J47: 0 | K47: 0 | L47: -171.3808755 | M47: -212.297809 | N47: -214.1343526 | O47: -215.788029 | P47: -208.4267628 | Q47: -104.2133814 | R47: -52.1066907 | S47: -26.05334535 | T47: -13.02667268 | U47: -6.513336338 | V47: -3.256668169 | W47: -1.628334084 | X47: -0.8141670422 | Y47: -0.4070835211 | Z47: -0.2035417606 | AA47: -0.1017708803 | AB47: -0.05088544014 | AC47: -0.02544272007 | AD47: -0.01272136004 | AE47: -0.006360680018 | AF47: -0.003180340009 | AG47: -0.001590170004 | AH47: -0.0007950850022 | AI47: -0.0003975425011 | AJ47: -0.0001987712505 | AK47: -9.938562527e-05 | AL47: -4.969281264e-05 | AM47: -2.484640632e-05 | AN47: -1.242320316e-05 | AO47: -6.21160158e-06 | AP47: 0
B48: Earnings before tax | E48: $ m | F48: 3768.415152 | G48: =SUM(G39:G47) -> 0 | H48: 0 | I48: 0 | J48: -30.89469671 | K48: -8.46516 | L48: 39.35985671 | M48: 0 | N48: 0 | O48: 0 | P48: 8.923652773 | Q48: 111.2661197 | R48: 165.1417018 | S48: 193.47197 | T48: 209.372003 | U48: 218.435919 | V48: 223.8353178 | W48: 232.4101841 | X48: 236.5244986 | Y48: 240.4036522 | Z48: 244.2612861 | AA48: 249.3590659 | AB48: 254.7995732 | AC48: 259.3179435 | AD48: 260.8184596 | AE48: 262.325629 | AF48: 27.67341028 | AG48: 30.78610404 | AH48: 34.19452718 | AI48: 37.93050234 | AJ48: 40.56731284 | AK48: 43.18328994 | AL48: 44.90102005 | AM48: 46.18485993 | AN48: 46.25551689 | AO48: 46.07163193 | AP48: 0
C49: Less: Tax | E49: $ m | F49: -998.6300152 | G49: =-G106 -> 0 | H49: =-H106 -> 0 | I49: 0 | J49: 0 | K49: 0 | L49: 0 | M49: 0 | N49: 0 | O49: 0 | P49: -2.364767985 | Q49: -29.48552172 | R49: -43.76255098 | S49: -51.27007205 | T49: -55.4835808 | U49: -57.88551852 | V49: -59.31635922 | W49: -61.58869879 | X49: -62.67899213 | Y49: -63.70696783 | Z49: -64.72924081 | AA49: -66.08015247 | AB49: -67.52188689 | AC49: -68.71925503 | AD49: -69.11689179 | AE49: -69.51629169 | AF49: -7.333453723 | AG49: -8.158317571 | AH49: -9.061549703 | AI49: -10.05158312 | AJ49: -10.7503379 | AK49: -11.44357183 | AL49: -11.89877031 | AM49: -12.23898788 | AN49: -12.25771198 | AO49: -12.20898246 | AP49: 0
B50: Earnings after tax | E50: $ m | F50: 2769.785136 | G50: =SUM(G48:G49) -> 0 | H50: 0 | I50: 0 | J50: -30.89469671 | K50: -8.46516 | L50: 39.35985671 | M50: 0 | N50: 0 | O50: 0 | P50: 6.558884788 | Q50: 81.78059798 | R50: 121.3791508 | S50: 142.201898 | T50: 153.8884222 | U50: 160.5504004 | V50: 164.5189586 | W50: 170.8214853 | X50: 173.8455065 | Y50: 176.6966844 | Z50: =SUM(Z48:Z49) -> 179.5320453 | AA50: 183.2789135 | AB50: 187.2776863 | AC50: 190.5986885 | AD50: 191.7015678 | AE50: 192.8093373 | AF50: 20.33995655 | AG50: 22.62778647 | AH50: =SUM(AH48:AH49) -> 25.13297748 | AI50: 27.87891922 | AJ50: 29.81697494 | AK50: 31.7397181 | AL50: 33.00224974 | AM50: 33.94587205 | AN50: 33.99780491 | AO50: 33.86264947 | AP50: 0
C51: Add: Depreciation for tax purposes | E51: $ m | F51: 1230.454586 | G51: =-G47 -> 0 | H51: 0 | I51: 0 | J51: 0 | K51: 0 | L51: 171.3808755 | M51: 212.297809 | N51: 214.1343526 | O51: 215.788029 | P51: 208.4267628 | Q51: 104.2133814 | R51: 52.1066907 | S51: 26.05334535 | T51: 13.02667268 | U51: 6.513336338 | V51: 3.256668169 | W51: 1.628334084 | X51: 0.8141670422 | Y51: 0.4070835211 | Z51: 0.2035417606 | AA51: 0.1017708803 | AB51: 0.05088544014 | AC51: 0.02544272007 | AD51: 0.01272136004 | AE51: 0.006360680018 | AF51: 0.003180340009 | AG51: 0.001590170004 | AH51: 0.0007950850022 | AI51: 0.0003975425011 | AJ51: 0.0001987712505 | AK51: 9.938562527e-05 | AL51: 4.969281264e-05 | AM51: 2.484640632e-05 | AN51: 1.242320316e-05 | AO51: 6.21160158e-06 | AP51: 0
C52: Less: Planning and development expenditure (devex) | E52: $ m | F52: -49.22318601 | G52: =-SUMIFS('Control Sheet'!$H$88:$L$88,'Control Sheet'!$H$87:$L$87,G5) -> -14.40702703 | H52: =-SUMIFS('Control Sheet'!$H$88:$L$88,'Control Sheet'!$H$87:$L$87,H5) -> -15.87314625 | I52: =-SUMIFS('Control Sheet'!$H$88:$L$88,'Control Sheet'!$H$87:$L$87,I5) -> -16.19060917 | J52: =-SUMIFS('Control Sheet'!$H$88:$L$88,'Control Sheet'!$H$87:$L$87,J5) -> -2.752403559 | K52: =-SUMIFS('Control Sheet'!$H$88:$L$88,'Control Sheet'!$H$87:$L$87,K5) -> 0 | L52: =-SUMIFS('Control Sheet'!$H$88:$L$88,'Control Sheet'!$H$87:$L$87,L5) -> 0 | M52: =-SUMIFS('Control Sheet'!$H$88:$L$88,'Control Sheet'!$H$87:$L$87,M5) -> 0 | N52: =-SUMIFS('Control Sheet'!$H$88:$L$88,'Control Sheet'!$H$87:$L$87,N5) -> 0 | O52: =-SUMIFS('Control Sheet'!$H$88:$L$88,'Control Sheet'!$H$87:$L$87,O5) -> 0 | P52: =-SUMIFS('Control Sheet'!$H$88:$L$88,'Control Sheet'!$H$87:$L$87,P5) -> 0 | Q52: =-SUMIFS('Control Sheet'!$H$88:$L$88,'Control Sheet'!$H$87:$L$87,Q5) -> 0 | R52: =-SUMIFS('Control Sheet'!$H$88:$L$88,'Control Sheet'!$H$87:$L$87,R5) -> 0 | S52: =-SUMIFS('Control Sheet'!$H$88:$L$88,'Control Sheet'!$H$87:$L$87,S5) -> 0 | T52: =-SUMIFS('Control Sheet'!$H$88:$L$88,'Control Sheet'!$H$87:$L$87,T5) -> 0 | U52: =-SUMIFS('Control Sheet'!$H$88:$L$88,'Control Sheet'!$H$87:$L$87,U5) -> 0 | V52: =-SUMIFS('Control Sheet'!$H$88:$L$88,'Control Sheet'!$H$87:$L$87,V5) -> 0 | W52: =-SUMIFS('Control Sheet'!$H$88:$L$88,'Control Sheet'!$H$87:$L$87,W5) -> 0 | X52: =-SUMIFS('Control Sheet'!$H$88:$L$88,'Control Sheet'!$H$87:$L$87,X5) -> 0 | Y52: =-SUMIFS('Control Sheet'!$H$88:$L$88,'Control Sheet'!$H$87:$L$87,Y5) -> 0 | Z52: =-SUMIFS('Control Sheet'!$H$88:$L$88,'Control Sheet'!$H$87:$L$87,Z5) -> 0 | AA52: =-SUMIFS('Control Sheet'!$H$88:$L$88,'Control Sheet'!$H$87:$L$87,AA5) -> 0 | AB52: =-SUMIFS('Control Sheet'!$H$88:$L$88,'Control Sheet'!$H$87:$L$87,AB5) -> 0 | AC52: =-SUMIFS('Control Sheet'!$H$88:$L$88,'Control Sheet'!$H$87:$L$87,AC5) -> 0 | AD52: =-SUMIFS('Control Sheet'!$H$88:$L$88,'Control Sheet'!$H$87:$L$87,AD5) -> 0 | AE52: =-SUMIFS('Control Sheet'!$H$88:$L$88,'Control Sheet'!$H$87:$L$87,AE5) -> 0 | AF52: =-SUMIFS('Control Sheet'!$H$88:$L$88,'Control Sheet'!$H$87:$L$87,AF5) -> 0 | AG52: =-SUMIFS('Control Sheet'!$H$88:$L$88,'Control Sheet'!$H$87:$L$87,AG5) -> 0 | AH52: =-SUMIFS('Control Sheet'!$H$88:$L$88,'Control Sheet'!$H$87:$L$87,AH5) -> 0 | AI52: =-SUMIFS('Control Sheet'!$H$88:$L$88,'Control Sheet'!$H$87:$L$87,AI5) -> 0 | AJ52: =-SUMIFS('Control Sheet'!$H$88:$L$88,'Control Sheet'!$H$87:$L$87,AJ5) -> 0 | AK52: =-SUMIFS('Control Sheet'!$H$88:$L$88,'Control Sheet'!$H$87:$L$87,AK5) -> 0 | AL52: =-SUMIFS('Control Sheet'!$H$88:$L$88,'Control Sheet'!$H$87:$L$87,AL5) -> 0 | AM52: =-SUMIFS('Control Sheet'!$H$88:$L$88,'Control Sheet'!$H$87:$L$87,AM5) -> 0 | AN52: =-SUMIFS('Control Sheet'!$H$88:$L$88,'Control Sheet'!$H$87:$L$87,AN5) -> 0 | AO52: =-SUMIFS('Control Sheet'!$H$88:$L$88,'Control Sheet'!$H$87:$L$87,AO5) -> 0 | AP52: =-SUMIFS('Control Sheet'!$H$88:$L$88,'Control Sheet'!$H$87:$L$87,AP5) -> 0
C53: Less: Capital expenditure (capex) | E53: $ m | F53: -1153.182702 | G53: =-SUMIFS('Control Sheet'!$H$99:$L$99,'Control Sheet'!$H$87:$L$87,G5) -> -6.607416667 | H53: =-SUMIFS('Control Sheet'!$H$99:$L$99,'Control Sheet'!$H$87:$L$87,H5) -> -14.91761087 | I53: =-SUMIFS('Control Sheet'!$H$99:$L$99,'Control Sheet'!$H$87:$L$87,I5) -> -66.17547008 | J53: =-SUMIFS('Control Sheet'!$H$99:$L$99,'Control Sheet'!$H$87:$L$87,J5) -> -452.6987431 | K53: =-SUMIFS('Control Sheet'!$H$99:$L$99,'Control Sheet'!$H$87:$L$87,K5) -> -612.7834612 | L53: =-SUMIFS('Control Sheet'!$H$99:$L$99,'Control Sheet'!$H$87:$L$87,L5) -> 0 | M53: =-SUMIFS('Control Sheet'!$H$99:$L$99,'Control Sheet'!$H$87:$L$87,M5) -> 0 | N53: =-SUMIFS('Control Sheet'!$H$99:$L$99,'Control Sheet'!$H$87:$L$87,N5) -> 0 | O53: =-SUMIFS('Control Sheet'!$H$99:$L$99,'Control Sheet'!$H$87:$L$87,O5) -> 0 | P53: =-SUMIFS('Control Sheet'!$H$99:$L$99,'Control Sheet'!$H$87:$L$87,P5) -> 0 | Q53: =-SUMIFS('Control Sheet'!$H$99:$L$99,'Control Sheet'!$H$87:$L$87,Q5) -> 0 | R53: =-SUMIFS('Control Sheet'!$H$99:$L$99,'Control Sheet'!$H$87:$L$87,R5) -> 0 | S53: =-SUMIFS('Control Sheet'!$H$99:$L$99,'Control Sheet'!$H$87:$L$87,S5) -> 0 | T53: =-SUMIFS('Control Sheet'!$H$99:$L$99,'Control Sheet'!$H$87:$L$87,T5) -> 0 | U53: =-SUMIFS('Control Sheet'!$H$99:$L$99,'Control Sheet'!$H$87:$L$87,U5) -> 0 | V53: =-SUMIFS('Control Sheet'!$H$99:$L$99,'Control Sheet'!$H$87:$L$87,V5) -> 0 | W53: =-SUMIFS('Control Sheet'!$H$99:$L$99,'Control Sheet'!$H$87:$L$87,W5) -> 0 | X53: =-SUMIFS('Control Sheet'!$H$99:$L$99,'Control Sheet'!$H$87:$L$87,X5) -> 0 | Y53: =-SUMIFS('Control Sheet'!$H$99:$L$99,'Control Sheet'!$H$87:$L$87,Y5) -> 0 | Z53: =-SUMIFS('Control Sheet'!$H$99:$L$99,'Control Sheet'!$H$87:$L$87,Z5) -> 0 | AA53: =-SUMIFS('Control Sheet'!$H$99:$L$99,'Control Sheet'!$H$87:$L$87,AA5) -> 0 | AB53: =-SUMIFS('Control Sheet'!$H$99:$L$99,'Control Sheet'!$H$87:$L$87,AB5) -> 0 | AC53: =-SUMIFS('Control Sheet'!$H$99:$L$99,'Control Sheet'!$H$87:$L$87,AC5) -> 0 | AD53: =-SUMIFS('Control Sheet'!$H$99:$L$99,'Control Sheet'!$H$87:$L$87,AD5) -> 0 | AE53: =-SUMIFS('Control Sheet'!$H$99:$L$99,'Control Sheet'!$H$87:$L$87,AE5) -> 0 | AF53: =-SUMIFS('Control Sheet'!$H$99:$L$99,'Control Sheet'!$H$87:$L$87,AF5) -> 0 | AG53: =-SUMIFS('Control Sheet'!$H$99:$L$99,'Control Sheet'!$H$87:$L$87,AG5) -> 0 | AH53: =-SUMIFS('Control Sheet'!$H$99:$L$99,'Control Sheet'!$H$87:$L$87,AH5) -> 0 | AI53: =-SUMIFS('Control Sheet'!$H$99:$L$99,'Control Sheet'!$H$87:$L$87,AI5) -> 0 | AJ53: =-SUMIFS('Control Sheet'!$H$99:$L$99,'Control Sheet'!$H$87:$L$87,AJ5) -> 0 | AK53: =-SUMIFS('Control Sheet'!$H$99:$L$99,'Control Sheet'!$H$87:$L$87,AK5) -> 0 | AL53: =-SUMIFS('Control Sheet'!$H$99:$L$99,'Control Sheet'!$H$87:$L$87,AL5) -> 0 | AM53: =-SUMIFS('Control Sheet'!$H$99:$L$99,'Control Sheet'!$H$87:$L$87,AM5) -> 0 | AN53: =-SUMIFS('Control Sheet'!$H$99:$L$99,'Control Sheet'!$H$87:$L$87,AN5) -> 0 | AO53: =-SUMIFS('Control Sheet'!$H$99:$L$99,'Control Sheet'!$H$87:$L$87,AO5) -> 0 | AP53: =-SUMIFS('Control Sheet'!$H$99:$L$99,'Control Sheet'!$H$87:$L$87,AP5) -> 0
C54: Less: Interest during construction | E54: $ m | F54: -28.04870378 | G54: =-Financing!G52 -> 0 | H54: =-Financing!H52 -> 0 | I54: =-Financing!I52 -> 0 | J54: =-Financing!J52 -> -5.239636105 | K54: =-Financing!K52 -> -22.80906768 | L54: =-Financing!L52 -> 0 | M54: =-Financing!M52 -> 0 | N54: =-Financing!N52 -> 0 | O54: =-Financing!O52 -> 0 | P54: =-Financing!P52 -> 0 | Q54: =-Financing!Q52 -> 0 | R54: =-Financing!R52 -> 0 | S54: =-Financing!S52 -> 0 | T54: =-Financing!T52 -> 0 | U54: =-Financing!U52 -> 0 | V54: =-Financing!V52 -> 0 | W54: =-Financing!W52 -> 0 | X54: =-Financing!X52 -> 0 | Y54: =-Financing!Y52 -> 0 | Z54: =-Financing!Z52 -> 0 | AA54: =-Financing!AA52 -> 0 | AB54: =-Financing!AB52 -> 0 | AC54: =-Financing!AC52 -> 0 | AD54: =-Financing!AD52 -> 0 | AE54: =-Financing!AE52 -> 0 | AF54: =-Financing!AF52 -> 0 | AG54: =-Financing!AG52 -> 0 | AH54: =-Financing!AH52 -> 0 | AI54: =-Financing!AI52 -> 0 | AJ54: =-Financing!AJ52 -> 0 | AK54: =-Financing!AK52 -> 0 | AL54: =-Financing!AL52 -> 0 | AM54: =-Financing!AM52 -> 0 | AN54: =-Financing!AN52 -> 0 | AO54: =-Financing!AO52 -> 0 | AP54: =-Financing!AP52 -> 0
C55: Add: refund of letter of credit at commissioning | E55: $ m | F55: 6 | G55: =IF((1-F10)*G10=1,'Control Sheet'!$F$171*'Control Sheet'!$F$170,0) -> 0 | H55: =IF((1-G10)*H10=1,'Control Sheet'!$F$171*'Control Sheet'!$F$170,0) -> 0 | I55: =IF((1-H10)*I10=1,'Control Sheet'!$F$171*'Control Sheet'!$F$170,0) -> 0 | J55: =IF((1-I10)*J10=1,'Control Sheet'!$F$171*'Control Sheet'!$F$170,0) -> 0 | K55: =IF((1-J10)*K10=1,'Control Sheet'!$F$171*'Control Sheet'!$F$170,0) -> 0 | L55: =IF((1-K10)*L10=1,'Control Sheet'!$F$171*'Control Sheet'!$F$170,0) -> 6 | M55: =IF((1-L10)*M10=1,'Control Sheet'!$F$171*'Control Sheet'!$F$170,0) -> 0 | N55: =IF((1-M10)*N10=1,'Control Sheet'!$F$171*'Control Sheet'!$F$170,0) -> 0 | O55: =IF((1-N10)*O10=1,'Control Sheet'!$F$171*'Control Sheet'!$F$170,0) -> 0 | P55: =IF((1-O10)*P10=1,'Control Sheet'!$F$171*'Control Sheet'!$F$170,0) -> 0 | Q55: =IF((1-P10)*Q10=1,'Control Sheet'!$F$171*'Control Sheet'!$F$170,0) -> 0 | R55: =IF((1-Q10)*R10=1,'Control Sheet'!$F$171*'Control Sheet'!$F$170,0) -> 0 | S55: =IF((1-R10)*S10=1,'Control Sheet'!$F$171*'Control Sheet'!$F$170,0) -> 0 | T55: =IF((1-S10)*T10=1,'Control Sheet'!$F$171*'Control Sheet'!$F$170,0) -> 0 | U55: =IF((1-T10)*U10=1,'Control Sheet'!$F$171*'Control Sheet'!$F$170,0) -> 0 | V55: =IF((1-U10)*V10=1,'Control Sheet'!$F$171*'Control Sheet'!$F$170,0) -> 0 | W55: =IF((1-V10)*W10=1,'Control Sheet'!$F$171*'Control Sheet'!$F$170,0) -> 0 | X55: =IF((1-W10)*X10=1,'Control Sheet'!$F$171*'Control Sheet'!$F$170,0) -> 0 | Y55: =IF((1-X10)*Y10=1,'Control Sheet'!$F$171*'Control Sheet'!$F$170,0) -> 0 | Z55: =IF((1-Y10)*Z10=1,'Control Sheet'!$F$171*'Control Sheet'!$F$170,0) -> 0 | AA55: =IF((1-Z10)*AA10=1,'Control Sheet'!$F$171*'Control Sheet'!$F$170,0) -> 0 | AB55: =IF((1-AA10)*AB10=1,'Control Sheet'!$F$171*'Control Sheet'!$F$170,0) -> 0 | AC55: =IF((1-AB10)*AC10=1,'Control Sheet'!$F$171*'Control Sheet'!$F$170,0) -> 0 | AD55: =IF((1-AC10)*AD10=1,'Control Sheet'!$F$171*'Control Sheet'!$F$170,0) -> 0 | AE55: =IF((1-AD10)*AE10=1,'Control Sheet'!$F$171*'Control Sheet'!$F$170,0) -> 0 | AF55: =IF((1-AE10)*AF10=1,'Control Sheet'!$F$171*'Control Sheet'!$F$170,0) -> 0 | AG55: =IF((1-AF10)*AG10=1,'Control Sheet'!$F$171*'Control Sheet'!$F$170,0) -> 0 | AH55: =IF((1-AG10)*AH10=1,'Control Sheet'!$F$171*'Control Sheet'!$F$170,0) -> 0 | AI55: =IF((1-AH10)*AI10=1,'Control Sheet'!$F$171*'Control Sheet'!$F$170,0) -> 0 | AJ55: =IF((1-AI10)*AJ10=1,'Control Sheet'!$F$171*'Control Sheet'!$F$170,0) -> 0 | AK55: =IF((1-AJ10)*AK10=1,'Control Sheet'!$F$171*'Control Sheet'!$F$170,0) -> 0 | AL55: =IF((1-AK10)*AL10=1,'Control Sheet'!$F$171*'Control Sheet'!$F$170,0) -> 0 | AM55: =IF((1-AL10)*AM10=1,'Control Sheet'!$F$171*'Control Sheet'!$F$170,0) -> 0 | AN55: =IF((1-AM10)*AN10=1,'Control Sheet'!$F$171*'Control Sheet'!$F$170,0) -> 0 | AO55: =IF((1-AN10)*AO10=1,'Control Sheet'!$F$171*'Control Sheet'!$F$170,0) -> 0 | AP55: =IF((1-AO10)*AP10=1,'Control Sheet'!$F$171*'Control Sheet'!$F$170,0) -> 0
C56: Add / (Less): Working capital changes | E56: $ m | F56: 0 | G56: =IFERROR((-SUM(G36:G38,G32:G34)*'Control Sheet'!$F$166/G11)-(G31*'Control Sheet'!$F$165/G11),0) -> 0 | H56: =IF(AND(H9=0,H11<12),0,IFERROR((-SUM(H36:H38,H32:H34)*'Control Sheet'!$F$166/H11)-(H31*'Control Sheet'!$F$165/H11),0))-SUM($G$56:G56) -> 0 | I56: =IF(AND(I9=0,I11<12),0,IFERROR((-SUM(I36:I38,I32:I34)*'Control Sheet'!$F$166/I11)-(I31*'Control Sheet'!$F$165/I11),0))-SUM($G$56:H56) -> 0 | J56: =IF(AND(J9=0,J11<12),0,IFERROR((-SUM(J36:J38,J32:J34)*'Control Sheet'!$F$166/J11)-(J31*'Control Sheet'!$F$165/J11),0))-SUM($G$56:I56) -> 0 | K56: =IF(AND(K9=0,K11<12),0,IFERROR((-SUM(K36:K38,K32:K34)*'Control Sheet'!$F$166/K11)-(K31*'Control Sheet'!$F$165/K11),0))-SUM($G$56:J56) -> 0 | L56: =IF(AND(L9=0,L11<12),0,IFERROR((-SUM(L36:L38,L32:L34)*'Control Sheet'!$F$166/L11)-(L31*'Control Sheet'!$F$165/L11),0))-SUM($G$56:K56) -> -20.6804998 | M56: =IF(AND(M9=0,M11<12),0,IFERROR((-SUM(M36:M38,M32:M34)*'Control Sheet'!$F$166/M11)-(M31*'Control Sheet'!$F$165/M11),0))-SUM($G$56:L56) -> -0.05662850246 | N56: =IF(AND(N9=0,N11<12),0,IFERROR((-SUM(N36:N38,N32:N34)*'Control Sheet'!$F$166/N11)-(N31*'Control Sheet'!$F$165/N11),0))-SUM($G$56:M56) -> -0.04227627128 | O56: =IF(AND(O9=0,O11<12),0,IFERROR((-SUM(O36:O38,O32:O34)*'Control Sheet'!$F$166/O11)-(O31*'Control Sheet'!$F$165/O11),0))-SUM($G$56:N56) -> -0.04305564635 | P56: =IF(AND(P9=0,P11<12),0,IFERROR((-SUM(P36:P38,P32:P34)*'Control Sheet'!$F$166/P11)-(P31*'Control Sheet'!$F$165/P11),0))-SUM($G$56:O56) -> -0.04385088016 | Q56: =IF(AND(Q9=0,Q11<12),0,IFERROR((-SUM(Q36:Q38,Q32:Q34)*'Control Sheet'!$F$166/Q11)-(Q31*'Control Sheet'!$F$165/Q11),0))-SUM($G$56:P56) -> 0.06187303538 | R56: =IF(AND(R9=0,R11<12),0,IFERROR((-SUM(R36:R38,R32:R34)*'Control Sheet'!$F$166/R11)-(R31*'Control Sheet'!$F$165/R11),0))-SUM($G$56:Q56) -> -0.046076596 | S56: =IF(AND(S9=0,S11<12),0,IFERROR((-SUM(S36:S38,S32:S34)*'Control Sheet'!$F$166/S11)-(S31*'Control Sheet'!$F$165/S11),0))-SUM($G$56:R56) -> -0.04691837859 | T56: =IF(AND(T9=0,T11<12),0,IFERROR((-SUM(T36:T38,T32:T34)*'Control Sheet'!$F$166/T11)-(T31*'Control Sheet'!$F$165/T11),0))-SUM($G$56:S56) -> -0.09076723698 | U56: =IF(AND(U9=0,U11<12),0,IFERROR((-SUM(U36:U38,U32:U34)*'Control Sheet'!$F$166/U11)-(U31*'Control Sheet'!$F$165/U11),0))-SUM($G$56:T56) -> -0.0484178153 | V56: =IF(AND(V9=0,V11<12),0,IFERROR((-SUM(V36:V38,V32:V34)*'Control Sheet'!$F$166/V11)-(V31*'Control Sheet'!$F$165/V11),0))-SUM($G$56:U56) -> -0.04931380391 | W56: =IF(AND(W9=0,W11<12),0,IFERROR((-SUM(W36:W38,W32:W34)*'Control Sheet'!$F$166/W11)-(W31*'Control Sheet'!$F$165/W11),0))-SUM($G$56:V56) -> -0.2800809104 | X56: =IF(AND(X9=0,X11<12),0,IFERROR((-SUM(X36:X38,X32:X34)*'Control Sheet'!$F$166/X11)-(X31*'Control Sheet'!$F$165/X11),0))-SUM($G$56:W56) -> -0.04989696202 | Y56: =IF(AND(Y9=0,Y11<12),0,IFERROR((-SUM(Y36:Y38,Y32:Y34)*'Control Sheet'!$F$166/Y11)-(Y31*'Control Sheet'!$F$165/Y11),0))-SUM($G$56:X56) -> -0.0508559458 | Z56: =IF(AND(Z9=0,Z11<12),0,IFERROR((-SUM(Z36:Z38,Z32:Z34)*'Control Sheet'!$F$166/Z11)-(Z31*'Control Sheet'!$F$165/Z11),0))-SUM($G$56:Y56) -> -0.05183440043 | AA56: =IF(AND(AA9=0,AA11<12),0,IFERROR((-SUM(AA36:AA38,AA32:AA34)*'Control Sheet'!$F$166/AA11)-(AA31*'Control Sheet'!$F$165/AA11),0))-SUM($G$56:Z56) -> -0.1572563674 | AB56: =IF(AND(AB9=0,AB11<12),0,IFERROR((-SUM(AB36:AB38,AB32:AB34)*'Control Sheet'!$F$166/AB11)-(AB31*'Control Sheet'!$F$165/AB11),0))-SUM($G$56:AA56) -> -0.05327658861 | AC56: =IF(AND(AC9=0,AC11<12),0,IFERROR((-SUM(AC36:AC38,AC32:AC34)*'Control Sheet'!$F$166/AC11)-(AC31*'Control Sheet'!$F$165/AC11),0))-SUM($G$56:AB56) -> -0.05431866083 | AD56: =IF(AND(AD9=0,AD11<12),0,IFERROR((-SUM(AD36:AD38,AD32:AD34)*'Control Sheet'!$F$166/AD11)-(AD31*'Control Sheet'!$F$165/AD11),0))-SUM($G$56:AC56) -> -0.05538173894 | AE56: =IF(AND(AE9=0,AE11<12),0,IFERROR((-SUM(AE36:AE38,AE32:AE34)*'Control Sheet'!$F$166/AE11)-(AE31*'Control Sheet'!$F$165/AE11),0))-SUM($G$56:AD56) -> -0.05646624531 | AF56: =IF(AND(AF9=0,AF11<12),0,IFERROR((-SUM(AF36:AF38,AF32:AF34)*'Control Sheet'!$F$166/AF11)-(AF31*'Control Sheet'!$F$165/AF11),0))-SUM($G$56:AE56) -> 19.58891717 | AG56: =IF(AND(AG9=0,AG11<12),0,IFERROR((-SUM(AG36:AG38,AG32:AG34)*'Control Sheet'!$F$166/AG11)-(AG31*'Control Sheet'!$F$165/AG11),0))-SUM($G$56:AF56) -> -0.2592586329 | AH56: =IF(AND(AH9=0,AH11<12),0,IFERROR((-SUM(AH36:AH38,AH32:AH34)*'Control Sheet'!$F$166/AH11)-(AH31*'Control Sheet'!$F$165/AH11),0))-SUM($G$56:AG56) -> -0.2839690047 | AI56: =IF(AND(AI9=0,AI11<12),0,IFERROR((-SUM(AI36:AI38,AI32:AI34)*'Control Sheet'!$F$166/AI11)-(AI31*'Control Sheet'!$F$165/AI11),0))-SUM($G$56:AH56) -> -0.3112981343 | AJ56: =IF(AND(AJ9=0,AJ11<12),0,IFERROR((-SUM(AJ36:AJ38,AJ32:AJ34)*'Control Sheet'!$F$166/AJ11)-(AJ31*'Control Sheet'!$F$165/AJ11),0))-SUM($G$56:AI56) -> -0.2197176442 | AK56: =IF(AND(AK9=0,AK11<12),0,IFERROR((-SUM(AK36:AK38,AK32:AK34)*'Control Sheet'!$F$166/AK11)-(AK31*'Control Sheet'!$F$165/AK11),0))-SUM($G$56:AJ56) -> -0.2179898094 | AL56: =IF(AND(AL9=0,AL11<12),0,IFERROR((-SUM(AL36:AL38,AL32:AL34)*'Control Sheet'!$F$166/AL11)-(AL31*'Control Sheet'!$F$165/AL11),0))-SUM($G$56:AK56) -> -0.143140035 | AM56: =IF(AND(AM9=0,AM11<12),0,IFERROR((-SUM(AM36:AM38,AM32:AM34)*'Control Sheet'!$F$166/AM11)-(AM31*'Control Sheet'!$F$165/AM11),0))-SUM($G$56:AL56) -> -0.106984586 | AN56: =IF(AND(AN9=0,AN11<12),0,IFERROR((-SUM(AN36:AN38,AN32:AN34)*'Control Sheet'!$F$166/AN11)-(AN31*'Control Sheet'!$F$165/AN11),0))-SUM($G$56:AM56) -> -0.005887044702 | AO56: =IF(AND(AO9=0,AO11<12),0,IFERROR((-SUM(AO36:AO38,AO32:AO34)*'Control Sheet'!$F$166/AO11)-(AO31*'Control Sheet'!$F$165/AO11),0))-SUM($G$56:AN56) -> 0.01532426389 | AP56: =IF(AND(AP9=0,AP11<12),0,IFERROR((-SUM(AP36:AP38,AP32:AP34)*'Control Sheet'!$F$166/AP11)-(AP31*'Control Sheet'!$F$165/AP11),0))-SUM($G$56:AO56) -> 3.839303179
C57: Add / (Less): O&M reserve account | E57: $ m | F57: 0 | G57: =IFERROR((H36*'Control Sheet'!$F$167/H11),0) -> 0 | H57: =IF(AND(H9=0,H11<12),0,IFERROR((I36*'Control Sheet'!$F$167/I11),0))-SUM($G$57:G57) -> 0 | I57: =IF(AND(I9=0,I11<12),0,IFERROR((J36*'Control Sheet'!$F$167/J11),0))-SUM($G$57:H57) -> 0 | J57: =IF(AND(J9=0,J11<12),0,IFERROR((K36*'Control Sheet'!$F$167/K11),0))-SUM($G$57:I57) -> 0 | K57: =IF(AND(K9=0,K11<12),0,IFERROR((L36*'Control Sheet'!$F$167/L11),0))-SUM($G$57:J57) -> -8.008192983 | L57: =IF(AND(L9=0,L11<12),0,IFERROR((M36*'Control Sheet'!$F$167/M11),0))-SUM($G$57:K57) -> -0.1601638597 | M57: =IF(AND(M9=0,M11<12),0,IFERROR((N36*'Control Sheet'!$F$167/N11),0))-SUM($G$57:L57) -> -0.1633671368 | N57: =IF(AND(N9=0,N11<12),0,IFERROR((O36*'Control Sheet'!$F$167/O11),0))-SUM($G$57:M57) -> -0.1666344796 | O57: =IF(AND(O9=0,O11<12),0,IFERROR((P36*'Control Sheet'!$F$167/P11),0))-SUM($G$57:N57) -> -0.1699671692 | P57: =IF(AND(P9=0,P11<12),0,IFERROR((Q36*'Control Sheet'!$F$167/Q11),0))-SUM($G$57:O57) -> -0.1733665126 | Q57: =IF(AND(Q9=0,Q11<12),0,IFERROR((R36*'Control Sheet'!$F$167/R11),0))-SUM($G$57:P57) -> -0.1768338428 | R57: =IF(AND(R9=0,R11<12),0,IFERROR((S36*'Control Sheet'!$F$167/S11),0))-SUM($G$57:Q57) -> -0.1803705197 | S57: =IF(AND(S9=0,S11<12),0,IFERROR((T36*'Control Sheet'!$F$167/T11),0))-SUM($G$57:R57) -> -0.1839779301 | T57: =IF(AND(T9=0,T11<12),0,IFERROR((U36*'Control Sheet'!$F$167/U11),0))-SUM($G$57:S57) -> -0.1876574887 | U57: =IF(AND(U9=0,U11<12),0,IFERROR((V36*'Control Sheet'!$F$167/V11),0))-SUM($G$57:T57) -> -0.1914106384 | V57: =IF(AND(V9=0,V11<12),0,IFERROR((W36*'Control Sheet'!$F$167/W11),0))-SUM($G$57:U57) -> -0.1952388512 | W57: =IF(AND(W9=0,W11<12),0,IFERROR((X36*'Control Sheet'!$F$167/X11),0))-SUM($G$57:V57) -> -0.1991436282 | X57: =IF(AND(X9=0,X11<12),0,IFERROR((Y36*'Control Sheet'!$F$167/Y11),0))-SUM($G$57:W57) -> -0.2031265008 | Y57: =IF(AND(Y9=0,Y11<12),0,IFERROR((Z36*'Control Sheet'!$F$167/Z11),0))-SUM($G$57:X57) -> -0.2071890308 | Z57: =IF(AND(Z9=0,Z11<12),0,IFERROR((AA36*'Control Sheet'!$F$167/AA11),0))-SUM($G$57:Y57) -> -0.2113328114 | AA57: =IF(AND(AA9=0,AA11<12),0,IFERROR((AB36*'Control Sheet'!$F$167/AB11),0))-SUM($G$57:Z57) -> -0.2155594676 | AB57: =IF(AND(AB9=0,AB11<12),0,IFERROR((AC36*'Control Sheet'!$F$167/AC11),0))-SUM($G$57:AA57) -> -0.219870657 | AC57: =IF(AND(AC9=0,AC11<12),0,IFERROR((AD36*'Control Sheet'!$F$167/AD11),0))-SUM($G$57:AB57) -> -0.2242680701 | AD57: =IF(AND(AD9=0,AD11<12),0,IFERROR((AE36*'Control Sheet'!$F$167/AE11),0))-SUM($G$57:AC57) -> -0.2287534315 | AE57: =IF(AND(AE9=0,AE11<12),0,IFERROR((AF36*'Control Sheet'!$F$167/AF11),0))-SUM($G$57:AD57) -> -0.2333285002 | AF57: =IF(AND(AF9=0,AF11<12),0,IFERROR((AG36*'Control Sheet'!$F$167/AG11),0))-SUM($G$57:AE57) -> -0.2379950702 | AG57: =IF(AND(AG9=0,AG11<12),0,IFERROR((AH36*'Control Sheet'!$F$167/AH11),0))-SUM($G$57:AF57) -> -0.2427549716 | AH57: =IF(AND(AH9=0,AH11<12),0,IFERROR((AI36*'Control Sheet'!$F$167/AI11),0))-SUM($G$57:AG57) -> -0.247610071 | AI57: =IF(AND(AI9=0,AI11<12),0,IFERROR((AJ36*'Control Sheet'!$F$167/AJ11),0))-SUM($G$57:AH57) -> -0.2525622724 | AJ57: =IF(AND(AJ9=0,AJ11<12),0,IFERROR((AK36*'Control Sheet'!$F$167/AK11),0))-SUM($G$57:AI57) -> -0.2576135179 | AK57: =IF(AND(AK9=0,AK11<12),0,IFERROR((AL36*'Control Sheet'!$F$167/AL11),0))-SUM($G$57:AJ57) -> -0.2627657882 | AL57: =IF(AND(AL9=0,AL11<12),0,IFERROR((AM36*'Control Sheet'!$F$167/AM11),0))-SUM($G$57:AK57) -> -0.268021104 | AM57: =IF(AND(AM9=0,AM11<12),0,IFERROR((AN36*'Control Sheet'!$F$167/AN11),0))-SUM($G$57:AL57) -> -0.2733815261 | AN57: =IF(AND(AN9=0,AN11<12),0,IFERROR((AO36*'Control Sheet'!$F$167/AO11),0))-SUM($G$57:AM57) -> -0.2788491566 | AO57: =IF(AND(AO9=0,AO11<12),0,IFERROR((AP36*'Control Sheet'!$F$167/AP11),0))-SUM($G$57:AN57) -> 14.22130699 | AP57: =IF(AND(AP9=0,AP11<12),0,IFERROR((AQ36*'Control Sheet'!$F$167/AQ11),0))-SUM($G$57:AO57) -> 0
C58: Less: Decommissioning costs | E58: $ m | F58: =SUM(G58:AP58) -> -141.1223705 | G58: =-IF(SUM(G12:$AP$12)<='Control Sheet'!$F$175*12,'Control Sheet'!$F$187/'Control Sheet'!$F$175*SIGN(G12),0)*'Control Sheet'!$F$174 -> 0 | H58: =-IF(SUM(H12:$AP$12)<='Control Sheet'!$F$175*12,'Control Sheet'!$F$187/'Control Sheet'!$F$175*SIGN(H12),0)*'Control Sheet'!$F$174 -> 0 | I58: =-IF(SUM(I12:$AP$12)<='Control Sheet'!$F$175*12,'Control Sheet'!$F$187/'Control Sheet'!$F$175*SIGN(I12),0)*'Control Sheet'!$F$174 -> 0 | J58: =-IF(SUM(J12:$AP$12)<='Control Sheet'!$F$175*12,'Control Sheet'!$F$187/'Control Sheet'!$F$175*SIGN(J12),0)*'Control Sheet'!$F$174 -> 0 | K58: =-IF(SUM(K12:$AP$12)<='Control Sheet'!$F$175*12,'Control Sheet'!$F$187/'Control Sheet'!$F$175*SIGN(K12),0)*'Control Sheet'!$F$174 -> 0 | L58: =-IF(SUM(L12:$AP$12)<='Control Sheet'!$F$175*12,'Control Sheet'!$F$187/'Control Sheet'!$F$175*SIGN(L12),0)*'Control Sheet'!$F$174 -> 0 | M58: =-IF(SUM(M12:$AP$12)<='Control Sheet'!$F$175*12,'Control Sheet'!$F$187/'Control Sheet'!$F$175*SIGN(M12),0)*'Control Sheet'!$F$174 -> 0 | N58: =-IF(SUM(N12:$AP$12)<='Control Sheet'!$F$175*12,'Control Sheet'!$F$187/'Control Sheet'!$F$175*SIGN(N12),0)*'Control Sheet'!$F$174 -> 0 | O58: =-IF(SUM(O12:$AP$12)<='Control Sheet'!$F$175*12,'Control Sheet'!$F$187/'Control Sheet'!$F$175*SIGN(O12),0)*'Control Sheet'!$F$174 -> 0 | P58: =-IF(SUM(P12:$AP$12)<='Control Sheet'!$F$175*12,'Control Sheet'!$F$187/'Control Sheet'!$F$175*SIGN(P12),0)*'Control Sheet'!$F$174 -> 0 | Q58: =-IF(SUM(Q12:$AP$12)<='Control Sheet'!$F$175*12,'Control Sheet'!$F$187/'Control Sheet'!$F$175*SIGN(Q12),0)*'Control Sheet'!$F$174 -> 0 | R58: =-IF(SUM(R12:$AP$12)<='Control Sheet'!$F$175*12,'Control Sheet'!$F$187/'Control Sheet'!$F$175*SIGN(R12),0)*'Control Sheet'!$F$174 -> 0 | S58: =-IF(SUM(S12:$AP$12)<='Control Sheet'!$F$175*12,'Control Sheet'!$F$187/'Control Sheet'!$F$175*SIGN(S12),0)*'Control Sheet'!$F$174 -> 0 | T58: =-IF(SUM(T12:$AP$12)<='Control Sheet'!$F$175*12,'Control Sheet'!$F$187/'Control Sheet'!$F$175*SIGN(T12),0)*'Control Sheet'!$F$174 -> 0 | U58: =-IF(SUM(U12:$AP$12)<='Control Sheet'!$F$175*12,'Control Sheet'!$F$187/'Control Sheet'!$F$175*SIGN(U12),0)*'Control Sheet'!$F$174 -> 0 | V58: =-IF(SUM(V12:$AP$12)<='Control Sheet'!$F$175*12,'Control Sheet'!$F$187/'Control Sheet'!$F$175*SIGN(V12),0)*'Control Sheet'!$F$174 -> 0 | W58: =-IF(SUM(W12:$AP$12)<='Control Sheet'!$F$175*12,'Control Sheet'!$F$187/'Control Sheet'!$F$175*SIGN(W12),0)*'Control Sheet'!$F$174 -> 0 | X58: =-IF(SUM(X12:$AP$12)<='Control Sheet'!$F$175*12,'Control Sheet'!$F$187/'Control Sheet'!$F$175*SIGN(X12),0)*'Control Sheet'!$F$174 -> 0 | Y58: =-IF(SUM(Y12:$AP$12)<='Control Sheet'!$F$175*12,'Control Sheet'!$F$187/'Control Sheet'!$F$175*SIGN(Y12),0)*'Control Sheet'!$F$174 -> 0 | Z58: =-IF(SUM(Z12:$AP$12)<='Control Sheet'!$F$175*12,'Control Sheet'!$F$187/'Control Sheet'!$F$175*SIGN(Z12),0)*'Control Sheet'!$F$174 -> 0 | AA58: =-IF(SUM(AA12:$AP$12)<='Control Sheet'!$F$175*12,'Control Sheet'!$F$187/'Control Sheet'!$F$175*SIGN(AA12),0)*'Control Sheet'!$F$174 -> 0 | AB58: =-IF(SUM(AB12:$AP$12)<='Control Sheet'!$F$175*12,'Control Sheet'!$F$187/'Control Sheet'!$F$175*SIGN(AB12),0)*'Control Sheet'!$F$174 -> 0 | AC58: =-IF(SUM(AC12:$AP$12)<='Control Sheet'!$F$175*12,'Control Sheet'!$F$187/'Control Sheet'!$F$175*SIGN(AC12),0)*'Control Sheet'!$F$174 -> -47.04079016 | AD58: =-IF(SUM(AD12:$AP$12)<='Control Sheet'!$F$175*12,'Control Sheet'!$F$187/'Control Sheet'!$F$175*SIGN(AD12),0)*'Control Sheet'!$F$174 -> -47.04079016 | AE58: =-IF(SUM(AE12:$AP$12)<='Control Sheet'!$F$175*12,'Control Sheet'!$F$187/'Control Sheet'!$F$175*SIGN(AE12),0)*'Control Sheet'!$F$174 -> -47.04079016 | AF58: =-IF(SUM(AF12:$AP$12)<='Control Sheet'!$F$175*12,'Control Sheet'!$F$187/'Control Sheet'!$F$175*SIGN(AF12),0)*'Control Sheet'!$F$174 -> 0 | AG58: =-IF(SUM(AG12:$AP$12)<='Control Sheet'!$F$175*12,'Control Sheet'!$F$187/'Control Sheet'!$F$175*SIGN(AG12),0)*'Control Sheet'!$F$174 -> 0 | AH58: =-IF(SUM(AH12:$AP$12)<='Control Sheet'!$F$175*12,'Control Sheet'!$F$187/'Control Sheet'!$F$175*SIGN(AH12),0)*'Control Sheet'!$F$174 -> 0 | AI58: =-IF(SUM(AI12:$AP$12)<='Control Sheet'!$F$175*12,'Control Sheet'!$F$187/'Control Sheet'!$F$175*SIGN(AI12),0)*'Control Sheet'!$F$174 -> 0 | AJ58: =-IF(SUM(AJ12:$AP$12)<='Control Sheet'!$F$175*12,'Control Sheet'!$F$187/'Control Sheet'!$F$175*SIGN(AJ12),0)*'Control Sheet'!$F$174 -> 0 | AK58: =-IF(SUM(AK12:$AP$12)<='Control Sheet'!$F$175*12,'Control Sheet'!$F$187/'Control Sheet'!$F$175*SIGN(AK12),0)*'Control Sheet'!$F$174 -> 0 | AL58: =-IF(SUM(AL12:$AP$12)<='Control Sheet'!$F$175*12,'Control Sheet'!$F$187/'Control Sheet'!$F$175*SIGN(AL12),0)*'Control Sheet'!$F$174 -> 0 | AM58: =-IF(SUM(AM12:$AP$12)<='Control Sheet'!$F$175*12,'Control Sheet'!$F$187/'Control Sheet'!$F$175*SIGN(AM12),0)*'Control Sheet'!$F$174 -> 0 | AN58: =-IF(SUM(AN12:$AP$12)<='Control Sheet'!$F$175*12,'Control Sheet'!$F$187/'Control Sheet'!$F$175*SIGN(AN12),0)*'Control Sheet'!$F$174 -> 0 | AO58: =-IF(SUM(AO12:$AP$12)<='Control Sheet'!$F$175*12,'Control Sheet'!$F$187/'Control Sheet'!$F$175*SIGN(AO12),0)*'Control Sheet'!$F$174 -> 0 | AP58: =-IF(SUM(AP12:$AP$12)<='Control Sheet'!$F$175*12,'Control Sheet'!$F$187/'Control Sheet'!$F$175*SIGN(AP12),0)*'Control Sheet'!$F$174 -> 0
C59: Add: tax benefit on decommissioning costs | E59: $ m | F59: =SUM(G59:AP59) -> 37.39742818 | G59: =-G58*'Control Sheet'!$F$197 -> 0 | H59: =-H58*'Control Sheet'!$F$197 -> 0 | I59: =-I58*'Control Sheet'!$F$197 -> 0 | J59: =-J58*'Control Sheet'!$F$197 -> 0 | K59: =-K58*'Control Sheet'!$F$197 -> 0 | L59: =-L58*'Control Sheet'!$F$197 -> 0 | M59: =-M58*'Control Sheet'!$F$197 -> 0 | N59: =-N58*'Control Sheet'!$F$197 -> 0 | O59: =-O58*'Control Sheet'!$F$197 -> 0 | P59: =-P58*'Control Sheet'!$F$197 -> 0 | Q59: =-Q58*'Control Sheet'!$F$197 -> 0 | R59: =-R58*'Control Sheet'!$F$197 -> 0 | S59: =-S58*'Control Sheet'!$F$197 -> 0 | T59: =-T58*'Control Sheet'!$F$197 -> 0 | U59: =-U58*'Control Sheet'!$F$197 -> 0 | V59: =-V58*'Control Sheet'!$F$197 -> 0 | W59: =-W58*'Control Sheet'!$F$197 -> 0 | X59: =-X58*'Control Sheet'!$F$197 -> 0 | Y59: =-Y58*'Control Sheet'!$F$197 -> 0 | Z59: =-Z58*'Control Sheet'!$F$197 -> 0 | AA59: =-AA58*'Control Sheet'!$F$197 -> 0 | AB59: =-AB58*'Control Sheet'!$F$197 -> 0 | AC59: =-AC58*'Control Sheet'!$F$197 -> 12.46580939 | AD59: =-AD58*'Control Sheet'!$F$197 -> 12.46580939 | AE59: =-AE58*'Control Sheet'!$F$197 -> 12.46580939 | AF59: =-AF58*'Control Sheet'!$F$197 -> 0 | AG59: =-AG58*'Control Sheet'!$F$197 -> 0 | AH59: =-AH58*'Control Sheet'!$F$197 -> 0 | AI59: =-AI58*'Control Sheet'!$F$197 -> 0 | AJ59: =-AJ58*'Control Sheet'!$F$197 -> 0 | AK59: =-AK58*'Control Sheet'!$F$197 -> 0 | AL59: =-AL58*'Control Sheet'!$F$197 -> 0 | AM59: =-AM58*'Control Sheet'!$F$197 -> 0 | AN59: =-AN58*'Control Sheet'!$F$197 -> 0 | AO59: =-AO58*'Control Sheet'!$F$197 -> 0 | AP59: =-AP58*'Control Sheet'!$F$197 -> 0
B60: Net cash flows before changes in debt balance | E60: $ m | F60: =SUM(G60:AP60) -> 2672.060188 | G60: =SUM(G50:G59) -> -21.01444369 | H60: =SUM(H50:H59) -> -30.79075711 | I60: -82.36607925 | J60: -491.5854795 | K60: -652.0658819 | L60: 195.9000685 | M60: 212.0778134 | N60: 213.9254419 | O60: 215.5750062 | P60: 214.7684302 | Q60: 185.8790186 | R60: 173.2593944 | S60: 168.024347 | T60: 166.6366702 | U60: 166.8239083 | V60: 167.5310741 | W60: 171.9705949 | X60: 174.40665 | Y60: 176.8457229 | Z60: 179.4724198 | AA60: 183.0078685 | AB60: 187.0554245 | AC60: 155.7705637 | AD60: 156.8551732 | AE60: 157.9509225 | AF60: 39.69405899 | AG60: 22.12736304 | AH60: 24.60219349 | AI60: 27.31545635 | AJ60: 29.33984255 | AK60: 31.25906189 | AL60: 32.59113829 | AM60: 33.56553078 | AN60: 33.71308113 | AO60: 48.09928693 | AP60: 3.839303179
C61: Add / Less: Debt
C62: Debt raised | E62: $ m | F62: 1054.904189 | G62: =Financing!G26 -> 0 | H62: =Financing!H26 -> 0 | I62: =Financing!I26 -> 0 | J62: =Financing!J26 -> 362.0307124 | K62: =Financing!K26 -> 692.8734761 | L62: =Financing!L26 -> 0 | M62: =Financing!M26 -> 0 | N62: =Financing!N26 -> 0 | O62: =Financing!O26 -> 0 | P62: =Financing!P26 -> 0 | Q62: =Financing!Q26 -> 0 | R62: =Financing!R26 -> 0 | S62: =Financing!S26 -> 0 | T62: =Financing!T26 -> 0 | U62: =Financing!U26 -> 0 | V62: =Financing!V26 -> 0 | W62: =Financing!W26 -> 0 | X62: =Financing!X26 -> 0 | Y62: =Financing!Y26 -> 0 | Z62: =Financing!Z26 -> 0 | AA62: =Financing!AA26 -> 0 | AB62: =Financing!AB26 -> 0 | AC62: =Financing!AC26 -> 0 | AD62: =Financing!AD26 -> 0 | AE62: =Financing!AE26 -> 0 | AF62: =Financing!AF26 -> 0 | AG62: =Financing!AG26 -> 0 | AH62: =Financing!AH26 -> 0 | AI62: =Financing!AI26 -> 0 | AJ62: =Financing!AJ26 -> 0 | AK62: =Financing!AK26 -> 0 | AL62: =Financing!AL26 -> 0 | AM62: =Financing!AM26 -> 0 | AN62: =Financing!AN26 -> 0 | AO62: =Financing!AO26 -> 0 | AP62: =Financing!AP26 -> 0
C63: Debt repayment | E63: $ m | F63: -1054.904189 | G63: =Financing!G27 -> 0 | H63: =Financing!H27 -> 0 | I63: =Financing!I27 -> 0 | J63: =Financing!J27 -> 0 | K63: =Financing!K27 -> 0 | L63: =Financing!L27 -> -46.75967444 | M63: =Financing!M27 -> -48.08219302 | N63: =Financing!N27 -> -49.63185812 | O63: =Financing!O27 -> -51.16164466 | P63: =Financing!P27 -> -52.720551 | Q63: =Financing!Q27 -> -53.63779833 | R63: =Financing!R27 -> -55.49410537 | S63: =Financing!S27 -> -57.60715531 | T63: =Financing!T27 -> -59.83919444 | U63: =Financing!U27 -> -62.23284917 | V63: =Financing!V27 -> -64.64989752 | W63: =Financing!W27 -> -67.68000016 | X63: =Financing!X27 -> -70.58940084 | Y63: =Financing!Y27 -> -73.65951512 | Z63: =Financing!Z27 -> -76.90020853 | AA63: =Financing!AA27 -> -80.3159342 | AB63: =Financing!AB27 -> -83.94220827 | AC63: =Financing!AC27 -> 0 | AD63: =Financing!AD27 -> 0 | AE63: =Financing!AE27 -> 0 | AF63: =Financing!AF27 -> 0 | AG63: =Financing!AG27 -> 0 | AH63: =Financing!AH27 -> 0 | AI63: =Financing!AI27 -> 0 | AJ63: =Financing!AJ27 -> 0 | AK63: =Financing!AK27 -> 0 | AL63: =Financing!AL27 -> 0 | AM63: =Financing!AM27 -> 0 | AN63: =Financing!AN27 -> 0 | AO63: =Financing!AO27 -> 0 | AP63: =Financing!AP27 -> 0
C64: Debt Service Reserve Account (DSRA) | E64: $ m | F64: 0 | G64: =Financing!G66 -> 0 | H64: =Financing!H66 -> 0 | I64: =Financing!I66 -> 0 | J64: =Financing!J66 -> 0 | K64: =Financing!K66 -> -40.80759417 | L64: =Financing!L66 -> -0.2224945249 | M64: =Financing!M66 -> -0.1102221039 | N64: =Financing!N66 -> -0.1963922555 | O64: =Financing!O66 -> -0.2613682623 | P64: =Financing!P66 -> -1.022840616 | Q64: =Financing!Q66 -> -0.3201710389 | R64: =Financing!R66 -> -0.1995786934 | S64: =Financing!S66 -> -0.2239479349 | T64: =Financing!T66 -> -0.2120500476 | U64: =Financing!U66 -> -0.4330463228 | V64: =Financing!V66 -> 0.2777197992 | W64: =Financing!W66 -> -0.104015894 | X64: =Financing!X66 -> -0.1041657087 | Y64: =Financing!Y66 -> -0.1043154375 | Z64: =Financing!Z66 -> -0.1534051951 | AA64: =Financing!AA66 -> 0.5620018818 | AB64: =Financing!AB66 -> 43.63588653 | AC64: =Financing!AC66 -> 0 | AD64: =Financing!AD66 -> 0 | AE64: =Financing!AE66 -> 0 | AF64: =Financing!AF66 -> 0 | AG64: =Financing!AG66 -> 0 | AH64: =Financing!AH66 -> 0 | AI64: =Financing!AI66 -> 0 | AJ64: =Financing!AJ66 -> 0 | AK64: =Financing!AK66 -> 0 | AL64: =Financing!AL66 -> 0 | AM64: =Financing!AM66 -> 0 | AN64: =Financing!AN66 -> 0 | AO64: =Financing!AO66 -> 0 | AP64: =Financing!AP66 -> 0
B65: Free cash flows to equity | D65: [E] | E65: $ m | F65: 2672.060188 | G65: =SUM(G60:G64) -> -21.01444369 | H65: =SUM(H60:H64) -> -30.79075711 | I65: -82.36607925 | J65: -129.5547671 | K65: 0 | L65: 148.9178996 | M65: 163.8853982 | N65: 164.0971915 | O65: 164.1519933 | P65: 161.0250386 | Q65: 131.9210492 | R65: 117.5657104 | S65: 110.1932438 | T65: 106.5854257 | U65: 104.1580128 | V65: 103.1588964 | W65: 104.1865788 | X65: 103.7130835 | Y65: 103.0818923 | Z65: 102.4188061 | AA65: 103.2539362 | AB65: 146.7491027 | AC65: 155.7705637 | AD65: 156.8551732 | AE65: 157.9509225 | AF65: 39.69405899 | AG65: 22.12736304 | AH65: 24.60219349 | AI65: 27.31545635 | AJ65: 29.33984255 | AK65: 31.25906189 | AL65: 32.59113829 | AM65: 33.56553078 | AN65: 33.71308113 | AO65: 48.09928693 | AP65: 3.839303179
B67: Cost of Equity discount rate, nominal | D67: [F] | E67: % | G67: ='Control Sheet'!$F$204 -> 0.1 | H67: ='Control Sheet'!$F$204 -> 0.1 | I67: ='Control Sheet'!$F$204 -> 0.1 | J67: ='Control Sheet'!$F$204 -> 0.1 | K67: ='Control Sheet'!$F$204 -> 0.1 | L67: ='Control Sheet'!$F$204 -> 0.1 | M67: ='Control Sheet'!$F$204 -> 0.1 | N67: ='Control Sheet'!$F$204 -> 0.1 | O67: ='Control Sheet'!$F$204 -> 0.1 | P67: ='Control Sheet'!$F$204 -> 0.1 | Q67: ='Control Sheet'!$F$204 -> 0.1 | R67: ='Control Sheet'!$F$204 -> 0.1 | S67: ='Control Sheet'!$F$204 -> 0.1 | T67: ='Control Sheet'!$F$204 -> 0.1 | U67: ='Control Sheet'!$F$204 -> 0.1 | V67: ='Control Sheet'!$F$204 -> 0.1 | W67: ='Control Sheet'!$F$204 -> 0.1 | X67: ='Control Sheet'!$F$204 -> 0.1 | Y67: ='Control Sheet'!$F$204 -> 0.1 | Z67: ='Control Sheet'!$F$204 -> 0.1 | AA67: ='Control Sheet'!$F$204 -> 0.1 | AB67: ='Control Sheet'!$F$204 -> 0.1 | AC67: ='Control Sheet'!$F$204 -> 0.1 | AD67: ='Control Sheet'!$F$204 -> 0.1 | AE67: ='Control Sheet'!$F$204 -> 0.1 | AF67: ='Control Sheet'!$F$204 -> 0.1 | AG67: ='Control Sheet'!$F$204 -> 0.1 | AH67: ='Control Sheet'!$F$204 -> 0.1 | AI67: ='Control Sheet'!$F$204 -> 0.1 | AJ67: ='Control Sheet'!$F$204 -> 0.1 | AK67: ='Control Sheet'!$F$204 -> 0.1 | AL67: ='Control Sheet'!$F$204 -> 0.1 | AM67: ='Control Sheet'!$F$204 -> 0.1 | AN67: ='Control Sheet'!$F$204 -> 0.1 | AO67: ='Control Sheet'!$F$204 -> 0.1 | AP67: ='Control Sheet'!$F$204 -> 0.1
B68: Mid-period | D68: [G] | E68: years | G68: =(SUM($G$7:G7,$G$9:G9,$G$11:G11)-SUM(G7,G9,G11)/2)/12 -> 0.4361111111 | H68: =(SUM($G$7:H7,$G$9:H9,$G$11:H11)-SUM(H7,H9,H11)/2)/12 -> 1.372222222 | I68: =(SUM($G$7:I7,$G$9:I9,$G$11:I11)-SUM(I7,I9,I11)/2)/12 -> 2.372222222 | J68: =(SUM($G$7:J7,$G$9:J9,$G$11:J11)-SUM(J7,J9,J11)/2)/12 -> 3.372222222 | K68: =(SUM($G$7:K7,$G$9:K9,$G$11:K11)-SUM(K7,K9,K11)/2)/12 -> 4.372222222 | L68: =(SUM($G$7:L7,$G$9:L9,$G$11:L11)-SUM(L7,L9,L11)/2)/12 -> 5.372222222 | M68: =(SUM($G$7:M7,$G$9:M9,$G$11:M11)-SUM(M7,M9,M11)/2)/12 -> 6.372222222 | N68: =(SUM($G$7:N7,$G$9:N9,$G$11:N11)-SUM(N7,N9,N11)/2)/12 -> 7.372222222 | O68: =(SUM($G$7:O7,$G$9:O9,$G$11:O11)-SUM(O7,O9,O11)/2)/12 -> 8.372222222 | P68: =(SUM($G$7:P7,$G$9:P9,$G$11:P11)-SUM(P7,P9,P11)/2)/12 -> 9.372222222 | Q68: =(SUM($G$7:Q7,$G$9:Q9,$G$11:Q11)-SUM(Q7,Q9,Q11)/2)/12 -> 10.37222222 | R68: =(SUM($G$7:R7,$G$9:R9,$G$11:R11)-SUM(R7,R9,R11)/2)/12 -> 11.37222222 | S68: =(SUM($G$7:S7,$G$9:S9,$G$11:S11)-SUM(S7,S9,S11)/2)/12 -> 12.37222222 | T68: =(SUM($G$7:T7,$G$9:T9,$G$11:T11)-SUM(T7,T9,T11)/2)/12 -> 13.37222222 | U68: =(SUM($G$7:U7,$G$9:U9,$G$11:U11)-SUM(U7,U9,U11)/2)/12 -> 14.37222222 | V68: =(SUM($G$7:V7,$G$9:V9,$G$11:V11)-SUM(V7,V9,V11)/2)/12 -> 15.37222222 | W68: =(SUM($G$7:W7,$G$9:W9,$G$11:W11)-SUM(W7,W9,W11)/2)/12 -> 16.37222222 | X68: =(SUM($G$7:X7,$G$9:X9,$G$11:X11)-SUM(X7,X9,X11)/2)/12 -> 17.37222222 | Y68: =(SUM($G$7:Y7,$G$9:Y9,$G$11:Y11)-SUM(Y7,Y9,Y11)/2)/12 -> 18.37222222 | Z68: =(SUM($G$7:Z7,$G$9:Z9,$G$11:Z11)-SUM(Z7,Z9,Z11)/2)/12 -> 19.37222222 | AA68: =(SUM($G$7:AA7,$G$9:AA9,$G$11:AA11)-SUM(AA7,AA9,AA11)/2)/12 -> 20.37222222 | AB68: =(SUM($G$7:AB7,$G$9:AB9,$G$11:AB11)-SUM(AB7,AB9,AB11)/2)/12 -> 21.37222222 | AC68: =(SUM($G$7:AC7,$G$9:AC9,$G$11:AC11)-SUM(AC7,AC9,AC11)/2)/12 -> 22.37222222 | AD68: =(SUM($G$7:AD7,$G$9:AD9,$G$11:AD11)-SUM(AD7,AD9,AD11)/2)/12 -> 23.37222222 | AE68: =(SUM($G$7:AE7,$G$9:AE9,$G$11:AE11)-SUM(AE7,AE9,AE11)/2)/12 -> 24.37222222 | AF68: =(SUM($G$7:AF7,$G$9:AF9,$G$11:AF11)-SUM(AF7,AF9,AF11)/2)/12 -> 25.37222222 | AG68: =(SUM($G$7:AG7,$G$9:AG9,$G$11:AG11)-SUM(AG7,AG9,AG11)/2)/12 -> 26.37222222 | AH68: =(SUM($G$7:AH7,$G$9:AH9,$G$11:AH11)-SUM(AH7,AH9,AH11)/2)/12 -> 27.37222222 | AI68: =(SUM($G$7:AI7,$G$9:AI9,$G$11:AI11)-SUM(AI7,AI9,AI11)/2)/12 -> 28.37222222 | AJ68: =(SUM($G$7:AJ7,$G$9:AJ9,$G$11:AJ11)-SUM(AJ7,AJ9,AJ11)/2)/12 -> 29.37222222 | AK68: =(SUM($G$7:AK7,$G$9:AK9,$G$11:AK11)-SUM(AK7,AK9,AK11)/2)/12 -> 30.37222222 | AL68: =(SUM($G$7:AL7,$G$9:AL9,$G$11:AL11)-SUM(AL7,AL9,AL11)/2)/12 -> 31.37222222 | AM68: =(SUM($G$7:AM7,$G$9:AM9,$G$11:AM11)-SUM(AM7,AM9,AM11)/2)/12 -> 32.37222222 | AN68: =(SUM($G$7:AN7,$G$9:AN9,$G$11:AN11)-SUM(AN7,AN9,AN11)/2)/12 -> 33.37222222 | AO68: =(SUM($G$7:AO7,$G$9:AO9,$G$11:AO11)-SUM(AO7,AO9,AO11)/2)/12 -> 34.37222222 | AP68: =(SUM($G$7:AP7,$G$9:AP9,$G$11:AP11)-SUM(AP7,AP9,AP11)/2)/12 -> 34.87222222
B69: PV factor | D69: [H = 1/ (1+F)^G] | G69: =1/(1+G67)^G68 -> 0.959286185 | H69: =1/(1+H67)^H68 -> 0.8774048639 | I69: 0.7976407854 | J69: 0.7251279867 | K69: 0.6592072606 | L69: 0.5992793278 | M69: 0.5447993889 | N69: 0.4952721718 | O69: 0.4502474289 | P69: 0.4093158444 | Q69: 0.3721053131 | R69: 0.3382775574 | S69: 0.3075250522 | T69: 0.2795682292 | U69: 0.2541529357 | V69: 0.2310481233 | W69: 0.2100437485 | X69: 0.1909488623 | Y69: 0.1735898748 | Z69: 0.1578089771 | AA69: 0.1434627064 | AB69: 0.1304206422 | AC69: 0.1185642202 | AD69: 0.1077856547 | AE69: 0.09798695884 | AF69: 0.08907905349 | AG69: 0.08098095772 | AH69: 0.07361905247 | AI69: 0.06692641134 | AJ69: 0.06084219213 | AK69: 0.05531108375 | AL69: 0.05028280341 | AM69: 0.04571163946 | AN69: 0.04155603588 | AO69: 0.03777821443 | AP69: 0.03602011415
B70: Present value of cash flows of the Project | D70: [E * H] | E70: $ m | F70: =SUM(G70:AP70) -> 575.2127729 | G70: =G65*G69 -> -20.15886552 | H70: =H65*H69 -> -27.01596006 | I70: -65.69854414 | J70: -93.94378741 | K70: 0 | L70: 89.24341876 | M70: 89.28466482 | N70: 81.27277242 | O70: 73.90901292 | P70: 65.91009965 | Q70: 49.08852332 | R70: 39.76984133 | S70: 33.88718304 | T70: 29.79789872 | U70: 26.47206473 | V70: 23.83466942 | W70: 21.88373956 | X70: 19.80389529 | Y70: 17.89397278 | Z70: 16.16260702 | AA70: 14.81308914 | AB70: 19.13911222 | AC70: 18.46881542 | AD70: 16.90673754 | AE70: 15.47713054 | AF70: 3.535909204 | AG70: 1.79189505 | AH70: 1.811190173 | AI70: 1.828125468 | AJ70: 1.785100337 | AK70: 1.72897259 | AL70: 1.6387738 | AM70: 1.534335441 | AN70: 1.400982009 | AO70: 1.817105176 | AP70: 0.1382921388
B71: Present value of cash flows during the period of FIT-Contract | E71: $ m | F71: =SUM(G70:AE70) -> 556.2020915
B72: Present value of cash flows after the FIT-Contract | E72: $ m | F72: =SUM(AF70:AP70) -> 19.01068139
A75: Transaction Structuring Analysis
B77: Target IRR of Equity Investor | D77: =Conclusion!D9 -> 0.15
E79: Consideration | G79: Project Cash flows --> | Y79: Project Cash flows -->
E80: Upfront | F80: Contingent | G80: =G5 -> 2020-12-31 | H80: 2021-12-31 | I80: 2022-12-31 | J80: 2023-12-31 | K80: 2024-12-31 | L80: 2025-12-31 | M80: 2026-12-31 | N80: 2027-12-31 | O80: 2028-12-31 | P80: 2029-12-31 | Q80: 2030-12-31 | R80: 2031-12-31 | S80: 2032-12-31 | T80: 2033-12-31 | U80: 2034-12-31 | V80: 2035-12-31 | W80: 2036-12-31 | X80: 2037-12-31 | Y80: 2038-12-31 | Z80: 2039-12-31 | AA80: 2040-12-31 | AB80: 2041-12-31 | AC80: 2042-12-31 | AD80: 2043-12-31 | AE80: 2044-12-31 | AF80: 2045-12-31 | AG80: 2046-12-31 | AH80: 2047-12-31 | AI80: 2048-12-31 | AJ80: 2049-12-31 | AK80: 2050-12-31 | AL80: 2051-12-31 | AM80: 2052-12-31 | AN80: 2053-12-31 | AO80: 2054-12-31 | AP80: 2055-12-31
G81: =G7+G9+G11 -> 10.46666667 | H81: =H7+H9+H11 -> 12 | I81: 12 | J81: 12 | K81: 12 | L81: 12 | M81: 12 | N81: 12 | O81: 12 | P81: 12 | Q81: 12 | R81: 12 | S81: 12 | T81: 12 | U81: 12 | V81: 12 | W81: 12 | X81: 12 | Y81: 12 | Z81: 12 | AA81: 12 | AB81: 12 | AC81: 12 | AD81: 12 | AE81: 12 | AF81: 12 | AG81: 12 | AH81: 12 | AI81: 12 | AJ81: 12 | AK81: 12 | AL81: 12 | AM81: 12 | AN81: 12 | AO81: 12 | AP81: 0
B82: Mid-period dates | E82: ='Control Sheet'!$F$65 -> 2020-02-18 | F82: ='Control Sheet'!$F$66 -> 2023-02-20 | G82: =G130 -> 2020-07-31 | H82: 2021-06-30 | I82: 2022-06-30 | J82: 2023-06-30 | K82: 2024-06-30 | L82: 2025-06-30 | M82: 2026-06-30 | N82: 2027-06-30 | O82: 2028-06-30 | P82: 2029-06-30 | Q82: 2030-06-30 | R82: 2031-06-30 | S82: 2032-06-30 | T82: 2033-06-30 | U82: 2034-06-30 | V82: 2035-06-30 | W82: 2036-06-30 | X82: 2037-06-30 | Y82: 2038-06-30 | Z82: 2039-06-30 | AA82: 2040-06-30 | AB82: 2041-06-30 | AC82: 2042-06-30 | AD82: 2043-06-30 | AE82: 2044-06-30 | AF82: 2045-06-30 | AG82: 2046-06-30 | AH82: 2047-06-30 | AI82: 2048-06-30 | AJ82: 2049-06-30 | AK82: 2050-06-30 | AL82: 2051-06-30 | AM82: 2052-06-30 | AN82: 2053-06-30 | AO82: 2054-06-30 | AP82: 2054-12-31
C83: Project free cash flows to equity | D83: $ m | G83: =G65 -> -21.01444369 | H83: -30.79075711 | I83: -82.36607925 | J83: -129.5547671 | K83: 0 | L83: 148.9178996 | M83: 163.8853982 | N83: 164.0971915 | O83: 164.1519933 | P83: 161.0250386 | Q83: 131.9210492 | R83: 117.5657104 | S83: 110.1932438 | T83: 106.5854257 | U83: 104.1580128 | V83: 103.1588964 | W83: 104.1865788 | X83: 103.7130835 | Y83: 103.0818923 | Z83: 102.4188061 | AA83: 103.2539362 | AB83: 146.7491027 | AC83: 155.7705637 | AD83: 156.8551732 | AE83: 157.9509225 | AF83: 39.69405899 | AG83: 22.12736304 | AH83: 24.60219349 | AI83: 27.31545635 | AJ83: 29.33984255 | AK83: 31.25906189 | AL83: 32.59113829 | AM83: 33.56553078 | AN83: 33.71308113 | AO83: 48.09928693 | AP83: 3.839303179
C84: Acquisition payments* | D84: $ m | E84: =-'Control Sheet'!$F$202 -> -46.14501885 | F84: -376.4202987
C85: Equity cash flows to a hypothetical buyer | D85: $ m | E85: =SUM(E83:E84) -> -46.14501885 | F85: -376.4202987 | G85: =SUM(G83:G84) -> -21.01444369 | H85: =SUM(H83:H84) -> -30.79075711 | I85: -82.36607925 | J85: -129.5547671 | K85: 0 | L85: 148.9178996 | M85: 163.8853982 | N85: 164.0971915 | O85: 164.1519933 | P85: 161.0250386 | Q85: 131.9210492 | R85: 117.5657104 | S85: 110.1932438 | T85: 106.5854257 | U85: 104.1580128 | V85: 103.1588964 | W85: 104.1865788 | X85: 103.7130835 | Y85: 103.0818923 | Z85: 102.4188061 | AA85: 103.2539362 | AB85: 146.7491027 | AC85: 155.7705637 | AD85: 156.8551732 | AE85: 157.9509225 | AF85: 39.69405899 | AG85: 22.12736304 | AH85: 24.60219349 | AI85: 27.31545635 | AJ85: 29.33984255 | AK85: 31.25906189 | AL85: 32.59113829 | AM85: 33.56553078 | AN85: 33.71308113 | AO85: 48.09928693 | AP85: 3.839303179
B87: Equity IRR to a hypothetical buyer | D87: =XIRR(E85:AP85,E82:AP82) -> 0.1500000775
B89: *Contingent payment is calculated as a plug figure using Excel, such that the hypothetical buyer would earn the
B90: target Equity IRR from the cash flows of the Project after making an upfront payment and a contingent payment
B91: at Financial Close.
A93: Note 1: Calculation of tax payable
A95: Years ended December 31st | F95: =F5 -> Total | G95: 2020-12-31 | H95: 2021-12-31 | I95: 2022-12-31 | J95: 2023-12-31 | K95: 2024-12-31 | L95: 2025-12-31 | M95: 2026-12-31 | N95: 2027-12-31 | O95: 2028-12-31 | P95: 2029-12-31 | Q95: 2030-12-31 | R95: 2031-12-31 | S95: 2032-12-31 | T95: 2033-12-31 | U95: 2034-12-31 | V95: 2035-12-31 | W95: 2036-12-31 | X95: 2037-12-31 | Y95: 2038-12-31 | Z95: 2039-12-31 | AA95: 2040-12-31 | AB95: 2041-12-31 | AC95: 2042-12-31 | AD95: 2043-12-31 | AE95: 2044-12-31 | AF95: 2045-12-31 | AG95: 2046-12-31 | AH95: 2047-12-31 | AI95: 2048-12-31 | AJ95: 2049-12-31 | AK95: 2050-12-31 | AL95: 2051-12-31 | AM95: 2052-12-31 | AN95: 2053-12-31 | AO95: 2054-12-31 | AP95: 2055-12-31
A96: Operational flag | G96: =SIGN(G11) -> 0 | H96: 0 | I96: 0 | J96: 0 | K96: 0 | L96: 1 | M96: 1 | N96: 1 | O96: 1 | P96: 1 | Q96: 1 | R96: 1 | S96: 1 | T96: 1 | U96: 1 | V96: 1 | W96: 1 | X96: 1 | Y96: 1 | Z96: 1 | AA96: 1 | AB96: 1 | AC96: 1 | AD96: 1 | AE96: 1 | AF96: 1 | AG96: 1 | AH96: 1 | AI96: 1 | AJ96: 1 | AK96: 1 | AL96: 1 | AM96: 1 | AN96: 1 | AO96: 1 | AP96: 0
C98: EBITDA | E98: $ m | F98: =SUM(G98:AP98) -> 5485.797413 | G98: =G39 -> 0 | H98: 0 | I98: 0 | J98: -1.318450589 | K98: -1.504301412 | L98: 248.1659976 | M98: 248.8455397 | N98: 249.3528549 | O98: 249.8695227 | P98: 250.3957332 | Q98: 249.6532568 | R98: 250.206176 | S98: 250.7691965 | T98: 251.8584033 | U98: 252.4394171 | V98: 253.0311828 | W98: 256.3921537 | X98: 256.9909172 | Y98: 257.6011886 | Z98: 258.2232014 | AA98: 260.1102778 | AB98: 260.7495969 | AC98: 261.4014208 | AD98: 262.0660017 | AE98: 262.7435966 | AF98: 27.67659062 | AG98: 30.78769421 | AH98: 34.19532227 | AI98: 37.93089988 | AJ98: 40.56751161 | AK98: 43.18338932 | AL98: 44.90106974 | AM98: 46.18488477 | AN98: 46.25552931 | AO98: 46.07163814 | AP98: 0
C99: Less: Debt related costs and LC costs | E99: $ m | F99: =SUM(G99:AP99) -> -486.9276761 | G99: =SUM(G41:G46) -> 0 | H99: =SUM(H41:H46) -> 0 | I99: 0 | J99: -29.57624612 | K99: -6.960858587 | L99: -37.42526544 | M99: -36.54773067 | N99: -35.21850229 | O99: -34.08149365 | P99: -33.04531765 | Q99: -34.1737557 | R99: -32.95778346 | S99: -31.24388114 | T99: -29.45972767 | U99: -27.49016184 | V99: -25.9391968 | W99: -22.3536355 | X99: -19.65225162 | Y99: -16.7904529 | Z99: -13.75837357 | AA99: -10.64944099 | AB99: -5.899138276 | AC99: -2.05803457 | AD99: -1.234820742 | AE99: -0.4116069139 | AF99: 0 | AG99: 0 | AH99: 0 | AI99: 0 | AJ99: 0 | AK99: 0 | AL99: 0 | AM99: 0 | AN99: 0 | AO99: 0 | AP99: 0
B100: Taxable income before CCA and set off of losses | E100: $ m | F100: =SUM(G100:AP100) -> 4998.869737 | G100: =SUM(G98:G99) -> 0 | H100: =SUM(H98:H99) -> 0 | I100: 0 | J100: -30.89469671 | K100: -8.46516 | L100: 210.7407322 | M100: 212.297809 | N100: 214.1343526 | O100: 215.788029 | P100: 217.3504156 | Q100: 215.4795011 | R100: 217.2483925 | S100: 219.5253154 | T100: 222.3986757 | U100: 224.9492553 | V100: 227.091986 | W100: 234.0385182 | X100: 237.3386656 | Y100: 240.8107357 | Z100: 244.4648278 | AA100: 249.4608368 | AB100: 254.8504586 | AC100: 259.3433862 | AD100: 260.8311809 | AE100: 262.3319897 | AF100: 27.67659062 | AG100: 30.78769421 | AH100: 34.19532227 | AI100: 37.93089988 | AJ100: 40.56751161 | AK100: 43.18338932 | AL100: 44.90106974 | AM100: 46.18488477 | AN100: 46.25552931 | AO100: 46.07163814 | AP100: 0
C101: Add / Less: loss carry forward / set off | E101: $ m | F101: 0 | G101: =SUM(G109:G110) -> 0 | H101: =SUM(H109:H110) -> 0 | I101: 0 | J101: 30.89469671 | K101: 8.46516 | L101: -39.35985671 | M101: 0 | N101: 0 | O101: 0 | P101: 0 | Q101: 0 | R101: 0 | S101: 0 | T101: 0 | U101: 0 | V101: 0 | W101: 0 | X101: 0 | Y101: 0 | Z101: 0 | AA101: 0 | AB101: 0 | AC101: 0 | AD101: 0 | AE101: 0 | AF101: 0 | AG101: 0 | AH101: 0 | AI101: 0 | AJ101: 0 | AK101: 0 | AL101: 0 | AM101: 0 | AN101: 0 | AO101: 0 | AP101: 0
B102: Taxable income before CCA | E102: $ m | F102: 4998.869737 | G102: =SUM(G100:G101) -> 0 | H102: =SUM(H100:H101) -> 0 | I102: 0 | J102: 0 | K102: 0 | L102: 171.3808755 | M102: 212.297809 | N102: 214.1343526 | O102: 215.788029 | P102: 217.3504156 | Q102: 215.4795011 | R102: 217.2483925 | S102: 219.5253154 | T102: 222.3986757 | U102: 224.9492553 | V102: 227.091986 | W102: 234.0385182 | X102: 237.3386656 | Y102: 240.8107357 | Z102: 244.4648278 | AA102: 249.4608368 | AB102: 254.8504586 | AC102: 259.3433862 | AD102: 260.8311809 | AE102: 262.3319897 | AF102: 27.67659062 | AG102: 30.78769421 | AH102: 34.19532227 | AI102: 37.93089988 | AJ102: 40.56751161 | AK102: 43.18338932 | AL102: 44.90106974 | AM102: 46.18488477 | AN102: 46.25552931 | AO102: 46.07163814 | AP102: 0
C103: Less: CCA claimed during the year | E103: $ m | F103: -1230.454586 | G103: =-G122 -> 0 | H103: =-H122 -> 0 | I103: 0 | J103: 0 | K103: 0 | L103: -171.3808755 | M103: -212.297809 | N103: -214.1343526 | O103: -215.788029 | P103: -208.4267628 | Q103: -104.2133814 | R103: -52.1066907 | S103: -26.05334535 | T103: -13.02667268 | U103: -6.513336338 | V103: -3.256668169 | W103: -1.628334084 | X103: -0.8141670422 | Y103: -0.4070835211 | Z103: -0.2035417606 | AA103: -0.1017708803 | AB103: -0.05088544014 | AC103: -0.02544272007 | AD103: -0.01272136004 | AE103: -0.006360680018 | AF103: -0.003180340009 | AG103: -0.001590170004 | AH103: -0.0007950850022 | AI103: -0.0003975425011 | AJ103: -0.0001987712505 | AK103: -9.938562527e-05 | AL103: -4.969281264e-05 | AM103: -2.484640632e-05 | AN103: -1.242320316e-05 | AO103: -6.21160158e-06 | AP103: 0
B104: Taxable Income | E104: $ m | F104: 3768.415152 | G104: =SUM(G102:G103) -> 0 | H104: =SUM(H102:H103) -> 0 | I104: 0 | J104: 0 | K104: 0 | L104: 0 | M104: 0 | N104: 0 | O104: 0 | P104: 8.923652773 | Q104: 111.2661197 | R104: 165.1417018 | S104: 193.47197 | T104: 209.372003 | U104: 218.435919 | V104: 223.8353178 | W104: 232.4101841 | X104: 236.5244986 | Y104: 240.4036522 | Z104: 244.2612861 | AA104: 249.3590659 | AB104: 254.7995732 | AC104: 259.3179435 | AD104: 260.8184596 | AE104: 262.325629 | AF104: 27.67341028 | AG104: 30.78610404 | AH104: 34.19452718 | AI104: 37.93050234 | AJ104: 40.56731284 | AK104: 43.18328994 | AL104: 44.90102005 | AM104: 46.18485993 | AN104: 46.25551689 | AO104: 46.07163193 | AP104: 0
C105: Tax rate | E105: % | G105: ='Control Sheet'!$F$197 -> 0.265 | H105: ='Control Sheet'!$F$197 -> 0.265 | I105: ='Control Sheet'!$F$197 -> 0.265 | J105: ='Control Sheet'!$F$197 -> 0.265 | K105: ='Control Sheet'!$F$197 -> 0.265 | L105: ='Control Sheet'!$F$197 -> 0.265 | M105: ='Control Sheet'!$F$197 -> 0.265 | N105: ='Control Sheet'!$F$197 -> 0.265 | O105: ='Control Sheet'!$F$197 -> 0.265 | P105: ='Control Sheet'!$F$197 -> 0.265 | Q105: ='Control Sheet'!$F$197 -> 0.265 | R105: ='Control Sheet'!$F$197 -> 0.265 | S105: ='Control Sheet'!$F$197 -> 0.265 | T105: ='Control Sheet'!$F$197 -> 0.265 | U105: ='Control Sheet'!$F$197 -> 0.265 | V105: ='Control Sheet'!$F$197 -> 0.265 | W105: ='Control Sheet'!$F$197 -> 0.265 | X105: ='Control Sheet'!$F$197 -> 0.265 | Y105: ='Control Sheet'!$F$197 -> 0.265 | Z105: ='Control Sheet'!$F$197 -> 0.265 | AA105: ='Control Sheet'!$F$197 -> 0.265 | AB105: ='Control Sheet'!$F$197 -> 0.265 | AC105: ='Control Sheet'!$F$197 -> 0.265 | AD105: ='Control Sheet'!$F$197 -> 0.265 | AE105: ='Control Sheet'!$F$197 -> 0.265 | AF105: ='Control Sheet'!$F$197 -> 0.265 | AG105: ='Control Sheet'!$F$197 -> 0.265 | AH105: ='Control Sheet'!$F$197 -> 0.265 | AI105: ='Control Sheet'!$F$197 -> 0.265 | AJ105: ='Control Sheet'!$F$197 -> 0.265 | AK105: ='Control Sheet'!$F$197 -> 0.265 | AL105: ='Control Sheet'!$F$197 -> 0.265 | AM105: ='Control Sheet'!$F$197 -> 0.265 | AN105: ='Control Sheet'!$F$197 -> 0.265 | AO105: ='Control Sheet'!$F$197 -> 0.265 | AP105: ='Control Sheet'!$F$197 -> 0.265
B106: Tax payable | E106: $ m | F106: 998.6300152 | G106: =G104*G105 -> 0 | H106: =H104*H105 -> 0 | I106: 0 | J106: 0 | K106: 0 | L106: 0 | M106: 0 | N106: 0 | O106: 0 | P106: 2.364767985 | Q106: 29.48552172 | R106: 43.76255098 | S106: 51.27007205 | T106: 55.4835808 | U106: 57.88551852 | V106: 59.31635922 | W106: 61.58869879 | X106: 62.67899213 | Y106: 63.70696783 | Z106: 64.72924081 | AA106: 66.08015247 | AB106: 67.52188689 | AC106: 68.71925503 | AD106: 69.11689179 | AE106: 69.51629169 | AF106: 7.333453723 | AG106: 8.158317571 | AH106: 9.061549703 | AI106: 10.05158312 | AJ106: 10.7503379 | AK106: 11.44357183 | AL106: 11.89877031 | AM106: 12.23898788 | AN106: 12.25771198 | AO106: 12.20898246 | AP106: 0
C108: Opening carry forward of losses | E108: $ m | G108: 0 | H108: =G111 -> 0 | I108: =H111 -> 0 | J108: =I111 -> 0 | K108: =J111 -> 30.89469671 | L108: =K111 -> 39.35985671 | M108: =L111 -> 0 | N108: =M111 -> 0 | O108: =N111 -> 0 | P108: =O111 -> 0 | Q108: =P111 -> 0 | R108: =Q111 -> 0 | S108: =R111 -> 0 | T108: =S111 -> 0 | U108: =T111 -> 0 | V108: =U111 -> 0 | W108: =V111 -> 0 | X108: =W111 -> 0 | Y108: =X111 -> 0 | Z108: =Y111 -> 0 | AA108: =Z111 -> 0 | AB108: =AA111 -> 0 | AC108: =AB111 -> 0 | AD108: =AC111 -> 0 | AE108: =AD111 -> 0 | AF108: =AE111 -> 0 | AG108: =AF111 -> 0 | AH108: =AG111 -> 0 | AI108: =AH111 -> 0 | AJ108: =AI111 -> 0 | AK108: =AJ111 -> 0 | AL108: =AK111 -> 0 | AM108: =AL111 -> 0 | AN108: =AM111 -> 0 | AO108: =AN111 -> 0 | AP108: =AO111 -> 0
C109: Add: loss for the current period | E109: $ m | F109: =SUM(G109:AP109) -> 39.35985671 | G109: =-MIN(G100,0) -> 0 | H109: =-MIN(H100,0) -> 0 | I109: 0 | J109: 30.89469671 | K109: 8.46516 | L109: 0 | M109: 0 | N109: 0 | O109: 0 | P109: 0 | Q109: 0 | R109: 0 | S109: 0 | T109: 0 | U109: 0 | V109: 0 | W109: 0 | X109: 0 | Y109: 0 | Z109: 0 | AA109: 0 | AB109: 0 | AC109: 0 | AD109: 0 | AE109: 0 | AF109: 0 | AG109: 0 | AH109: 0 | AI109: 0 | AJ109: 0 | AK109: 0 | AL109: 0 | AM109: 0 | AN109: 0 | AO109: 0 | AP109: 0
C110: Less: loss utilized | E110: $ m | F110: =SUM(G110:AP110) -> -39.35985671 | G110: =-MIN(MAX(G100,0),G108) -> 0 | H110: 0 | I110: 0 | J110: =-MIN(MAX(J100,0),J108) -> 0 | K110: =-MIN(MAX(K100,0),K108) -> 0 | L110: -39.35985671 | M110: 0 | N110: 0 | O110: 0 | P110: 0 | Q110: 0 | R110: 0 | S110: 0 | T110: 0 | U110: 0 | V110: 0 | W110: 0 | X110: 0 | Y110: 0 | Z110: 0 | AA110: 0 | AB110: 0 | AC110: 0 | AD110: 0 | AE110: 0 | AF110: 0 | AG110: 0 | AH110: 0 | AI110: 0 | AJ110: 0 | AK110: 0 | AL110: 0 | AM110: 0 | AN110: 0 | AO110: 0 | AP110: 0
B111: Closing carry forward of losses | E111: $ m | G111: =SUM(G108:G110) -> 0 | H111: =SUM(H108:H110) -> 0 | I111: 0 | J111: 30.89469671 | K111: 39.35985671 | L111: 0 | M111: 0 | N111: 0 | O111: 0 | P111: 0 | Q111: 0 | R111: 0 | S111: 0 | T111: 0 | U111: 0 | V111: 0 | W111: 0 | X111: 0 | Y111: 0 | Z111: 0 | AA111: 0 | AB111: 0 | AC111: 0 | AD111: 0 | AE111: 0 | AF111: 0 | AG111: 0 | AH111: 0 | AI111: 0 | AJ111: 0 | AK111: 0 | AL111: 0 | AM111: 0 | AN111: 0 | AO111: 0 | AP111: 0
C113: Opening block (UCC) | E113: $ m | G113: 0 | H113: =G116 -> 21.01444369 | I113: =H116 -> 51.80520081 | J113: 134.1712801 | K113: 594.8620628 | L113: 1230.454592 | M113: 1059.073716 | N113: 846.7759073 | O113: 632.6415547 | P113: 416.8535256 | Q113: 208.4267628 | R113: 104.2133814 | S113: 52.1066907 | T113: 26.05334535 | U113: 13.02667268 | V113: 6.513336338 | W113: 3.256668169 | X113: 1.628334084 | Y113: 0.8141670422 | Z113: 0.4070835211 | AA113: 0.2035417606 | AB113: 0.1017708803 | AC113: 0.05088544014 | AD113: 0.02544272007 | AE113: 0.01272136004 | AF113: 0.006360680018 | AG113: 0.003180340009 | AH113: =AG116 -> 0.001590170004 | AI113: =AH116 -> 0.0007950850022 | AJ113: =AI116 -> 0.0003975425011 | AK113: =AJ116 -> 0.0001987712505 | AL113: =AK116 -> 9.938562527e-05 | AM113: =AL116 -> 4.969281264e-05 | AN113: =AM116 -> 2.484640632e-05 | AO113: =AN116 -> 1.242320316e-05 | AP113: =AO116 -> 6.21160158e-06
C114: Add: Capex for the period | E114: $ m | F114: =SUM(G114:AP114) -> 1230.454592 | G114: =-SUM(G52:G54) -> 21.01444369 | H114: 30.79075711 | I114: 82.36607925 | J114: 460.6907828 | K114: 635.5925289 | L114: 0 | M114: 0 | N114: 0 | O114: 0 | P114: 0 | Q114: 0 | R114: 0 | S114: 0 | T114: 0 | U114: 0 | V114: 0 | W114: 0 | X114: 0 | Y114: 0 | Z114: 0 | AA114: 0 | AB114: 0 | AC114: 0 | AD114: 0 | AE114: 0 | AF114: 0 | AG114: 0 | AH114: 0 | AI114: 0 | AJ114: 0 | AK114: 0 | AL114: 0 | AM114: 0 | AN114: 0 | AO114: 0 | AP114: 0
C115: Less: CCA Claimed | E115: $ m | F115: =SUM(G115:AP115) -> -1230.454586 | G115: =-G122 -> 0 | H115: =-H122 -> 0 | I115: 0 | J115: 0 | K115: 0 | L115: -171.3808755 | M115: -212.297809 | N115: -214.1343526 | O115: -215.788029 | P115: -208.4267628 | Q115: -104.2133814 | R115: -52.1066907 | S115: -26.05334535 | T115: -13.02667268 | U115: -6.513336338 | V115: -3.256668169 | W115: -1.628334084 | X115: -0.8141670422 | Y115: -0.4070835211 | Z115: -0.2035417606 | AA115: -0.1017708803 | AB115: -0.05088544014 | AC115: -0.02544272007 | AD115: -0.01272136004 | AE115: -0.006360680018 | AF115: -0.003180340009 | AG115: -0.001590170004 | AH115: =-AH122 -> -0.0007950850022 | AI115: -0.0003975425011 | AJ115: -0.0001987712505 | AK115: -9.938562527e-05 | AL115: -4.969281264e-05 | AM115: -2.484640632e-05 | AN115: -1.242320316e-05 | AO115: -6.21160158e-06 | AP115: 0
B116: Closing block (UCC) | E116: $ m | G116: =SUM(G113:G115) -> 21.01444369 | H116: =SUM(H113:H115) -> 51.80520081 | I116: 134.1712801 | J116: 594.8620628 | K116: 1230.454592 | L116: 1059.073716 | M116: 846.7759073 | N116: 632.6415547 | O116: 416.8535256 | P116: 208.4267628 | Q116: 104.2133814 | R116: 52.1066907 | S116: 26.05334535 | T116: 13.02667268 | U116: 6.513336338 | V116: 3.256668169 | W116: 1.628334084 | X116: 0.8141670422 | Y116: 0.4070835211 | Z116: 0.2035417606 | AA116: 0.1017708803 | AB116: 0.05088544014 | AC116: 0.02544272007 | AD116: 0.01272136004 | AE116: 0.006360680018 | AF116: 0.003180340009 | AG116: 0.001590170004 | AH116: =SUM(AH113:AH115) -> 0.0007950850022 | AI116: 0.0003975425011 | AJ116: 0.0001987712505 | AK116: 9.938562527e-05 | AL116: 4.969281264e-05 | AM116: 2.484640632e-05 | AN116: 1.242320316e-05 | AO116: 6.21160158e-06 | AP116: 6.21160158e-06
C118: CCA rate | F118: ='Control Sheet'!F198 -> 0.5
C119: First year half CCA rule | F119: ='Control Sheet'!$F$199 -> 1
B120: Maximum CCA allowed for the year | E120: $ m | G120: =SUM(G113:G114)*$F$118*G96*CHOOSE($F$119+(1-F96)*G96+1,1,1,0.5) -> 0 | H120: 0 | I120: 0 | J120: 0 | K120: 0 | L120: 307.6136479 | M120: 529.5368581 | N120: 423.3879536 | O120: 316.3207773 | P120: 208.4267628 | Q120: 104.2133814 | R120: 52.1066907 | S120: 26.05334535 | T120: 13.02667268 | U120: 6.513336338 | V120: 3.256668169 | W120: 1.628334084 | X120: 0.8141670422 | Y120: 0.4070835211 | Z120: 0.2035417606 | AA120: 0.1017708803 | AB120: 0.05088544014 | AC120: 0.02544272007 | AD120: 0.01272136004 | AE120: 0.006360680018 | AF120: 0.003180340009 | AG120: 0.001590170004 | AH120: 0.0007950850022 | AI120: 0.0003975425011 | AJ120: 0.0001987712505 | AK120: 9.938562527e-05 | AL120: 4.969281264e-05 | AM120: 2.484640632e-05 | AN120: 1.242320316e-05 | AO120: 6.21160158e-06 | AP120: 0
B121: Taxable Income before CCA | E121: $ m | F121: =SUM(G121:AP121) -> 4998.869737 | G121: =G102 -> 0 | H121: =H102 -> 0 | I121: 0 | J121: 0 | K121: 0 | L121: 171.3808755 | M121: 212.297809 | N121: 214.1343526 | O121: 215.788029 | P121: 217.3504156 | Q121: 215.4795011 | R121: 217.2483925 | S121: 219.5253154 | T121: 222.3986757 | U121: 224.9492553 | V121: 227.091986 | W121: 234.0385182 | X121: 237.3386656 | Y121: 240.8107357 | Z121: 244.4648278 | AA121: 249.4608368 | AB121: 254.8504586 | AC121: 259.3433862 | AD121: 260.8311809 | AE121: 262.3319897 | AF121: 27.67659062 | AG121: 30.78769421 | AH121: 34.19532227 | AI121: 37.93089988 | AJ121: 40.56751161 | AK121: 43.18338932 | AL121: 44.90106974 | AM121: 46.18488477 | AN121: 46.25552931 | AO121: 46.07163814 | AP121: 0
B122: CCA Claimed | E122: $ m | F122: =SUM(G122:AP122) -> 1230.454586 | G122: =MIN(G120:G121) -> 0 | H122: =MIN(H120:H121) -> 0 | I122: 0 | J122: 0 | K122: 0 | L122: 171.3808755 | M122: 212.297809 | N122: 214.1343526 | O122: 215.788029 | P122: 208.4267628 | Q122: 104.2133814 | R122: 52.1066907 | S122: 26.05334535 | T122: 13.02667268 | U122: 6.513336338 | V122: 3.256668169 | W122: 1.628334084 | X122: 0.8141670422 | Y122: 0.4070835211 | Z122: 0.2035417606 | AA122: 0.1017708803 | AB122: 0.05088544014 | AC122: 0.02544272007 | AD122: 0.01272136004 | AE122: 0.006360680018 | AF122: 0.003180340009 | AG122: 0.001590170004 | AH122: =MIN(AH120:AH121) -> 0.0007950850022 | AI122: 0.0003975425011 | AJ122: 0.0001987712505 | AK122: 9.938562527e-05 | AL122: 4.969281264e-05 | AM122: 2.484640632e-05 | AN122: 1.242320316e-05 | AO122: 6.21160158e-06 | AP122: 0
A125: Note 2: Calculation of Internal Rate of Return (IRR)
A127: Years ended December 31st | F127: =F5 -> Total | G127: 2020-12-31 | H127: 2021-12-31 | I127: 2022-12-31 | J127: 2023-12-31 | K127: 2024-12-31 | L127: 2025-12-31 | M127: 2026-12-31 | N127: 2027-12-31 | O127: 2028-12-31 | P127: 2029-12-31 | Q127: 2030-12-31 | R127: 2031-12-31 | S127: 2032-12-31 | T127: 2033-12-31 | U127: 2034-12-31 | V127: 2035-12-31 | W127: 2036-12-31 | X127: 2037-12-31 | Y127: 2038-12-31 | Z127: 2039-12-31 | AA127: 2040-12-31 | AB127: 2041-12-31 | AC127: 2042-12-31 | AD127: 2043-12-31 | AE127: 2044-12-31 | AF127: 2045-12-31 | AG127: 2046-12-31 | AH127: 2047-12-31 | AI127: 2048-12-31 | AJ127: 2049-12-31 | AK127: 2050-12-31 | AL127: 2051-12-31 | AM127: 2052-12-31 | AN127: 2053-12-31 | AO127: 2054-12-31 | AP127: 2055-12-31
A128: Number of months (construction and operational) | G128: =SUM(G7,G9,G11) -> 10.46666667 | H128: 12 | I128: 12 | J128: 12 | K128: 12 | L128: 12 | M128: 12 | N128: 12 | O128: 12 | P128: 12 | Q128: 12 | R128: 12 | S128: 12 | T128: 12 | U128: 12 | V128: 12 | W128: 12 | X128: 12 | Y128: 12 | Z128: 12 | AA128: 12 | AB128: 12 | AC128: 12 | AD128: 12 | AE128: 12 | AF128: 12 | AG128: 12 | AH128: 12 | AI128: 12 | AJ128: 12 | AK128: 12 | AL128: 12 | AM128: 12 | AN128: 12 | AO128: 12 | AP128: 0
B130: Mid period for IRR | G130: =IFERROR(EDATE(F127,G128/2),EDATE(G127,-G128/2)) -> 2020-07-31 | H130: =IFERROR(EDATE(G127,H128/2),EDATE(H127,-H128/2)) -> 2021-06-30 | I130: 2022-06-30 | J130: 2023-06-30 | K130: 2024-06-30 | L130: 2025-06-30 | M130: 2026-06-30 | N130: 2027-06-30 | O130: 2028-06-30 | P130: 2029-06-30 | Q130: 2030-06-30 | R130: 2031-06-30 | S130: 2032-06-30 | T130: 2033-06-30 | U130: 2034-06-30 | V130: 2035-06-30 | W130: 2036-06-30 | X130: 2037-06-30 | Y130: 2038-06-30 | Z130: 2039-06-30 | AA130: 2040-06-30 | AB130: 2041-06-30 | AC130: 2042-06-30 | AD130: 2043-06-30 | AE130: 2044-06-30 | AF130: 2045-06-30 | AG130: 2046-06-30 | AH130: =IFERROR(EDATE(AG127,AH128/2),EDATE(AH127,-AH128/2)) -> 2047-06-30 | AI130: =IFERROR(EDATE(AH127,AI128/2),EDATE(AI127,-AI128/2)) -> 2048-06-30 | AJ130: =IFERROR(EDATE(AI127,AJ128/2),EDATE(AJ127,-AJ128/2)) -> 2049-06-30 | AK130: =IFERROR(EDATE(AJ127,AK128/2),EDATE(AK127,-AK128/2)) -> 2050-06-30 | AL130: =IFERROR(EDATE(AK127,AL128/2),EDATE(AL127,-AL128/2)) -> 2051-06-30 | AM130: =IFERROR(EDATE(AL127,AM128/2),EDATE(AM127,-AM128/2)) -> 2052-06-30 | AN130: =IFERROR(EDATE(AM127,AN128/2),EDATE(AN127,-AN128/2)) -> 2053-06-30 | AO130: =IFERROR(EDATE(AN127,AO128/2),EDATE(AO127,-AO128/2)) -> 2054-06-30 | AP130: =IFERROR(EDATE(AO127,AP128/2),EDATE(AP127,-AP128/2)) -> 2054-12-31
B131: Project Free Cash Flows to Equity | E131: $ m | F131: =SUM(G131:AP131) -> 2672.060188 | G131: =G65 -> -21.01444369 | H131: -30.79075711 | I131: -82.36607925 | J131: -129.5547671 | K131: 0 | L131: 148.9178996 | M131: 163.8853982 | N131: 164.0971915 | O131: 164.1519933 | P131: 161.0250386 | Q131: 131.9210492 | R131: 117.5657104 | S131: 110.1932438 | T131: 106.5854257 | U131: 104.1580128 | V131: 103.1588964 | W131: 104.1865788 | X131: 103.7130835 | Y131: 103.0818923 | Z131: 102.4188061 | AA131: 103.2539362 | AB131: 146.7491027 | AC131: 155.7705637 | AD131: 156.8551732 | AE131: 157.9509225 | AF131: 39.69405899 | AG131: 22.12736304 | AH131: 24.60219349 | AI131: 27.31545635 | AJ131: 29.33984255 | AK131: 31.25906189 | AL131: 32.59113829 | AM131: 33.56553078 | AN131: 33.71308113 | AO131: 48.09928693 | AP131: 3.839303179
B132: Equity IRR | E132: =XIRR(G131:AP131,G130:AP130) -> 0.326929754
A135: END

Sheet PAI
A1: Windstream v. Canada
A2: Schedule 9
A3: Calculation of Pre-award Interest
B5: Approach | F5: Market Approach - High
B7: Damages | E7: $ | F7: =SUMIFS(H56:K56,H55:K55,F5)*10^6 -> 267872517.4
B9: Total pre-award interest | E9: $ | F9: =SUM(M22:M39) -> 29871018.62
B11: Interest rate
C12: Benchmark | D12: [1] | E12: CDOR | F12: 3 month
C13: Spread | E13: % | F13: 0.02
B14: Valuation Date | F14: ='Control Sheet'!F65 -> 2020-02-18
B15: Award Date | D15: [2] | F15: 2023-12-31
B17: CDOR rate available up to | D17: [3] | F17: =MAX('CDOR Historical'!A6:A504) -> 2022-02-15
B18: CDOR rate for future period | F18: =VLOOKUP(F17,'CDOR Historical'!A6:B508,2,0)/100 -> 0.00855
B20: Interest Schedule | D20: [4] | F20: Start date | G20: End date | H20: Period (days) | I20: CDOR rate | J20: Spread | K20: Interest rate | L20: Opening | M20: Interest | N20: Closing
F21: [A] | G21: [B] | H21: [C = B - A + 1] | I21: [D] | J21: [E] | K21: [F = D + E] | L21: [G] | M21: [H = F * E * C /365] | N21: [I = G + H]
F22: =F14+1 -> 2020-02-19 | G22: =IF(F22="","",MIN($F$15,EOMONTH(F22,LEFT($F$12,1)-1))) -> 2020-04-30 | H22: =IF(F22="","",G22-F22+1) -> 72 | I22: =IF(F22="","",IF(F22>$F$17,$F$18,INDEX('CDOR Historical'!$B$6:$B$508,MATCH(PAI!F22,'CDOR Historical'!$A$6:$A$508,0),MATCH(PAI!$F$12,'CDOR Historical'!$B$5:$B$5,0))/100)) -> 0.0196375 | J22: =IF(F22="","",$F$13) -> 0.02 | K22: =IF(F22="","",I22+J22) -> 0.0396375 | L22: =F7 -> 267872517.4 | M22: =IF(F22="","",L22*K22*H22/365) -> 2094469.527 | N22: =IF(F22="","",L22+M22) -> 269966986.9
F23: =IF(OR(G22=$F$15,G22=""),"",G22+1) -> 2020-05-01 | G23: =IF(F23="","",MIN($F$15,EOMONTH(F23,LEFT($F$12,1)-1))) -> 2020-07-31 | H23: =IF(F23="","",G23-F23+1) -> 92 | I23: =IF(F23="","",IF(F23>$F$17,$F$18,INDEX('CDOR Historical'!$B$6:$B$508,MATCH(PAI!F23,'CDOR Historical'!$A$6:$A$508,0),MATCH(PAI!$F$12,'CDOR Historical'!$B$5:$B$5,0))/100)) -> 0.006625 | J23: =IF(F23="","",$F$13) -> 0.02 | K23: =IF(F23="","",I23+J23) -> 0.026625 | L23: =IF(F23="","",N22) -> 269966986.9 | M23: =IF(F23="","",L23*K23*H23/365) -> 1811737.355 | N23: 271778724.2
F24: 2020-08-01 | G24: 2020-10-31 | H24: 92 | I24: =IF(F24="","",IF(F24>$F$17,$F$18,INDEX('CDOR Historical'!$B$6:$B$508,MATCH(PAI!F24,'CDOR Historical'!$A$6:$A$508,0),MATCH(PAI!$F$12,'CDOR Historical'!$B$5:$B$5,0))/100)) -> 0.0053375 | J24: 0.02 | K24: 0.0253375 | L24: =IF(F24="","",N23) -> 271778724.2 | M24: 1735698.069 | N24: 273514422.3
F25: =IF(OR(G24=$F$15,G24=""),"",G24+1) -> 2020-11-01 | G25: =IF(F25="","",MIN($F$15,EOMONTH(F25,LEFT($F$12,1)-1))) -> 2021-01-31 | H25: =IF(F25="","",G25-F25+1) -> 92 | I25: =IF(F25="","",IF(F25>$F$17,$F$18,INDEX('CDOR Historical'!$B$6:$B$508,MATCH(PAI!F25,'CDOR Historical'!$A$6:$A$508,0),MATCH(PAI!$F$12,'CDOR Historical'!$B$5:$B$5,0))/100)) -> 0.0049 | J25: =IF(F25="","",$F$13) -> 0.02 | K25: =IF(F25="","",I25+J25) -> 0.0249 | L25: =IF(F25="","",N24) -> 273514422.3 | M25: =IF(F25="","",L25*K25*H25/365) -> 1716621.476 | N25: =IF(F25="","",L25+M25) -> 275231043.8
F26: 2021-02-01 | G26: 2021-04-30 | H26: 89 | I26: =IF(F26="","",IF(F26>$F$17,$F$18,INDEX('CDOR Historical'!$B$6:$B$508,MATCH(PAI!F26,'CDOR Historical'!$A$6:$A$508,0),MATCH(PAI!$F$12,'CDOR Historical'!$B$5:$B$5,0))/100)) -> 0.004375 | J26: 0.02 | K26: 0.024375 | L26: 275231043.8 | M26: 1635833.824 | N26: 276866877.6
F27: 2021-05-01 | G27: 2021-07-31 | H27: 92 | I27: =IF(F27="","",IF(F27>$F$17,$F$18,INDEX('CDOR Historical'!$B$6:$B$508,MATCH(PAI!F27,'CDOR Historical'!$A$6:$A$508,0),MATCH(PAI!$F$12,'CDOR Historical'!$B$5:$B$5,0))/100)) -> 0.00435 | J27: 0.02 | K27: 0.02435 | L27: 276866877.6 | M27: 1699279.943 | N27: 278566157.6
F28: 2021-08-01 | G28: 2021-10-31 | H28: 92 | I28: =IF(F28="","",IF(F28>$F$17,$F$18,INDEX('CDOR Historical'!$B$6:$B$508,MATCH(PAI!F28,'CDOR Historical'!$A$6:$A$508,0),MATCH(PAI!$F$12,'CDOR Historical'!$B$5:$B$5,0))/100)) -> 0.0044 | J28: 0.02 | K28: 0.0244 | L28: 278566157.6 | M28: 1713220.029 | N28: 280279377.6
F29: 2021-11-01 | G29: 2022-01-31 | H29: 92 | I29: =IF(F29="","",IF(F29>$F$17,$F$18,INDEX('CDOR Historical'!$B$6:$B$508,MATCH(PAI!F29,'CDOR Historical'!$A$6:$A$508,0),MATCH(PAI!$F$12,'CDOR Historical'!$B$5:$B$5,0))/100)) -> 0.004775 | J29: 0.02 | K29: 0.024775 | L29: 280279377.6 | M29: 1750248.727 | N29: 282029626.3
F30: 2022-02-01 | G30: 2022-04-30 | H30: 89 | I30: =IF(F30="","",IF(F30>$F$17,$F$18,INDEX('CDOR Historical'!$B$6:$B$508,MATCH(PAI!F30,'CDOR Historical'!$A$6:$A$508,0),MATCH(PAI!$F$12,'CDOR Historical'!$B$5:$B$5,0))/100)) -> 0.00745 | J30: 0.02 | K30: 0.02745 | L30: 282029626.3 | M30: 1887705.421 | N30: 283917331.7
F31: 2022-05-01 | G31: 2022-07-31 | H31: 92 | I31: =IF(F31="","",IF(F31>$F$17,$F$18,INDEX('CDOR Historical'!$B$6:$B$508,MATCH(PAI!F31,'CDOR Historical'!$A$6:$A$508,0),MATCH(PAI!$F$12,'CDOR Historical'!$B$5:$B$5,0))/100)) -> 0.00855 | J31: 0.02 | K31: 0.02855 | L31: 283917331.7 | M31: 2043115.791 | N31: 285960447.5
F32: 2022-08-01 | G32: 2022-10-31 | H32: 92 | I32: =IF(F32="","",IF(F32>$F$17,$F$18,INDEX('CDOR Historical'!$B$6:$B$508,MATCH(PAI!F32,'CDOR Historical'!$A$6:$A$508,0),MATCH(PAI!$F$12,'CDOR Historical'!$B$5:$B$5,0))/100)) -> 0.00855 | J32: 0.02 | K32: 0.02855 | L32: 285960447.5 | M32: 2057818.388 | N32: 288018265.9
F33: 2022-11-01 | G33: 2023-01-31 | H33: 92 | I33: =IF(F33="","",IF(F33>$F$17,$F$18,INDEX('CDOR Historical'!$B$6:$B$508,MATCH(PAI!F33,'CDOR Historical'!$A$6:$A$508,0),MATCH(PAI!$F$12,'CDOR Historical'!$B$5:$B$5,0))/100)) -> 0.00855 | J33: 0.02 | K33: 0.02855 | L33: 288018265.9 | M33: 2072626.787 | N33: 290090892.7
F34: 2023-02-01 | G34: 2023-04-30 | H34: 89 | I34: =IF(F34="","",IF(F34>$F$17,$F$18,INDEX('CDOR Historical'!$B$6:$B$508,MATCH(PAI!F34,'CDOR Historical'!$A$6:$A$508,0),MATCH(PAI!$F$12,'CDOR Historical'!$B$5:$B$5,0))/100)) -> 0.00855 | J34: 0.02 | K34: 0.02855 | L34: 290090892.7 | M34: 2019469.736 | N34: 292110362.4
F35: 2023-05-01 | G35: 2023-07-31 | H35: 92 | I35: =IF(F35="","",IF(F35>$F$17,$F$18,INDEX('CDOR Historical'!$B$6:$B$508,MATCH(PAI!F35,'CDOR Historical'!$A$6:$A$508,0),MATCH(PAI!$F$12,'CDOR Historical'!$B$5:$B$5,0))/100)) -> 0.00855 | J35: 0.02 | K35: 0.02855 | L35: 292110362.4 | M35: 2102074.186 | N35: 294212436.6
F36: 2023-08-01 | G36: 2023-10-31 | H36: 92 | I36: =IF(F36="","",IF(F36>$F$17,$F$18,INDEX('CDOR Historical'!$B$6:$B$508,MATCH(PAI!F36,'CDOR Historical'!$A$6:$A$508,0),MATCH(PAI!$F$12,'CDOR Historical'!$B$5:$B$5,0))/100)) -> 0.00855 | J36: 0.02 | K36: 0.02855 | L36: 294212436.6 | M36: 2117201.058 | N36: 296329637.7
F37: 2023-11-01 | G37: 2023-12-31 | H37: 61 | I37: =IF(F37="","",IF(F37>$F$17,$F$18,INDEX('CDOR Historical'!$B$6:$B$508,MATCH(PAI!F37,'CDOR Historical'!$A$6:$A$508,0),MATCH(PAI!$F$12,'CDOR Historical'!$B$5:$B$5,0))/100)) -> 0.00855 | J37: 0.02 | K37: 0.02855 | L37: 296329637.7 | M37: 1413898.303 | N37: 297743536
I38: =IF(F38="","",IF(F38>$F$17,$F$18,INDEX('CDOR Historical'!$B$6:$B$508,MATCH(PAI!F38,'CDOR Historical'!$A$6:$A$508,0),MATCH(PAI!$F$12,'CDOR Historical'!$B$5:$B$5,0))/100)) -> 
I39: =IF(F39="","",IF(F39>$F$17,$F$18,INDEX('CDOR Historical'!$B$6:$B$508,MATCH(PAI!F39,'CDOR Historical'!$A$6:$A$508,0),MATCH(PAI!$F$12,'CDOR Historical'!$B$5:$B$5,0))/100)) -> 
A41: Notes:
A42: 1 | B42: Source: Bloomberg
A43: =A42+1 -> 2 | B43: Enter the date of award or the date up to which the interest is being calculated.
A44: =A43+1 -> 3 | B44: CDOR rates were available till February 15, 2022. For interest periods starting after that date we have used the rate as of February 15, 2022.
A45: =A44+1 -> 4 | B45: Compounding based on the tenure of CDOR selected in the analysis (3-months).
A46: =A45+1 -> 5 | B46: The calculation of pre-award interest can be updated closer to the evidentiary hearing or the award, based upon the actual CDOR rates that will become available after the issuance of our report.
A48: Legend
B49: Input Cells
B50: Output Cells
A53: Control Cells
H55: Transaction Structuring | I55: Risk Adjustment Factor | J55: Market Approach - Low | K55: Market Approach - High
H56: 262.1804256 | I56: 299.5644444 | J56: 253.5158568 | K56: 267.8725174
G57: =F9 -> 29871018.62 | H57: 29.23628169 | I57: 33.40505097 | J57: 28.2700777 | K57: 29.87101862

Sheet Analysis >>>

Sheet Sensitivities
A1: Windstream v. Canada
A2: Schedule 1A
A3: Sensitivities on Capex and Opex Estimates
B5: =Conclusion!$B$5 -> Valuation of the Project using the Transaction Structuring Analysis
C7: $ millions | D7: Capex
C8: Opex | D8: ='Control Sheet'!H69 -> Low | E8: ='Control Sheet'!I69 -> Mid | F8: ='Control Sheet'!J69 -> High
C9: ='Control Sheet'!C140 -> Low | D9: 329.5936 | E9: 304.0511 | F9: 282.0401
C10: ='Control Sheet'!C141 -> Mid | D10: 318.9093 | E10: 293.3658 | F10: 271.1783
C11: ='Control Sheet'!C142 -> High | D11: 306.7987 | E11: 281.2049 | F11: 258.8701
B13: =Conclusion!$B$21&" - "&TEXT('Control Sheet'!F208,"#%") -> Valuation of the Project using the Project Stage Risk Adjustment Factor Approach - 55%
C15: $ millions | D15: Capex
C16: Opex | D16: ='Control Sheet'!H69 -> Low | E16: ='Control Sheet'!I69 -> Mid | F16: ='Control Sheet'!J69 -> High
C17: ='Control Sheet'!C140 -> Low | D17: 345.7823 | E17: 326.7766 | F17: 310.59
C18: ='Control Sheet'!C141 -> Mid | D18: 335.3747 | E18: 316.3676 | F18: 300.0761
C19: ='Control Sheet'!C142 -> High | D19: 323.5784 | E19: 304.541 | F19: 288.1608
B21: =Conclusion!$B$21&" - "&TEXT('Control Sheet'!F209,"#%") -> Valuation of the Project using the Project Stage Risk Adjustment Factor Approach - 60%
C23: $ millions | D23: Capex
C24: Opex | D24: ='Control Sheet'!H69 -> Low | E24: ='Control Sheet'!I69 -> Mid | F24: ='Control Sheet'!J69 -> High
C25: ='Control Sheet'!C140 -> Low | D25: 377.217 | E25: 356.4835 | F25: 338.8255
C26: ='Control Sheet'!C141 -> Mid | D26: 365.8633 | E26: 345.1282 | F26: 327.3557
C27: ='Control Sheet'!C142 -> High | D27: 352.9947 | E27: 332.2266 | F27: 314.3572

Sheet Sources&Uses
A1: Windstream v. Canada
A2: Schedule 2
A3: Sources & Uses (as of COD)
A4: Amounts in $ millions
C7: Sources | D7: $ | E7: % | H7: Uses | K7: $ | L7: %
C8: Project equity | D8: =Financing!$G$15 -> 263.7260471 | E8: =+D8/$D$28 -> 0.2 | H8: DEVEX: Planning and development | K8: =-DCF!$F$52 -> 49.22318601 | L8: =+K8/$K$28 -> 0.03732902877
H9: CAPEX:
C10: Project debt | D10: =Financing!$F$26 -> 1054.904189 | E10: =+D10/$D$28 -> 0.8 | I10: Foundation or Gravity Based Foundation (GBF) | J10: ='Control Sheet'!F90 -> 343.2203011
I11: Wind Turbine (WTG) | J11: ='Control Sheet'!F91 -> 295.1279001
I12: Offshore high voltage substation (OVHS) | J12: ='Control Sheet'!F92 -> 52.18290809
I13: Array and export cables | J13: ='Control Sheet'!F93 -> 68.40221232
I14: Installation costs | J14: ='Control Sheet'!F94 -> 197.3202404
I15: Onshore interconnection | J15: ='Control Sheet'!F95 -> 50.18410342
I16: Insurance | J16: ='Control Sheet'!F96 -> 27.28830973
I17: Management costs | J17: ='Control Sheet'!F97 -> 14.37177231
I18: Contingency | J18: ='Control Sheet'!F98 -> 105.0849545 | K18: =SUBTOTAL(9,J10:J18) -> 1153.182702 | L18: =+K18/$K$28 -> 0.8745307599
H19: Financing Costs
I20: Base land rent during construction | J20: =-DCF!F34 -> 2.822752001
I21: Agency cost of debt (construction period) | J21: =-SUMPRODUCT(DCF!G42:AP42,DCF!G8:AP8) -> 0.1836111111
I22: Interest Costs during Construction | J22: =-DCF!$F$54 -> 28.04870378
I23: Upfront costs | J23: =-DCF!$F$43 -> 13.18637449
I24: Commitment Fees | J24: =-DCF!$F$44 -> 7.65259584
I25: LC Costs | J25: =-DCF!F45 -> 15.51452327
I26: DSRA | J26: =-Financing!$K$66 -> 40.80759417
I27: O&M reserve | J27: =-DCF!$K$57 -> 8.008192983 | K27: =SUBTOTAL(9,J20:J27) -> 116.2243476 | L27: =+K27/$K$28 -> 0.08814021134
C28: Total | D28: =SUM(D8:D27) -> 1318.630236 | E28: =+D28/$D$28 -> 1 | H28: Total | K28: =SUM(K8:K27) -> 1318.630236 | L28: =+K28/$K$28 -> 1
A31: Notes:
A32: 1 | B32: Refer to Schedule 1.

Sheet Workpapers >>>

Sheet Financing
A1: Windstream v. Canada
A2: Financing
F4: Totals | G4: =Timeline!G19 -> 2020-12-31 | H4: =Timeline!H19 -> 2021-12-31 | I4: =Timeline!I19 -> 2022-12-31 | J4: =Timeline!J19 -> 2023-12-31 | K4: =Timeline!K19 -> 2024-12-31 | L4: =Timeline!L19 -> 2025-12-31 | M4: =Timeline!M19 -> 2026-12-31 | N4: =Timeline!N19 -> 2027-12-31 | O4: =Timeline!O19 -> 2028-12-31 | P4: =Timeline!P19 -> 2029-12-31 | Q4: =Timeline!Q19 -> 2030-12-31 | R4: =Timeline!R19 -> 2031-12-31 | S4: =Timeline!S19 -> 2032-12-31 | T4: =Timeline!T19 -> 2033-12-31 | U4: =Timeline!U19 -> 2034-12-31 | V4: =Timeline!V19 -> 2035-12-31 | W4: =Timeline!W19 -> 2036-12-31 | X4: =Timeline!X19 -> 2037-12-31 | Y4: =Timeline!Y19 -> 2038-12-31 | Z4: =Timeline!Z19 -> 2039-12-31 | AA4: =Timeline!AA19 -> 2040-12-31 | AB4: =Timeline!AB19 -> 2041-12-31 | AC4: =Timeline!AC19 -> 2042-12-31 | AD4: =Timeline!AD19 -> 2043-12-31 | AE4: =Timeline!AE19 -> 2044-12-31 | AF4: =Timeline!AF19 -> 2045-12-31 | AG4: =Timeline!AG19 -> 2046-12-31 | AH4: =Timeline!AH19 -> 2047-12-31 | AI4: =Timeline!AI19 -> 2048-12-31 | AJ4: =Timeline!AJ19 -> 2049-12-31 | AK4: =Timeline!AK19 -> 2050-12-31 | AL4: =Timeline!AL19 -> 2051-12-31 | AM4: =Timeline!AM19 -> 2052-12-31 | AN4: =Timeline!AN19 -> 2053-12-31 | AO4: =Timeline!AO19 -> 2054-12-31 | AP4: =Timeline!AP19 -> 2055-12-31
B5: =Timeline!B20 -> Development flag | G5: =Timeline!G20 -> 1 | H5: =Timeline!H20 -> 1 | I5: =Timeline!I20 -> 1 | J5: =Timeline!J20 -> 1 | K5: =Timeline!K20 -> 0 | L5: =Timeline!L20 -> 0 | M5: =Timeline!M20 -> 0 | N5: =Timeline!N20 -> 0 | O5: =Timeline!O20 -> 0 | P5: =Timeline!P20 -> 0 | Q5: =Timeline!Q20 -> 0 | R5: =Timeline!R20 -> 0 | S5: =Timeline!S20 -> 0 | T5: =Timeline!T20 -> 0 | U5: =Timeline!U20 -> 0 | V5: =Timeline!V20 -> 0 | W5: =Timeline!W20 -> 0 | X5: =Timeline!X20 -> 0 | Y5: =Timeline!Y20 -> 0 | Z5: =Timeline!Z20 -> 0 | AA5: =Timeline!AA20 -> 0 | AB5: =Timeline!AB20 -> 0 | AC5: =Timeline!AC20 -> 0 | AD5: =Timeline!AD20 -> 0 | AE5: =Timeline!AE20 -> 0 | AF5: =Timeline!AF20 -> 0 | AG5: =Timeline!AG20 -> 0 | AH5: =Timeline!AH20 -> 0 | AI5: =Timeline!AI20 -> 0 | AJ5: =Timeline!AJ20 -> 0 | AK5: =Timeline!AK20 -> 0 | AL5: =Timeline!AL20 -> 0 | AM5: =Timeline!AM20 -> 0 | AN5: =Timeline!AN20 -> 0 | AO5: =Timeline!AO20 -> 0 | AP5: =Timeline!AP20 -> 0
B6: =Timeline!B21 -> No. of development months | G6: =Timeline!G21 -> 10.46666667 | H6: =Timeline!H21 -> 12 | I6: =Timeline!I21 -> 12 | J6: =Timeline!J21 -> 1.6 | K6: =Timeline!K21 -> 0.3666666667 | L6: =Timeline!L21 -> 0 | M6: =Timeline!M21 -> 0 | N6: =Timeline!N21 -> 0 | O6: =Timeline!O21 -> 0 | P6: =Timeline!P21 -> 0 | Q6: =Timeline!Q21 -> 0 | R6: =Timeline!R21 -> 0 | S6: =Timeline!S21 -> 0 | T6: =Timeline!T21 -> 0 | U6: =Timeline!U21 -> 0 | V6: =Timeline!V21 -> 0 | W6: =Timeline!W21 -> 0 | X6: =Timeline!X21 -> 0 | Y6: =Timeline!Y21 -> 0 | Z6: =Timeline!Z21 -> 0 | AA6: =Timeline!AA21 -> 0 | AB6: =Timeline!AB21 -> 0 | AC6: =Timeline!AC21 -> 0 | AD6: =Timeline!AD21 -> 0 | AE6: =Timeline!AE21 -> 0 | AF6: =Timeline!AF21 -> 0 | AG6: =Timeline!AG21 -> 0 | AH6: =Timeline!AH21 -> 0 | AI6: =Timeline!AI21 -> 0 | AJ6: =Timeline!AJ21 -> 0 | AK6: =Timeline!AK21 -> 0 | AL6: =Timeline!AL21 -> 0 | AM6: =Timeline!AM21 -> 0 | AN6: =Timeline!AN21 -> 0 | AO6: =Timeline!AO21 -> 0 | AP6: =Timeline!AP21 -> 0
B7: =Timeline!B22 -> Construction flag | G7: =Timeline!G22 -> 0 | H7: =Timeline!H22 -> 0 | I7: =Timeline!I22 -> 0 | J7: =Timeline!J22 -> 1 | K7: =Timeline!K22 -> 1 | L7: =Timeline!L22 -> 0 | M7: =Timeline!M22 -> 0 | N7: =Timeline!N22 -> 0 | O7: =Timeline!O22 -> 0 | P7: =Timeline!P22 -> 0 | Q7: =Timeline!Q22 -> 0 | R7: =Timeline!R22 -> 0 | S7: =Timeline!S22 -> 0 | T7: =Timeline!T22 -> 0 | U7: =Timeline!U22 -> 0 | V7: =Timeline!V22 -> 0 | W7: =Timeline!W22 -> 0 | X7: =Timeline!X22 -> 0 | Y7: =Timeline!Y22 -> 0 | Z7: =Timeline!Z22 -> 0 | AA7: =Timeline!AA22 -> 0 | AB7: =Timeline!AB22 -> 0 | AC7: =Timeline!AC22 -> 0 | AD7: =Timeline!AD22 -> 0 | AE7: =Timeline!AE22 -> 0 | AF7: =Timeline!AF22 -> 0 | AG7: =Timeline!AG22 -> 0 | AH7: =Timeline!AH22 -> 0 | AI7: =Timeline!AI22 -> 0 | AJ7: =Timeline!AJ22 -> 0 | AK7: =Timeline!AK22 -> 0 | AL7: =Timeline!AL22 -> 0 | AM7: =Timeline!AM22 -> 0 | AN7: =Timeline!AN22 -> 0 | AO7: =Timeline!AO22 -> 0 | AP7: =Timeline!AP22 -> 0
B8: =Timeline!B23 -> No. of construction months | G8: =Timeline!G23 -> 0 | H8: =Timeline!H23 -> 0 | I8: =Timeline!I23 -> 0 | J8: =Timeline!J23 -> 10.4 | K8: =Timeline!K23 -> 11.63333333 | L8: =Timeline!L23 -> 0 | M8: =Timeline!M23 -> 0 | N8: =Timeline!N23 -> 0 | O8: =Timeline!O23 -> 0 | P8: =Timeline!P23 -> 0 | Q8: =Timeline!Q23 -> 0 | R8: =Timeline!R23 -> 0 | S8: =Timeline!S23 -> 0 | T8: =Timeline!T23 -> 0 | U8: =Timeline!U23 -> 0 | V8: =Timeline!V23 -> 0 | W8: =Timeline!W23 -> 0 | X8: =Timeline!X23 -> 0 | Y8: =Timeline!Y23 -> 0 | Z8: =Timeline!Z23 -> 0 | AA8: =Timeline!AA23 -> 0 | AB8: =Timeline!AB23 -> 0 | AC8: =Timeline!AC23 -> 0 | AD8: =Timeline!AD23 -> 0 | AE8: =Timeline!AE23 -> 0 | AF8: =Timeline!AF23 -> 0 | AG8: =Timeline!AG23 -> 0 | AH8: =Timeline!AH23 -> 0 | AI8: =Timeline!AI23 -> 0 | AJ8: =Timeline!AJ23 -> 0 | AK8: =Timeline!AK23 -> 0 | AL8: =Timeline!AL23 -> 0 | AM8: =Timeline!AM23 -> 0 | AN8: =Timeline!AN23 -> 0 | AO8: =Timeline!AO23 -> 0 | AP8: =Timeline!AP23 -> 0
B9: =Timeline!B24 -> Operation flag | G9: =Timeline!G24 -> 0 | H9: =Timeline!H24 -> 0 | I9: =Timeline!I24 -> 0 | J9: =Timeline!J24 -> 0 | K9: =Timeline!K24 -> 0 | L9: =Timeline!L24 -> 1 | M9: =Timeline!M24 -> 1 | N9: =Timeline!N24 -> 1 | O9: =Timeline!O24 -> 1 | P9: =Timeline!P24 -> 1 | Q9: =Timeline!Q24 -> 1 | R9: =Timeline!R24 -> 1 | S9: =Timeline!S24 -> 1 | T9: =Timeline!T24 -> 1 | U9: =Timeline!U24 -> 1 | V9: =Timeline!V24 -> 1 | W9: =Timeline!W24 -> 1 | X9: =Timeline!X24 -> 1 | Y9: =Timeline!Y24 -> 1 | Z9: =Timeline!Z24 -> 1 | AA9: =Timeline!AA24 -> 1 | AB9: =Timeline!AB24 -> 1 | AC9: =Timeline!AC24 -> 1 | AD9: =Timeline!AD24 -> 1 | AE9: =Timeline!AE24 -> 1 | AF9: =Timeline!AF24 -> 1 | AG9: =Timeline!AG24 -> 1 | AH9: =Timeline!AH24 -> 1 | AI9: =Timeline!AI24 -> 1 | AJ9: =Timeline!AJ24 -> 1 | AK9: =Timeline!AK24 -> 1 | AL9: =Timeline!AL24 -> 1 | AM9: =Timeline!AM24 -> 1 | AN9: =Timeline!AN24 -> 1 | AO9: =Timeline!AO24 -> 1 | AP9: =Timeline!AP24 -> 0
B10: =Timeline!B25 -> No. of operational months | G10: =Timeline!G25 -> 0 | H10: =Timeline!H25 -> 0 | I10: =Timeline!I25 -> 0 | J10: =Timeline!J25 -> 0 | K10: =Timeline!K25 -> 0 | L10: =Timeline!L25 -> 12 | M10: =Timeline!M25 -> 12 | N10: =Timeline!N25 -> 12 | O10: =Timeline!O25 -> 12 | P10: =Timeline!P25 -> 12 | Q10: =Timeline!Q25 -> 12 | R10: =Timeline!R25 -> 12 | S10: =Timeline!S25 -> 12 | T10: =Timeline!T25 -> 12 | U10: =Timeline!U25 -> 12 | V10: =Timeline!V25 -> 12 | W10: =Timeline!W25 -> 12 | X10: =Timeline!X25 -> 12 | Y10: =Timeline!Y25 -> 12 | Z10: =Timeline!Z25 -> 12 | AA10: =Timeline!AA25 -> 12 | AB10: =Timeline!AB25 -> 12 | AC10: =Timeline!AC25 -> 12 | AD10: =Timeline!AD25 -> 12 | AE10: =Timeline!AE25 -> 12 | AF10: =Timeline!AF25 -> 12 | AG10: =Timeline!AG25 -> 12 | AH10: =Timeline!AH25 -> 12 | AI10: =Timeline!AI25 -> 12 | AJ10: =Timeline!AJ25 -> 12 | AK10: =Timeline!AK25 -> 12 | AL10: =Timeline!AL25 -> 12 | AM10: =Timeline!AM25 -> 12 | AN10: =Timeline!AN25 -> 12 | AO10: =Timeline!AO25 -> 12 | AP10: =Timeline!AP25 -> 0
B11: Debt Repayment Period (Years) | F11: ='Control Sheet'!$F$44 -> 17
B12: Debt term flag | G12: =IF(SUM($G$10:G10)<=$F$11*12,1,0)*SIGN(G7+G9) -> 0 | H12: =IF(SUM($G$10:H10)<=$F$11*12,1,0)*SIGN(H7+H9) -> 0 | I12: =IF(SUM($G$10:I10)<=$F$11*12,1,0)*SIGN(I7+I9) -> 0 | J12: =IF(SUM($G$10:J10)<=$F$11*12,1,0)*SIGN(J7+J9) -> 1 | K12: =IF(SUM($G$10:K10)<=$F$11*12,1,0)*SIGN(K7+K9) -> 1 | L12: =IF(SUM($G$10:L10)<=$F$11*12,1,0)*SIGN(L7+L9) -> 1 | M12: =IF(SUM($G$10:M10)<=$F$11*12,1,0)*SIGN(M7+M9) -> 1 | N12: =IF(SUM($G$10:N10)<=$F$11*12,1,0)*SIGN(N7+N9) -> 1 | O12: =IF(SUM($G$10:O10)<=$F$11*12,1,0)*SIGN(O7+O9) -> 1 | P12: =IF(SUM($G$10:P10)<=$F$11*12,1,0)*SIGN(P7+P9) -> 1 | Q12: =IF(SUM($G$10:Q10)<=$F$11*12,1,0)*SIGN(Q7+Q9) -> 1 | R12: =IF(SUM($G$10:R10)<=$F$11*12,1,0)*SIGN(R7+R9) -> 1 | S12: =IF(SUM($G$10:S10)<=$F$11*12,1,0)*SIGN(S7+S9) -> 1 | T12: =IF(SUM($G$10:T10)<=$F$11*12,1,0)*SIGN(T7+T9) -> 1 | U12: =IF(SUM($G$10:U10)<=$F$11*12,1,0)*SIGN(U7+U9) -> 1 | V12: =IF(SUM($G$10:V10)<=$F$11*12,1,0)*SIGN(V7+V9) -> 1 | W12: =IF(SUM($G$10:W10)<=$F$11*12,1,0)*SIGN(W7+W9) -> 1 | X12: =IF(SUM($G$10:X10)<=$F$11*12,1,0)*SIGN(X7+X9) -> 1 | Y12: =IF(SUM($G$10:Y10)<=$F$11*12,1,0)*SIGN(Y7+Y9) -> 1 | Z12: =IF(SUM($G$10:Z10)<=$F$11*12,1,0)*SIGN(Z7+Z9) -> 1 | AA12: =IF(SUM($G$10:AA10)<=$F$11*12,1,0)*SIGN(AA7+AA9) -> 1 | AB12: =IF(SUM($G$10:AB10)<=$F$11*12,1,0)*SIGN(AB7+AB9) -> 1 | AC12: =IF(SUM($G$10:AC10)<=$F$11*12,1,0)*SIGN(AC7+AC9) -> 0 | AD12: =IF(SUM($G$10:AD10)<=$F$11*12,1,0)*SIGN(AD7+AD9) -> 0 | AE12: =IF(SUM($G$10:AE10)<=$F$11*12,1,0)*SIGN(AE7+AE9) -> 0 | AF12: =IF(SUM($G$10:AF10)<=$F$11*12,1,0)*SIGN(AF7+AF9) -> 0 | AG12: =IF(SUM($G$10:AG10)<=$F$11*12,1,0)*SIGN(AG7+AG9) -> 0 | AH12: =IF(SUM($G$10:AH10)<=$F$11*12,1,0)*SIGN(AH7+AH9) -> 0 | AI12: =IF(SUM($G$10:AI10)<=$F$11*12,1,0)*SIGN(AI7+AI9) -> 0 | AJ12: =IF(SUM($G$10:AJ10)<=$F$11*12,1,0)*SIGN(AJ7+AJ9) -> 0 | AK12: =IF(SUM($G$10:AK10)<=$F$11*12,1,0)*SIGN(AK7+AK9) -> 0 | AL12: =IF(SUM($G$10:AL10)<=$F$11*12,1,0)*SIGN(AL7+AL9) -> 0 | AM12: =IF(SUM($G$10:AM10)<=$F$11*12,1,0)*SIGN(AM7+AM9) -> 0 | AN12: =IF(SUM($G$10:AN10)<=$F$11*12,1,0)*SIGN(AN7+AN9) -> 0 | AO12: =IF(SUM($G$10:AO10)<=$F$11*12,1,0)*SIGN(AO7+AO9) -> 0 | AP12: =IF(SUM($G$10:AP10)<=$F$11*12,1,0)*SIGN(AP7+AP9) -> 0
B14: Cash Balance
C15: Equity available | G15: =Eqty -> 263.7260471 | H15: =G21 -> 242.7116034 | I15: 211.9208463 | J15: 129.5547671 | K15: 0 | L15: 0 | M15: 148.9178996 | N15: 312.8032978 | O15: 476.9004893 | P15: 641.0524826 | Q15: 802.0775212 | R15: 933.9985704 | S15: 1051.564281 | T15: 1161.757525 | U15: 1268.34295 | V15: 1372.500963 | W15: 1475.659859 | X15: 1579.846438 | Y15: 1683.559522 | Z15: 1786.641414 | AA15: 1889.06022 | AB15: 1992.314156 | AC15: 2139.063259 | AD15: 2294.833823 | AE15: 2451.688996 | AF15: 2609.639918 | AG15: 2649.333977 | AH15: =AG21 -> 2671.46134 | AI15: =AH21 -> 2696.063534 | AJ15: =AI21 -> 2723.37899 | AK15: =AJ21 -> 2752.718833 | AL15: =AK21 -> 2783.977895 | AM15: =AL21 -> 2816.569033 | AN15: =AM21 -> 2850.134564 | AO15: =AN21 -> 2883.847645 | AP15: =AO21 -> 2931.946932
C16: Add / Less: Net cash flows before changes in debt balance | G16: =DCF!G60 -> -21.01444369 | H16: =DCF!H60 -> -30.79075711 | I16: =DCF!I60 -> -82.36607925 | J16: =DCF!J60 -> -491.5854795 | K16: =DCF!K60 -> -652.0658819 | L16: =DCF!L60 -> 195.9000685 | M16: =DCF!M60 -> 212.0778134 | N16: =DCF!N60 -> 213.9254419 | O16: =DCF!O60 -> 215.5750062 | P16: =DCF!P60 -> 214.7684302 | Q16: =DCF!Q60 -> 185.8790186 | R16: =DCF!R60 -> 173.2593944 | S16: =DCF!S60 -> 168.024347 | T16: =DCF!T60 -> 166.6366702 | U16: =DCF!U60 -> 166.8239083 | V16: =DCF!V60 -> 167.5310741 | W16: =DCF!W60 -> 171.9705949 | X16: =DCF!X60 -> 174.40665 | Y16: =DCF!Y60 -> 176.8457229 | Z16: =DCF!Z60 -> 179.4724198 | AA16: =DCF!AA60 -> 183.0078685 | AB16: =DCF!AB60 -> 187.0554245 | AC16: =DCF!AC60 -> 155.7705637 | AD16: =DCF!AD60 -> 156.8551732 | AE16: =DCF!AE60 -> 157.9509225 | AF16: =DCF!AF60 -> 39.69405899 | AG16: =DCF!AG60 -> 22.12736304 | AH16: =DCF!AH60 -> 24.60219349 | AI16: =DCF!AI60 -> 27.31545635 | AJ16: =DCF!AJ60 -> 29.33984255 | AK16: =DCF!AK60 -> 31.25906189 | AL16: =DCF!AL60 -> 32.59113829 | AM16: =DCF!AM60 -> 33.56553078 | AN16: =DCF!AN60 -> 33.71308113 | AO16: =DCF!AO60 -> 48.09928693 | AP16: =DCF!AP60 -> 3.839303179
C17: Add / Less: Changes in DSRA | G17: =G66 -> 0 | H17: =H66 -> 0 | I17: 0 | J17: 0 | K17: -40.80759417 | L17: -0.2224945249 | M17: -0.1102221039 | N17: -0.1963922555 | O17: -0.2613682623 | P17: -1.022840616 | Q17: -0.3201710389 | R17: -0.1995786934 | S17: -0.2239479349 | T17: -0.2120500476 | U17: -0.4330463228 | V17: 0.2777197992 | W17: -0.104015894 | X17: -0.1041657087 | Y17: -0.1043154375 | Z17: -0.1534051951 | AA17: 0.5620018818 | AB17: 43.63588653 | AC17: 0 | AD17: 0 | AE17: 0 | AF17: 0 | AG17: 0 | AH17: 0 | AI17: 0 | AJ17: 0 | AK17: 0 | AL17: 0 | AM17: 0 | AN17: 0 | AO17: 0 | AP17: 0
C18: Cash balance / shortfall before debt raise / repayment | G18: =SUM(G15:G17) -> 242.7116034 | H18: =SUM(H15:H17) -> 211.9208463 | I18: 129.5547671 | J18: -362.0307124 | K18: -692.8734761 | L18: 195.677574 | M18: 360.8854908 | N18: 526.5323474 | O18: 692.2141273 | P18: 854.7980722 | Q18: 987.6363687 | R18: 1107.058386 | S18: 1219.36468 | T18: 1328.182145 | U18: 1434.733812 | V18: 1540.309757 | W18: 1647.526438 | X18: 1754.148923 | Y18: 1860.300929 | Z18: 1965.960429 | AA18: 2072.630091 | AB18: 2223.005467 | AC18: 2294.833823 | AD18: 2451.688996 | AE18: 2609.639918 | AF18: 2649.333977 | AG18: 2671.46134 | AH18: 2696.063534 | AI18: 2723.37899 | AJ18: 2752.718833 | AK18: 2783.977895 | AL18: 2816.569033 | AM18: 2850.134564 | AN18: 2883.847645 | AO18: 2931.946932 | AP18: 2935.786235
C19: Add: debt raised | F19: =SUM(G19:AP19) -> 1054.904189 | G19: =-MIN(G18,0) -> 0 | H19: =-MIN(H18,0) -> 0 | I19: 0 | J19: 362.0307124 | K19: 692.8734761 | L19: 0 | M19: 0 | N19: 0 | O19: 0 | P19: 0 | Q19: 0 | R19: 0 | S19: 0 | T19: 0 | U19: 0 | V19: 0 | W19: 0 | X19: 0 | Y19: 0 | Z19: 0 | AA19: 0 | AB19: 0 | AC19: 0 | AD19: 0 | AE19: 0 | AF19: 0 | AG19: 0 | AH19: 0 | AI19: 0 | AJ19: 0 | AK19: 0 | AL19: 0 | AM19: 0 | AN19: 0 | AO19: 0 | AP19: 0
C20: Less: debt repaid | G20: =G27 -> 0 | H20: =H27 -> 0 | I20: 0 | J20: 0 | K20: 0 | L20: -46.75967444 | M20: -48.08219302 | N20: -49.63185812 | O20: -51.16164466 | P20: -52.720551 | Q20: -53.63779833 | R20: -55.49410537 | S20: -57.60715531 | T20: -59.83919444 | U20: -62.23284917 | V20: -64.64989752 | W20: -67.68000016 | X20: -70.58940084 | Y20: -73.65951512 | Z20: -76.90020853 | AA20: -80.3159342 | AB20: -83.94220827 | AC20: 0 | AD20: 0 | AE20: 0 | AF20: 0 | AG20: 0 | AH20: 0 | AI20: 0 | AJ20: 0 | AK20: 0 | AL20: 0 | AM20: 0 | AN20: 0 | AO20: 0 | AP20: 0
B21: Closing Balance of Cash | G21: =SUM(G18:G20) -> 242.7116034 | H21: =SUM(H18:H20) -> 211.9208463 | I21: 129.5547671 | J21: 0 | K21: 0 | L21: 148.9178996 | M21: 312.8032978 | N21: 476.9004893 | O21: 641.0524826 | P21: 802.0775212 | Q21: 933.9985704 | R21: 1051.564281 | S21: 1161.757525 | T21: 1268.34295 | U21: 1372.500963 | V21: 1475.659859 | W21: 1579.846438 | X21: 1683.559522 | Y21: 1786.641414 | Z21: 1889.06022 | AA21: 1992.314156 | AB21: 2139.063259 | AC21: 2294.833823 | AD21: 2451.688996 | AE21: 2609.639918 | AF21: 2649.333977 | AG21: 2671.46134 | AH21: 2696.063534 | AI21: 2723.37899 | AJ21: 2752.718833 | AK21: 2783.977895 | AL21: 2816.569033 | AM21: 2850.134564 | AN21: 2883.847645 | AO21: 2931.946932 | AP21: 2935.786235
B24: Debt Balance
C25: Opening Balance | G25: 0 | H25: =G28 -> 0 | I25: 0 | J25: 0 | K25: 362.0307124 | L25: 1054.904189 | M25: 1008.144514 | N25: 960.062321 | O25: 910.4304629 | P25: 859.2688183 | Q25: 806.5482673 | R25: 752.9104689 | S25: 697.4163636 | T25: 639.8092083 | U25: 579.9700138 | V25: 517.7371647 | W25: 453.0872671 | X25: 385.407267 | Y25: 314.8178661 | Z25: 241.158351 | AA25: 164.2581425 | AB25: 83.94220827 | AC25: 0 | AD25: 0 | AE25: 0 | AF25: 0 | AG25: 0 | AH25: =AG28 -> 0 | AI25: =AH28 -> 0 | AJ25: =AI28 -> 0 | AK25: =AJ28 -> 0 | AL25: =AK28 -> 0 | AM25: =AL28 -> 0 | AN25: =AM28 -> 0 | AO25: =AN28 -> 0 | AP25: =AO28 -> 0
C26: Debt raised | F26: =SUM(G26:AP26) -> 1054.904189 | G26: =G19 -> 0 | H26: =H19 -> 0 | I26: 0 | J26: 362.0307124 | K26: 692.8734761 | L26: 0 | M26: 0 | N26: 0 | O26: 0 | P26: 0 | Q26: 0 | R26: 0 | S26: 0 | T26: 0 | U26: 0 | V26: 0 | W26: 0 | X26: 0 | Y26: 0 | Z26: 0 | AA26: 0 | AB26: 0 | AC26: 0 | AD26: 0 | AE26: 0 | AF26: 0 | AG26: 0 | AH26: 0 | AI26: 0 | AJ26: 0 | AK26: 0 | AL26: 0 | AM26: 0 | AN26: 0 | AO26: 0 | AP26: 0
C27: Less: Repayment | F27: =SUM(G27:AP27) -> -1054.904189 | G27: =SUM(IFERROR(PPMT(G41/12, _xlfn.SEQUENCE(G10,1,1,1), $F$11*12 - SUM($F10:F10), SUM(G25:G26), 0,0),0)) -> 0 | H27: =SUM(IFERROR(PPMT(H41/12, _xlfn.SEQUENCE(H10,1,1,1), $F$11*12 - SUM($F10:G10), SUM(H25:H26), 0,0),0)) -> 0 | I27: =SUM(IFERROR(PPMT(I41/12, _xlfn.SEQUENCE(I10,1,1,1), $F$11*12 - SUM($F10:H10), SUM(I25:I26), 0,0),0)) -> 0 | J27: =SUM(IFERROR(PPMT(J41/12, _xlfn.SEQUENCE(J10,1,1,1), $F$11*12 - SUM($F10:I10), SUM(J25:J26), 0,0),0)) -> 0 | K27: =SUM(IFERROR(PPMT(K41/12, _xlfn.SEQUENCE(K10,1,1,1), $F$11*12 - SUM($F10:J10), SUM(K25:K26), 0,0),0)) -> 0 | L27: =SUM(IFERROR(PPMT(L41/12, _xlfn.SEQUENCE(L10,1,1,1), $F$11*12 - SUM($F10:K10), SUM(L25:L26), 0,0),0)) -> -46.75967444 | M27: =SUM(IFERROR(PPMT(M41/12, _xlfn.SEQUENCE(M10,1,1,1), $F$11*12 - SUM($F10:L10), SUM(M25:M26), 0,0),0)) -> -48.08219302 | N27: =SUM(IFERROR(PPMT(N41/12, _xlfn.SEQUENCE(N10,1,1,1), $F$11*12 - SUM($F10:M10), SUM(N25:N26), 0,0),0)) -> -49.63185812 | O27: =SUM(IFERROR(PPMT(O41/12, _xlfn.SEQUENCE(O10,1,1,1), $F$11*12 - SUM($F10:N10), SUM(O25:O26), 0,0),0)) -> -51.16164466 | P27: =SUM(IFERROR(PPMT(P41/12, _xlfn.SEQUENCE(P10,1,1,1), $F$11*12 - SUM($F10:O10), SUM(P25:P26), 0,0),0)) -> -52.720551 | Q27: =SUM(IFERROR(PPMT(Q41/12, _xlfn.SEQUENCE(Q10,1,1,1), $F$11*12 - SUM($F10:P10), SUM(Q25:Q26), 0,0),0)) -> -53.63779833 | R27: =SUM(IFERROR(PPMT(R41/12, _xlfn.SEQUENCE(R10,1,1,1), $F$11*12 - SUM($F10:Q10), SUM(R25:R26), 0,0),0)) -> -55.49410537 | S27: =SUM(IFERROR(PPMT(S41/12, _xlfn.SEQUENCE(S10,1,1,1), $F$11*12 - SUM($F10:R10), SUM(S25:S26), 0,0),0)) -> -57.60715531 | T27: =SUM(IFERROR(PPMT(T41/12, _xlfn.SEQUENCE(T10,1,1,1), $F$11*12 - SUM($F10:S10), SUM(T25:T26), 0,0),0)) -> -59.83919444 | U27: =SUM(IFERROR(PPMT(U41/12, _xlfn.SEQUENCE(U10,1,1,1), $F$11*12 - SUM($F10:T10), SUM(U25:U26), 0,0),0)) -> -62.23284917 | V27: =SUM(IFERROR(PPMT(V41/12, _xlfn.SEQUENCE(V10,1,1,1), $F$11*12 - SUM($F10:U10), SUM(V25:V26), 0,0),0)) -> -64.64989752 | W27: =SUM(IFERROR(PPMT(W41/12, _xlfn.SEQUENCE(W10,1,1,1), $F$11*12 - SUM($F10:V10), SUM(W25:W26), 0,0),0)) -> -67.68000016 | X27: =SUM(IFERROR(PPMT(X41/12, _xlfn.SEQUENCE(X10,1,1,1), $F$11*12 - SUM($F10:W10), SUM(X25:X26), 0,0),0)) -> -70.58940084 | Y27: =SUM(IFERROR(PPMT(Y41/12, _xlfn.SEQUENCE(Y10,1,1,1), $F$11*12 - SUM($F10:X10), SUM(Y25:Y26), 0,0),0)) -> -73.65951512 | Z27: =SUM(IFERROR(PPMT(Z41/12, _xlfn.SEQUENCE(Z10,1,1,1), $F$11*12 - SUM($F10:Y10), SUM(Z25:Z26), 0,0),0)) -> -76.90020853 | AA27: =SUM(IFERROR(PPMT(AA41/12, _xlfn.SEQUENCE(AA10,1,1,1), $F$11*12 - SUM($F10:Z10), SUM(AA25:AA26), 0,0),0)) -> -80.3159342 | AB27: =SUM(IFERROR(PPMT(AB41/12, _xlfn.SEQUENCE(AB10,1,1,1), $F$11*12 - SUM($F10:AA10), SUM(AB25:AB26), 0,0),0)) -> -83.94220827 | AC27: =SUM(IFERROR(PPMT(AC41/12, _xlfn.SEQUENCE(AC10,1,1,1), $F$11*12 - SUM($F10:AB10), SUM(AC25:AC26), 0,0),0)) -> 0 | AD27: =SUM(IFERROR(PPMT(AD41/12, _xlfn.SEQUENCE(AD10,1,1,1), $F$11*12 - SUM($F10:AC10), SUM(AD25:AD26), 0,0),0)) -> 0 | AE27: =SUM(IFERROR(PPMT(AE41/12, _xlfn.SEQUENCE(AE10,1,1,1), $F$11*12 - SUM($F10:AD10), SUM(AE25:AE26), 0,0),0)) -> 0 | AF27: =SUM(IFERROR(PPMT(AF41/12, _xlfn.SEQUENCE(AF10,1,1,1), $F$11*12 - SUM($F10:AE10), SUM(AF25:AF26), 0,0),0)) -> 0 | AG27: =SUM(IFERROR(PPMT(AG41/12, _xlfn.SEQUENCE(AG10,1,1,1), $F$11*12 - SUM($F10:AF10), SUM(AG25:AG26), 0,0),0)) -> 0 | AH27: =SUM(IFERROR(PPMT(AH41/12, _xlfn.SEQUENCE(AH10,1,1,1), $F$11*12 - SUM($F10:AG10), SUM(AH25:AH26), 0,0),0)) -> 0 | AI27: =SUM(IFERROR(PPMT(AI41/12, _xlfn.SEQUENCE(AI10,1,1,1), $F$11*12 - SUM($F10:AH10), SUM(AI25:AI26), 0,0),0)) -> 0 | AJ27: =SUM(IFERROR(PPMT(AJ41/12, _xlfn.SEQUENCE(AJ10,1,1,1), $F$11*12 - SUM($F10:AI10), SUM(AJ25:AJ26), 0,0),0)) -> 0 | AK27: =SUM(IFERROR(PPMT(AK41/12, _xlfn.SEQUENCE(AK10,1,1,1), $F$11*12 - SUM($F10:AJ10), SUM(AK25:AK26), 0,0),0)) -> 0 | AL27: =SUM(IFERROR(PPMT(AL41/12, _xlfn.SEQUENCE(AL10,1,1,1), $F$11*12 - SUM($F10:AK10), SUM(AL25:AL26), 0,0),0)) -> 0 | AM27: =SUM(IFERROR(PPMT(AM41/12, _xlfn.SEQUENCE(AM10,1,1,1), $F$11*12 - SUM($F10:AL10), SUM(AM25:AM26), 0,0),0)) -> 0 | AN27: =SUM(IFERROR(PPMT(AN41/12, _xlfn.SEQUENCE(AN10,1,1,1), $F$11*12 - SUM($F10:AM10), SUM(AN25:AN26), 0,0),0)) -> 0 | AO27: =SUM(IFERROR(PPMT(AO41/12, _xlfn.SEQUENCE(AO10,1,1,1), $F$11*12 - SUM($F10:AN10), SUM(AO25:AO26), 0,0),0)) -> 0 | AP27: =SUM(IFERROR(PPMT(AP41/12, _xlfn.SEQUENCE(AP10,1,1,1), $F$11*12 - SUM($F10:AO10), SUM(AP25:AP26), 0,0),0)) -> 0
B28: Closing Balance | G28: =SUM(G25:G27) -> 0 | H28: =SUM(H25:H27) -> 0 | I28: 0 | J28: 362.0307124 | K28: 1054.904189 | L28: 1008.144514 | M28: 960.062321 | N28: 910.4304629 | O28: 859.2688183 | P28: 806.5482673 | Q28: 752.9104689 | R28: 697.4163636 | S28: 639.8092083 | T28: 579.9700138 | U28: 517.7371647 | V28: 453.0872671 | W28: 385.407267 | X28: 314.8178661 | Y28: 241.158351 | Z28: 164.2581425 | AA28: 83.94220827 | AB28: 0 | AC28: 0 | AD28: 0 | AE28: 0 | AF28: 0 | AG28: 0 | AH28: =SUM(AH25:AH27) -> 0 | AI28: 0 | AJ28: 0 | AK28: =SUM(AK25:AK27) -> 0 | AL28: 0 | AM28: =SUM(AM25:AM27) -> 0 | AN28: 0 | AO28: 0 | AP28: =SUM(AP25:AP27) -> 0
B31: Debt commitment | F31: =F26 -> 1054.904189
C32: Average un-drawn debt amount (mid year basis) | G32: =($F$31-(G25+G26/2))*G8/12 -> 0 | H32: 0 | I32: 0 | J32: 757.3703213 | K32: 335.851171 | L32: 0 | M32: 0 | N32: 0 | O32: 0 | P32: 0 | Q32: 0 | R32: 0 | S32: 0 | T32: 0 | U32: 0 | V32: 0 | W32: 0 | X32: 0 | Y32: 0 | Z32: 0 | AA32: 0 | AB32: 0 | AC32: 0 | AD32: 0 | AE32: 0 | AF32: 0 | AG32: 0 | AH32: 0 | AI32: 0 | AJ32: 0 | AK32: 0 | AL32: 0 | AM32: 0 | AN32: 0 | AO32: 0 | AP32: 0
C33: Upfront structuring fee rate | F33: ='Control Sheet'!$F$51 -> 0.0125
C34: Commitment fee rate | F34: ='Control Sheet'!F55 -> 0.007
C37: CDOR Rate | G37: =SUMIFS('CDOR Forecasts'!$J$6:$J$46,'CDOR Forecasts'!$I$6:$I$46,YEAR(G4))/100*G12 -> 0 | H37: =SUMIFS('CDOR Forecasts'!$J$6:$J$46,'CDOR Forecasts'!$I$6:$I$46,YEAR(H4))/100*H12 -> 0 | I37: =SUMIFS('CDOR Forecasts'!$J$6:$J$46,'CDOR Forecasts'!$I$6:$I$46,YEAR(I4))/100*I12 -> 0 | J37: =SUMIFS('CDOR Forecasts'!$J$6:$J$46,'CDOR Forecasts'!$I$6:$I$46,YEAR(J4))/100*J12 -> 0.01589887956 | K37: =SUMIFS('CDOR Forecasts'!$J$6:$J$46,'CDOR Forecasts'!$I$6:$I$46,YEAR(K4))/100*K12 -> 0.01570951236 | L37: =SUMIFS('CDOR Forecasts'!$J$6:$J$46,'CDOR Forecasts'!$I$6:$I$46,YEAR(L4))/100*L12 -> 0.01622226482 | M37: =SUMIFS('CDOR Forecasts'!$J$6:$J$46,'CDOR Forecasts'!$I$6:$I$46,YEAR(M4))/100*M12 -> 0.0169279844 | N37: =SUMIFS('CDOR Forecasts'!$J$6:$J$46,'CDOR Forecasts'!$I$6:$I$46,YEAR(N4))/100*N12 -> 0.01727675349 | O37: =SUMIFS('CDOR Forecasts'!$J$6:$J$46,'CDOR Forecasts'!$I$6:$I$46,YEAR(O4))/100*O12 -> 0.01789681988 | P37: =SUMIFS('CDOR Forecasts'!$J$6:$J$46,'CDOR Forecasts'!$I$6:$I$46,YEAR(P4))/100*P12 -> 0.018719346 | Q37: =SUMIFS('CDOR Forecasts'!$J$6:$J$46,'CDOR Forecasts'!$I$6:$I$46,YEAR(Q4))/100*Q12 -> 0.0199094206 | R37: =SUMIFS('CDOR Forecasts'!$J$6:$J$46,'CDOR Forecasts'!$I$6:$I$46,YEAR(R4))/100*R12 -> 0.02089879539 | S37: =SUMIFS('CDOR Forecasts'!$J$6:$J$46,'CDOR Forecasts'!$I$6:$I$46,YEAR(S4))/100*S12 -> 0.02151336072 | T37: =SUMIFS('CDOR Forecasts'!$J$6:$J$46,'CDOR Forecasts'!$I$6:$I$46,YEAR(T4))/100*T12 -> 0.02220101335 | U37: =SUMIFS('CDOR Forecasts'!$J$6:$J$46,'CDOR Forecasts'!$I$6:$I$46,YEAR(U4))/100*U12 -> 0.02285024763 | V37: =SUMIFS('CDOR Forecasts'!$J$6:$J$46,'CDOR Forecasts'!$I$6:$I$46,YEAR(V4))/100*V12 -> 0.02217048939 | W37: =SUMIFS('CDOR Forecasts'!$J$6:$J$46,'CDOR Forecasts'!$I$6:$I$46,YEAR(W4))/100*W12 -> 0.02132465883 | X37: =SUMIFS('CDOR Forecasts'!$J$6:$J$46,'CDOR Forecasts'!$I$6:$I$46,YEAR(X4))/100*X12 -> 0.02164181206 | Y37: =SUMIFS('CDOR Forecasts'!$J$6:$J$46,'CDOR Forecasts'!$I$6:$I$46,YEAR(Y4))/100*Y12 -> 0.02195898984 | Z37: =SUMIFS('CDOR Forecasts'!$J$6:$J$46,'CDOR Forecasts'!$I$6:$I$46,YEAR(Z4))/100*Z12 -> 0.02227619216 | AA37: =SUMIFS('CDOR Forecasts'!$J$6:$J$46,'CDOR Forecasts'!$I$6:$I$46,YEAR(AA4))/100*AA12 -> 0.02074188682 | AB37: =SUMIFS('CDOR Forecasts'!$J$6:$J$46,'CDOR Forecasts'!$I$6:$I$46,YEAR(AB4))/100*AB12 -> 0.01903125775 | AC37: =SUMIFS('CDOR Forecasts'!$J$6:$J$46,'CDOR Forecasts'!$I$6:$I$46,YEAR(AC4))/100*AC12 -> 0 | AD37: =SUMIFS('CDOR Forecasts'!$J$6:$J$46,'CDOR Forecasts'!$I$6:$I$46,YEAR(AD4))/100*AD12 -> 0 | AE37: =SUMIFS('CDOR Forecasts'!$J$6:$J$46,'CDOR Forecasts'!$I$6:$I$46,YEAR(AE4))/100*AE12 -> 0 | AF37: =SUMIFS('CDOR Forecasts'!$J$6:$J$46,'CDOR Forecasts'!$I$6:$I$46,YEAR(AF4))/100*AF12 -> 0 | AG37: =SUMIFS('CDOR Forecasts'!$J$6:$J$46,'CDOR Forecasts'!$I$6:$I$46,YEAR(AG4))/100*AG12 -> 0 | AH37: =SUMIFS('CDOR Forecasts'!$J$6:$J$46,'CDOR Forecasts'!$I$6:$I$46,YEAR(AH4))/100*AH12 -> 0 | AI37: =SUMIFS('CDOR Forecasts'!$J$6:$J$46,'CDOR Forecasts'!$I$6:$I$46,YEAR(AI4))/100*AI12 -> 0 | AJ37: =SUMIFS('CDOR Forecasts'!$J$6:$J$46,'CDOR Forecasts'!$I$6:$I$46,YEAR(AJ4))/100*AJ12 -> 0 | AK37: =SUMIFS('CDOR Forecasts'!$J$6:$J$46,'CDOR Forecasts'!$I$6:$I$46,YEAR(AK4))/100*AK12 -> 0 | AL37: =SUMIFS('CDOR Forecasts'!$J$6:$J$46,'CDOR Forecasts'!$I$6:$I$46,YEAR(AL4))/100*AL12 -> 0 | AM37: =SUMIFS('CDOR Forecasts'!$J$6:$J$46,'CDOR Forecasts'!$I$6:$I$46,YEAR(AM4))/100*AM12 -> 0 | AN37: =SUMIFS('CDOR Forecasts'!$J$6:$J$46,'CDOR Forecasts'!$I$6:$I$46,YEAR(AN4))/100*AN12 -> 0 | AO37: =SUMIFS('CDOR Forecasts'!$J$6:$J$46,'CDOR Forecasts'!$I$6:$I$46,YEAR(AO4))/100*AO12 -> 0 | AP37: =SUMIFS('CDOR Forecasts'!$J$6:$J$46,'CDOR Forecasts'!$I$6:$I$46,YEAR(AP4))/100*AP12 -> 0
D38: Margin | G38: ='Control Sheet'!$F$39*G12 -> 0 | H38: ='Control Sheet'!$F$39*H12 -> 0 | I38: ='Control Sheet'!$F$39*I12 -> 0 | J38: ='Control Sheet'!$F$39*J12 -> 0.0175 | K38: ='Control Sheet'!$F$39*K12 -> 0.0175 | L38: ='Control Sheet'!$F$39*L12 -> 0.0175 | M38: ='Control Sheet'!$F$39*M12 -> 0.0175 | N38: ='Control Sheet'!$F$39*N12 -> 0.0175 | O38: ='Control Sheet'!$F$39*O12 -> 0.0175 | P38: ='Control Sheet'!$F$39*P12 -> 0.0175 | Q38: ='Control Sheet'!$F$39*Q12 -> 0.0175 | R38: ='Control Sheet'!$F$39*R12 -> 0.0175 | S38: ='Control Sheet'!$F$39*S12 -> 0.0175 | T38: ='Control Sheet'!$F$39*T12 -> 0.0175 | U38: ='Control Sheet'!$F$39*U12 -> 0.0175 | V38: ='Control Sheet'!$F$39*V12 -> 0.0175 | W38: ='Control Sheet'!$F$39*W12 -> 0.0175 | X38: ='Control Sheet'!$F$39*X12 -> 0.0175 | Y38: ='Control Sheet'!$F$39*Y12 -> 0.0175 | Z38: ='Control Sheet'!$F$39*Z12 -> 0.0175 | AA38: ='Control Sheet'!$F$39*AA12 -> 0.0175 | AB38: ='Control Sheet'!$F$39*AB12 -> 0.0175 | AC38: ='Control Sheet'!$F$39*AC12 -> 0 | AD38: ='Control Sheet'!$F$39*AD12 -> 0 | AE38: ='Control Sheet'!$F$39*AE12 -> 0 | AF38: ='Control Sheet'!$F$39*AF12 -> 0 | AG38: ='Control Sheet'!$F$39*AG12 -> 0 | AH38: ='Control Sheet'!$F$39*AH12 -> 0 | AI38: ='Control Sheet'!$F$39*AI12 -> 0 | AJ38: ='Control Sheet'!$F$39*AJ12 -> 0 | AK38: ='Control Sheet'!$F$39*AK12 -> 0 | AL38: ='Control Sheet'!$F$39*AL12 -> 0 | AM38: ='Control Sheet'!$F$39*AM12 -> 0 | AN38: ='Control Sheet'!$F$39*AN12 -> 0 | AO38: ='Control Sheet'!$F$39*AO12 -> 0 | AP38: ='Control Sheet'!$F$39*AP12 -> 0
D39: Step-up | G39: ='Control Sheet'!$F$40*ROUNDDOWN(SUM($F9:F$9)/'Control Sheet'!$F$41,0)*G12 -> 0 | H39: ='Control Sheet'!$F$40*ROUNDDOWN(SUM($F9:G$9)/'Control Sheet'!$F$41,0)*H12 -> 0 | I39: ='Control Sheet'!$F$40*ROUNDDOWN(SUM($F9:H$9)/'Control Sheet'!$F$41,0)*I12 -> 0 | J39: ='Control Sheet'!$F$40*ROUNDDOWN(SUM($F9:I$9)/'Control Sheet'!$F$41,0)*J12 -> 0 | K39: ='Control Sheet'!$F$40*ROUNDDOWN(SUM($F9:J$9)/'Control Sheet'!$F$41,0)*K12 -> 0 | L39: ='Control Sheet'!$F$40*ROUNDDOWN(SUM($F9:K$9)/'Control Sheet'!$F$41,0)*L12 -> 0 | M39: ='Control Sheet'!$F$40*ROUNDDOWN(SUM($F9:L$9)/'Control Sheet'!$F$41,0)*M12 -> 0 | N39: ='Control Sheet'!$F$40*ROUNDDOWN(SUM($F9:M$9)/'Control Sheet'!$F$41,0)*N12 -> 0 | O39: ='Control Sheet'!$F$40*ROUNDDOWN(SUM($F9:N$9)/'Control Sheet'!$F$41,0)*O12 -> 0 | P39: ='Control Sheet'!$F$40*ROUNDDOWN(SUM($F9:O$9)/'Control Sheet'!$F$41,0)*P12 -> 0 | Q39: ='Control Sheet'!$F$40*ROUNDDOWN(SUM($F9:P$9)/'Control Sheet'!$F$41,0)*Q12 -> 0.002 | R39: ='Control Sheet'!$F$40*ROUNDDOWN(SUM($F9:Q$9)/'Control Sheet'!$F$41,0)*R12 -> 0.002 | S39: ='Control Sheet'!$F$40*ROUNDDOWN(SUM($F9:R$9)/'Control Sheet'!$F$41,0)*S12 -> 0.002 | T39: ='Control Sheet'!$F$40*ROUNDDOWN(SUM($F9:S$9)/'Control Sheet'!$F$41,0)*T12 -> 0.002 | U39: ='Control Sheet'!$F$40*ROUNDDOWN(SUM($F9:T$9)/'Control Sheet'!$F$41,0)*U12 -> 0.002 | V39: ='Control Sheet'!$F$40*ROUNDDOWN(SUM($F9:U$9)/'Control Sheet'!$F$41,0)*V12 -> 0.004 | W39: ='Control Sheet'!$F$40*ROUNDDOWN(SUM($F9:V$9)/'Control Sheet'!$F$41,0)*W12 -> 0.004 | X39: ='Control Sheet'!$F$40*ROUNDDOWN(SUM($F9:W$9)/'Control Sheet'!$F$41,0)*X12 -> 0.004 | Y39: ='Control Sheet'!$F$40*ROUNDDOWN(SUM($F9:X$9)/'Control Sheet'!$F$41,0)*Y12 -> 0.004 | Z39: ='Control Sheet'!$F$40*ROUNDDOWN(SUM($F9:Y$9)/'Control Sheet'!$F$41,0)*Z12 -> 0.004 | AA39: ='Control Sheet'!$F$40*ROUNDDOWN(SUM($F9:Z$9)/'Control Sheet'!$F$41,0)*AA12 -> 0.006 | AB39: ='Control Sheet'!$F$40*ROUNDDOWN(SUM($F9:AA$9)/'Control Sheet'!$F$41,0)*AB12 -> 0.006 | AC39: ='Control Sheet'!$F$40*ROUNDDOWN(SUM($F9:AB$9)/'Control Sheet'!$F$41,0)*AC12 -> 0 | AD39: ='Control Sheet'!$F$40*ROUNDDOWN(SUM($F9:AC$9)/'Control Sheet'!$F$41,0)*AD12 -> 0 | AE39: ='Control Sheet'!$F$40*ROUNDDOWN(SUM($F9:AD$9)/'Control Sheet'!$F$41,0)*AE12 -> 0 | AF39: ='Control Sheet'!$F$40*ROUNDDOWN(SUM($F9:AE$9)/'Control Sheet'!$F$41,0)*AF12 -> 0 | AG39: ='Control Sheet'!$F$40*ROUNDDOWN(SUM($F9:AF$9)/'Control Sheet'!$F$41,0)*AG12 -> 0 | AH39: ='Control Sheet'!$F$40*ROUNDDOWN(SUM($F9:AG$9)/'Control Sheet'!$F$41,0)*AH12 -> 0 | AI39: ='Control Sheet'!$F$40*ROUNDDOWN(SUM($F9:AH$9)/'Control Sheet'!$F$41,0)*AI12 -> 0 | AJ39: ='Control Sheet'!$F$40*ROUNDDOWN(SUM($F9:AI$9)/'Control Sheet'!$F$41,0)*AJ12 -> 0 | AK39: ='Control Sheet'!$F$40*ROUNDDOWN(SUM($F9:AJ$9)/'Control Sheet'!$F$41,0)*AK12 -> 0 | AL39: ='Control Sheet'!$F$40*ROUNDDOWN(SUM($F9:AK$9)/'Control Sheet'!$F$41,0)*AL12 -> 0 | AM39: ='Control Sheet'!$F$40*ROUNDDOWN(SUM($F9:AL$9)/'Control Sheet'!$F$41,0)*AM12 -> 0 | AN39: ='Control Sheet'!$F$40*ROUNDDOWN(SUM($F9:AM$9)/'Control Sheet'!$F$41,0)*AN12 -> 0 | AO39: ='Control Sheet'!$F$40*ROUNDDOWN(SUM($F9:AN$9)/'Control Sheet'!$F$41,0)*AO12 -> 0 | AP39: ='Control Sheet'!$F$40*ROUNDDOWN(SUM($F9:AO$9)/'Control Sheet'!$F$41,0)*AP12 -> 0
C40: Margin | G40: =SUM(G38:G39) -> 0 | H40: =SUM(H38:H39) -> 0 | I40: 0 | J40: 0.0175 | K40: 0.0175 | L40: 0.0175 | M40: 0.0175 | N40: 0.0175 | O40: 0.0175 | P40: 0.0175 | Q40: 0.0195 | R40: 0.0195 | S40: 0.0195 | T40: 0.0195 | U40: 0.0195 | V40: 0.0215 | W40: 0.0215 | X40: 0.0215 | Y40: 0.0215 | Z40: 0.0215 | AA40: 0.0235 | AB40: 0.0235 | AC40: 0 | AD40: 0 | AE40: 0 | AF40: 0 | AG40: 0 | AH40: 0 | AI40: 0 | AJ40: 0 | AK40: 0 | AL40: 0 | AM40: 0 | AN40: 0 | AO40: 0 | AP40: 0
B41: Interest Rate | G41: =SUM(G37,G40) -> 0 | H41: =SUM(H37,H40) -> 0 | I41: 0 | J41: 0.03339887956 | K41: 0.03320951236 | L41: 0.03372226482 | M41: 0.0344279844 | N41: 0.03477675349 | O41: 0.03539681988 | P41: 0.036219346 | Q41: 0.0394094206 | R41: 0.04039879539 | S41: 0.04101336072 | T41: 0.04170101335 | U41: 0.04235024763 | V41: 0.04367048939 | W41: 0.04282465883 | X41: 0.04314181206 | Y41: 0.04345898984 | Z41: 0.04377619216 | AA41: 0.04424188682 | AB41: 0.04253125775 | AC41: 0 | AD41: 0 | AE41: 0 | AF41: 0 | AG41: 0 | AH41: 0 | AI41: 0 | AJ41: 0 | AK41: 0 | AL41: 0 | AM41: 0 | AN41: 0 | AO41: 0 | AP41: 0
B44: Calculation of debt related costs
C45: Debt structuring costs (computed) | F45: =SUM(G45:AP45) -> 13.18630236 | G45: =$F$31*$F$33*(1-F7)*G7 -> 0 | H45: =$F$31*$F$33*(1-G7)*H7 -> 0 | I45: 0 | J45: 13.18630236 | K45: 0 | L45: 0 | M45: 0 | N45: 0 | O45: 0 | P45: 0 | Q45: 0 | R45: 0 | S45: 0 | T45: 0 | U45: 0 | V45: 0 | W45: 0 | X45: 0 | Y45: 0 | Z45: 0 | AA45: 0 | AB45: 0 | AC45: 0 | AD45: 0 | AE45: 0 | AF45: 0 | AG45: 0 | AH45: 0 | AI45: 0 | AJ45: 0 | AK45: 0 | AL45: 0 | AM45: 0 | AN45: 0 | AO45: 0 | AP45: 0
C46: Debt commitment fee (computed) | F46: 7.652550447 | G46: =G32*$F$34 -> 0 | H46: 0 | I46: 0 | J46: 5.301592249 | K46: 2.350958197 | L46: 0 | M46: 0 | N46: 0 | O46: 0 | P46: 0 | Q46: 0 | R46: 0 | S46: 0 | T46: 0 | U46: 0 | V46: 0 | W46: 0 | X46: 0 | Y46: 0 | Z46: 0 | AA46: 0 | AB46: 0 | AC46: 0 | AD46: 0 | AE46: 0 | AF46: 0 | AG46: 0 | AH46: 0 | AI46: 0 | AJ46: 0 | AK46: 0 | AL46: 0 | AM46: 0 | AN46: 0 | AO46: 0 | AP46: 0
C47: Interest during Construction (computed) | F47: 28.04856717 | G47: =AVERAGE(G25+G26,G25)*G41*G8/12 -> 0 | H47: 0 | I47: 0 | J47: 5.239615403 | K47: 22.80895176 | L47: 0 | M47: 0 | N47: 0 | O47: 0 | P47: 0 | Q47: 0 | R47: 0 | S47: 0 | T47: 0 | U47: 0 | V47: 0 | W47: 0 | X47: 0 | Y47: 0 | Z47: 0 | AA47: 0 | AB47: 0 | AC47: 0 | AD47: 0 | AE47: 0 | AF47: 0 | AG47: 0 | AH47: 0 | AI47: 0 | AJ47: 0 | AK47: 0 | AL47: 0 | AM47: 0 | AN47: 0 | AO47: 0 | AP47: 0
C48: Interest during Operation (computed) | F48: 402.9999995 | G48: =-IFERROR(PMT(G41/12,$F$11*12,SUM($G$26:G26),0,0)*MAX(MIN(G10,$F$11*12-SUM($F$10:F10)),0),0)+G27 -> 0 | H48: =-IFERROR(PMT(H41/12,$F$11*12,SUM($G$26:H26),0,0)*MAX(MIN(H10,$F$11*12-SUM($F$10:G10)),0),0)+H27 -> 0 | I48: =-IFERROR(PMT(I41/12,$F$11*12,SUM($G$26:I26),0,0)*MAX(MIN(I10,$F$11*12-SUM($F$10:H10)),0),0)+I27 -> 0 | J48: =-IFERROR(PMT(J41/12,$F$11*12,SUM($G$26:J26),0,0)*MAX(MIN(J10,$F$11*12-SUM($F$10:I10)),0),0)+J27 -> 0 | K48: =-IFERROR(PMT(K41/12,$F$11*12,SUM($G$26:K26),0,0)*MAX(MIN(K10,$F$11*12-SUM($F$10:J10)),0),0)+K27 -> 0 | L48: =-IFERROR(PMT(L41/12,$F$11*12,SUM($G$26:L26),0,0)*MAX(MIN(L10,$F$11*12-SUM($F$10:K10)),0),0)+L27 -> 34.8554333 | M48: =-IFERROR(PMT(M41/12,$F$11*12,SUM($G$26:M26),0,0)*MAX(MIN(M10,$F$11*12-SUM($F$10:L10)),0),0)+M27 -> 33.97790332 | N48: =-IFERROR(PMT(N41/12,$F$11*12,SUM($G$26:N26),0,0)*MAX(MIN(N10,$F$11*12-SUM($F$10:M10)),0),0)+N27 -> 32.64868222 | O48: =-IFERROR(PMT(O41/12,$F$11*12,SUM($G$26:O26),0,0)*MAX(MIN(O10,$F$11*12-SUM($F$10:N10)),0),0)+O27 -> 31.5116798 | P48: =-IFERROR(PMT(P41/12,$F$11*12,SUM($G$26:P26),0,0)*MAX(MIN(P10,$F$11*12-SUM($F$10:O10)),0),0)+P27 -> 30.47550946 | Q48: =-IFERROR(PMT(Q41/12,$F$11*12,SUM($G$26:Q26),0,0)*MAX(MIN(Q10,$F$11*12-SUM($F$10:P10)),0),0)+Q27 -> 31.60394134 | R48: =-IFERROR(PMT(R41/12,$F$11*12,SUM($G$26:R26),0,0)*MAX(MIN(R10,$F$11*12-SUM($F$10:Q10)),0),0)+R27 -> 30.38797575 | S48: =-IFERROR(PMT(S41/12,$F$11*12,SUM($G$26:S26),0,0)*MAX(MIN(S10,$F$11*12-SUM($F$10:R10)),0),0)+S27 -> 28.67408281 | T48: =-IFERROR(PMT(T41/12,$F$11*12,SUM($G$26:T26),0,0)*MAX(MIN(T10,$F$11*12-SUM($F$10:S10)),0),0)+T27 -> 26.8899391 | U48: =-IFERROR(PMT(U41/12,$F$11*12,SUM($G$26:U26),0,0)*MAX(MIN(U10,$F$11*12-SUM($F$10:T10)),0),0)+U27 -> 24.92038404 | V48: =-IFERROR(PMT(V41/12,$F$11*12,SUM($G$26:V26),0,0)*MAX(MIN(V10,$F$11*12-SUM($F$10:U10)),0),0)+V27 -> 23.36942748 | W48: =-IFERROR(PMT(W41/12,$F$11*12,SUM($G$26:W26),0,0)*MAX(MIN(W10,$F$11*12-SUM($F$10:V10)),0),0)+W27 -> 19.7838858 | X48: =-IFERROR(PMT(X41/12,$F$11*12,SUM($G$26:X26),0,0)*MAX(MIN(X10,$F$11*12-SUM($F$10:W10)),0),0)+X27 -> 17.08251669 | Y48: =-IFERROR(PMT(Y41/12,$F$11*12,SUM($G$26:Y26),0,0)*MAX(MIN(Y10,$F$11*12-SUM($F$10:X10)),0),0)+Y27 -> 14.22073363 | Z48: =-IFERROR(PMT(Z41/12,$F$11*12,SUM($G$26:Z26),0,0)*MAX(MIN(Z10,$F$11*12-SUM($F$10:Y10)),0),0)+Z27 -> 11.18867089 | AA48: =-IFERROR(PMT(AA41/12,$F$11*12,SUM($G$26:AA26),0,0)*MAX(MIN(AA10,$F$11*12-SUM($F$10:Z10)),0),0)+AA27 -> 8.079755309 | AB48: =-IFERROR(PMT(AB41/12,$F$11*12,SUM($G$26:AB26),0,0)*MAX(MIN(AB10,$F$11*12-SUM($F$10:AA10)),0),0)+AB27 -> 3.32947858 | AC48: =-IFERROR(PMT(AC41/12,$F$11*12,SUM($G$26:AC26),0,0)*MAX(MIN(AC10,$F$11*12-SUM($F$10:AB10)),0),0)+AC27 -> 0 | AD48: =-IFERROR(PMT(AD41/12,$F$11*12,SUM($G$26:AD26),0,0)*MAX(MIN(AD10,$F$11*12-SUM($F$10:AC10)),0),0)+AD27 -> 0 | AE48: =-IFERROR(PMT(AE41/12,$F$11*12,SUM($G$26:AE26),0,0)*MAX(MIN(AE10,$F$11*12-SUM($F$10:AD10)),0),0)+AE27 -> 0 | AF48: =-IFERROR(PMT(AF41/12,$F$11*12,SUM($G$26:AF26),0,0)*MAX(MIN(AF10,$F$11*12-SUM($F$10:AE10)),0),0)+AF27 -> 0 | AG48: =-IFERROR(PMT(AG41/12,$F$11*12,SUM($G$26:AG26),0,0)*MAX(MIN(AG10,$F$11*12-SUM($F$10:AF10)),0),0)+AG27 -> 0 | AH48: =-IFERROR(PMT(AH41/12,$F$11*12,SUM($G$26:AH26),0,0)*MAX(MIN(AH10,$F$11*12-SUM($F$10:AG10)),0),0)+AH27 -> 0 | AI48: =-IFERROR(PMT(AI41/12,$F$11*12,SUM($G$26:AI26),0,0)*MAX(MIN(AI10,$F$11*12-SUM($F$10:AH10)),0),0)+AI27 -> 0 | AJ48: =-IFERROR(PMT(AJ41/12,$F$11*12,SUM($G$26:AJ26),0,0)*MAX(MIN(AJ10,$F$11*12-SUM($F$10:AI10)),0),0)+AJ27 -> 0 | AK48: =-IFERROR(PMT(AK41/12,$F$11*12,SUM($G$26:AK26),0,0)*MAX(MIN(AK10,$F$11*12-SUM($F$10:AJ10)),0),0)+AK27 -> 0 | AL48: =-IFERROR(PMT(AL41/12,$F$11*12,SUM($G$26:AL26),0,0)*MAX(MIN(AL10,$F$11*12-SUM($F$10:AK10)),0),0)+AL27 -> 0 | AM48: =-IFERROR(PMT(AM41/12,$F$11*12,SUM($G$26:AM26),0,0)*MAX(MIN(AM10,$F$11*12-SUM($F$10:AL10)),0),0)+AM27 -> 0 | AN48: =-IFERROR(PMT(AN41/12,$F$11*12,SUM($G$26:AN26),0,0)*MAX(MIN(AN10,$F$11*12-SUM($F$10:AM10)),0),0)+AN27 -> 0 | AO48: =-IFERROR(PMT(AO41/12,$F$11*12,SUM($G$26:AO26),0,0)*MAX(MIN(AO10,$F$11*12-SUM($F$10:AN10)),0),0)+AO27 -> 0 | AP48: =-IFERROR(PMT(AP41/12,$F$11*12,SUM($G$26:AP26),0,0)*MAX(MIN(AP10,$F$11*12-SUM($F$10:AO10)),0),0)+AP27 -> 0
C49: Agency cost on debt | F49: 1.883611111 | G49: ='Control Sheet'!$F$59*SUM(G8,G10)/12*G12 -> 0 | H49: ='Control Sheet'!$F$59*SUM(H8,H10)/12*H12 -> 0 | I49: ='Control Sheet'!$F$59*SUM(I8,I10)/12*I12 -> 0 | J49: ='Control Sheet'!$F$59*SUM(J8,J10)/12*J12 -> 0.08666666667 | K49: ='Control Sheet'!$F$59*SUM(K8,K10)/12*K12 -> 0.09694444444 | L49: ='Control Sheet'!$F$59*SUM(L8,L10)/12*L12 -> 0.1 | M49: ='Control Sheet'!$F$59*SUM(M8,M10)/12*M12 -> 0.1 | N49: ='Control Sheet'!$F$59*SUM(N8,N10)/12*N12 -> 0.1 | O49: ='Control Sheet'!$F$59*SUM(O8,O10)/12*O12 -> 0.1 | P49: ='Control Sheet'!$F$59*SUM(P8,P10)/12*P12 -> 0.1 | Q49: ='Control Sheet'!$F$59*SUM(Q8,Q10)/12*Q12 -> 0.1 | R49: ='Control Sheet'!$F$59*SUM(R8,R10)/12*R12 -> 0.1 | S49: ='Control Sheet'!$F$59*SUM(S8,S10)/12*S12 -> 0.1 | T49: ='Control Sheet'!$F$59*SUM(T8,T10)/12*T12 -> 0.1 | U49: ='Control Sheet'!$F$59*SUM(U8,U10)/12*U12 -> 0.1 | V49: ='Control Sheet'!$F$59*SUM(V8,V10)/12*V12 -> 0.1 | W49: ='Control Sheet'!$F$59*SUM(W8,W10)/12*W12 -> 0.1 | X49: ='Control Sheet'!$F$59*SUM(X8,X10)/12*X12 -> 0.1 | Y49: ='Control Sheet'!$F$59*SUM(Y8,Y10)/12*Y12 -> 0.1 | Z49: ='Control Sheet'!$F$59*SUM(Z8,Z10)/12*Z12 -> 0.1 | AA49: ='Control Sheet'!$F$59*SUM(AA8,AA10)/12*AA12 -> 0.1 | AB49: ='Control Sheet'!$F$59*SUM(AB8,AB10)/12*AB12 -> 0.1 | AC49: ='Control Sheet'!$F$59*SUM(AC8,AC10)/12*AC12 -> 0 | AD49: ='Control Sheet'!$F$59*SUM(AD8,AD10)/12*AD12 -> 0 | AE49: ='Control Sheet'!$F$59*SUM(AE8,AE10)/12*AE12 -> 0 | AF49: ='Control Sheet'!$F$59*SUM(AF8,AF10)/12*AF12 -> 0 | AG49: ='Control Sheet'!$F$59*SUM(AG8,AG10)/12*AG12 -> 0 | AH49: ='Control Sheet'!$F$59*SUM(AH8,AH10)/12*AH12 -> 0 | AI49: ='Control Sheet'!$F$59*SUM(AI8,AI10)/12*AI12 -> 0 | AJ49: ='Control Sheet'!$F$59*SUM(AJ8,AJ10)/12*AJ12 -> 0 | AK49: ='Control Sheet'!$F$59*SUM(AK8,AK10)/12*AK12 -> 0 | AL49: ='Control Sheet'!$F$59*SUM(AL8,AL10)/12*AL12 -> 0 | AM49: ='Control Sheet'!$F$59*SUM(AM8,AM10)/12*AM12 -> 0 | AN49: ='Control Sheet'!$F$59*SUM(AN8,AN10)/12*AN12 -> 0 | AO49: ='Control Sheet'!$F$59*SUM(AO8,AO10)/12*AO12 -> 0 | AP49: ='Control Sheet'!$F$59*SUM(AP8,AP10)/12*AP12 -> 0
C50: Debt structuring costs (value flowing to model) | F50: 13.18637449 | G50: 0 | H50: 0 | I50: 0 | J50: 13.18637449 | K50: 0 | L50: 0 | M50: 0 | N50: 0 | O50: 0 | P50: 0 | Q50: 0 | R50: 0 | S50: 0 | T50: 0 | U50: 0 | V50: 0 | W50: 0 | X50: 0 | Y50: 0 | Z50: 0 | AA50: 0 | AB50: 0 | AC50: 0 | AD50: 0 | AE50: 0 | AF50: 0 | AG50: 0 | AH50: 0 | AI50: 0 | AJ50: 0 | AK50: 0 | AL50: 0 | AM50: 0 | AN50: 0 | AO50: 0 | AP50: 0
C51: Debt commitment fee (value flowing to model) | F51: 7.65259584 | G51: 0 | H51: 0 | I51: 0 | J51: 5.301622917 | K51: 2.350972923 | L51: 0 | M51: 0 | N51: 0 | O51: 0 | P51: 0 | Q51: 0 | R51: 0 | S51: 0 | T51: 0 | U51: 0 | V51: 0 | W51: 0 | X51: 0 | Y51: 0 | Z51: 0 | AA51: 0 | AB51: 0 | AC51: 0 | AD51: 0 | AE51: 0 | AF51: 0 | AG51: 0 | AH51: 0 | AI51: 0 | AJ51: 0 | AK51: 0 | AL51: 0 | AM51: 0 | AN51: 0 | AO51: 0 | AP51: 0
C52: Capitalized Interest (value flowing to model) | F52: 28.04870378 | G52: 0 | H52: 0 | I52: 0 | J52: 5.239636105 | K52: 22.80906768 | L52: 0 | M52: 0 | N52: 0 | O52: 0 | P52: 0 | Q52: 0 | R52: 0 | S52: 0 | T52: 0 | U52: 0 | V52: 0 | W52: 0 | X52: 0 | Y52: 0 | Z52: 0 | AA52: 0 | AB52: 0 | AC52: 0 | AD52: 0 | AE52: 0 | AF52: 0 | AG52: 0 | AH52: 0 | AI52: 0 | AJ52: 0 | AK52: 0 | AL52: 0 | AM52: 0 | AN52: 0 | AO52: 0 | AP52: 0
C53: Interest paid (value flowing to model) | F53: 403.0022039 | G53: 0 | H53: 0 | I53: 0 | J53: 0 | K53: 0 | L53: 34.85562395 | M53: 33.97808918 | N53: 32.64886081 | O53: 31.51185217 | P53: 30.47567617 | Q53: 31.60411421 | R53: 30.38814197 | S53: 28.67423965 | T53: 26.89008619 | U53: 24.92052036 | V53: 23.36955531 | W53: 19.78399402 | X53: 17.08261014 | Y53: 14.22081142 | Z53: 11.18873209 | AA53: 8.079799505 | AB53: 3.329496793 | AC53: 0 | AD53: 0 | AE53: 0 | AF53: 0 | AG53: 0 | AH53: 0 | AI53: 0 | AJ53: 0 | AK53: 0 | AL53: 0 | AM53: 0 | AN53: 0 | AO53: 0 | AP53: 0
B56: Calculation of DSRA
D58: DSRA requirement in months | F58: ='Control Sheet'!F57 -> 6
D60: Principal repayment over next 6 months | G60: =IFERROR(-H27*$F$58/H10,0) -> 0 | H60: 0 | I60: 0 | J60: 0 | K60: 23.37983722 | L60: 24.04109651 | M60: 24.81592906 | N60: 25.58082233 | O60: 26.3602755 | P60: 26.81889917 | Q60: 27.74705269 | R60: 28.80357765 | S60: 29.91959722 | T60: 31.11642459 | U60: 32.32494876 | V60: 33.84000008 | W60: 35.29470042 | X60: 36.82975756 | Y60: 38.45010427 | Z60: 40.1579671 | AA60: 41.97110414 | AB60: 0 | AC60: 0 | AD60: 0 | AE60: 0 | AF60: 0 | AG60: 0 | AH60: 0 | AI60: 0 | AJ60: 0 | AK60: 0 | AL60: 0 | AM60: 0 | AN60: 0 | AO60: 0 | AP60: 0
D61: Interest payment over next 6 months | G61: =IFERROR(H48*$F$58/H10,0) -> 0 | H61: 0 | I61: 0 | J61: 0 | K61: 17.42771665 | L61: 16.98895166 | M61: 16.32434111 | N61: 15.7558399 | O61: 15.23775473 | P61: 15.80197067 | Q61: 15.19398788 | R61: 14.3370414 | S61: 13.44496955 | T61: 12.46019202 | U61: 11.68471374 | V61: 9.891942899 | W61: 8.541258347 | X61: 7.110366814 | Y61: 5.594335444 | Z61: 4.039877655 | AA61: 1.66473929 | AB61: 0 | AC61: 0 | AD61: 0 | AE61: 0 | AF61: 0 | AG61: 0 | AH61: 0 | AI61: 0 | AJ61: 0 | AK61: 0 | AL61: 0 | AM61: 0 | AN61: 0 | AO61: 0 | AP61: 0
C62: Debt Service Reserve Account (DSRA) balance at the end of the year | G62: =SUM(G60:G61) -> 0 | H62: =SUM(H60:H61) -> 0 | I62: 0 | J62: 0 | K62: 40.80755387 | L62: 41.03004817 | M62: 41.14027017 | N62: 41.33666223 | O62: 41.59803023 | P62: 42.62086984 | Q62: 42.94104056 | R62: 43.14061906 | S62: 43.36456677 | T62: 43.57661661 | U62: 44.0096625 | V62: 43.73194298 | W62: 43.83595877 | X62: 43.94012438 | Y62: 44.04443971 | Z62: 44.19784475 | AA62: 43.63584343 | AB62: 0 | AC62: 0 | AD62: 0 | AE62: 0 | AF62: 0 | AG62: 0 | AH62: 0 | AI62: 0 | AJ62: 0 | AK62: 0 | AL62: 0 | AM62: 0 | AN62: 0 | AO62: 0 | AP62: 0
C64: Change in DSRA balance (computed) | G64: =F62-G62 -> 0 | H64: =G62-H62 -> 0 | I64: 0 | J64: 0 | K64: -40.80755387 | L64: -0.2224943051 | M64: -0.1102219951 | N64: -0.1963920615 | O64: -0.2613680041 | P64: -1.022839605 | Q64: -0.3201707226 | R64: -0.1995784962 | S64: -0.2239477137 | T64: -0.2120498382 | U64: -0.4330458951 | V64: 0.2777195249 | W64: -0.1040157912 | X64: -0.1041656058 | Y64: -0.1043153345 | Z64: -0.1534050435 | AA64: 0.5620013267 | AB64: 43.63584343 | AC64: 0 | AD64: 0 | AE64: 0 | AF64: 0 | AG64: 0 | AH64: 0 | AI64: 0 | AJ64: 0 | AK64: 0 | AL64: 0 | AM64: 0 | AN64: 0 | AO64: 0 | AP64: 0
C66: Change in DSRA balance (value flowing to model) | G66: 0 | H66: 0 | I66: 0 | J66: 0 | K66: -40.80759417 | L66: -0.2224945249 | M66: -0.1102221039 | N66: -0.1963922555 | O66: -0.2613682623 | P66: -1.022840616 | Q66: -0.3201710389 | R66: -0.1995786934 | S66: -0.2239479349 | T66: -0.2120500476 | U66: -0.4330463228 | V66: 0.2777197992 | W66: -0.104015894 | X66: -0.1041657087 | Y66: -0.1043154375 | Z66: -0.1534051951 | AA66: 0.5620018818 | AB66: 43.63588653 | AC66: 0 | AD66: 0 | AE66: 0 | AF66: 0 | AG66: 0 | AH66: 0 | AI66: 0 | AJ66: 0 | AK66: 0 | AL66: 0 | AM66: 0 | AN66: 0 | AO66: 0 | AP66: 0
B69: DSCR Analysis
C70: Cash flow available for debt service | F70: =SUM(G70:AP70) -> 4487.167398 | G70: =DCF!G39+DCF!G49 -> 0 | H70: =DCF!H39+DCF!H49 -> 0 | I70: =DCF!I39+DCF!I49 -> 0 | J70: =DCF!J39+DCF!J49 -> -1.318450589 | K70: =DCF!K39+DCF!K49 -> -1.504301412 | L70: =DCF!L39+DCF!L49 -> 248.1659976 | M70: =DCF!M39+DCF!M49 -> 248.8455397 | N70: =DCF!N39+DCF!N49 -> 249.3528549 | O70: =DCF!O39+DCF!O49 -> 249.8695227 | P70: =DCF!P39+DCF!P49 -> 248.0309653 | Q70: =DCF!Q39+DCF!Q49 -> 220.1677351 | R70: =DCF!R39+DCF!R49 -> 206.443625 | S70: =DCF!S39+DCF!S49 -> 199.4991245 | T70: =DCF!T39+DCF!T49 -> 196.3748226 | U70: =DCF!U39+DCF!U49 -> 194.5538986 | V70: =DCF!V39+DCF!V49 -> 193.7148236 | W70: =DCF!W39+DCF!W49 -> 194.8034549 | X70: =DCF!X39+DCF!X49 -> 194.3119251 | Y70: =DCF!Y39+DCF!Y49 -> 193.8942208 | Z70: =DCF!Z39+DCF!Z49 -> 193.4939606 | AA70: =DCF!AA39+DCF!AA49 -> 194.0301253 | AB70: =DCF!AB39+DCF!AB49 -> 193.22771 | AC70: =DCF!AC39+DCF!AC49 -> 192.6821658 | AD70: =DCF!AD39+DCF!AD49 -> 192.9491099 | AE70: =DCF!AE39+DCF!AE49 -> 193.2273049 | AF70: =DCF!AF39+DCF!AF49 -> 20.34313689 | AG70: =DCF!AG39+DCF!AG49 -> 22.62937664 | AH70: =DCF!AH39+DCF!AH49 -> 25.13377256 | AI70: =DCF!AI39+DCF!AI49 -> 27.87931676 | AJ70: =DCF!AJ39+DCF!AJ49 -> 29.81717371 | AK70: =DCF!AK39+DCF!AK49 -> 31.73981749 | AL70: =DCF!AL39+DCF!AL49 -> 33.00229943 | AM70: =DCF!AM39+DCF!AM49 -> 33.94589689 | AN70: =DCF!AN39+DCF!AN49 -> 33.99781734 | AO70: =DCF!AO39+DCF!AO49 -> 33.86265568 | AP70: =DCF!AP39+DCF!AP49 -> 0
C71: Debt service | F71: =SUM(G71:AP71) -> 1457.904188 | G71: =G48-G27 -> 0 | H71: 0 | I71: 0 | J71: 0 | K71: 0 | L71: 81.61510773 | M71: 82.06009634 | N71: 82.28054033 | O71: 82.67332446 | P71: 83.19606046 | Q71: 85.24173968 | R71: 85.88208112 | S71: 86.28123811 | T71: 86.72913354 | U71: 87.15323322 | V71: 88.01932501 | W71: 87.46388596 | X71: 87.67191754 | Y71: 87.88024875 | Z71: 88.08887942 | AA71: 88.39568951 | AB71: 87.27168685 | AC71: 0 | AD71: 0 | AE71: 0 | AF71: 0 | AG71: 0 | AH71: 0 | AI71: 0 | AJ71: 0 | AK71: 0 | AL71: 0 | AM71: 0 | AN71: 0 | AO71: 0 | AP71: 0
C72: Debt Service Coverage Ratio (DSCR) | G72: =IFERROR(G70/G71,0) -> 0 | H72: 0 | I72: 0 | J72: 0 | K72: 0 | L72: 3.040687007 | M72: 3.032479253 | N72: 3.030520387 | O72: 3.022371779 | P72: 2.981282574 | Q72: 2.582862996 | R72: 2.403803242 | S72: 2.312195894 | T72: 2.264231343 | U72: 2.23231992 | V72: 2.200821508 | W72: 2.227244454 | X72: 2.216353087 | Y72: 2.206345835 | Z72: 2.196576479 | AA72: 2.195017952 | AB72: 2.214093906 | AC72: 0 | AD72: 0 | AE72: 0 | AF72: 0 | AG72: 0 | AH72: =IFERROR(AH70/AH71,0) -> 0 | AI72: 0 | AJ72: 0 | AK72: =IFERROR(AK70/AK71,0) -> 0 | AL72: 0 | AM72: =IFERROR(AM70/AM71,0) -> 0 | AN72: 0 | AO72: 0 | AP72: =IFERROR(AP70/AP71,0) -> 0
D73: Minimum | F73: =_xlfn.MINIFS(G72:AP72,G72:AP72,"<>"&0) -> 2.195017952
D74: Maximum | F74: =_xlfn.MAXIFS(G72:AP72,G72:AP72,"<>"&0) -> 3.040687007
B75: Minimum equity contribution required
D76: Project capex | F76: ='Control Sheet'!$F$101 -> 1202.405888
D77: Add: financing and other costs | F77: ='Sources&Uses'!K27 -> 116.2243476
D78: Total Project cost | F78: =SUM(F76:F77) -> 1318.630236
D79: Construction period equity requirement | F79: ='Control Sheet'!$F$28 -> 0.2
C80: Minimum equity required | F80: =F78*F79 -> 263.7260471
A83: Legend:
B84: Hard-coded values obtained using the 'Balance Model' macro button
A86: END

Sheet CoE
A1: Windstream v. Canada
A2: WACC as of February 18, 2020
B4: Cost of Equity
B5: Risk Free Rate (Rf) | C5: [A] | D5: 0.0145
B6: Equity Risk Premium (ERP) | C6: [B] | D6: 0.055
B7: Industry Beta, Unlevered | C7: [C] | D7: 0.5910656657
B8: Assumed Tax Rate | C8: [D] | D8: 0.265
B9: Assumed Debt / Equity Ratio | C9: [E] | D9: =D16/(1-D16) -> 2.333333333
B10: Selected Beta, Levered | C10: [F] = [C] * (1 + (1-[D])*[E]) | D10: =D7*(1+(1-D8)*D9) -> 1.604743282
B11: Adjusted Equity Risk Premium | C11: [G] = [B]*[F] | D11: =D6*D10 -> 0.08826088053
B12: Cost of Equity | C12: [H] = [A] +[G] | D12: =D5+D11 -> 0.1027608805
B14: Cost of Equity, rounded | D14: =ROUND(D12,2) -> 0.1
B16: Debt to Total Capital Ratio | D16: 0.7
A18: Notes
A19: 1 | B19: Refer to Appendix 3 of our Report.

Sheet Timeline
A1: Windstream v. Canada
A2: Financing
B4: Planning start date | F4: ='Control Sheet'!F65 -> 2020-02-18
B5: Financial close date (construction start) | F5: ='Control Sheet'!$F$66 -> 2023-02-20
B6: Commissioning date | F6: ='Control Sheet'!F67 -> 2024-12-20
B8: Planning start year | F8: =YEAR(F4) -> 2020
B9: Construction start year | F9: =YEAR(F5+1) -> 2023
B10: Construction end year | F10: =YEAR(F6) -> 2024
B11: Commissioning year | F11: =YEAR(EOMONTH(F6,0)+1) -> 2025
B13: Operating Life | E13: Years | F13: ='Control Sheet'!F15 -> 30
B14: PPA Years | E14: Years | F14: ='Control Sheet'!F109 -> 20
B15: Decommissioning date | F15: =EOMONTH(F6-1,F13*12) -> 2054-12-31
B16: Year of decommissioning | F16: =YEAR(F15) -> 2054
B19: Years ended December 31st | E19: Total | G19: =DATE(F8,12,31) -> 2020-12-31 | H19: =EOMONTH(G19,12) -> 2021-12-31 | I19: =EOMONTH(H19,12) -> 2022-12-31 | J19: 2023-12-31 | K19: 2024-12-31 | L19: 2025-12-31 | M19: 2026-12-31 | N19: 2027-12-31 | O19: 2028-12-31 | P19: 2029-12-31 | Q19: 2030-12-31 | R19: 2031-12-31 | S19: 2032-12-31 | T19: 2033-12-31 | U19: 2034-12-31 | V19: 2035-12-31 | W19: 2036-12-31 | X19: 2037-12-31 | Y19: 2038-12-31 | Z19: 2039-12-31 | AA19: 2040-12-31 | AB19: 2041-12-31 | AC19: 2042-12-31 | AD19: 2043-12-31 | AE19: 2044-12-31 | AF19: 2045-12-31 | AG19: 2046-12-31 | AH19: =EOMONTH(AG19,12) -> 2047-12-31 | AI19: =EOMONTH(AH19,12) -> 2048-12-31 | AJ19: =EOMONTH(AI19,12) -> 2049-12-31 | AK19: =EOMONTH(AJ19,12) -> 2050-12-31 | AL19: =EOMONTH(AK19,12) -> 2051-12-31 | AM19: =EOMONTH(AL19,12) -> 2052-12-31 | AN19: =EOMONTH(AM19,12) -> 2053-12-31 | AO19: =EOMONTH(AN19,12) -> 2054-12-31 | AP19: =EOMONTH(AO19,12) -> 2055-12-31
B20: Development flag | G20: =IF(AND(YEAR(G19)>=$F$8,YEAR(G19)<=$F$9),1,0) -> 1 | H20: =IF(AND(YEAR(H19)>=$F$8,YEAR(H19)<=$F$9),1,0) -> 1 | I20: 1 | J20: 1 | K20: 0 | L20: 0 | M20: 0 | N20: 0 | O20: 0 | P20: 0 | Q20: 0 | R20: 0 | S20: 0 | T20: 0 | U20: 0 | V20: 0 | W20: 0 | X20: 0 | Y20: 0 | Z20: 0 | AA20: 0 | AB20: 0 | AC20: 0 | AD20: 0 | AE20: 0 | AF20: 0 | AG20: 0 | AH20: 0 | AI20: 0 | AJ20: 0 | AK20: 0 | AL20: 0 | AM20: 0 | AN20: 0 | AO20: 0 | AP20: 0
B21: No. of development months | E21: =SUM(G21:AP21) -> 36.43333333 | G21: =(YEARFRAC(MIN(MAX($F$4-1,F19),$F$15),MIN($F$15,G19),0)*12-G25-G23) -> 10.46666667 | H21: =(YEARFRAC(MIN(MAX($F$4-1,G19),$F$15),MIN($F$15,H19),0)*12-H25-H23) -> 12 | I21: 12 | J21: 1.6 | K21: 0.3666666667 | L21: 0 | M21: 0 | N21: 0 | O21: 0 | P21: 0 | Q21: 0 | R21: 0 | S21: 0 | T21: 0 | U21: 0 | V21: 0 | W21: 0 | X21: 0 | Y21: 0 | Z21: 0 | AA21: 0 | AB21: 0 | AC21: 0 | AD21: 0 | AE21: 0 | AF21: 0 | AG21: 0 | AH21: 0 | AI21: 0 | AJ21: 0 | AK21: 0 | AL21: 0 | AM21: 0 | AN21: 0 | AO21: 0 | AP21: 0
B22: Construction flag | G22: =IF(AND(YEAR(G19)>=$F$9,YEAR(G19)<=$F$10),1,0) -> 0 | H22: =IF(AND(YEAR(H19)>=$F$9,YEAR(H19)<=$F$10),1,0) -> 0 | I22: 0 | J22: 1 | K22: 1 | L22: 0 | M22: 0 | N22: 0 | O22: 0 | P22: 0 | Q22: 0 | R22: 0 | S22: 0 | T22: 0 | U22: 0 | V22: 0 | W22: 0 | X22: 0 | Y22: 0 | Z22: 0 | AA22: 0 | AB22: 0 | AC22: 0 | AD22: 0 | AE22: 0 | AF22: 0 | AG22: 0 | AH22: 0 | AI22: 0 | AJ22: 0 | AK22: 0 | AL22: 0 | AM22: 0 | AN22: 0 | AO22: 0 | AP22: 0
B23: No. of construction months | E23: =SUM(G23:AP23) -> 22.03333333 | G23: =YEARFRAC(MIN(G19,$F$5-1),MIN(G19,$F$6),0)*12-SUM($F$23:F23) -> 0 | H23: =YEARFRAC(MIN(H19,$F$5-1),MIN(H19,$F$6),0)*12-SUM($F$23:G23) -> 0 | I23: =YEARFRAC(MIN(I19,$F$5-1),MIN(I19,$F$6),0)*12-SUM($F$23:H23) -> 0 | J23: =YEARFRAC(MIN(J19,$F$5-1),MIN(J19,$F$6),0)*12-SUM($F$23:I23) -> 10.4 | K23: =YEARFRAC(MIN(K19,$F$5-1),MIN(K19,$F$6),0)*12-SUM($F$23:J23) -> 11.63333333 | L23: =YEARFRAC(MIN(L19,$F$5-1),MIN(L19,$F$6),0)*12-SUM($F$23:K23) -> 0 | M23: =YEARFRAC(MIN(M19,$F$5-1),MIN(M19,$F$6),0)*12-SUM($F$23:L23) -> 0 | N23: =YEARFRAC(MIN(N19,$F$5-1),MIN(N19,$F$6),0)*12-SUM($F$23:M23) -> 0 | O23: =YEARFRAC(MIN(O19,$F$5-1),MIN(O19,$F$6),0)*12-SUM($F$23:N23) -> 0 | P23: =YEARFRAC(MIN(P19,$F$5-1),MIN(P19,$F$6),0)*12-SUM($F$23:O23) -> 0 | Q23: =YEARFRAC(MIN(Q19,$F$5-1),MIN(Q19,$F$6),0)*12-SUM($F$23:P23) -> 0 | R23: =YEARFRAC(MIN(R19,$F$5-1),MIN(R19,$F$6),0)*12-SUM($F$23:Q23) -> 0 | S23: =YEARFRAC(MIN(S19,$F$5-1),MIN(S19,$F$6),0)*12-SUM($F$23:R23) -> 0 | T23: =YEARFRAC(MIN(T19,$F$5-1),MIN(T19,$F$6),0)*12-SUM($F$23:S23) -> 0 | U23: =YEARFRAC(MIN(U19,$F$5-1),MIN(U19,$F$6),0)*12-SUM($F$23:T23) -> 0 | V23: =YEARFRAC(MIN(V19,$F$5-1),MIN(V19,$F$6),0)*12-SUM($F$23:U23) -> 0 | W23: =YEARFRAC(MIN(W19,$F$5-1),MIN(W19,$F$6),0)*12-SUM($F$23:V23) -> 0 | X23: =YEARFRAC(MIN(X19,$F$5-1),MIN(X19,$F$6),0)*12-SUM($F$23:W23) -> 0 | Y23: =YEARFRAC(MIN(Y19,$F$5-1),MIN(Y19,$F$6),0)*12-SUM($F$23:X23) -> 0 | Z23: =YEARFRAC(MIN(Z19,$F$5-1),MIN(Z19,$F$6),0)*12-SUM($F$23:Y23) -> 0 | AA23: =YEARFRAC(MIN(AA19,$F$5-1),MIN(AA19,$F$6),0)*12-SUM($F$23:Z23) -> 0 | AB23: =YEARFRAC(MIN(AB19,$F$5-1),MIN(AB19,$F$6),0)*12-SUM($F$23:AA23) -> 0 | AC23: =YEARFRAC(MIN(AC19,$F$5-1),MIN(AC19,$F$6),0)*12-SUM($F$23:AB23) -> 0 | AD23: =YEARFRAC(MIN(AD19,$F$5-1),MIN(AD19,$F$6),0)*12-SUM($F$23:AC23) -> 0 | AE23: =YEARFRAC(MIN(AE19,$F$5-1),MIN(AE19,$F$6),0)*12-SUM($F$23:AD23) -> 0 | AF23: =YEARFRAC(MIN(AF19,$F$5-1),MIN(AF19,$F$6),0)*12-SUM($F$23:AE23) -> 0 | AG23: =YEARFRAC(MIN(AG19,$F$5-1),MIN(AG19,$F$6),0)*12-SUM($F$23:AF23) -> 0 | AH23: =YEARFRAC(MIN(AH19,$F$5-1),MIN(AH19,$F$6),0)*12-SUM($F$23:AG23) -> 0 | AI23: =YEARFRAC(MIN(AI19,$F$5-1),MIN(AI19,$F$6),0)*12-SUM($F$23:AH23) -> 0 | AJ23: =YEARFRAC(MIN(AJ19,$F$5-1),MIN(AJ19,$F$6),0)*12-SUM($F$23:AI23) -> 0 | AK23: =YEARFRAC(MIN(AK19,$F$5-1),MIN(AK19,$F$6),0)*12-SUM($F$23:AJ23) -> 0 | AL23: =YEARFRAC(MIN(AL19,$F$5-1),MIN(AL19,$F$6),0)*12-SUM($F$23:AK23) -> 0 | AM23: =YEARFRAC(MIN(AM19,$F$5-1),MIN(AM19,$F$6),0)*12-SUM($F$23:AL23) -> 0 | AN23: =YEARFRAC(MIN(AN19,$F$5-1),MIN(AN19,$F$6),0)*12-SUM($F$23:AM23) -> 0 | AO23: =YEARFRAC(MIN(AO19,$F$5-1),MIN(AO19,$F$6),0)*12-SUM($F$23:AN23) -> 0 | AP23: =YEARFRAC(MIN(AP19,$F$5-1),MIN(AP19,$F$6),0)*12-SUM($F$23:AO23) -> 0
B24: Operation flag | G24: =IF(AND(YEAR(G19)>=$F$11,YEAR(G19)<=$F$16),1,0) -> 0 | H24: =IF(AND(YEAR(H19)>=$F$11,YEAR(H19)<=$F$16),1,0) -> 0 | I24: 0 | J24: 0 | K24: 0 | L24: 1 | M24: 1 | N24: 1 | O24: 1 | P24: 1 | Q24: 1 | R24: 1 | S24: 1 | T24: 1 | U24: 1 | V24: 1 | W24: 1 | X24: 1 | Y24: 1 | Z24: 1 | AA24: 1 | AB24: 1 | AC24: 1 | AD24: 1 | AE24: 1 | AF24: 1 | AG24: 1 | AH24: 1 | AI24: 1 | AJ24: 1 | AK24: 1 | AL24: 1 | AM24: 1 | AN24: 1 | AO24: 1 | AP24: 0
B25: No. of operational months | E25: =SUM(G25:AP25) -> 360 | G25: =ROUNDDOWN(YEARFRAC(MIN(G19,$F$6-1),MIN(G19,$F$15),0)*12-SUM($F$25:F25),0) -> 0 | H25: =ROUNDDOWN(YEARFRAC(MIN(H19,$F$6-1),MIN(H19,$F$15),0)*12-SUM($F$25:G25),0) -> 0 | I25: =ROUNDDOWN(YEARFRAC(MIN(I19,$F$6-1),MIN(I19,$F$15),0)*12-SUM($F$25:H25),0) -> 0 | J25: =ROUNDDOWN(YEARFRAC(MIN(J19,$F$6-1),MIN(J19,$F$15),0)*12-SUM($F$25:I25),0) -> 0 | K25: =ROUNDDOWN(YEARFRAC(MIN(K19,$F$6-1),MIN(K19,$F$15),0)*12-SUM($F$25:J25),0) -> 0 | L25: =ROUNDDOWN(YEARFRAC(MIN(L19,$F$6-1),MIN(L19,$F$15),0)*12-SUM($F$25:K25),0) -> 12 | M25: =ROUNDDOWN(YEARFRAC(MIN(M19,$F$6-1),MIN(M19,$F$15),0)*12-SUM($F$25:L25),0) -> 12 | N25: =ROUNDDOWN(YEARFRAC(MIN(N19,$F$6-1),MIN(N19,$F$15),0)*12-SUM($F$25:M25),0) -> 12 | O25: =ROUNDDOWN(YEARFRAC(MIN(O19,$F$6-1),MIN(O19,$F$15),0)*12-SUM($F$25:N25),0) -> 12 | P25: =ROUNDDOWN(YEARFRAC(MIN(P19,$F$6-1),MIN(P19,$F$15),0)*12-SUM($F$25:O25),0) -> 12 | Q25: =ROUNDDOWN(YEARFRAC(MIN(Q19,$F$6-1),MIN(Q19,$F$15),0)*12-SUM($F$25:P25),0) -> 12 | R25: =ROUNDDOWN(YEARFRAC(MIN(R19,$F$6-1),MIN(R19,$F$15),0)*12-SUM($F$25:Q25),0) -> 12 | S25: =ROUNDDOWN(YEARFRAC(MIN(S19,$F$6-1),MIN(S19,$F$15),0)*12-SUM($F$25:R25),0) -> 12 | T25: =ROUNDDOWN(YEARFRAC(MIN(T19,$F$6-1),MIN(T19,$F$15),0)*12-SUM($F$25:S25),0) -> 12 | U25: =ROUNDDOWN(YEARFRAC(MIN(U19,$F$6-1),MIN(U19,$F$15),0)*12-SUM($F$25:T25),0) -> 12 | V25: =ROUNDDOWN(YEARFRAC(MIN(V19,$F$6-1),MIN(V19,$F$15),0)*12-SUM($F$25:U25),0) -> 12 | W25: =ROUNDDOWN(YEARFRAC(MIN(W19,$F$6-1),MIN(W19,$F$15),0)*12-SUM($F$25:V25),0) -> 12 | X25: =ROUNDDOWN(YEARFRAC(MIN(X19,$F$6-1),MIN(X19,$F$15),0)*12-SUM($F$25:W25),0) -> 12 | Y25: =ROUNDDOWN(YEARFRAC(MIN(Y19,$F$6-1),MIN(Y19,$F$15),0)*12-SUM($F$25:X25),0) -> 12 | Z25: =ROUNDDOWN(YEARFRAC(MIN(Z19,$F$6-1),MIN(Z19,$F$15),0)*12-SUM($F$25:Y25),0) -> 12 | AA25: =ROUNDDOWN(YEARFRAC(MIN(AA19,$F$6-1),MIN(AA19,$F$15),0)*12-SUM($F$25:Z25),0) -> 12 | AB25: =ROUNDDOWN(YEARFRAC(MIN(AB19,$F$6-1),MIN(AB19,$F$15),0)*12-SUM($F$25:AA25),0) -> 12 | AC25: =ROUNDDOWN(YEARFRAC(MIN(AC19,$F$6-1),MIN(AC19,$F$15),0)*12-SUM($F$25:AB25),0) -> 12 | AD25: =ROUNDDOWN(YEARFRAC(MIN(AD19,$F$6-1),MIN(AD19,$F$15),0)*12-SUM($F$25:AC25),0) -> 12 | AE25: =ROUNDDOWN(YEARFRAC(MIN(AE19,$F$6-1),MIN(AE19,$F$15),0)*12-SUM($F$25:AD25),0) -> 12 | AF25: =ROUNDDOWN(YEARFRAC(MIN(AF19,$F$6-1),MIN(AF19,$F$15),0)*12-SUM($F$25:AE25),0) -> 12 | AG25: =ROUNDDOWN(YEARFRAC(MIN(AG19,$F$6-1),MIN(AG19,$F$15),0)*12-SUM($F$25:AF25),0) -> 12 | AH25: =ROUNDDOWN(YEARFRAC(MIN(AH19,$F$6-1),MIN(AH19,$F$15),0)*12-SUM($F$25:AG25),0) -> 12 | AI25: =ROUNDDOWN(YEARFRAC(MIN(AI19,$F$6-1),MIN(AI19,$F$15),0)*12-SUM($F$25:AH25),0) -> 12 | AJ25: =ROUNDDOWN(YEARFRAC(MIN(AJ19,$F$6-1),MIN(AJ19,$F$15),0)*12-SUM($F$25:AI25),0) -> 12 | AK25: =ROUNDDOWN(YEARFRAC(MIN(AK19,$F$6-1),MIN(AK19,$F$15),0)*12-SUM($F$25:AJ25),0) -> 12 | AL25: =ROUNDDOWN(YEARFRAC(MIN(AL19,$F$6-1),MIN(AL19,$F$15),0)*12-SUM($F$25:AK25),0) -> 12 | AM25: =ROUNDDOWN(YEARFRAC(MIN(AM19,$F$6-1),MIN(AM19,$F$15),0)*12-SUM($F$25:AL25),0) -> 12 | AN25: =ROUNDDOWN(YEARFRAC(MIN(AN19,$F$6-1),MIN(AN19,$F$15),0)*12-SUM($F$25:AM25),0) -> 12 | AO25: =ROUNDDOWN(YEARFRAC(MIN(AO19,$F$6-1),MIN(AO19,$F$15),0)*12-SUM($F$25:AN25),0) -> 12 | AP25: =ROUNDDOWN(YEARFRAC(MIN(AP19,$F$6-1),MIN(AP19,$F$15),0)*12-SUM($F$25:AO25),0) -> 0
B26: PPA months | E26: =SUM(G26:AP26) -> 240 | G26: =MIN(G25,$F$14*12-SUM($F$26:F26)) -> 0 | H26: =MIN(H25,$F$14*12-SUM($F$26:G26)) -> 0 | I26: =MIN(I25,$F$14*12-SUM($F$26:H26)) -> 0 | J26: =MIN(J25,$F$14*12-SUM($F$26:I26)) -> 0 | K26: =MIN(K25,$F$14*12-SUM($F$26:J26)) -> 0 | L26: =MIN(L25,$F$14*12-SUM($F$26:K26)) -> 12 | M26: =MIN(M25,$F$14*12-SUM($F$26:L26)) -> 12 | N26: =MIN(N25,$F$14*12-SUM($F$26:M26)) -> 12 | O26: =MIN(O25,$F$14*12-SUM($F$26:N26)) -> 12 | P26: =MIN(P25,$F$14*12-SUM($F$26:O26)) -> 12 | Q26: =MIN(Q25,$F$14*12-SUM($F$26:P26)) -> 12 | R26: =MIN(R25,$F$14*12-SUM($F$26:Q26)) -> 12 | S26: =MIN(S25,$F$14*12-SUM($F$26:R26)) -> 12 | T26: =MIN(T25,$F$14*12-SUM($F$26:S26)) -> 12 | U26: =MIN(U25,$F$14*12-SUM($F$26:T26)) -> 12 | V26: =MIN(V25,$F$14*12-SUM($F$26:U26)) -> 12 | W26: =MIN(W25,$F$14*12-SUM($F$26:V26)) -> 12 | X26: =MIN(X25,$F$14*12-SUM($F$26:W26)) -> 12 | Y26: =MIN(Y25,$F$14*12-SUM($F$26:X26)) -> 12 | Z26: =MIN(Z25,$F$14*12-SUM($F$26:Y26)) -> 12 | AA26: =MIN(AA25,$F$14*12-SUM($F$26:Z26)) -> 12 | AB26: =MIN(AB25,$F$14*12-SUM($F$26:AA26)) -> 12 | AC26: =MIN(AC25,$F$14*12-SUM($F$26:AB26)) -> 12 | AD26: =MIN(AD25,$F$14*12-SUM($F$26:AC26)) -> 12 | AE26: =MIN(AE25,$F$14*12-SUM($F$26:AD26)) -> 12 | AF26: =MIN(AF25,$F$14*12-SUM($F$26:AE26)) -> 0 | AG26: =MIN(AG25,$F$14*12-SUM($F$26:AF26)) -> 0 | AH26: =MIN(AH25,$F$14*12-SUM($F$26:AG26)) -> 0 | AI26: =MIN(AI25,$F$14*12-SUM($F$26:AH26)) -> 0 | AJ26: =MIN(AJ25,$F$14*12-SUM($F$26:AI26)) -> 0 | AK26: =MIN(AK25,$F$14*12-SUM($F$26:AJ26)) -> 0 | AL26: =MIN(AL25,$F$14*12-SUM($F$26:AK26)) -> 0 | AM26: =MIN(AM25,$F$14*12-SUM($F$26:AL26)) -> 0 | AN26: =MIN(AN25,$F$14*12-SUM($F$26:AM26)) -> 0 | AO26: =MIN(AO25,$F$14*12-SUM($F$26:AN26)) -> 0 | AP26: =MIN(AP25,$F$14*12-SUM($F$26:AO26)) -> 0
B27: Non- PPA Months | E27: 120 | G27: =G25-G26 -> 0 | H27: =H25-H26 -> 0 | I27: 0 | J27: 0 | K27: 0 | L27: 0 | M27: 0 | N27: 0 | O27: 0 | P27: 0 | Q27: 0 | R27: 0 | S27: 0 | T27: 0 | U27: 0 | V27: 0 | W27: 0 | X27: 0 | Y27: 0 | Z27: 0 | AA27: 0 | AB27: 0 | AC27: 0 | AD27: 0 | AE27: 0 | AF27: 12 | AG27: 12 | AH27: 12 | AI27: 12 | AJ27: 12 | AK27: 12 | AL27: 12 | AM27: 12 | AN27: 12 | AO27: 12 | AP27: 0
A29: END

Sheet Other Experts -->

Sheet Capex Profile
A1: Windstream v. Canada
A2: Capex Spend Profile
A3: Source: CER-Two Dogs (Capex Opex Sensitivity Report), Section 6 and Appendix C
A5: WIS Estimated Monthly Capex Spend Profile | AR5: Financial Close
A6: Capex Item | B6: Estimate ($CADm) | E6: Estimate ($CADm) | F6: Check | G6: See Spend Profile Graph at Bottom of Table | H6: 2020-02-01 | I6: 2020-03-01 | J6: 2020-04-01 | K6: 2020-05-01 | L6: 2020-06-01 | M6: 2020-07-01 | N6: 2020-08-01 | O6: 2020-09-01 | P6: 2020-10-01 | Q6: 2020-11-01 | R6: 2020-12-01 | S6: 2021-01-01 | T6: 2021-02-01 | U6: 2021-03-01 | V6: 2021-04-01 | W6: 2021-05-01 | X6: 2021-06-01 | Y6: 2021-07-01 | Z6: 2021-08-01 | AA6: 2021-09-01 | AB6: 2021-10-01 | AC6: 2021-11-01 | AD6: 2021-12-01 | AE6: 2022-01-01 | AF6: 2022-02-01 | AG6: 2022-03-01 | AH6: 2022-04-01 | AI6: 2022-05-01 | AJ6: 2022-06-01 | AK6: 2022-07-01 | AL6: 2022-08-01 | AM6: 2022-09-01 | AN6: 2022-10-01 | AO6: 2022-11-01 | AP6: 2022-12-01 | AQ6: 2023-01-01 | AR6: 2023-02-01 | AS6: 2023-03-01 | AT6: 2023-04-01 | AU6: 2023-05-01 | AV6: 2023-06-01 | AW6: 2023-07-01 | AX6: 2023-08-01 | AY6: 2023-09-01 | AZ6: 2023-10-01 | BA6: 2023-11-01 | BB6: 2023-12-01 | BC6: 2024-01-01 | BD6: 2024-02-01 | BE6: 2024-03-01 | BF6: 2024-04-01 | BG6: 2024-05-01 | BH6: 2024-06-01 | BI6: 2024-07-01 | BJ6: 2024-08-01 | BK6: 2024-09-01 | BL6: 2024-10-01 | BM6: 2024-11-01 | BN6: 2024-12-01 | BP6: Spend Profile Notes | BQ6: Schedule Notes
E7: Selected | G7: Total Monthly Spend ($CADm) | H7: =SUBTOTAL(9,H9:H64) -> 1.910403972 | I7: =SUBTOTAL(9,I9:I64) -> 1.910403972 | J7: =SUBTOTAL(9,J9:J64) -> 1.910403972 | K7: =SUBTOTAL(9,K9:K64) -> 1.910403972 | L7: =SUBTOTAL(9,L9:L64) -> 1.910403972 | M7: =SUBTOTAL(9,M9:M64) -> 1.910403972 | N7: =SUBTOTAL(9,N9:N64) -> 1.910403972 | O7: =SUBTOTAL(9,O9:O64) -> 1.910403972 | P7: =SUBTOTAL(9,P9:P64) -> 1.910403972 | Q7: =SUBTOTAL(9,Q9:Q64) -> 1.910403972 | R7: =SUBTOTAL(9,R9:R64) -> 1.910403972 | S7: =SUBTOTAL(9,S9:S64) -> 2.179290284 | T7: =SUBTOTAL(9,T9:T64) -> 2.179290284 | U7: =SUBTOTAL(9,U9:U64) -> 2.179290284 | V7: =SUBTOTAL(9,V9:V64) -> 2.179290284 | W7: =SUBTOTAL(9,W9:W64) -> 2.179290284 | X7: =SUBTOTAL(9,X9:X64) -> 2.179290284 | Y7: =SUBTOTAL(9,Y9:Y64) -> 2.179290284 | Z7: =SUBTOTAL(9,Z9:Z64) -> 2.179290284 | AA7: =SUBTOTAL(9,AA9:AA64) -> 2.179290284 | AB7: =SUBTOTAL(9,AB9:AB64) -> 2.179290284 | AC7: =SUBTOTAL(9,AC9:AC64) -> 2.179290284 | AD7: =SUBTOTAL(9,AD9:AD64) -> 6.515199375 | AE7: =SUBTOTAL(9,AE9:AE64) -> 6.515199375 | AF7: =SUBTOTAL(9,AF9:AF64) -> 6.348116042 | AG7: =SUBTOTAL(9,AG9:AG64) -> 6.348116042 | AH7: =SUBTOTAL(9,AH9:AH64) -> 6.348116042 | AI7: =SUBTOTAL(9,AI9:AI64) -> 6.348116042 | AJ7: =SUBTOTAL(9,AJ9:AJ64) -> 6.299527807 | AK7: =SUBTOTAL(9,AK9:AK64) -> 6.299527807 | AL7: =SUBTOTAL(9,AL9:AL64) -> 6.316438521 | AM7: =SUBTOTAL(9,AM9:AM64) -> 6.335909354 | AN7: =SUBTOTAL(9,AN9:AN64) -> 6.335909354 | AO7: =SUBTOTAL(9,AO9:AO64) -> 6.335909354 | AP7: =SUBTOTAL(9,AP9:AP64) -> 10.12457602 | AQ7: =SUBTOTAL(9,AQ9:AQ64) -> 10.12457602 | AR7: =SUBTOTAL(9,AR9:AR64) -> 10.19950852 | AS7: =SUBTOTAL(9,AS9:AS64) -> 43.40865851 | AT7: =SUBTOTAL(9,AT9:AT64) -> 52.87455099 | AU7: =SUBTOTAL(9,AU9:AU64) -> 43.26541766 | AV7: =SUBTOTAL(9,AV9:AV64) -> 38.49591766 | AW7: =SUBTOTAL(9,AW9:AW64) -> 38.47939766 | AX7: =SUBTOTAL(9,AX9:AX64) -> 48.08853099 | AY7: =SUBTOTAL(9,AY9:AY64) -> 38.47939766 | AZ7: =SUBTOTAL(9,AZ9:AZ64) -> 48.08853099 | BA7: =SUBTOTAL(9,BA9:BA64) -> 28.08439766 | BB7: =SUBTOTAL(9,BB9:BB64) -> 33.86347424 | BC7: =SUBTOTAL(9,BC9:BC64) -> 47.95704754 | BD7: =SUBTOTAL(9,BD9:BD64) -> 62.44757045 | BE7: =SUBTOTAL(9,BE9:BE64) -> 58.67157879 | BF7: =SUBTOTAL(9,BF9:BF64) -> 76.76908883 | BG7: =SUBTOTAL(9,BG9:BG64) -> 77.95113258 | BH7: =SUBTOTAL(9,BH9:BH64) -> 61.49400379 | BI7: =SUBTOTAL(9,BI9:BI64) -> 62.81000379 | BJ7: =SUBTOTAL(9,BJ9:BJ64) -> 38.91787879 | BK7: =SUBTOTAL(9,BK9:BK64) -> 28.52287879 | BL7: =SUBTOTAL(9,BL9:BL64) -> 23.91573593 | BM7: =SUBTOTAL(9,BM9:BM64) -> 21.39387879 | BN7: =SUBTOTAL(9,BN9:BN64) -> 10.89954545
B8: Low | C8: Mid | D8: High | E8: ='Control Sheet'!D87 -> Mid | G8: Cumulative Total Monthly Spend ($CADm) | H8: =H7 -> 1.910403972 | I8: =H8+I7 -> 3.820807944 | J8: =I8+J7 -> 5.731211916 | K8: 7.641615889 | L8: 9.552019861 | M8: 11.46242383 | N8: 13.37282781 | O8: 15.28323178 | P8: 17.19363575 | Q8: 19.10403972 | R8: 21.01444369 | S8: 23.19373398 | T8: 25.37302426 | U8: 27.55231455 | V8: 29.73160483 | W8: 31.91089512 | X8: 34.0901854 | Y8: 36.26947568 | Z8: 38.44876597 | AA8: 40.62805625 | AB8: 42.80734654 | AC8: 44.98663682 | AD8: 51.5018362 | AE8: 58.01703557 | AF8: 64.36515161 | AG8: 70.71326766 | AH8: 77.0613837 | AI8: 83.40949974 | AJ8: 89.70902755 | AK8: 96.00855535 | AL8: 102.3249939 | AM8: 108.6609032 | AN8: 114.9968126 | AO8: 121.3327219 | AP8: 131.457298 | AQ8: 141.581874 | AR8: 151.7813825 | AS8: 195.190041 | AT8: 248.064592 | AU8: 291.3300097 | AV8: 329.8259273 | AW8: 368.305325 | AX8: 416.393856 | AY8: 454.8732536 | AZ8: 502.9617846 | BA8: 531.0461823 | BB8: 564.9096565 | BC8: 612.866704 | BD8: 675.3142745 | BE8: 733.9858533 | BF8: 810.7549421 | BG8: 888.7060747 | BH8: 950.2000785 | BI8: 1013.010082 | BJ8: 1051.927961 | BK8: 1080.45084 | BL8: 1104.366576 | BM8: 1125.760455 | BN8: 1136.66
A9: Development Costs | B9: 45.02 | C9: 48.46 | D9: 52.53 | E9: =SUMIFS(B9:D9,$B$8:$D$8,$E$8) -> 48.46 | F9: =SUM(H9:AR9) -> 48.46 | H9: =$E9/37 -> 1.30972973 | I9: =$E9/37 -> 1.30972973 | J9: 1.30972973 | K9: 1.30972973 | L9: 1.30972973 | M9: 1.30972973 | N9: 1.30972973 | O9: 1.30972973 | P9: 1.30972973 | Q9: 1.30972973 | R9: 1.30972973 | S9: 1.30972973 | T9: 1.30972973 | U9: 1.30972973 | V9: 1.30972973 | W9: 1.30972973 | X9: 1.30972973 | Y9: 1.30972973 | Z9: 1.30972973 | AA9: 1.30972973 | AB9: 1.30972973 | AC9: 1.30972973 | AD9: 1.30972973 | AE9: 1.30972973 | AF9: 1.30972973 | AG9: 1.30972973 | AH9: 1.30972973 | AI9: 1.30972973 | AJ9: 1.30972973 | AK9: 1.30972973 | AL9: 1.30972973 | AM9: 1.30972973 | AN9: 1.30972973 | AO9: 1.30972973 | AP9: 1.30972973 | AQ9: 1.30972973 | AR9: 1.30972973 | BP9: It is assumed that the development costs will be spread equally over the development period and will cease at Financial Close.
A10: Development Costs | B10: =SUBTOTAL(9,B9:B9) -> 45.02 | C10: =SUBTOTAL(9,C9:C9) -> 48.46 | D10: =SUBTOTAL(9,D9:D9) -> 52.53 | E10: =SUBTOTAL(9,E9:E9) -> 48.46
A11: GBF Detailed Design | B11: 3.81 | C11: 4.01 | D11: 4.21 | E11: =SUMIFS(B11:D11,$B$8:$D$8,$E$8) -> 4.01 | F11: =SUM(H11:AU11) -> 4.01 | H11: =$E11/24 -> 0.1670833333 | I11: =$E11/24 -> 0.1670833333 | J11: 0.1670833333 | K11: 0.1670833333 | L11: 0.1670833333 | M11: 0.1670833333 | N11: 0.1670833333 | O11: 0.1670833333 | P11: 0.1670833333 | Q11: 0.1670833333 | R11: 0.1670833333 | S11: 0.1670833333 | T11: 0.1670833333 | U11: 0.1670833333 | V11: 0.1670833333 | W11: 0.1670833333 | X11: 0.1670833333 | Y11: 0.1670833333 | Z11: 0.1670833333 | AA11: 0.1670833333 | AB11: 0.1670833333 | AC11: 0.1670833333 | AD11: 0.1670833333 | AE11: 0.1670833333
A12: GBF Manufacturing Facility | B12: 84.8 | C12: 95.39 | D12: 105.98 | E12: 95.39 | F12: =SUM(H12:BO14) -> 95.39
A13: Design | H13: =0.1*$E12/22 -> 0.4335909091 | I13: =0.1*$E12/22 -> 0.4335909091 | J13: 0.4335909091 | K13: 0.4335909091 | L13: 0.4335909091 | M13: 0.4335909091 | N13: 0.4335909091 | O13: 0.4335909091 | P13: 0.4335909091 | Q13: 0.4335909091 | R13: 0.4335909091 | S13: 0.4335909091 | T13: 0.4335909091 | U13: 0.4335909091 | V13: 0.4335909091 | W13: 0.4335909091 | X13: 0.4335909091 | Y13: 0.4335909091 | Z13: 0.4335909091 | AA13: 0.4335909091 | AB13: 0.4335909091 | AC13: 0.4335909091 | BP13: Assume that 10% of the GBF Manufacturing Facility cost will be used for Logistics, GI & Design and will be spread equally over the respective period.
A14: Construction | AD14: =0.9*$E12/18 -> 4.7695 | AE14: =0.9*$E12/18 -> 4.7695 | AF14: 4.7695 | AG14: 4.7695 | AH14: 4.7695 | AI14: 4.7695 | AJ14: 4.7695 | AK14: 4.7695 | AL14: 4.7695 | AM14: 4.7695 | AN14: 4.7695 | AO14: 4.7695 | AP14: 4.7695 | AQ14: 4.7695 | AR14: 4.7695 | AS14: 4.7695 | AT14: 4.7695 | AU14: 4.7695 | BP14: Assume that 90% of the GBF Manufacturing Facility cost will be used for construction and will be spread equally over the respective period. The key issue here is placing the order for the Elevator Platform as this will put spike on monthly capex. However, this will be offset by very low initial GBF Facility construction costs at the start of the build, for example site preparation. This can be refined if required.
A15: GBF Supply | B15: 210.13 | C15: 227.32 | D15: 244.5 | E15: =SUMIFS(B15:D15,$B$8:$D$8,$E$8) -> 227.32 | F15: =SUM(H15:BN15) -> 227.32 | AP15: =0.05*$E15/3 -> 3.788666667 | AQ15: =0.05*$E15/3 -> 3.788666667 | AR15: 3.788666667 | AT15: =$E15*0.95/16 -> 13.497125 | AU15: =$E15*0.95/16 -> 13.497125 | AV15: 13.497125 | AW15: 13.497125 | AX15: 13.497125 | AY15: 13.497125 | AZ15: 13.497125 | BA15: 13.497125 | BB15: 13.497125 | BC15: 13.497125 | BD15: 13.497125 | BE15: 13.497125 | BF15: 13.497125 | BG15: 13.497125 | BH15: 13.497125 | BI15: 13.497125 | BP15: Assume that 5% of the GBF construction cost will go on the reusable formwork and 95% on GBF manufacturing. Both costs will be spread equally over the respective periods.
A16: Total cost of GBF | B16: =SUBTOTAL(9,B11:B15) -> 298.74 | C16: 326.72 | D16: 354.69 | E16: =SUBTOTAL(9,E11:E15) -> 326.72 | F16: 326.72 | G16: 0 | H16: =SUBTOTAL(9,H11:H15) -> 0.6006742424 | I16: =SUBTOTAL(9,I11:I15) -> 0.6006742424 | J16: 0.6006742424 | K16: 0.6006742424 | L16: 0.6006742424 | M16: 0.6006742424 | N16: 0.6006742424 | O16: 0.6006742424 | P16: 0.6006742424 | Q16: 0.6006742424 | R16: 0.6006742424 | S16: 0.6006742424 | T16: 0.6006742424 | U16: 0.6006742424 | V16: 0.6006742424 | W16: 0.6006742424 | X16: 0.6006742424 | Y16: 0.6006742424 | Z16: 0.6006742424 | AA16: 0.6006742424 | AB16: 0.6006742424 | AC16: 0.6006742424 | AD16: 4.936583333 | AE16: 4.936583333 | AF16: 4.7695 | AG16: 4.7695 | AH16: 4.7695 | AI16: 4.7695 | AJ16: 4.7695 | AK16: 4.7695 | AL16: 4.7695 | AM16: 4.7695 | AN16: 4.7695 | AO16: 4.7695 | AP16: 8.558166667 | AQ16: 8.558166667 | AR16: 8.558166667 | AS16: 4.7695 | AT16: 18.266625 | AU16: 18.266625 | AV16: 13.497125 | AW16: 13.497125 | AX16: 13.497125 | AY16: 13.497125 | AZ16: 13.497125 | BA16: 13.497125 | BB16: 13.497125 | BC16: 13.497125 | BD16: 13.497125 | BE16: 13.497125 | BF16: 13.497125 | BG16: 13.497125 | BH16: 13.497125 | BI16: 13.497125 | BJ16: 0 | BK16: 0 | BL16: 0 | BM16: 0 | BN16: 0 | BO16: 0
A17: WTG Supply | B17: 257.1 | C17: 277.2 | D17: 297 | E17: =SUMIFS(B17:D17,$B$8:$D$8,$E$8) -> 277.2 | F17: =SUM(H17:BN24) -> 277.2 | BQ17: Line 409 in the schedule shows an installation activity in 2025, after taking over?
A18: Selection, TSA & Design | BP18: Assume that these costs are already captured in the overall development costs
A19: Procurement | BP19: Assume that these costs are already captured in the overall development costs | BQ19: I would have expected procurement to have started well before manufacture commences.
A20: Built Slot Deposit (Manufacture - 9 Months) | AS20: =0.3*$E$17/8 -> 10.395 | AT20: 10.395 | AU20: 10.395 | AV20: 10.395 | AW20: 10.395 | AX20: 10.395 | AY20: 10.395 | AZ20: 10.395 | BP20: Securing a build slot may require an earlier down payment, but this means that it will need to be made pre-financial close.
A21: Manufacture (Delivery - 1 Month) | BB21: =0.3*$E$17/8 -> 10.395 | BC21: =0.3*$E$17/8 -> 10.395 | BD21: 10.395 | BE21: 10.395 | BF21: 10.395 | BG21: 10.395 | BH21: 10.395 | BI21: 10.395
A22: Installation Port Works | BQ22: We do not have a specific cost for upgrading port facilities to accommodate handling WTGs.
A23: Transportation/Delivery | BC23: =0.3*$E$17/8 -> 10.395 | BD23: =0.3*$E$17/8 -> 10.395 | BE23: 10.395 | BF23: 10.395 | BG23: 10.395 | BH23: 10.395 | BI23: 10.395 | BJ23: 10.395 | BP23: Assume that 30% of the WTG capex is paid on delivery to Lake Ontario port and this is spread equally over the delivery period.
A24: Commissioning/Taking-Over Certs | BI24: =0.1*$E17/6 -> 4.62 | BJ24: =0.1*$E17/6 -> 4.62 | BK24: 4.62 | BL24: 4.62 | BM24: 4.62 | BN24: 4.62 | BP24: Assume that 10% of WTG Capex is paid on receipt of taking-over certificate and this is spread equally over the corresponding period.
A25: Total Cost of WTG | B25: =SUBTOTAL(9,B17:B24) -> 257.1 | C25: 277.2 | D25: 297 | E25: =SUBTOTAL(9,E17:E24) -> 277.2 | F25: 277.2 | G25: 0 | H25: =SUBTOTAL(9,H17:H24) -> 0 | I25: =SUBTOTAL(9,I17:I24) -> 0 | J25: 0 | K25: 0 | L25: 0 | M25: 0 | N25: 0 | O25: 0 | P25: 0 | Q25: 0 | R25: 0 | S25: 0 | T25: 0 | U25: 0 | V25: 0 | W25: 0 | X25: 0 | Y25: 0 | Z25: 0 | AA25: 0 | AB25: 0 | AC25: 0 | AD25: 0 | AE25: 0 | AF25: 0 | AG25: 0 | AH25: 0 | AI25: 0 | AJ25: 0 | AK25: 0 | AL25: 0 | AM25: 0 | AN25: 0 | AO25: 0 | AP25: 0 | AQ25: 0 | AR25: 0 | AS25: 10.395 | AT25: 10.395 | AU25: 10.395 | AV25: 10.395 | AW25: 10.395 | AX25: 10.395 | AY25: 10.395 | AZ25: 10.395 | BA25: 0 | BB25: 10.395 | BC25: 20.79 | BD25: 20.79 | BE25: 20.79 | BF25: 20.79 | BG25: 20.79 | BH25: 20.79 | BI25: 25.41 | BJ25: 15.015 | BK25: 4.62 | BL25: 4.62 | BM25: 4.62 | BN25: 4.62
A26: Offshore Substation Detailed Design | B26: 2.49 | C26: 2.57 | D26: 2.65 | E26: =SUMIFS(B26:D26,$B$8:$D$8,$E$8) -> 2.57 | F26: =SUM(H26:BN26) -> 2.57 | S26: =$E26/26 -> 0.09884615385 | T26: =$E26/26 -> 0.09884615385 | U26: 0.09884615385 | V26: 0.09884615385 | W26: 0.09884615385 | X26: 0.09884615385 | Y26: 0.09884615385 | Z26: 0.09884615385 | AA26: 0.09884615385 | AB26: 0.09884615385 | AC26: 0.09884615385 | AD26: 0.09884615385 | AE26: 0.09884615385 | AF26: 0.09884615385 | AG26: 0.09884615385 | AH26: 0.09884615385 | AI26: 0.09884615385 | AJ26: 0.09884615385 | AK26: 0.09884615385 | AL26: 0.09884615385 | AM26: 0.09884615385 | AN26: 0.09884615385 | AO26: 0.09884615385 | AP26: 0.09884615385 | AQ26: 0.09884615385 | AR26: 0.09884615385 | BP26: Assume that the offshore substation design cost is spread equally over the respective period.
A27: Offshore Substation Supply Cost | B27: 42.1 | C27: 46.73 | D27: 51.4 | E27: =SUMIFS(B27:D27,$B$8:$D$8,$E$8) -> 46.73 | F27: =SUM(H27:BN32) -> 46.73
A28: Pigeon Island Foundation Procurement | AR28: =0.0025*$E27/2 -> 0.0584125 | AS28: =0.0025*$E27/2 -> 0.0584125 | BP28: Assume that offshore substation island construction procurement is 0.25% of total capex and spread over the first two months of the procurement period. Assume that offshore substation island capex is 49.75% of total capex and spread equally over the island construction period.
A29: Pigeon Island Foundation Construction Campaign 1 | AT29: =0.4975*$E$27/11 -> 2.113470455 | AU29: =0.4975*$E$27/11 -> 2.113470455 | AV29: 2.113470455 | AW29: 2.113470455 | AX29: 2.113470455 | AY29: 2.113470455 | AZ29: 2.113470455 | BA29: 2.113470455 | BB29: 2.113470455
A30: Pigeon Island Foundation Construction Campaign 2 | BF30: =0.4975*$E$27/11 -> 2.113470455 | BG30: 2.113470455
A31: Equipment Procurement 1 & 2 | AM31: =0.0025*$E27/6 -> 0.01947083333 | AN31: 0.01947083333 | AO31: 0.01947083333 | AP31: 0.01947083333 | AQ31: 0.01947083333 | AR31: 0.01947083333 | AS31: =0.4975*$E27*0.25 -> 5.81204375 | BC31: =0.4975*$E27*0.25 -> 5.81204375 | BD31: =0.4975*$E27*0.25 -> 5.81204375 | BG31: =0.4975*$E27*0.25 -> 5.81204375 | BP31: Assume that offshore substation equipment procurement is 0.25% of total capex and spread equally over the procurement period. Assume that offshore substation equipment capex is 49.75% of total capex and transferred in 24.75% payments on placing order, on product manufacture, on delivery and on installation & commissioning.
A32: Prefabrication | BQ32: The schedule appears to be based on design and construction of an offshore platform. However, as the offshore substation will be located on Pigeon Island there is no platform. Therefore, no prefabrication?
A33: Total Cost of OVHS | B33: =SUBTOTAL(9,B26:B32) -> 44.59 | C33: 49.3 | D33: 54.05 | E33: =SUBTOTAL(9,E26:E32) -> 49.3 | F33: 49.3 | G33: 0 | H33: =SUBTOTAL(9,H26:H32) -> 0 | I33: =SUBTOTAL(9,I26:I32) -> 0 | J33: 0 | K33: 0 | L33: 0 | M33: 0 | N33: 0 | O33: 0 | P33: 0 | Q33: 0 | R33: 0 | S33: 0.09884615385 | T33: 0.09884615385 | U33: 0.09884615385 | V33: 0.09884615385 | W33: 0.09884615385 | X33: 0.09884615385 | Y33: 0.09884615385 | Z33: 0.09884615385 | AA33: 0.09884615385 | AB33: 0.09884615385 | AC33: 0.09884615385 | AD33: 0.09884615385 | AE33: 0.09884615385 | AF33: 0.09884615385 | AG33: 0.09884615385 | AH33: 0.09884615385 | AI33: 0.09884615385 | AJ33: 0.09884615385 | AK33: 0.09884615385 | AL33: 0.09884615385 | AM33: 0.1183169872 | AN33: 0.1183169872 | AO33: 0.1183169872 | AP33: 0.1183169872 | AQ33: 0.1183169872 | AR33: 0.1767294872 | AS33: 5.87045625 | AT33: 2.113470455 | AU33: 2.113470455 | AV33: 2.113470455 | AW33: 2.113470455 | AX33: 2.113470455 | AY33: 2.113470455 | AZ33: 2.113470455 | BA33: 2.113470455 | BB33: 2.113470455 | BC33: 5.81204375 | BD33: 5.81204375 | BE33: 0 | BF33: 2.113470455 | BG33: 7.925514205 | BH33: 0 | BI33: 0 | BJ33: 0 | BK33: 0 | BL33: 0 | BM33: 0 | BN33: 0
A34: Array Cable Supply | B34: 28.4 | C34: 31.61 | D34: 34.8 | E34: =SUMIFS(B34:D34,$B$8:$D$8,$E$8) -> 31.61 | F34: =SUM(H34:BN38) -> 31.61 | BQ34: I don't understand the schedule durations here. Specifically, the procurement period starting the same time as the fabrication period. Surely a procurement exercise needs to have begun before an order is placed?
A35: Design | S35: =0.025*$E34/26 -> 0.03039423077 | T35: =0.025*$E34/26 -> 0.03039423077 | U35: 0.03039423077 | V35: 0.03039423077 | W35: 0.03039423077 | X35: 0.03039423077 | Y35: 0.03039423077 | Z35: 0.03039423077 | AA35: 0.03039423077 | AB35: 0.03039423077 | AC35: 0.03039423077 | AD35: 0.03039423077 | AE35: 0.03039423077 | AF35: 0.03039423077 | AG35: 0.03039423077 | AH35: 0.03039423077 | AI35: 0.03039423077 | AJ35: 0.03039423077 | AK35: 0.03039423077 | AL35: 0.03039423077 | AM35: 0.03039423077 | AN35: 0.03039423077 | AO35: 0.03039423077 | AP35: 0.03039423077 | AQ35: 0.03039423077 | AR35: 0.03039423077 | BP35: Assume detailed design of the array cable layout and specification of the cable is 2.5% of the supply capex and spread equally over the design period. I assume such a high cost as I would expect detailed surveys of the lakebed along proposed cable routes would need to be conducted, a detailed map of the lakebed developed and an installation methodology derived. | BQ35: Line 390 shows construction of an O&M building, we have not shown a specific cost for this.
A36: Procurement | AS36: =0.0025*$E34/9 -> 0.008780555556 | AT36: =0.0025*$E34/9 -> 0.008780555556 | AU36: 0.008780555556 | AV36: 0.008780555556 | AW36: 0.008780555556 | AX36: 0.008780555556 | AY36: 0.008780555556 | AZ36: 0.008780555556 | BA36: 0.008780555556 | BP36: Assume that procurement is 0.25% of the cable supply capex and spread over the procurement period.
A37: Fabrication | AS37: =0.8725*$E$34/3 -> 9.193241667 | BD37: =0.8725*$E$34/3 -> 9.193241667 | BP37: Assume that offshore array cable capex is 97.25% of total capex and transferred in four payments: on placing order, on product manufacture, on delivery with 10% paid on cable commissioning (might be difficult to negotiate?).
A38: Delivery & Commissioning | BE38: =0.8725*$E$34/3 -> 9.193241667 | BM38: =0.1*$E$34 -> 3.161
A39: Export Cable Supply | B39: 29.7 | C39: 33.04 | D39: 36.3 | E39: =SUMIFS(B39:D39,$B$8:$D$8,$E$8) -> 33.04 | F39: =SUM(H39:BN43) -> 33.04
A40: Design | S40: =0.025*$E39/17 -> 0.04858823529 | T40: =0.025*$E39/17 -> 0.04858823529 | U40: 0.04858823529 | V40: 0.04858823529 | W40: 0.04858823529 | X40: 0.04858823529 | Y40: 0.04858823529 | Z40: 0.04858823529 | AA40: 0.04858823529 | AB40: 0.04858823529 | AC40: 0.04858823529 | AD40: 0.04858823529 | AE40: 0.04858823529 | AF40: 0.04858823529 | AG40: 0.04858823529 | AH40: 0.04858823529 | AI40: 0.04858823529 | BP40: Assume detailed design of the export cable layout and specification of the cable is 2.5% of the supply capex and spread equally over the design period. Same reason as array cable design cost.
A41: Procurement | AR41: =0.0025*$E39/5 -> 0.01652 | AS41: =0.0025*$E39/5 -> 0.01652 | AT41: 0.01652 | AU41: 0.01652 | AV41: 0.01652 | BP41: Assume that procurement is 0.25% of the cable supply capex and spread over the procurement period.
A42: Fabrication | AT42: =0.8725*$E$39/3 -> 9.609133333 | AX42: =0.8725*$E$39/3 -> 9.609133333 | BP42: Assume that offshore array cable capex is 94.75% of total capex and transferred in four payments: on placing order, on product manufacture, on delivery with 10% paid on cable commissioning (might be difficult to negotiate?). | BQ42: I don't think that the export cable fabrication period is long enough. There is no reason why it cannot be the same duration as the array cable.
A43: Delivery & Commissioning | AZ43: =0.8725*$E$39/3 -> 9.609133333 | BH43: =0.1*$E$39 -> 3.304
A44: Total Cost of Array and Export cables | B44: =SUBTOTAL(9,B34:B43) -> 58.1 | C44: 64.65 | D44: 71.1 | E44: =SUBTOTAL(9,E34:E43) -> 64.65 | F44: 64.65 | G44: 0 | H44: =SUBTOTAL(9,H34:H43) -> 0 | I44: =SUBTOTAL(9,I34:I43) -> 0 | J44: 0 | K44: 0 | L44: 0 | M44: 0 | N44: 0 | O44: 0 | P44: 0 | Q44: 0 | R44: 0 | S44: 0.07898246606 | T44: 0.07898246606 | U44: 0.07898246606 | V44: 0.07898246606 | W44: 0.07898246606 | X44: 0.07898246606 | Y44: 0.07898246606 | Z44: 0.07898246606 | AA44: 0.07898246606 | AB44: 0.07898246606 | AC44: 0.07898246606 | AD44: 0.07898246606 | AE44: 0.07898246606 | AF44: 0.07898246606 | AG44: 0.07898246606 | AH44: 0.07898246606 | AI44: 0.07898246606 | AJ44: 0.03039423077 | AK44: 0.03039423077 | AL44: 0.03039423077 | AM44: 0.03039423077 | AN44: 0.03039423077 | AO44: 0.03039423077 | AP44: 0.03039423077 | AQ44: 0.03039423077 | AR44: 0.04691423077 | AS44: 9.218542222 | AT44: 9.634433889 | AU44: 0.02530055556 | AV44: 0.02530055556 | AW44: 0.008780555556 | AX44: 9.617913889 | AY44: 0.008780555556 | AZ44: 9.617913889 | BA44: 0.008780555556 | BB44: 0 | BC44: 0 | BD44: 9.193241667 | BE44: 9.193241667 | BF44: 0 | BG44: 0 | BH44: 3.304 | BI44: 0 | BJ44: 0 | BK44: 0 | BL44: 0 | BM44: 3.161 | BN44: 0
A45: GBF Installation | B45: 58 | C45: 64.5 | D45: 70.9 | E45: =SUMIFS(B45:D45,$B$8:$D$8,$E$8) -> 64.5 | F45: =SUM(H45:BN51) -> 64.5
A46: Season 1 Mobilisation
A47: Season 1 GBF Installation | AT47: =$E$45/14 -> 4.607142857 | AU47: =$E$45/14 -> 4.607142857 | AV47: 4.607142857 | AW47: 4.607142857 | AX47: 4.607142857 | AY47: 4.607142857 | AZ47: 4.607142857 | BA47: 4.607142857 | BP47: There are a lot of activities under GBF installation that will utilise different vessels. So this element can certainly be refined to reflect a more representative spend profile. To keep it simple the GBF installation will be spread equally over the installation period and no weighting given to mobilisation/demobilisation costs at the moment.
A48: Season 1 Demobilisation | BF48: =$E$45/14 -> 4.607142857 | BG48: 4.607142857 | BH48: 4.607142857 | BI48: 4.607142857 | BJ48: 4.607142857 | BK48: 4.607142857 | BP48: We will need to confirm that our costs can be shown to be representative of a two season installation period. We potentially have two sets of mobilisation/demobilisation costs or have to pay for boats to be idle in Lake Ontario over winter.
A49: Season 2 Mobilisation
A50: Season 2 GBF Installation
A51: Season 2 Demobilisation
A52: WTG Installation | B52: 58.7 | C52: 66 | D52: 73.3 | E52: =SUMIFS(B52:D52,$B$8:$D$8,$E$8) -> 66 | F52: =SUM(H52:BN52) -> 66 | BE52: =$E52/9 -> 7.333333333 | BF52: =$E52/9 -> 7.333333333 | BG52: 7.333333333 | BH52: 7.333333333 | BI52: 7.333333333 | BJ52: 7.333333333 | BK52: 7.333333333 | BL52: 7.333333333 | BM52: 7.333333333 | BP52: There are a mixture of activities here. For simplicity an average cost will be assumed over each month. | BQ52: Vessel mobilisation and preparation shown, which suggests a demobilisation activity and cost. We need to make sure that the cost is allowed for.
A53: Offshore Substation Installation Cost | B53: 8.9 | C53: 9.92 | D53: 10.9 | E53: =SUMIFS(B53:D53,$B$8:$D$8,$E$8) -> 9.92 | F53: =SUM(H53:BN53) -> 9.92 | BF53: =$E53/2 -> 4.96 | BG53: =$E53/2 -> 4.96
A54: Array Cable Installation | B54: 35.8 | C54: 39.78 | D54: 43.8 | E54: 39.78 | F54: =SUM(H54:BN54) -> 39.78 | BF54: =$E54/7 -> 5.682857143 | BG54: =$E54/7 -> 5.682857143 | BH54: 5.682857143 | BI54: 5.682857143 | BJ54: 5.682857143 | BK54: 5.682857143 | BL54: 5.682857143 | BP54: This capex item is averaged over the installation period.
A55: Export Cable Installation | B55: 4.2 | C55: 4.63 | D55: 5.1 | E55: 4.63 | F55: =SUM(H55:BN55) -> 4.63 | BF55: =E55 -> 4.63
A56: Total Cost of Installations | B56: =SUBTOTAL(9,B45:B55) -> 165.6 | C56: 184.83 | D56: 204 | E56: =SUBTOTAL(9,E45:E55) -> 184.83 | F56: 184.83 | G56: 0 | H56: =SUBTOTAL(9,H45:H55) -> 0 | I56: =SUBTOTAL(9,I45:I55) -> 0 | J56: 0 | K56: 0 | L56: 0 | M56: 0 | N56: 0 | O56: 0 | P56: 0 | Q56: 0 | R56: 0 | S56: 0 | T56: 0 | U56: 0 | V56: 0 | W56: 0 | X56: 0 | Y56: 0 | Z56: 0 | AA56: 0 | AB56: 0 | AC56: 0 | AD56: 0 | AE56: 0 | AF56: 0 | AG56: 0 | AH56: 0 | AI56: 0 | AJ56: 0 | AK56: 0 | AL56: 0 | AM56: 0 | AN56: 0 | AO56: 0 | AP56: 0 | AQ56: 0 | AR56: 0 | AS56: 0 | AT56: 4.607142857 | AU56: 4.607142857 | AV56: 4.607142857 | AW56: 4.607142857 | AX56: 4.607142857 | AY56: 4.607142857 | AZ56: 4.607142857 | BA56: 4.607142857 | BB56: 0 | BC56: 0 | BD56: 0 | BE56: 7.333333333 | BF56: 27.21333333 | BG56: 22.58333333 | BH56: 17.62333333 | BI56: 17.62333333 | BJ56: 17.62333333 | BK56: 17.62333333 | BL56: 13.01619048 | BM56: 7.333333333 | BN56: 0
A57: Onshore Substation Supply & Installation Cost | B57: 42.6 | C57: 47.35 | D57: 52.1 | E57: =SUMIFS(B57:D57,$B$8:$D$8,$E$8) -> 47.35 | F57: =SUM(H57:BN60) -> 47.35 | BP57: Assume that onshore substation design is 5% of total capex and spread equally over the design period.
A58: Design | S58: =$E57*0.05/26 -> 0.09105769231 | T58: =$E57*0.05/26 -> 0.09105769231 | U58: 0.09105769231 | V58: 0.09105769231 | W58: 0.09105769231 | X58: 0.09105769231 | Y58: 0.09105769231 | Z58: 0.09105769231 | AA58: 0.09105769231 | AB58: 0.09105769231 | AC58: 0.09105769231 | AD58: 0.09105769231 | AE58: 0.09105769231 | AF58: 0.09105769231 | AG58: 0.09105769231 | AH58: 0.09105769231 | AI58: 0.09105769231 | AJ58: 0.09105769231 | AK58: 0.09105769231 | AL58: 0.09105769231 | AM58: 0.09105769231 | AN58: 0.09105769231 | AO58: 0.09105769231 | AP58: 0.09105769231 | AQ58: 0.09105769231 | AR58: 0.09105769231
A59: Procurement & Manufacture | AL59: =0.0025*$E57/7 -> 0.01691071429 | AM59: =0.0025*$E57/7 -> 0.01691071429 | AN59: 0.01691071429 | AO59: 0.01691071429 | AP59: 0.01691071429 | AQ59: 0.01691071429 | AR59: 0.01691071429 | AS59: =0.4475*0.25*$E57 -> 5.29728125 | BD59: =0.4475*0.25*$E57 -> 5.29728125 | BF59: =0.4475*0.25*$E57 -> 5.29728125 | BG59: =0.4475*0.25*$E57 -> 5.29728125 | BP59: Assume that onshore substation procurement is 0.25% of total capex and spread equally over the procurement period. It is assumed that offshore substation equipment capex is 44.75% of total capex and transferred in 24.75% payments on placing order, on product manufacture, on delivery and on installation & commissioning.
A60: Installation | AS60: =0.5*$E57/15 -> 1.578333333 | AT60: =0.5*$E57/15 -> 1.578333333 | AU60: 1.578333333 | AV60: 1.578333333 | AW60: 1.578333333 | AX60: 1.578333333 | AY60: 1.578333333 | AZ60: 1.578333333 | BA60: 1.578333333 | BB60: 1.578333333 | BC60: 1.578333333 | BD60: 1.578333333 | BE60: 1.578333333 | BF60: 1.578333333 | BG60: 1.578333333 | BP60: Assume that offshore substation construction capex is 50% of total capex and spread equally over the construction period.
A61: Total Cost of Onshore Interconnection | B61: =SUBTOTAL(9,B57:B60) -> 42.6 | C61: 47.35 | D61: 52.1 | E61: =SUBTOTAL(9,E57:E60) -> 47.35 | F61: 47.35 | G61: 0 | H61: =SUBTOTAL(9,H57:H60) -> 0 | I61: =SUBTOTAL(9,I57:I60) -> 0 | J61: 0 | K61: 0 | L61: 0 | M61: 0 | N61: 0 | O61: 0 | P61: 0 | Q61: 0 | R61: 0 | S61: 0.09105769231 | T61: 0.09105769231 | U61: 0.09105769231 | V61: 0.09105769231 | W61: 0.09105769231 | X61: 0.09105769231 | Y61: 0.09105769231 | Z61: 0.09105769231 | AA61: 0.09105769231 | AB61: 0.09105769231 | AC61: 0.09105769231 | AD61: 0.09105769231 | AE61: 0.09105769231 | AF61: 0.09105769231 | AG61: 0.09105769231 | AH61: 0.09105769231 | AI61: 0.09105769231 | AJ61: 0.09105769231 | AK61: 0.09105769231 | AL61: 0.1079684066 | AM61: 0.1079684066 | AN61: 0.1079684066 | AO61: 0.1079684066 | AP61: 0.1079684066 | AQ61: 0.1079684066 | AR61: 0.1079684066 | AS61: 6.875614583 | AT61: 1.578333333 | AU61: 1.578333333 | AV61: 1.578333333 | AW61: 1.578333333 | AX61: 1.578333333 | AY61: 1.578333333 | AZ61: 1.578333333 | BA61: 1.578333333 | BB61: 1.578333333 | BC61: 1.578333333 | BD61: 6.875614583 | BE61: 1.578333333 | BF61: 6.875614583 | BG61: 6.875614583 | BH61: 0 | BI61: 0 | BJ61: 0 | BK61: 0 | BL61: 0 | BM61: 0 | BN61: 0
A62: Construction Insurance | B62: 23.81 | C62: 25.69 | D62: 27.56 | E62: =SUMIFS(B62:D62,$B$8:$D$8,$E$8) -> 25.69 | F62: =SUM(H62:BN62) -> 25.69 | AS62: =$E62/22 -> 1.167727273 | AT62: =$E62/22 -> 1.167727273 | AU62: 1.167727273 | AV62: 1.167727273 | AW62: 1.167727273 | AX62: 1.167727273 | AY62: 1.167727273 | AZ62: 1.167727273 | BA62: 1.167727273 | BB62: 1.167727273 | BC62: 1.167727273 | BD62: 1.167727273 | BE62: 1.167727273 | BF62: 1.167727273 | BG62: 1.167727273 | BH62: 1.167727273 | BI62: 1.167727273 | BJ62: 1.167727273 | BK62: 1.167727273 | BL62: 1.167727273 | BM62: 1.167727273 | BN62: 1.167727273 | BP62: Assume that this can be spread equally over the construction period.
A63: Project Management Costs | B63: 12.6 | C63: 13.53 | D63: 14.7 | E63: =SUMIFS(B63:D63,$B$8:$D$8,$E$8) -> 13.53 | F63: =SUM(H63:BN63) -> 13.53 | AS63: =$E63/22 -> 0.615 | AT63: 0.615 | AU63: 0.615 | AV63: 0.615 | AW63: 0.615 | AX63: 0.615 | AY63: 0.615 | AZ63: 0.615 | BA63: 0.615 | BB63: 0.615 | BC63: 0.615 | BD63: 0.615 | BE63: 0.615 | BF63: 0.615 | BG63: 0.615 | BH63: 0.615 | BI63: 0.615 | BJ63: 0.615 | BK63: 0.615 | BL63: 0.615 | BM63: 0.615 | BN63: 0.615 | BP63: Assume that Project Management costs start at Financial Close and end at handover. Earlier Project Management costs are assumed to be captured in the overall development costs.
A64: Contingency | B64: 108.43 | C64: 98.93 | D64: 75.26 | E64: =SUMIFS(B64:D64,$B$8:$D$8,$E$8) -> 98.93 | F64: =SUM(H64:BN64) -> 98.93 | AS64: =$E64/22 -> 4.496818182 | AT64: 4.496818182 | AU64: 4.496818182 | AV64: 4.496818182 | AW64: 4.496818182 | AX64: 4.496818182 | AY64: 4.496818182 | AZ64: 4.496818182 | BA64: 4.496818182 | BB64: 4.496818182 | BC64: 4.496818182 | BD64: 4.496818182 | BE64: 4.496818182 | BF64: 4.496818182 | BG64: 4.496818182 | BH64: 4.496818182 | BI64: 4.496818182 | BJ64: 4.496818182 | BK64: 4.496818182 | BL64: 4.496818182 | BM64: 4.496818182 | BN64: 4.496818182 | BP64: I guess there are two options regarding contingency, either do not show it at all in the Capex profile or spread it equally across the construction phase from Financial Close?
A65: Total Capex | B65: =SUBTOTAL(9,B9:B64) -> 1056.59 | C65: =SUBTOTAL(9,C9:C64) -> 1136.66 | D65: 1202.99 | E65: 1136.66 | F65: 1136.66
F66: =E65-F65 -> 0

Sheet Power Advisory_BaseCase
B1: September 19, 2019 Base Case
B2: Sep 21, 2019 18:47
C4: Simple | D4: System | E4: Capacity | F4: Global | G4: Wholesale
C5: Average | D5: Weighted | E5: Based | F5: Adjustment | G5: Electricity
C6: HOEP | D6: HOEP | E6: Recovery | F6: Costs | G6: Cost
C7: $/MWh | D7: $/MWh | E7: $/MWh | F7: $/MWh | G7: $/MWh
B8: Annual
B9: 2013 | C9: 24.97847146 | D9: 26.42802166 | E9: 0 | F9: 52.60899677 | G9: 79.03701843
B10: 2014 | C10: 32.38841781 | D10: 35.79355853 | E10: 0 | F10: 47.65268291 | G10: 83.44624144
B11: 2015 | C11: 21.66394406 | D11: 23.4836376 | E11: 0 | F11: 70.98295714 | G11: 94.46659474
B12: 2016 | C12: 14.94032534 | D12: 16.61242517 | E12: 0.1736277411 | F12: 87.80890677 | G12: 104.5949597
B13: 2017 | C13: 14.13828539 | D13: 15.7312107 | E13: 0.2608240648 | F13: 86.77137104 | G13: 102.7634058
B14: 2018 | C14: 22.44443493 | D14: 24.19653386 | E14: 0.2878463942 | F14: 79.23371973 | G14: 103.7181
B15: 2019 | C15: 15.72334782 | D15: 17.17243266 | E15: 0.330924607 | F15: 94.75098267 | G15: 112.2543399
B16: 2020 | C16: 19.01742446 | D16: 20.4605984 | E16: 0.2873097008 | F16: 89.84489958 | G16: 110.5928077
B17: 2021 | C17: 19.57053563 | D17: 21.03700377 | E17: 0.2812224181 | F17: 89.47853865 | G17: 110.7967648
B18: 2022 | C18: 21.8234432 | D18: 23.40921314 | E18: 0.3810261414 | F18: 89.53602773 | G18: 113.326267
B19: 2023 | C19: 23.61261202 | D19: 25.26543341 | E19: 0.6592647481 | F19: 89.62879262 | G19: 115.5534908
B20: 2024 | C20: 20.43593135 | D20: 22.08137623 | E20: 1.451988765 | F20: 100.6374801 | G20: 124.1708451
B21: 2025 | C21: 33.57323033 | D21: 35.47234314 | E21: 2.699435266 | F21: 82.02444638 | G21: 120.1962248
B22: 2026 | C22: 35.36674734 | D22: 37.34668953 | E22: 3.549768072 | F22: 79.60627012 | G22: 120.5027277
B23: 2027 | C23: 35.64271869 | D23: 37.65118411 | E23: 3.034213702 | F23: 78.75292846 | G23: 119.4383263
B24: 2028 | C24: 34.46318211 | D24: 36.47155797 | E24: 2.650936225 | F24: 85.85010484 | G24: 124.972599
B25: 2029 | C25: 35.7227983 | D25: 37.76505933 | E25: 3.117642409 | F25: 83.39283776 | G25: 124.2755395
B26: 2030 | C26: 36.52238274 | D26: 38.5690335 | E26: 3.159824669 | F26: 79.33300702 | G26: 121.0618652
B27: 2031 | C27: 39.17249004 | D27: 41.38572672 | E27: 2.945510956 | F27: 74.06805313 | G27: 118.3992908
B28: 2032 | C28: 38.77152258 | D28: 40.99705766 | E28: 3.237328872 | F28: 75.48064822 | G28: 119.7150347
B29: 2033 | C29: 39.96293628 | D29: 42.31251505 | E29: 3.365059235 | F29: 74.27608544 | G29: 119.9536597
B30: 2034 | C30: 39.50146482 | D30: 41.86373277 | E30: 3.622207441 | F30: 74.99174834 | G30: 120.4776886
B31: 2035 | C31: 42.07046964 | D31: 44.56055891 | E31: 3.714905663 | F31: 67.84072591 | G31: 116.1161905
B32: 2036 | C32: 44.40537107 | D32: 47.01432843 | E32: 3.666584258 | F32: 63.83891148 | G32: 114.5198242
B33: 2037 | C33: 46.80702078 | D33: 49.53368645 | E33: 3.742873519 | F33: 62.31277425 | G33: 115.5893342
B34: 2038 | C34: 49.28146395 | D34: 52.12284841 | E34: 3.694089094 | F34: 61.46297579 | G34: 117.2799133
B35: 2039 | C35: 51.87992254 | D35: 54.83909881 | E35: 3.610034302 | F35: 61.00897061 | G35: 119.4581037
B36: 2040 | C36: 54.64075452 | D36: 57.71947923 | E36: 3.89033215 | F36: 59.77694187 | G36: 121.3867532
B37: 2041 | C37: 57.59274949 | D37: 60.79605957 | E37: 3.82815213 | F37: 59.03604536 | G37: 123.6602571
B38: 2042 | C38: 60.71071827 | D38: 64.04431805 | E38: 3.696986465 | F38: 58.48813992 | G38: 126.2294444
B39: 2043 | C39: 64.04505906 | D39: 67.51226237 | E39: 3.556139891 | F39: 57.71005754 | G39: 128.7784598
B40: 2044 | C40: 67.45345612 | D40: 71.04717838 | E40: 3.426868905 | F40: 56.99633823 | G40: 131.4703855
B41: 2045 | C41: 70.95873481 | D41: 74.67763257 | E41: 3.396840118 | F41: 55.95150356 | G41: 134.0259762
B42: 2046 | C42: 74.61648713 | D42: 78.45769012 | E42: 3.475070961 | F42: 54.75695659 | G42: 136.6897177
B43: 2047 | C43: 78.56063386 | D43: 82.53041652 | E43: 3.560259273 | F43: 53.27310091 | G43: 139.3637767
B44: 2048 | C44: 82.81578699 | D44: 86.92528444 | E44: 3.637029431 | F44: 51.67525351 | G44: 142.2375674
B45: 2049 | C45: 86.10617147 | D45: 90.32070499 | E45: 3.792051091 | F45: 50.68363566 | G45: 144.7963917
B46: 2050 | C46: 89.41219973 | D46: 93.71597169 | E46: 3.941608038 | F46: 49.8374945 | G46: 147.4950742
B47: 2051 | C47: 91.8419715 | D47: 96.29854632 | E47: 4.146517792 | F47: 49.51159976 | G47: 149.9566639
B48: 2052 | C48: 93.88300293 | D48: 98.49899443 | E48: 4.330701247 | F48: 49.68036678 | G48: 152.5100625
B49: 2053 | C49: 94.82525203 | D49: 99.59573111 | E49: 4.575864339 | F49: 50.67594038 | G49: 154.8475358
B50: 2054 | C50: 95.61832197 | D50: 100.4772808 | E50: 5.039893896 | F50: 51.77759013 | G50: 157.2947649
B51: 2055 | C51: 96.55845279 | D51: 101.5720103 | E51: 5.573865142 | F51: 52.80921057 | G51: 159.9550861
B52: 2056 | C52: 97.64211778 | D52: 102.772884 | E52: 6.136982368 | F52: 53.91447909 | G52: 162.8243455
B53: 2057 | C53: 98.7774121 | D53: 104.0827295 | E53: 6.628398877 | F53: 55.01150426 | G53: 165.7226327
B54: 2058 | C54: 99.91763828 | D54: 105.3633333 | E54: 7.141205282 | F54: 56.18565974 | G54: 168.6901984
B55: 2059 | C55: 101.1665956 | D55: 106.8023296 | E55: 7.671972899 | F55: 57.18532188 | G55: 171.6596244
B56: 2060 | C56: 102.6075804 | D56: 108.4086483 | E56: 8.371499375 | F56: 57.5132811 | G56: 174.2934287

Sheet Source Data -->

Sheet Operating Costs
A1: Windstream v. Canada
A2: Operating Costs
A3: NAFTA 1
A5: CAD millions
B6: Item | C6: Quantity | D6: Unit | E6: Cost/Unit | F6: Total, $Cdn per year
A9: Other operating costs
B10: Owner's administration and operation | C10: 12 | D10: Monthly | E10: 10000 | F10: =PRODUCT(C10,(E10)) -> 120000
B11: Legal support | C11: 1 | D11: LS | E11: 25000 | F11: 25000
B12: Engineering support | C12: 1 | D12: LS | E12: 90000 | F12: 90000
B13: Post-construction environmental monitoring | C13: 1 | D13: LS | E13: 30000 | F13: 30000
B14: Owner's operator | C14: 1 | D14: person yr | E14: 75000 | F14: 75000
B15: Owner's maintenance crew | C15: 2 | D15: person yr | E15: 60000 | F15: 120000
B16: Contingency | D16: 0.1
A18: Notes:
A19: 1 | B19: Source: NAFTA 1, Exhibit C-1903, Ortech Financial Model (October 16, 2012), PDF page 5
A21: END

Sheet CAD CPI
A1: Consumer Price Index, monthly, not seasonally adjusted 1 2 3
A2: Monthly
A3: Table: 18-10-0004-01 (formerly CANSIM 326-0020)
A4: Geography: Canada, Province or territory, Census subdivision, Census metropolitan area, Census metropolitan area part
B6: Ontario
A7: Products and product groups 3 4 | B7: 2009-09-30 | C7: 2009-10-31 | D7: 2009-11-30 | E7: 2009-12-31 | F7: 2010-01-31 | G7: 2010-02-28 | H7: 2010-03-31 | I7: 2010-04-30 | J7: 2010-05-31 | K7: 2010-06-30 | L7: 2010-07-31 | M7: 2010-08-31 | N7: 2010-09-30 | O7: 2010-10-31 | P7: 2010-11-30 | Q7: 2010-12-31 | R7: 2011-01-31 | S7: 2011-02-28 | T7: 2011-03-31 | U7: 2011-04-30 | V7: 2011-05-31 | W7: 2011-06-30 | X7: 2011-07-31 | Y7: 2011-08-31 | Z7: 2011-09-30 | AA7: 2011-10-31 | AB7: 2011-11-30 | AC7: 2011-12-31 | AD7: 2012-01-31 | AE7: 2012-02-29 | AF7: 2012-03-31 | AG7: 2012-04-30 | AH7: 2012-05-31 | AI7: 2012-06-30 | AJ7: 2012-07-31 | AK7: 2012-08-31 | AL7: 2012-09-30 | AM7: 2012-10-31 | AN7: 2012-11-30 | AO7: 2012-12-31 | AP7: 2013-01-31 | AQ7: 2013-02-28 | AR7: 2013-03-31 | AS7: 2013-04-30 | AT7: 2013-05-31 | AU7: 2013-06-30 | AV7: 2013-07-31 | AW7: 2013-08-31 | AX7: 2013-09-30 | AY7: 2013-10-31 | AZ7: 2013-11-30 | BA7: 2013-12-31 | BB7: 2014-01-31 | BC7: 2014-02-28 | BD7: 2014-03-31 | BE7: 2014-04-30 | BF7: 2014-05-31 | BG7: 2014-06-30 | BH7: 2014-07-31 | BI7: 2014-08-31 | BJ7: 2014-09-30 | BK7: 2014-10-31 | BL7: 2014-11-30 | BM7: 2014-12-31 | BN7: 2015-01-31 | BO7: 2015-02-28 | BP7: 2015-03-31 | BQ7: 2015-04-30 | BR7: 2015-05-31 | BS7: 2015-06-30 | BT7: 2015-07-31 | BU7: 2015-08-31 | BV7: 2015-09-30 | BW7: 2015-10-31 | BX7: 2015-11-30 | BY7: 2015-12-31 | BZ7: 2016-01-31 | CA7: 2016-02-29 | CB7: 2016-03-31 | CC7: 2016-04-30 | CD7: 2016-05-31 | CE7: 2016-06-30 | CF7: 2016-07-31 | CG7: 2016-08-31 | CH7: 2016-09-30 | CI7: 2016-10-31 | CJ7: 2016-11-30 | CK7: 2016-12-31 | CL7: 2017-01-31 | CM7: 2017-02-28 | CN7: 2017-03-31 | CO7: 2017-04-30 | CP7: 2017-05-31 | CQ7: 2017-06-30 | CR7: 2017-07-31 | CS7: 2017-08-31 | CT7: 2017-09-30 | CU7: 2017-10-31 | CV7: 2017-11-30 | CW7: 2017-12-31 | CX7: 2018-01-31 | CY7: 2018-02-28 | CZ7: 2018-03-31 | DA7: 2018-04-30 | DB7: 2018-05-31 | DC7: 2018-06-30 | DD7: 2018-07-31 | DE7: 2018-08-31 | DF7: 2018-09-30 | DG7: 2018-10-31 | DH7: 2018-11-30 | DI7: 2018-12-31 | DJ7: 2019-01-31 | DK7: 2019-02-28 | DL7: 2019-03-31 | DM7: 2019-04-30 | DN7: 2019-05-31 | DO7: 2019-06-30 | DP7: 2019-07-31 | DQ7: 2019-08-31 | DR7: 2019-09-30 | DS7: 2019-10-31 | DT7: 2019-11-30 | DU7: 2019-12-31 | DV7: 2020-01-31 | DX7: 2020-02-29 | DY7: 2020-03-01 | DZ7: 2020-04-01 | EA7: 2020-05-01 | EB7: 2020-06-01 | EC7: 2020-07-01 | ED7: 2020-08-01 | EE7: 2020-09-01
B8: 2002=100
A9: All-items | B9: 113.8 | C9: 113.9 | D9: 114.6 | E9: 114.1 | F9: 114.5 | G9: 115.1 | H9: 115.3 | I9: 115.7 | J9: 116.2 | K9: 116 | L9: 117 | M9: 117 | N9: 117.1 | O9: 117.8 | P9: 118 | Q9: 117.9 | R9: 117.8 | S9: 118 | T9: 119.4 | U9: 119.9 | V9: 120.9 | W9: 120.2 | X9: 120.5 | Y9: 120.6 | Z9: 121.1 | AA9: 121 | AB9: 121 | AC9: 120.3 | AD9: 120.6 | AE9: 121.4 | AF9: 122 | AG9: 122.4 | AH9: 122.4 | AI9: 121.6 | AJ9: 121.4 | AK9: 121.8 | AL9: 122 | AM9: 122.2 | AN9: 121.9 | AO9: 121.3 | AP9: 121.3 | AQ9: 122.8 | AR9: 123.2 | AS9: 122.9 | AT9: 123 | AU9: 123.2 | AV9: 123.4 | AW9: 123.4 | AX9: 123.5 | AY9: 123.3 | AZ9: 123.3 | BA9: 123.1 | BB9: 123.3 | BC9: 124.6 | BD9: 125.1 | BE9: 125.9 | BF9: 126.5 | BG9: 126.9 | BH9: 126.5 | BI9: 126.5 | BJ9: 126.7 | BK9: 126.8 | BL9: 126.3 | BM9: 125.4 | BN9: 125.3 | BO9: 126.2 | BP9: 127.1 | BQ9: 126.9 | BR9: 127.7 | BS9: 128.2 | BT9: 128.4 | BU9: 128 | BV9: 127.8 | BW9: 127.9 | BX9: 127.9 | BY9: 127.5 | BZ9: 127.8 | CA9: 128.2 | CB9: 129 | CC9: 129.6 | CD9: 130.1 | CE9: 130.4 | CF9: 130.3 | CG9: 129.9 | CH9: 130.1 | CI9: 130.6 | CJ9: 130.2 | CK9: 130 | CL9: 130.8 | CM9: 131.2 | CN9: 131.4 | CO9: 132 | CP9: 131.9 | CQ9: 132.1 | CR9: 131.9 | CS9: 131.8 | CT9: 132.3 | CU9: 132.3 | CV9: 132.7 | CW9: 132 | CX9: 133.2 | CY9: 134 | CZ9: 134.6 | DA9: 134.8 | DB9: 134.9 | DC9: 135.3 | DD9: 136 | DE9: 135.9 | DF9: 135.2 | DG9: 135.6 | DH9: 135.1 | DI9: 135 | DJ9: 135.2 | DK9: 136 | DL9: 137 | DM9: 137.4 | DN9: 138.1 | DO9: 138 | DP9: 138.8 | DQ9: 138.5 | DR9: 137.5 | DS9: 137.9 | DT9: 137.7 | DU9: 137.8 | DV9: 138 | DX9: 138.7 | DY9: 137.9 | DZ9: 137.3 | EA9: 137.5 | EB9: 138.6 | EC9: 138.8 | ED9: 138.6 | EE9: 138.3
A10: Food 5 | B10: 120.2 | C10: 120 | D10: 121.6 | E10: 122.3 | F10: 123 | G10: 123.3 | H10: 123.8 | I10: 123 | J10: 123.1 | K10: 123.1 | L10: 123.6 | M10: 123.5 | N10: 122.5 | O10: 122.2 | P10: 122.9 | Q10: 124.1 | R10: 124.9 | S10: 125.2 | T10: 127.4 | U10: 127.1 | V10: 128.5 | W10: 128.9 | X10: 129.7 | Y10: 129.6 | Z10: 128.4 | AA10: 128.1 | AB10: 129.6 | AC10: 129.4 | AD10: 130.6 | AE10: 131 | AF10: 130.5 | AG10: 130.9 | AH10: 131.6 | AI10: 130.7 | AJ10: 131.5 | AK10: 131.9 | AL10: 130.1 | AM10: 130.5 | AN10: 131.5 | AO10: 131.5 | AP10: 131.7 | AQ10: 133.3 | AR10: 132.8 | AS10: 132.9 | AT10: 132.9 | AU10: 133.6 | AV10: 133.5 | AW10: 133.5 | AX10: 131.7 | AY10: 132.4 | AZ10: 133.5 | BA10: 133 | BB10: 133.7 | BC10: 135.1 | BD10: 135.1 | BE10: 135.1 | BF10: 136.7 | BG10: 137.8 | BH10: 137.5 | BI10: 136.7 | BJ10: 136 | BK10: 135.5 | BL10: 137.6 | BM10: 137.7 | BN10: 140.2 | BO10: 140.3 | BP10: 140.2 | BQ10: 140 | BR10: 141.7 | BS10: 141.9 | BT10: 141.6 | BU10: 141.4 | BV10: 140 | BW10: 141.3 | BX10: 142.4 | BY10: 143.6 | BZ10: 145.7 | CA10: 146.9 | CB10: 146.1 | CC10: 145.1 | CD10: 144 | CE10: 143.8 | CF10: 144 | CG10: 142.4 | CH10: 140.5 | CI10: 140.8 | CJ10: 141.6 | CK10: 141.5 | CL10: 142.1 | CM10: 142.6 | CN10: 142.4 | CO10: 143 | CP10: 143.6 | CQ10: 144.1 | CR10: 145.1 | CS10: 144.3 | CT10: 142.8 | CU10: 142 | CV10: 143.3 | CW10: 144.3 | CX10: 146.3 | CY10: 146.6 | CZ10: 146 | DA10: 147 | DB10: 146.7 | DC10: 148.3 | DD10: 148.9 | DE10: 148.1 | DF10: 146.7 | DG10: 146.3 | DH10: 148 | DI10: 150.2 | DJ10: 151.6 | DK10: 151.9 | DL10: 151.9 | DM10: 151.8 | DN10: 152.7 | DO10: 153.7 | DP10: 153.8 | DQ10: 153.3 | DR10: 151.9 | DS10: 151.4 | DT10: 152.6 | DU10: 154.2 | DV10: 155.3 | DX10: 154.4 | DY10: 154.5 | DZ10: 156.4 | EA10: 156.1 | EB10: 156.6 | EC10: 157 | ED10: 155.9 | EE10: 154.6
A11: Shelter 6 | B11: 117.7 | C11: 118.2 | D11: 118 | E11: 118.2 | F11: 118.6 | G11: 118.6 | H11: 118.8 | I11: 120 | J11: 121.4 | K11: 121.4 | L11: 122.9 | M11: 122.5 | N11: 122.5 | O11: 123.2 | P11: 122.8 | Q11: 123 | R11: 122.4 | S11: 121.5 | T11: 122 | U11: 122.2 | V11: 123 | W11: 123.1 | X11: 123.5 | Y11: 123.6 | Z11: 123.6 | AA11: 123.8 | AB11: 123.9 | AC11: 124.1 | AD11: 124.3 | AE11: 124.3 | AF11: 124.4 | AG11: 124.4 | AH11: 125.2 | AI11: 125.3 | AJ11: 125.4 | AK11: 125.4 | AL11: 125.2 | AM11: 125.5 | AN11: 125.4 | AO11: 125.4 | AP11: 125.9 | AQ11: 126.1 | AR11: 126.1 | AS11: 126.1 | AT11: 126.4 | AU11: 126.6 | AV11: 127.1 | AW11: 127.2 | AX11: 127.4 | AY11: 127.4 | AZ11: 128.1 | BA11: 128.3 | BB11: 128.8 | BC11: 128.9 | BD11: 129.1 | BE11: 131.9 | BF11: 132.4 | BG11: 132.3 | BH11: 132.1 | BI11: 132.1 | BJ11: 132.1 | BK11: 132.3 | BL11: 132.6 | BM11: 132.9 | BN11: 133.4 | BO11: 133.5 | BP11: 133.8 | BQ11: 133.5 | BR11: 134.1 | BS11: 134.4 | BT11: 134.9 | BU11: 135 | BV11: 135.1 | BW11: 135 | BX11: 135.3 | BY11: 135.5 | BZ11: 136.1 | CA11: 136.2 | CB11: 136.5 | CC11: 136.9 | CD11: 137.5 | CE11: 138 | CF11: 138.5 | CG11: 138.7 | CH11: 138.9 | CI11: 139.5 | CJ11: 139.9 | CK11: 140.1 | CL11: 140.2 | CM11: 140.2 | CN11: 140.5 | CO11: 140.7 | CP11: 140.3 | CQ11: 140.6 | CR11: 139.8 | CS11: 140 | CT11: 140.1 | CU11: 140.5 | CV11: 140.8 | CW11: 141.1 | CX11: 141.7 | CY11: 141.9 | CZ11: 141.9 | DA11: 141.9 | DB11: 142.1 | DC11: 142.4 | DD11: 142.6 | DE11: 142.9 | DF11: 143.2 | DG11: 143.7 | DH11: 143.9 | DI11: 144.1 | DJ11: 145 | DK11: 145.5 | DL11: 145.8 | DM11: 146.5 | DN11: 146.6 | DO11: 146.8 | DP11: 147.3 | DQ11: 147.4 | DR11: 147.3 | DS11: 148.3 | DT11: 148.6 | DU11: 148.9 | DV11: 149 | DX11: 149.3 | DY11: 149.3 | DZ11: 148.4 | EA11: 148 | EB11: 149.7 | EC11: 149.5 | ED11: 150.2 | EE11: 150.5
A12: Household operations, furnishings and equipment | B12: 107.9 | C12: 107.5 | D12: 108.6 | E12: 107.6 | F12: 108.1 | G12: 109.3 | H12: 109.2 | I12: 109.2 | J12: 109.4 | K12: 108.9 | L12: 110 | M12: 109.7 | N12: 110.4 | O12: 109.7 | P12: 110.1 | Q12: 110 | R12: 110.1 | S12: 110.6 | T12: 111 | U12: 110.9 | V12: 111.5 | W12: 111.7 | X12: 111.8 | Y12: 112.4 | Z12: 113 | AA12: 113.1 | AB12: 113.3 | AC12: 113.1 | AD12: 113.3 | AE12: 114.2 | AF12: 113.8 | AG12: 114 | AH12: 114.1 | AI12: 113.9 | AJ12: 113.9 | AK12: 113.4 | AL12: 113.5 | AM12: 114.2 | AN12: 114.5 | AO12: 114 | AP12: 114.4 | AQ12: 115.1 | AR12: 115.6 | AS12: 115.6 | AT12: 115.2 | AU12: 115.6 | AV12: 116.1 | AW12: 115.5 | AX12: 115.6 | AY12: 115.4 | AZ12: 115.6 | BA12: 115.6 | BB12: 115.6 | BC12: 116.2 | BD12: 116.8 | BE12: 116 | BF12: 116.4 | BG12: 117.6 | BH12: 117.7 | BI12: 119.2 | BJ12: 119.2 | BK12: 119.6 | BL12: 119.6 | BM12: 119.5 | BN12: 119.8 | BO12: 120.7 | BP12: 121 | BQ12: 121.6 | BR12: 121.7 | BS12: 122 | BT12: 121.9 | BU12: 122.2 | BV12: 122.4 | BW12: 122.3 | BX12: 121.7 | BY12: 121.1 | BZ12: 121.4 | CA12: 122.3 | CB12: 122.6 | CC12: 123.1 | CD12: 123.7 | CE12: 124.1 | CF12: 124.3 | CG12: 123.4 | CH12: 123.7 | CI12: 124.1 | CJ12: 123.7 | CK12: 123.5 | CL12: 123.6 | CM12: 124.4 | CN12: 124.2 | CO12: 124.8 | CP12: 124.4 | CQ12: 124.8 | CR12: 124.2 | CS12: 123.5 | CT12: 123.2 | CU12: 124.1 | CV12: 124.8 | CW12: 122.3 | CX12: 124.9 | CY12: 126.4 | CZ12: 125.7 | DA12: 126.2 | DB12: 125.2 | DC12: 125.2 | DD12: 125.9 | DE12: 125.7 | DF12: 125.5 | DG12: 126.6 | DH12: 126.3 | DI12: 125.9 | DJ12: 125.8 | DK12: 125.3 | DL12: 124.9 | DM12: 125.3 | DN12: 125.3 | DO12: 125.7 | DP12: 124.9 | DQ12: 125.1 | DR12: 125.3 | DS12: 125.3 | DT12: 125.5 | DU12: 124.7 | DV12: 124.3 | DX12: 125 | DY12: 125.3 | DZ12: 126 | EA12: 125.6 | EB12: 125.4 | EC12: 125.9 | ED12: 125.4 | EE12: 125.3
A13: Clothing and footwear | B13: 93.2 | C13: 93.3 | D13: 94 | E13: 88.9 | F13: 88.4 | G13: 90.2 | H13: 91.9 | I13: 92.6 | J13: 92.2 | K13: 88.2 | L13: 88 | M13: 89.7 | N13: 93.1 | O13: 95 | P13: 91.5 | Q13: 88.1 | R13: 86.3 | S13: 89 | T13: 93.7 | U13: 93.7 | V13: 93.1 | W13: 91 | X13: 89.9 | Y13: 90.6 | Z13: 95.8 | AA13: 95.4 | AB13: 92 | AC13: 88.6 | AD13: 88.3 | AE13: 92.6 | AF13: 94.6 | AG13: 93.3 | AH13: 91.2 | AI13: 88.6 | AJ13: 86.5 | AK13: 86.5 | AL13: 90 | AM13: 92.1 | AN13: 88.6 | AO13: 85.7 | AP13: 83.8 | AQ13: 88.7 | AR13: 93 | AS13: 91.4 | AT13: 91.1 | AU13: 88.8 | AV13: 87.6 | AW13: 89.1 | AX13: 89.8 | AY13: 90.3 | AZ13: 87.9 | BA13: 85.4 | BB13: 85.2 | BC13: 89.3 | BD13: 92 | BE13: 93.6 | BF13: 93.2 | BG13: 91.7 | BH13: 90.9 | BI13: 91.2 | BJ13: 94 | BK13: 95.8 | BL13: 93.3 | BM13: 90.4 | BN13: 89.3 | BO13: 91 | BP13: 93.7 | BQ13: 93.4 | BR13: 92.3 | BS13: 91.5 | BT13: 91.7 | BU13: 91.4 | BV13: 93.6 | BW13: 94.9 | BX13: 94.2 | BY13: 89.8 | BZ13: 88.1 | CA13: 88.7 | CB13: 92.9 | CC13: 93.6 | CD13: 93.6 | CE13: 92.6 | CF13: 90.6 | CG13: 91.8 | CH13: 94.3 | CI13: 95.3 | CJ13: 93.2 | CK13: 89.7 | CL13: 88.2 | CM13: 89.3 | CN13: 91 | CO13: 90.2 | CP13: 90.3 | CQ13: 89.2 | CR13: 88.9 | CS13: 89.7 | CT13: 90.6 | CU13: 91.7 | CV13: 91.6 | CW13: 88.1 | CX13: 87.6 | CY13: 88.5 | CZ13: 90.5 | DA13: 91.7 | DB13: 90.6 | DC13: 89.5 | DD13: 88.8 | DE13: 90.1 | DF13: 91.9 | DG13: 93.8 | DH13: 92.6 | DI13: 88.9 | DJ13: 89 | DK13: 91.1 | DL13: 92.3 | DM13: 92.6 | DN13: 92 | DO13: 90.4 | DP13: 90.2 | DQ13: 90.6 | DR13: 94.3 | DS13: 95.2 | DT13: 93.9 | DU13: 90.7 | DV13: 90.7 | DX13: 92.4 | DY13: 93.9 | DZ13: 89.3 | EA13: 88 | EB13: 88.5 | EC13: 88.8 | ED13: 89.7 | EE13: 90.6
A14: Transportation | B14: 114.4 | C14: 115 | D14: 117 | E14: 117 | F14: 118.8 | G14: 118.5 | H14: 119 | I14: 119.1 | J14: 119.5 | K14: 119 | L14: 119.9 | M14: 119.3 | N14: 118.9 | O14: 121.4 | P14: 124 | Q14: 124.2 | R14: 125.8 | S14: 125.6 | T14: 127.4 | U14: 130.2 | V14: 132.4 | W14: 129.1 | X14: 128.9 | Y14: 128.9 | Z14: 129.5 | AA14: 129.5 | AB14: 130.3 | AC14: 128.1 | AD14: 130.2 | AE14: 130.8 | AF14: 132.1 | AG14: 134.1 | AH14: 132.3 | AI14: 129.7 | AJ14: 129 | AK14: 130.2 | AL14: 130.8 | AM14: 130.7 | AN14: 130.1 | AO14: 128.7 | AP14: 130.1 | AQ14: 133.3 | AR14: 132.3 | AS14: 131.3 | AT14: 131.2 | AU14: 132.1 | AV14: 132.3 | AW14: 131.8 | AX14: 131.8 | AY14: 131.2 | AZ14: 130.8 | BA14: 131.7 | BB14: 132.3 | BC14: 133.8 | BD14: 134.1 | BE14: 134.7 | BF14: 134.8 | BG14: 135.7 | BH14: 133.9 | BI14: 132.9 | BJ14: 131.8 | BK14: 131.4 | BL14: 129.2 | BM14: 126.1 | BN14: 123.4 | BO14: 125.3 | BP14: 127.3 | BQ14: 127.4 | BR14: 128.7 | BS14: 130.4 | BT14: 130.6 | BU14: 128.2 | BV14: 125.7 | BW14: 125.6 | BX14: 126.5 | BY14: 126.3 | BZ14: 125.7 | CA14: 124.5 | CB14: 125.6 | CC14: 128.6 | CD14: 130.2 | CE14: 130.8 | CF14: 129.5 | CG14: 128.5 | CH14: 128.3 | CI14: 129.9 | CJ14: 128.8 | CK14: 130.3 | CL14: 134 | CM14: 133 | CN14: 131.7 | CO14: 134.3 | CP14: 133.6 | CQ14: 132.9 | CR14: 132.7 | CS14: 132.8 | CT14: 134.5 | CU14: 134.8 | CV14: 136.5 | CW14: 137 | CX14: 138.6 | CY14: 138.9 | CZ14: 139.3 | DA14: 140.7 | DB14: 140.7 | DC14: 141.2 | DD14: 142.7 | DE14: 142 | DF14: 138.6 | DG14: 139.2 | DH14: 137.4 | DI14: 138.5 | DJ14: 137 | DK14: 138 | DL14: 140.5 | DM14: 142.7 | DN14: 143.8 | DO14: 143.2 | DP14: 145.2 | DQ14: 144.3 | DR14: 141.1 | DS14: 142 | DT14: 142.6 | DU14: 144.4 | DV14: 144.1 | DX14: 144.6 | DY14: 139.3 | DZ14: 138.3 | EA14: 140.8 | EB14: 143.5 | EC14: 143.7 | ED14: 142.4 | EE14: 140.8
A15: Gasoline | B15: 139.8 | C15: 139.8 | D15: 144 | E15: 139.6 | F15: 144.6 | G15: 142.1 | H15: 147.5 | I15: 147.1 | J15: 144.4 | K15: 140.9 | L15: 151 | M15: 149 | N15: 148.1 | O15: 155.2 | P15: 159.2 | Q15: 162 | R15: 167.1 | S15: 168.1 | T15: 177.6 | U15: 191.4 | V15: 195.8 | W15: 189.3 | X15: 189.5 | Y15: 186.8 | Z15: 184 | AA15: 182 | AB15: 177.7 | AC15: 173.2 | AD15: 178.2 | AE15: 184.1 | AF15: 190.4 | AG15: 196.8 | AH15: 188.7 | AI15: 179.8 | AJ15: 182.4 | AK15: 187.4 | AL15: 190.7 | AM15: 186.1 | AN15: 179.6 | AO15: 176.2 | AP15: 178.2 | AQ15: 190.6 | AR15: 189.6 | AS15: 183.7 | AT15: 182.2 | AU15: 187 | AV15: 192.5 | AW15: 191.3 | AX15: 191 | AY15: 182.7 | AZ15: 181.5 | BA15: 186.1 | BB15: 184.4 | BC15: 189.7 | BD15: 191.6 | BE15: 196.8 | BF15: 197.9 | BG15: 204.5 | BH15: 200.6 | BI15: 192.7 | BJ15: 189.9 | BK15: 181.1 | BL15: 167.9 | BM15: 151 | BN15: 131.8 | BO15: 144.8 | BP15: 152.6 | BQ15: 153.3 | BR15: 162.9 | BS15: 172.7 | BT15: 175.8 | BU15: 163.8 | BV15: 150.9 | BW15: 145.7 | BX15: 147.3 | BY15: 144.2 | BZ15: 136.1 | CA15: 128.3 | CB15: 132.2 | CC15: 146.8 | CD15: 152.9 | CE15: 154.8 | CF15: 149.5 | CG15: 146.5 | CH15: 145.7 | CI15: 151.6 | CJ15: 146.7 | CK15: 152.1 | CL15: 163.9 | CM15: 156.6 | CN15: 151.8 | CO15: 168.9 | CP15: 163.9 | CQ15: 156.8 | CR15: 158.8 | CS15: 161.3 | CT15: 172.8 | CU15: 167.2 | CV15: 177.8 | CW15: 175.7 | CX15: 180.8 | CY15: 178.6 | CZ15: 182.5 | DA15: 194.2 | DB15: 198.8 | DC15: 193.7 | DD15: 194.8 | DE15: 192 | DF15: 186.6 | DG15: 179.2 | DH15: 161.8 | DI15: 152 | DJ15: 146.8 | DK15: 146.3 | DL15: 166.2 | DM15: 184 | DN15: 186.9 | DO15: 174.6 | DP15: 183.5 | DQ15: 173.6 | DR15: 170.8 | DS15: 170.8 | DT15: 169.7 | DU15: 169 | DV15: 167.6 | DX15: 162.1 | DY15: 127.6 | DZ15: 116.4 | EA15: 134 | EB15: 146.9 | EC15: 153.3 | ED15: 152.6 | EE15: 149.7
A16: Health and personal care | B16: 113.3 | C16: 112.2 | D16: 112.8 | E16: 111.8 | F16: 113.2 | G16: 113.4 | H16: 113.5 | I16: 114.6 | J16: 113.8 | K16: 114 | L16: 115.6 | M16: 117.1 | N16: 116.3 | O16: 116.5 | P16: 117.2 | Q16: 116.4 | R16: 116.3 | S16: 117.1 | T16: 117.2 | U16: 118.2 | V16: 117.6 | W16: 117.4 | X16: 117.5 | Y16: 118.1 | Z16: 117.9 | AA16: 117.6 | AB16: 118 | AC16: 118.7 | AD16: 118.2 | AE16: 118.8 | AF16: 118.3 | AG16: 119.2 | AH16: 119 | AI16: 119 | AJ16: 118.4 | AK16: 120 | AL16: 118.4 | AM16: 118.3 | AN16: 118.6 | AO16: 118.6 | AP16: 118.2 | AQ16: 118.4 | AR16: 118.5 | AS16: 118.5 | AT16: 118.5 | AU16: 118.8 | AV16: 118.7 | AW16: 119 | AX16: 119.6 | AY16: 119 | AZ16: 119.1 | BA16: 119.1 | BB16: 119.2 | BC16: 119.2 | BD16: 118.6 | BE16: 119.4 | BF16: 120.1 | BG16: 120.1 | BH16: 119.8 | BI16: 120.6 | BJ16: 120.7 | BK16: 120 | BL16: 121.2 | BM16: 121.1 | BN16: 121.6 | BO16: 121.6 | BP16: 120.6 | BQ16: 121.6 | BR16: 122 | BS16: 122.2 | BT16: 122.2 | BU16: 121.8 | BV16: 121.9 | BW16: 122.1 | BX16: 122.9 | BY16: 122.3 | BZ16: 122.6 | CA16: 122.5 | CB16: 122.1 | CC16: 123.4 | CD16: 123.3 | CE16: 123.3 | CF16: 122.8 | CG16: 123.6 | CH16: 123.9 | CI16: 124 | CJ16: 124.6 | CK16: 124.1 | CL16: 124.7 | CM16: 125.3 | CN16: 125.1 | CO16: 126.1 | CP16: 125.5 | CQ16: 126.3 | CR16: 126.4 | CS16: 126.7 | CT16: 125.9 | CU16: 126.8 | CV16: 125.3 | CW16: 125.7 | CX16: 126.3 | CY16: 127.6 | CZ16: 128.7 | DA16: 128.6 | DB16: 128 | DC16: 128.8 | DD16: 128.6 | DE16: 129 | DF16: 128 | DG16: 128.4 | DH16: 126.6 | DI16: 127.2 | DJ16: 127.3 | DK16: 127.8 | DL16: 128.4 | DM16: 128.6 | DN16: 128.7 | DO16: 129.3 | DP16: 129.5 | DQ16: 128.9 | DR16: 129.2 | DS16: 129.3 | DT16: 129.3 | DU16: 129 | DV16: 130.1 | DX16: 130.3 | DY16: 130.3 | DZ16: 129.6 | EA16: 128.4 | EB16: 128.3 | EC16: 128.9 | ED16: 129.3 | EE16: 129.4
A17: Recreation, education and reading | B17: 104.6 | C17: 104.5 | D17: 103.5 | E17: 102.3 | F17: 100.7 | G17: 103.1 | H17: 102.4 | I17: 103.1 | J17: 103.5 | K17: 104.4 | L17: 105.4 | M17: 105.4 | N17: 106.4 | O17: 106.2 | P17: 105.1 | Q17: 104.6 | R17: 102.7 | S17: 103.8 | T17: 105.7 | U17: 105.5 | V17: 106.3 | W17: 106.3 | X17: 107.1 | Y17: 106.6 | Z17: 108.2 | AA17: 107.4 | AB17: 105.8 | AC17: 105.1 | AD17: 102.8 | AE17: 104 | AF17: 105.8 | AG17: 106.5 | AH17: 107.8 | AI17: 107.5 | AJ17: 108 | AK17: 108.5 | AL17: 109.6 | AM17: 108.7 | AN17: 108.4 | AO17: 107.2 | AP17: 105.1 | AQ17: 105.8 | AR17: 107.2 | AS17: 107.4 | AT17: 108.2 | AU17: 107.9 | AV17: 108.8 | AW17: 108.9 | AX17: 110.3 | AY17: 109.2 | AZ17: 108.1 | BA17: 107.4 | BB17: 106.6 | BC17: 108.4 | BD17: 108.6 | BE17: 108.1 | BF17: 109.3 | BG17: 109.5 | BH17: 110.3 | BI17: 110.6 | BJ17: 112.3 | BK17: 111.9 | BL17: 109.7 | BM17: 108.6 | BN17: 108.1 | BO17: 110.1 | BP17: 111.4 | BQ17: 110.1 | BR17: 111.9 | BS17: 112.5 | BT17: 112.8 | BU17: 112.9 | BV17: 114.9 | BW17: 114 | BX17: 111.5 | BY17: 110.2 | BZ17: 110.5 | CA17: 112.3 | CB17: 113.8 | CC17: 113 | CD17: 114.4 | CE17: 114.8 | CF17: 115.9 | CG17: 115.5 | CH17: 117.1 | CI17: 115.4 | CJ17: 113.8 | CK17: 112.6 | CL17: 113.2 | CM17: 115.5 | CN17: 117.7 | CO17: 117.1 | CP17: 118 | CQ17: 118.6 | CR17: 119.2 | CS17: 118.6 | CT17: 121.3 | CU17: 119 | CV17: 117.2 | CW17: 114.5 | CX17: 115.1 | CY17: 117.3 | CZ17: 120.8 | DA17: 117.5 | DB17: 119.7 | DC17: 120.1 | DD17: 121.8 | DE17: 121.6 | DF17: 121.7 | DG17: 120.6 | DH17: 118.6 | DI17: 116.3 | DJ17: 116.8 | DK17: 119.1 | DL17: 121.5 | DM17: 119.6 | DN17: 122.3 | DO17: 121.5 | DP17: 125.3 | DQ17: 123.8 | DR17: 119.7 | DS17: 119.6 | DT17: 115.3 | DU17: 114.1 | DV17: 114.2 | DX17: 117.6 | DY17: 118.3 | DZ17: 117.6 | EA17: 118.1 | EB17: 118.6 | EC17: 118.3 | ED17: 118.3 | EE17: 118.7
A18: Alcoholic beverages, tobacco products and recreational cannabis | B18: 133.9 | C18: 134 | D18: 133.6 | E18: 133.8 | F18: 133 | G18: 133.7 | H18: 133.5 | I18: 133 | J18: 133.6 | K18: 133.5 | L18: 138.8 | M18: 139 | N18: 139.1 | O18: 139.1 | P18: 139 | Q18: 138.9 | R18: 139.1 | S18: 138.3 | T18: 138.8 | U18: 138.2 | V18: 138.9 | W18: 138.3 | X18: 139.4 | Y18: 138.8 | Z18: 138.8 | AA18: 138 | AB18: 138.3 | AC18: 138.2 | AD18: 138.5 | AE18: 138.3 | AF18: 139.9 | AG18: 140.1 | AH18: 139.4 | AI18: 139 | AJ18: 139.4 | AK18: 139.6 | AL18: 139.6 | AM18: 139.2 | AN18: 139.8 | AO18: 139.2 | AP18: 139.7 | AQ18: 140.1 | AR18: 140.2 | AS18: 139.6 | AT18: 141.3 | AU18: 141.8 | AV18: 140.1 | AW18: 139.9 | AX18: 141 | AY18: 141.1 | AZ18: 141.6 | BA18: 142.9 | BB18: 140.8 | BC18: 143.9 | BD18: 147.5 | BE18: 146.2 | BF18: 148.8 | BG18: 149.1 | BH18: 149.4 | BI18: 151 | BJ18: 150.6 | BK18: 152.3 | BL18: 152.4 | BM18: 151.9 | BN18: 152.9 | BO18: 153.4 | BP18: 154.5 | BQ18: 154.3 | BR18: 154.3 | BS18: 154.8 | BT18: 154.5 | BU18: 155.1 | BV18: 155.2 | BW18: 155.5 | BX18: 155.9 | BY18: 155.7 | BZ18: 156.3 | CA18: 157.1 | CB18: 160.2 | CC18: 160.2 | CD18: 160.1 | CE18: 160.1 | CF18: 160.3 | CG18: 160.4 | CH18: 161.5 | CI18: 161.7 | CJ18: 161.4 | CK18: 161.3 | CL18: 162.3 | CM18: 163 | CN18: 163.5 | CO18: 163.7 | CP18: 164.9 | CQ18: 166.2 | CR18: 166 | CS18: 166.1 | CT18: 166.9 | CU18: 166.9 | CV18: 166.5 | CW18: 166.5 | CX18: 167.9 | CY18: 168.7 | CZ18: 171.4 | DA18: 174.6 | DB18: 175.2 | DC18: 175.9 | DD18: 175.5 | DE18: 176.6 | DF18: 176.9 | DG18: 176.8 | DH18: 177.4 | DI18: 176.6 | DJ18: 178.3 | DK18: 178.7 | DL18: 179 | DM18: 178.8 | DN18: 179.5 | DO18: 177.5 | DP18: 177.2 | DQ18: 177.7 | DR18: 177.2 | DS18: 177.6 | DT18: 178.6 | DU18: 175 | DV18: 176.7 | DX18: 175.8 | DY18: 176.2 | DZ18: 176.2 | EA18: 176.8 | EB18: 176.7 | EC18: 176.2 | ED18: 176.6 | EE18: 177.5
A19: All-items excluding food and energy 7 | B19: 111.5 | C19: 111.8 | D19: 112.1 | E19: 111.5 | F19: 111.6 | G19: 112.5 | H19: 112.4 | I19: 112.8 | J19: 113.1 | K19: 113 | L19: 113.6 | M19: 113.6 | N19: 114.1 | O19: 114.7 | P19: 114.8 | Q19: 114.3 | R19: 114 | S19: 114.4 | T19: 115.3 | U19: 115.3 | V19: 115.9 | W19: 115.3 | X19: 115.4 | Y19: 115.6 | Z19: 116.7 | AA19: 116.7 | AB19: 116.7 | AC19: 116 | AD19: 116 | AE19: 116.6 | AF19: 117.1 | AG19: 117.5 | AH19: 117.6 | AI19: 117.1 | AJ19: 116.7 | AK19: 116.8 | AL19: 117.2 | AM19: 117.6 | AN19: 117.5 | AO19: 116.7 | AP19: 116.5 | AQ19: 117.6 | AR19: 118.2 | AS19: 118.1 | AT19: 118.2 | AU19: 118.1 | AV19: 118 | AW19: 118 | AX19: 118.5 | AY19: 118.6 | AZ19: 118.3 | BA19: 118 | BB19: 118.1 | BC19: 119.2 | BD19: 119.7 | BE19: 119.8 | BF19: 120.2 | BG19: 120.2 | BH19: 120.1 | BI19: 120.7 | BJ19: 121.1 | BK19: 121.7 | BL19: 121.2 | BM19: 120.8 | BN19: 120.9 | BO19: 121.6 | BP19: 122.3 | BQ19: 122.4 | BR19: 122.5 | BS19: 122.7 | BT19: 122.7 | BU19: 122.7 | BV19: 123.3 | BW19: 123.7 | BX19: 123.4 | BY19: 122.7 | BZ19: 122.9 | CA19: 123.5 | CB19: 124.4 | CC19: 124.7 | CD19: 125.3 | CE19: 125.5 | CF19: 125.5 | CG19: 125.4 | CH19: 126.1 | CI19: 126.4 | CJ19: 126 | CK19: 125.5 | CL19: 126.1 | CM19: 126.8 | CN19: 127.2 | CO19: 127.3 | CP19: 127.6 | CQ19: 127.9 | CR19: 127.7 | CS19: 127.6 | CT19: 128.1 | CU19: 128.6 | CV19: 128.4 | CW19: 127.5 | CX19: 128.4 | CY19: 129.4 | CZ19: 130.1 | DA19: 129.9 | DB19: 129.8 | DC19: 130.2 | DD19: 130.9 | DE19: 131.1 | DF19: 130.6 | DG19: 131.4 | DH19: 131.1 | DI19: 131 | DJ19: 131.2 | DK19: 132.1 | DL19: 132.6 | DM19: 132.5 | DN19: 133.1 | DO19: 133.1 | DP19: 133.9 | DQ19: 133.9 | DR19: 133 | DS19: 133.7 | DT19: 133.2 | DU19: 133 | DV19: 133.1 | DX19: 134.3 | DY19: 134.5 | DZ19: 134.3 | EA19: 134 | EB19: 134.5 | EC19: 134.3 | ED19: 134.3 | EE19: 134.3
A20: All-items excluding energy 7 | B20: 112.9 | C20: 113.2 | D20: 113.7 | E20: 113.3 | F20: 113.5 | G20: 114.3 | H20: 114.3 | I20: 114.5 | J20: 114.8 | K20: 114.7 | L20: 115.3 | M20: 115.3 | N20: 115.5 | O20: 116 | P20: 116.1 | Q20: 115.9 | R20: 115.8 | S20: 116.2 | T20: 117.3 | U20: 117.3 | V20: 118 | W20: 117.5 | X20: 117.7 | Y20: 117.9 | Z20: 118.7 | AA20: 118.7 | AB20: 118.8 | AC20: 118.2 | AD20: 118.4 | AE20: 119 | AF20: 119.3 | AG20: 119.8 | AH20: 119.9 | AI20: 119.3 | AJ20: 119.1 | AK20: 119.3 | AL20: 119.3 | AM20: 119.8 | AN20: 119.8 | AO20: 119.2 | AP20: 119 | AQ20: 120.2 | AR20: 120.6 | AS20: 120.6 | AT20: 120.7 | AU20: 120.7 | AV20: 120.5 | AW20: 120.6 | AX20: 120.7 | AY20: 120.9 | AZ20: 120.8 | BA20: 120.5 | BB20: 120.7 | BC20: 121.8 | BD20: 122.2 | BE20: 122.3 | BF20: 122.9 | BG20: 123.1 | BH20: 123 | BI20: 123.3 | BJ20: 123.6 | BK20: 124 | BL20: 123.9 | BM20: 123.6 | BN20: 124 | BO20: 124.6 | BP20: 125.2 | BQ20: 125.2 | BR20: 125.6 | BS20: 125.8 | BT20: 125.8 | BU20: 125.7 | BV20: 126 | BW20: 126.6 | BX20: 126.4 | BY20: 126.1 | BZ20: 126.6 | CA20: 127.3 | CB20: 127.9 | CC20: 128 | CD20: 128.3 | CE20: 128.5 | CF20: 128.5 | CG20: 128.2 | CH20: 128.5 | CI20: 128.8 | CJ20: 128.6 | CK20: 128.1 | CL20: 128.7 | CM20: 129.4 | CN20: 129.7 | CO20: 129.9 | CP20: 130.2 | CQ20: 130.6 | CR20: 130.6 | CS20: 130.4 | CT20: 130.5 | CU20: 130.8 | CV20: 130.9 | CW20: 130.3 | CX20: 131.3 | CY20: 132.2 | CZ20: 132.7 | DA20: 132.7 | DB20: 132.6 | DC20: 133.2 | DD20: 133.9 | DE20: 133.9 | DF20: 133.3 | DG20: 133.9 | DH20: 133.9 | DI20: 134.1 | DJ20: 134.5 | DK20: 135.3 | DL20: 135.7 | DM20: 135.6 | DN20: 136.3 | DO20: 136.5 | DP20: 137.1 | DQ20: 137.1 | DR20: 136.1 | DS20: 136.6 | DT20: 136.3 | DU20: 136.4 | DV20: 136.7 | DX20: 137.5 | DY20: 137.8 | DZ20: 137.8 | EA20: 137.6 | EB20: 138 | EC20: 138 | ED20: 137.8 | EE20: 137.6
A21: Energy 7 | B21: 128.6 | C21: 127.4 | D21: 129.5 | E21: 127.4 | F21: 130.5 | G21: 129.2 | H21: 131.8 | I21: 135.3 | J21: 138.3 | K21: 136 | L21: 143.6 | M21: 142.6 | N21: 142 | O21: 144.7 | P21: 145.7 | Q21: 147.3 | R21: 147.5 | S21: 145 | T21: 150.9 | U21: 158.2 | V21: 162.2 | W21: 159 | X21: 159.7 | Y21: 158.5 | Z21: 156.8 | AA21: 155.7 | AB21: 153.7 | AC21: 151.4 | AD21: 153.7 | AE21: 156.6 | AF21: 159.8 | AG21: 160.9 | AH21: 159.1 | AI21: 154.7 | AJ21: 156.1 | AK21: 158.6 | AL21: 159.9 | AM21: 157.8 | AN21: 154.3 | AO21: 152.8 | AP21: 155.1 | AQ21: 161.3 | AR21: 160.9 | AS21: 157.3 | AT21: 157.8 | AU21: 160 | AV21: 164.6 | AW21: 164.1 | AX21: 164 | AY21: 158.7 | AZ21: 159.9 | BA21: 162.4 | BB21: 162.4 | BC21: 165.1 | BD21: 165.9 | BE21: 176.4 | BF21: 178.3 | BG21: 181 | BH21: 176.9 | BI21: 173.2 | BJ21: 171.8 | BK21: 166.8 | BL21: 161.3 | BM21: 153.3 | BN21: 145 | BO21: 151.6 | BP21: 155.9 | BQ21: 152.5 | BR21: 159.2 | BS21: 163.9 | BT21: 167.7 | BU21: 161.8 | BV21: 155.2 | BW21: 149.4 | BX21: 151.2 | BY21: 149.6 | BZ21: 147 | CA21: 143 | CB21: 145.8 | CC21: 153.5 | CD21: 158.1 | CE21: 159.1 | CF21: 157.4 | CG21: 155.8 | CH21: 155.4 | CI21: 157.8 | CJ21: 155.2 | CK21: 158.1 | CL21: 162.9 | CM21: 159.2 | CN21: 156.9 | CO21: 165.3 | CP21: 158.2 | CQ21: 154.7 | CR21: 151.6 | CS21: 152.9 | CT21: 158.5 | CU21: 154.7 | CV21: 160.1 | CW21: 159.3 | CX21: 163.2 | CY21: 162.3 | CZ21: 164.1 | DA21: 168.2 | DB21: 170.5 | DC21: 168 | DD21: 168.6 | DE21: 167.1 | DF21: 164.6 | DG21: 160.7 | DH21: 152.4 | DI21: 147.4 | DJ21: 146.2 | DK21: 145.8 | DL21: 155.4 | DM21: 165.4 | DN21: 167.1 | DO21: 161.1 | DP21: 165.5 | DQ21: 160.7 | DR21: 159.5 | DS21: 158 | DT21: 159 | DU21: 158.7 | DV21: 158.1 | DX21: 155.3 | DY21: 136.7 | DZ21: 125.6 | EA21: 133.4 | EB21: 146.3 | EC21: 149.6 | ED21: 149.3 | EE21: 147.8
A22: Goods 8 | B22: 105.4 | C22: 105.1 | D22: 106.8 | E22: 105.8 | F22: 106.6 | G22: 107.1 | H22: 107.6 | I22: 108 | J22: 108.4 | K22: 107.3 | L22: 108.3 | M22: 108.4 | N22: 108.6 | O22: 109.1 | P22: 109.5 | Q22: 109.4 | R22: 109.4 | S22: 109.5 | T22: 111.7 | U22: 112.8 | V22: 113.8 | W22: 112.3 | X22: 112.4 | Y22: 112.5 | Z22: 112.8 | AA22: 112.6 | AB22: 112.6 | AC22: 111.3 | AD22: 112.1 | AE22: 113.2 | AF22: 113.8 | AG22: 114 | AH22: 113.6 | AI22: 111.7 | AJ22: 111.5 | AK22: 112.3 | AL22: 112.3 | AM22: 112.7 | AN22: 112.2 | AO22: 111 | AP22: 111.3 | AQ22: 113.8 | AR22: 114.2 | AS22: 113.3 | AT22: 113.2 | AU22: 113.4 | AV22: 113.5 | AW22: 113.5 | AX22: 113.3 | AY22: 112.9 | AZ22: 112.8 | BA22: 112.6 | BB22: 112.7 | BC22: 114.7 | BD22: 115.6 | BE22: 116.9 | BF22: 117.6 | BG22: 118 | BH22: 116.9 | BI22: 116.5 | BJ22: 116.5 | BK22: 116.3 | BL22: 115.8 | BM22: 114.1 | BN22: 113.7 | BO22: 114.9 | BP22: 116.3 | BQ22: 115.8 | BR22: 117.1 | BS22: 117.7 | BT22: 117.9 | BU22: 116.8 | BV22: 115.8 | BW22: 115.9 | BX22: 116.4 | BY22: 115.7 | BZ22: 116 | CA22: 116 | CB22: 117.3 | CC22: 118.5 | CD22: 118.8 | CE22: 118.9 | CF22: 118.1 | CG22: 117.4 | CH22: 117.2 | CI22: 117.9 | CJ22: 117.4 | CK22: 117.2 | CL22: 118.1 | CM22: 118.2 | CN22: 118 | CO22: 118.9 | CP22: 117.9 | CQ22: 117.6 | CR22: 117.1 | CS22: 117 | CT22: 117.4 | CU22: 117.2 | CV22: 118.3 | CW22: 118 | CX22: 118.9 | CY22: 119.2 | CZ22: 119.5 | DA22: 120.4 | DB22: 120 | DC22: 120.3 | DD22: 120.2 | DE22: 120 | DF22: 119.3 | DG22: 119.6 | DH22: 118.7 | DI22: 118 | DJ22: 118.5 | DK22: 119.5 | DL22: 120.7 | DM22: 121.7 | DN22: 122.1 | DO22: 121.3 | DP22: 121.7 | DQ22: 120.9 | DR22: 120.8 | DS22: 120.9 | DT22: 121.4 | DU22: 120.8 | DV22: 121.6 | DX22: 121.5 | DY22: 119.5 | DZ22: 118.2 | EA22: 118.6 | EB22: 120.5 | EC22: 121 | ED22: 120.4 | EE22: 120
A23: Services 9 | B23: 121.2 | C23: 121.7 | D23: 121.4 | E23: 121.5 | F23: 121.5 | G23: 122.2 | H23: 122.2 | I23: 122.6 | J23: 123.2 | K23: 123.7 | L23: 124.8 | M23: 124.5 | N23: 124.7 | O23: 125.4 | P23: 125.5 | Q23: 125.4 | R23: 125.2 | S23: 125.5 | T23: 126.3 | U23: 126.3 | V23: 127.2 | W23: 127.2 | X23: 127.6 | Y23: 127.8 | Z23: 128.5 | AA23: 128.5 | AB23: 128.5 | AC23: 128.4 | AD23: 128.2 | AE23: 128.7 | AF23: 129.2 | AG23: 129.9 | AH23: 130.2 | AI23: 130.4 | AJ23: 130.3 | AK23: 130.3 | AL23: 130.6 | AM23: 130.6 | AN23: 130.7 | AO23: 130.4 | AP23: 130.3 | AQ23: 130.8 | AR23: 131.1 | AS23: 131.4 | AT23: 131.8 | AU23: 131.9 | AV23: 132.2 | AW23: 132.2 | AX23: 132.6 | AY23: 132.7 | AZ23: 132.7 | BA23: 132.6 | BB23: 132.9 | BC23: 133.4 | BD23: 133.5 | BE23: 133.7 | BF23: 134.4 | BG23: 134.7 | BH23: 135 | BI23: 135.5 | BJ23: 135.8 | BK23: 136.1 | BL23: 135.7 | BM23: 135.6 | BN23: 135.7 | BO23: 136.5 | BP23: 136.7 | BQ23: 136.8 | BR23: 137.2 | BS23: 137.6 | BT23: 137.8 | BU23: 138 | BV23: 138.6 | BW23: 138.9 | BX23: 138.3 | BY23: 138.1 | BZ23: 138.4 | CA23: 139.1 | CB23: 139.5 | CC23: 139.5 | CD23: 140.3 | CE23: 140.7 | CF23: 141.3 | CG23: 141.2 | CH23: 141.8 | CI23: 142 | CJ23: 141.7 | CK23: 141.5 | CL23: 142.3 | CM23: 143 | CN23: 143.5 | CO23: 143.9 | CP23: 144.6 | CQ23: 145.1 | CR23: 145.2 | CS23: 145.1 | CT23: 145.7 | CU23: 145.9 | CV23: 145.6 | CW23: 144.7 | CX23: 146.1 | CY23: 147.4 | CZ23: 148.3 | DA23: 147.8 | DB23: 148.3 | DC23: 148.9 | DD23: 150.2 | DE23: 150.2 | DF23: 149.6 | DG23: 150 | DH23: 149.9 | DI23: 150.4 | DJ23: 150.3 | DK23: 150.9 | DL23: 151.5 | DM23: 151.4 | DN23: 152.4 | DO23: 152.9 | DP23: 154.2 | DQ23: 154.3 | DR23: 152.4 | DS23: 153.2 | DT23: 152.3 | DU23: 153 | DV23: 152.6 | DX23: 154 | DY23: 154.3 | DZ23: 154.6 | EA23: 154.5 | EB23: 154.9 | EC23: 154.7 | ED23: 154.9 | EE23: 154.7
A25: Symbol legend:
A27: Footnotes:
